Workbook

Sheet Content
C2: Content
F3: Colour Codes | K3: File Name: | M3: =IFERROR(File_name(),"") -> 
C4: Inputs | G4: Inputs | I4: 1234567890
D5: Timing | G5: Section Titles | I5: TITLE ROW | K5: Last Save Date | M5: =IFERROR(lastsaved(),"") -> 
D6: Depreciation | G6: Sum Column | I6: 1000000000
G7: True or 1 | I7: =1=1 -> TRUE | K7: Last Save By | M7: =IFERROR(last_save_by(),"") -> 
C8: Timing | G8: False or 0 | I8: =1=2 -> FALSE
G9: Other Sheet Links | I9: |||||||||||||||||||
C10: checks & questions
C12: Partnership
C14: Partnership income
D15: Transferred variables
D16: ITC
D17: Depreciation
D18: Partnership income
C20: Construction
C22: Equity
C24: Dep
C26: Waterfall
D27: Calendar year
D28: Days in Quarter
D29: Construction Quarter
D30: Operations Quarter
D31: Operations Year
D32: Escalation Counter
C34: Debt
C36: Merchant curves
D37: Wood Mackenzie: 2022 base case Caiso zp26
D38: Inflation

Sheet checks & questions
E8: EBITDA
E9: Do you compute ITC on the backleverage IDC?
E10: Exact quarter of ITC
E11: TE cash flow share - is it really zero?
E12: Is interest on bridge loan capitalized or not?
E13: Should we take the longer PPA 2 for amortization because it is longer?
D16: 1. The pre-tax IRR is extremely low
E17: Why is the panel cost so high (while it could only costs $200)?
E18: The project unlevered is cash flow is .33% -- too low to make the finaning work

Sheet Summary
B3: Sources & Uses of funds
E4: Financial | I4: Contribution Ratio | K4: ='Inputs - Tax'!E52 -> 1.2
E5: Close
C6: Uses of funds | I6: Unlevered IRR
D7: Development | I7: Pre-tax IRR | K7: ='Partnership Cash Flow'!H120 -> 0.00329194963
D8: Capex | I8: Hypothetical after tax | K8: ='Partnership income and ITC'!H61 -> 0.04959101975
D9: IDC
D10: Fees | I10: TE | K10: ='Allocation to partners'!H60 -> 0.4025887191
D11: Less: ITC | I11: Sponsor pre tax
D12: Uses of fund with ITC | I12: Sponsor after tax
D13: Uses of fund without ITC
I14: Sponsor after backleverage
C15: Sources of funds | I15: Debt IRR
D16: Tax Equity Fiancing | I16: Pre-tax After Back Leverage
D17: Backleverage | I17: After-tax After Back Leverage
D18: Sponsor equity
C20: Operation
D21: Total DC Capacity | E21: MWp | F21: ='Inputs - Partnership'!E28 -> 225
D22: Total Cost | E22: USD 000 | F22: ='Construction financing'!H14 -> 307650
D23: Cost/kWp | E23: $/kWp | F23: =F22/F21 -> 1367.333333
D25: P50 Yield | E25: kWh/kWp | F25: ='Partnership Cash Flow'!E23 -> 2785.68
D26: Capacity Factor | E26: % | F26: =F25/8760 -> 0.318
D28: First Year O&M | E28: USD 000 | F28: =-'Partnership Cash Flow'!Q83*4 -> 3164.253373
D29: Cost per kW-year | E29: USD/kWp | F29: =F28/F21 -> 14.06334832

Sheet Inputs - Partnership
A1: INPUTS
B3: Timing
C5: State | E5: Kern County, CA
C6: Project type | E6: Solar
C8: Model start | E8: 2019-12-31
E10: Duration | G10: Start | H10: End
C11: Development | E11: 4 | G11: =E8+1 -> 2020-01-01 | H11: =EOMONTH(G11,E11*3-1) -> 2020-12-31
C12: Construction | E12: 4 | G12: =H11+1 -> 2021-01-01 | H12: =EOMONTH(G12,E12*3-1) -> 2021-12-31
C13: Operations | E13: 35 | G13: =H12+1 -> 2022-01-01 | H13: =EOMONTH(G13,E13*12-1) -> 2056-12-31
B15: Construction
G16: Development cost
C17: Construction profile | E17: USD '000 | G17: Total | H17: 1 | I17: =H17+1 -> 2 | J17: =I17+1 -> 3 | K17: =J17+1 -> 4
C18: Development | D18: USD '000 | E18: 14700 | G18: =SUM(H18:K18) -> 1 | H18: 0.25 | I18: 0.25 | J18: 0.25 | K18: 0.25
C19: Panels | D19: USD '000 | E19: =IF(N22,M20,M19) -> 202500 | M19: 202500 | N19: =M19/E28 -> 900
C20: Balance of plant | D20: USD '000 | E20: 67500 | G20: CapEx spend Schedule (excl. development) | M20: =N20*E28 -> 67500 | N20: 300
C21: Interconnection | D21: USD '000 | E21: 9000 | G21: Total | H21: 1 | I21: =H21+1 -> 2 | J21: =I21+1 -> 3 | K21: =J21+1 -> 4
C22: Contingency | D22: USD '000 | E22: =SUM(E19:E21)*E25 -> 13950 | G22: =SUM(H22:K22) -> 1 | H22: 0.21 | I22: 0.29 | J22: 0.2 | K22: 0.3 | M22: Alt Panel | N22: FALSE
C23: Total | E23: =SUM(E18:E22) -> 307650
C25: Contingency | D25: % | E25: 0.05 | F25: << 5% of total capEx
B27: Generation
C28: Rate capacity | D28: MW | E28: 225
G29: Annual production | I29: Production ratio
C30: P50 Capacity Factor | E30: 0.318 | G30: =$E$28*E30*8760 -> 626778 | H30: MWh | I30: =G30/$E$28 -> 2785.68 | J30: kWh/kW
C31: P99 Capacity Factor | E31: 0.277 | G31: =$E$28*E31*8760 -> 545967 | H31: MWh | I31: =G31/$E$28 -> 2426.52 | J31: kWh/kW
G33: Quarterly insolation
C34: Degredation | E34: 0.006 | G34: Total | H34: 1 | I34: =H34+1 -> 2 | J34: =I34+1 -> 3 | K34: =J34+1 -> 4
C35: Availability | E35: 1 | G35: =SUM(H35:K35) -> 1 | H35: 0.2 | I35: 0.325 | J35: 0.294 | K35: 0.181
C36: Capacity Convertion Ratio (AC/DC ratio) | E36: 0.012 | F36: << how to apply?
C38: Price
C39: PPA 1
C40: Price | D40: USD / MWh | E40: 38 | G40: Start | H40: End
C41: Tenor | D41: Years | E41: 15 | G41: 2021-12-31 | H41: =EOMONTH(G41,E41*12) -> 2036-12-31
C42: Generation | D42: % | E42: 0.6
C44: Escalation | E44: 0.025
C46: Security Requirements
C47: Once Executed ($/kWdc) | D47: $/KWdc | E47: 70
C48: Step Up (per Annum) | D48: $/KW | E48: 125
C51: PPA 2
C52: Price | D52: USD / MWh | E52: 42.5 | G52: Start | H52: End
C53: Tenor | D53: Years | E53: 20 | G53: =Op_start -> 2022-01-01 | H53: =EOMONTH(G53,E53*12) -> 2042-01-31
C54: Generation | D54: % | E54: 0.35
C56: Escalation | D56: % | E56: 0
C58: Merchant price (real) | D58: << see Merchant curves tab
C60: Renewable energy credits (REC) | G60: Start | I60: =G61 -> 2022 | J60: =I60+1 -> 2023 | K60: =J60+1 -> 2024 | L60: =K60+1 -> 2025 | M60: =L60+1 -> 2026 | N60: =M60+1 -> 2027 | O60: =N60+1 -> 2028 | P60: =O60+1 -> 2029 | Q60: =P60+1 -> 2030 | R60: =Q60+1 -> 2031
C61: Tenor | D61: Years | E61: 10 | G61: =YEAR(Op_start) -> 2022 | I61: 1.25 | J61: 1.25 | K61: 1.25 | L61: 1.25 | M61: 1.25 | N61: 1.25 | O61: 1.25 | P61: 1.25 | Q61: 1.25 | R61: 1.25
C62: Price | D62: USD / kWh | E62: 1.25
B65: Fixed costs
C66: Operating expense | E66: $ p.a. | G66: Escalation
C67: Panel O&M | D67: USD '000 | E67: 40 | G67: 0.025
C68: BoP O&M and site labor | D68: USD '000 | E68: 125 | G68: 0.02
C69: Operating expense | D69: USD '000 | E69: 71 | G69: 0.02 | I69: Start | J69: End
C70: Maintenance | D70: USD '000 | E70: 83 | G70: 0.02 | I70: 5 | J70: 20
C71: Asset management | D71: USD '000 | E71: 250 | G71: 0.02 | I71: =EOMONTH(Op_start,I70*12) -> 2027-01-31 | J71: =EOMONTH(Op_start,J70*12) -> 2042-01-31
C72: Community support | D72: USD '000 | E72: 10 | G72: 0.02
C73: 3rd party services | D73: USD '000 | E73: 200 | G73: 0.02
C77: Property tax | D77: USD '000 | E77: 500 | G77: 0
C78: Land | D78: USD '000 | E78: 500 | G78: 0
C80: Insurance | D80: % | E80: 0.005 | G80: 0
C81: Project Cap Exp | E81: =SUM(E19:E22) -> 292950
D82: USD '000 | E82: =E81*E80 -> 1464.75
F88: ='Inputs - Partnership'!E19:E22 -> 202500
F89: 67500
F90: 9000
F91: 13950

Sheet Inputs - Tax
B3: Depreciation
C4: Construction capex | H4: Straight line | L4: Reducing balance | O4: MACRS
E5: Accounting | F5: Tax | H5: Asset life | I5: % p.a. | J5: % p.q. | L5: RB multiple | M5: % p.q. | O5: Selection
C6: Long term | E6: SL | F6: MACRS | H6: 15 | I6: =IF(H6=0,0,1/H6) -> 0.06666666667 | J6: =I6/4 -> 0.01666666667 | L6: 2 | M6: =J6*L6 -> 0.03333333333 | O6: 15 year
C7: Short term | E7: SL | F7: MACRS | H7: 10 | I7: =IF(H7=0,0,1/H7) -> 0.1 | J7: =I7/4 -> 0.025 | L7: 2 | M7: =J7*L7 -> 0.05 | O7: 5 year
C8: Financing | E8: SL | F8: MACRS | H8: 6 | I8: =IF(H8=0,0,1/H8) -> 0.1666666667 | J8: =I8/4 -> 0.04166666667 | L8: 2 | M8: =J8*L8 -> 0.08333333333 | O8: 5 year
C9: Categories
C10: Construction capex | E10: Category
C11: ='Inputs - Partnership'!C18 -> Development | E11: 1
C12: ='Inputs - Partnership'!C19 -> Panels | E12: 2
C13: ='Inputs - Partnership'!C20 -> Balance of plant | E13: 1
C14: ='Inputs - Partnership'!C21 -> Interconnection | E14: 2
C15: ='Inputs - Partnership'!C22 -> Contingency | E15: 2 | M15: Do not delete
C16: IDC | E16: 3 | M16: Straight line | O16: SL
C17: Financing fees | E17: 3 | M17: Reducing balance | O17: RB
M18: MACRS | O18: MACRS
C19: Maintenance capex | E19: Category
C20: ='Inputs - Partnership'!C70 -> Maintenance | E20: 1
H22: PP&A
H23: ='Partnership Cash Flow'!H109 -> 307650
B25: MACRS depreciation schedule (half-year convention)
C26: Depreciation by year
H27: Operation years
E28: Useful life | G28: 0 | H28: 1 | I28: =H28+1 -> 2 | J28: =I28+1 -> 3 | K28: =J28+1 -> 4 | L28: =K28+1 -> 5 | M28: =L28+1 -> 6 | N28: =M28+1 -> 7 | O28: =N28+1 -> 8 | P28: =O28+1 -> 9 | Q28: =P28+1 -> 10 | R28: =Q28+1 -> 11 | S28: =R28+1 -> 12 | T28: =S28+1 -> 13 | U28: =T28+1 -> 14 | V28: =U28+1 -> 15 | W28: =V28+1 -> 16 | X28: =W28+1 -> 17
C29: 5 year | D29: % p.a. | E29: 6 | H29: 0.2 | I29: 0.32 | J29: 0.192 | K29: 0.1152 | L29: 0.1152 | M29: 0.0576
C30: 5 year | D30: % p.a. | E30: 6 | H30: 0.2 | I30: 0.32 | J30: 0.192 | K30: 0.1152 | L30: 0.1152 | M30: 0.0576
C31: 15 year | D31: % p.a. | E31: 16 | H31: 0.05 | I31: 0.095 | J31: 0.0855 | K31: 0.077 | L31: 0.0693 | M31: 0.0623 | N31: 0.059 | O31: 0.059 | P31: 0.0591 | Q31: 0.059 | R31: 0.0591 | S31: 0.059 | T31: 0.0591 | U31: 0.059 | V31: 0.0591 | W31: 0.0295
C33: Full 5 year MACRS from VDB Caclculation | D33: % p.a. | G33: =SUM(H33:L33) -> 1 | H33: =VDB(1,0,5,G28,H28,2) -> 0.4 | I33: =VDB(1,0,5,H28,I28,2) -> 0.24 | J33: =VDB(1,0,5,I28,J28,2) -> 0.144 | K33: =VDB(1,0,5,J28,K28,2) -> 0.108 | L33: =VDB(1,0,5,K28,L28,2) -> 0.108
C34: 1/2 Year 5 year MACRS from VDB Caclculation | D34: % p.a. | H34: =H33/2 -> 0.2 | I34: =H33/2+I33/2 -> 0.32 | J34: =I33/2+J33/2 -> 0.192 | K34: =J33/2+K33/2 -> 0.126 | L34: =K33/2+L33/2 -> 0.108 | M34: =L33/2+M33/2 -> 0.054
C36: Basis reduction from ITC | E36: 0.5
H37: =ROUNDUP(H38/4,0) -> 16 | I37: =ROUNDUP(I38/4,0) -> 16 | J37: =ROUNDUP(J38/4,0) -> 15 | K37: =ROUNDUP(K38/4,0) -> 15 | L37: =ROUNDUP(L38/4,0) -> 15 | M37: =ROUNDUP(M38/4,0) -> 15 | N37: =ROUNDUP(N38/4,0) -> 14 | O37: =ROUNDUP(O38/4,0) -> 14 | P37: =ROUNDUP(P38/4,0) -> 14 | Q37: =ROUNDUP(Q38/4,0) -> 14 | R37: =ROUNDUP(R38/4,0) -> 13 | S37: =ROUNDUP(S38/4,0) -> 13 | T37: =ROUNDUP(T38/4,0) -> 13 | U37: =ROUNDUP(U38/4,0) -> 13 | V37: =ROUNDUP(V38/4,0) -> 12 | W37: =ROUNDUP(W38/4,0) -> 12 | X37: =ROUNDUP(X38/4,0) -> 12 | Y37: =ROUNDUP(Y38/4,0) -> 12 | Z37: =ROUNDUP(Z38/4,0) -> 11 | AA37: =ROUNDUP(AA38/4,0) -> 11 | AB37: =ROUNDUP(AB38/4,0) -> 11 | AC37: =ROUNDUP(AC38/4,0) -> 11 | AD37: =ROUNDUP(AD38/4,0) -> 10 | AE37: =ROUNDUP(AE38/4,0) -> 10 | AF37: =ROUNDUP(AF38/4,0) -> 10 | AG37: =ROUNDUP(AG38/4,0) -> 10 | AH37: =ROUNDUP(AH38/4,0) -> 9 | AI37: =ROUNDUP(AI38/4,0) -> 9 | AJ37: =ROUNDUP(AJ38/4,0) -> 9 | AK37: =ROUNDUP(AK38/4,0) -> 9 | AL37: =ROUNDUP(AL38/4,0) -> 8 | AM37: =ROUNDUP(AM38/4,0) -> 8 | AN37: =ROUNDUP(AN38/4,0) -> 8 | AO37: =ROUNDUP(AO38/4,0) -> 8 | AP37: =ROUNDUP(AP38/4,0) -> 7 | AQ37: =ROUNDUP(AQ38/4,0) -> 7 | AR37: =ROUNDUP(AR38/4,0) -> 7 | AS37: =ROUNDUP(AS38/4,0) -> 7 | AT37: =ROUNDUP(AT38/4,0) -> 6 | AU37: =ROUNDUP(AU38/4,0) -> 6 | AV37: =ROUNDUP(AV38/4,0) -> 6 | AW37: =ROUNDUP(AW38/4,0) -> 6 | AX37: =ROUNDUP(AX38/4,0) -> 5 | AY37: =ROUNDUP(AY38/4,0) -> 5 | AZ37: =ROUNDUP(AZ38/4,0) -> 5 | BA37: =ROUNDUP(BA38/4,0) -> 5 | BB37: =ROUNDUP(BB38/4,0) -> 4 | BC37: =ROUNDUP(BC38/4,0) -> 4 | BD37: =ROUNDUP(BD38/4,0) -> 4 | BE37: =ROUNDUP(BE38/4,0) -> 4 | BF37: =ROUNDUP(BF38/4,0) -> 3 | BG37: =ROUNDUP(BG38/4,0) -> 3 | BH37: =ROUNDUP(BH38/4,0) -> 3 | BI37: =ROUNDUP(BI38/4,0) -> 3 | BJ37: =ROUNDUP(BJ38/4,0) -> 2 | BK37: =ROUNDUP(BK38/4,0) -> 2 | BL37: =ROUNDUP(BL38/4,0) -> 2 | BM37: =ROUNDUP(BM38/4,0) -> 2 | BN37: =ROUNDUP(BN38/4,0) -> 1 | BO37: =ROUNDUP(BO38/4,0) -> 1 | BP37: =ROUNDUP(BP38/4,0) -> 1 | BQ37: =ROUNDUP(BQ38/4,0) -> 1
G38: =MAX(H28:W28)*4-1 -> 63 | H38: =G38-1 -> 62 | I38: =H38-1 -> 61 | J38: =I38-1 -> 60 | K38: =J38-1 -> 59 | L38: =K38-1 -> 58 | M38: =L38-1 -> 57 | N38: =M38-1 -> 56 | O38: =N38-1 -> 55 | P38: =O38-1 -> 54 | Q38: =P38-1 -> 53 | R38: =Q38-1 -> 52 | S38: =R38-1 -> 51 | T38: =S38-1 -> 50 | U38: =T38-1 -> 49 | V38: =U38-1 -> 48 | W38: =V38-1 -> 47 | X38: =W38-1 -> 46 | Y38: =X38-1 -> 45 | Z38: =Y38-1 -> 44 | AA38: =Z38-1 -> 43 | AB38: =AA38-1 -> 42 | AC38: =AB38-1 -> 41 | AD38: =AC38-1 -> 40 | AE38: =AD38-1 -> 39 | AF38: =AE38-1 -> 38 | AG38: =AF38-1 -> 37 | AH38: =AG38-1 -> 36 | AI38: =AH38-1 -> 35 | AJ38: =AI38-1 -> 34 | AK38: =AJ38-1 -> 33 | AL38: =AK38-1 -> 32 | AM38: =AL38-1 -> 31 | AN38: =AM38-1 -> 30 | AO38: =AN38-1 -> 29 | AP38: =AO38-1 -> 28 | AQ38: =AP38-1 -> 27 | AR38: =AQ38-1 -> 26 | AS38: =AR38-1 -> 25 | AT38: =AS38-1 -> 24 | AU38: =AT38-1 -> 23 | AV38: =AU38-1 -> 22 | AW38: =AV38-1 -> 21 | AX38: =AW38-1 -> 20 | AY38: =AX38-1 -> 19 | AZ38: =AY38-1 -> 18 | BA38: =AZ38-1 -> 17 | BB38: =BA38-1 -> 16 | BC38: =BB38-1 -> 15 | BD38: =BC38-1 -> 14 | BE38: =BD38-1 -> 13 | BF38: =BE38-1 -> 12 | BG38: =BF38-1 -> 11 | BH38: =BG38-1 -> 10 | BI38: =BH38-1 -> 9 | BJ38: =BI38-1 -> 8 | BK38: =BJ38-1 -> 7 | BL38: =BK38-1 -> 6 | BM38: =BL38-1 -> 5 | BN38: =BM38-1 -> 4 | BO38: =BN38-1 -> 3 | BP38: =BO38-1 -> 2 | BQ38: =BP38-1 -> 1
H39: =INDEX($H29:$W29,H$37) -> 0 | I39: =INDEX($H29:$W29,I$37) -> 0 | J39: =INDEX($H29:$W29,J$37) -> 0 | K39: =INDEX($H29:$W29,K$37) -> 0 | L39: =INDEX($H29:$W29,L$37) -> 0 | M39: =INDEX($H29:$W29,M$37) -> 0 | N39: =INDEX($H29:$W29,N$37) -> 0 | O39: =INDEX($H29:$W29,O$37) -> 0 | P39: =INDEX($H29:$W29,P$37) -> 0 | Q39: =INDEX($H29:$W29,Q$37) -> 0 | R39: =INDEX($H29:$W29,R$37) -> 0 | S39: =INDEX($H29:$W29,S$37) -> 0 | T39: =INDEX($H29:$W29,T$37) -> 0 | U39: =INDEX($H29:$W29,U$37) -> 0 | V39: =INDEX($H29:$W29,V$37) -> 0 | W39: =INDEX($H29:$W29,W$37) -> 0 | X39: =INDEX($H29:$W29,X$37) -> 0 | Y39: =INDEX($H29:$W29,Y$37) -> 0 | Z39: =INDEX($H29:$W29,Z$37) -> 0 | AA39: =INDEX($H29:$W29,AA$37) -> 0 | AB39: =INDEX($H29:$W29,AB$37) -> 0 | AC39: =INDEX($H29:$W29,AC$37) -> 0 | AD39: =INDEX($H29:$W29,AD$37) -> 0 | AE39: =INDEX($H29:$W29,AE$37) -> 0 | AF39: =INDEX($H29:$W29,AF$37) -> 0 | AG39: =INDEX($H29:$W29,AG$37) -> 0 | AH39: =INDEX($H29:$W29,AH$37) -> 0 | AI39: =INDEX($H29:$W29,AI$37) -> 0 | AJ39: =INDEX($H29:$W29,AJ$37) -> 0 | AK39: =INDEX($H29:$W29,AK$37) -> 0 | AL39: =INDEX($H29:$W29,AL$37) -> 0 | AM39: =INDEX($H29:$W29,AM$37) -> 0 | AN39: =INDEX($H29:$W29,AN$37) -> 0 | AO39: =INDEX($H29:$W29,AO$37) -> 0 | AP39: =INDEX($H29:$W29,AP$37) -> 0 | AQ39: =INDEX($H29:$W29,AQ$37) -> 0 | AR39: =INDEX($H29:$W29,AR$37) -> 0 | AS39: =INDEX($H29:$W29,AS$37) -> 0 | AT39: =INDEX($H29:$W29,AT$37) -> 0.0576 | AU39: =INDEX($H29:$W29,AU$37) -> 0.0576 | AV39: =INDEX($H29:$W29,AV$37) -> 0.0576 | AW39: =INDEX($H29:$W29,AW$37) -> 0.0576 | AX39: =INDEX($H29:$W29,AX$37) -> 0.1152 | AY39: =INDEX($H29:$W29,AY$37) -> 0.1152 | AZ39: =INDEX($H29:$W29,AZ$37) -> 0.1152 | BA39: =INDEX($H29:$W29,BA$37) -> 0.1152 | BB39: =INDEX($H29:$W29,BB$37) -> 0.1152 | BC39: =INDEX($H29:$W29,BC$37) -> 0.1152 | BD39: =INDEX($H29:$W29,BD$37) -> 0.1152 | BE39: =INDEX($H29:$W29,BE$37) -> 0.1152 | BF39: =INDEX($H29:$W29,BF$37) -> 0.192 | BG39: =INDEX($H29:$W29,BG$37) -> 0.192 | BH39: =INDEX($H29:$W29,BH$37) -> 0.192 | BI39: =INDEX($H29:$W29,BI$37) -> 0.192 | BJ39: =INDEX($H29:$W29,BJ$37) -> 0.32 | BK39: =INDEX($H29:$W29,BK$37) -> 0.32 | BL39: =INDEX($H29:$W29,BL$37) -> 0.32 | BM39: =INDEX($H29:$W29,BM$37) -> 0.32 | BN39: =INDEX($H29:$W29,BN$37) -> 0.2 | BO39: =INDEX($H29:$W29,BO$37) -> 0.2 | BP39: =INDEX($H29:$W29,BP$37) -> 0.2 | BQ39: =INDEX($H29:$W29,BQ$37) -> 0.2
H40: =INDEX($H30:$W30,H$37) -> 0 | I40: =INDEX($H30:$W30,I$37) -> 0 | J40: =INDEX($H30:$W30,J$37) -> 0 | K40: =INDEX($H30:$W30,K$37) -> 0 | L40: =INDEX($H30:$W30,L$37) -> 0 | M40: =INDEX($H30:$W30,M$37) -> 0 | N40: =INDEX($H30:$W30,N$37) -> 0 | O40: =INDEX($H30:$W30,O$37) -> 0 | P40: =INDEX($H30:$W30,P$37) -> 0 | Q40: =INDEX($H30:$W30,Q$37) -> 0 | R40: =INDEX($H30:$W30,R$37) -> 0 | S40: =INDEX($H30:$W30,S$37) -> 0 | T40: =INDEX($H30:$W30,T$37) -> 0 | U40: =INDEX($H30:$W30,U$37) -> 0 | V40: =INDEX($H30:$W30,V$37) -> 0 | W40: =INDEX($H30:$W30,W$37) -> 0 | X40: =INDEX($H30:$W30,X$37) -> 0 | Y40: =INDEX($H30:$W30,Y$37) -> 0 | Z40: =INDEX($H30:$W30,Z$37) -> 0 | AA40: =INDEX($H30:$W30,AA$37) -> 0 | AB40: =INDEX($H30:$W30,AB$37) -> 0 | AC40: =INDEX($H30:$W30,AC$37) -> 0 | AD40: =INDEX($H30:$W30,AD$37) -> 0 | AE40: =INDEX($H30:$W30,AE$37) -> 0 | AF40: =INDEX($H30:$W30,AF$37) -> 0 | AG40: =INDEX($H30:$W30,AG$37) -> 0 | AH40: =INDEX($H30:$W30,AH$37) -> 0 | AI40: =INDEX($H30:$W30,AI$37) -> 0 | AJ40: =INDEX($H30:$W30,AJ$37) -> 0 | AK40: =INDEX($H30:$W30,AK$37) -> 0 | AL40: =INDEX($H30:$W30,AL$37) -> 0 | AM40: =INDEX($H30:$W30,AM$37) -> 0 | AN40: =INDEX($H30:$W30,AN$37) -> 0 | AO40: =INDEX($H30:$W30,AO$37) -> 0 | AP40: =INDEX($H30:$W30,AP$37) -> 0 | AQ40: =INDEX($H30:$W30,AQ$37) -> 0 | AR40: =INDEX($H30:$W30,AR$37) -> 0 | AS40: =INDEX($H30:$W30,AS$37) -> 0 | AT40: =INDEX($H30:$W30,AT$37) -> 0.0576 | AU40: =INDEX($H30:$W30,AU$37) -> 0.0576 | AV40: =INDEX($H30:$W30,AV$37) -> 0.0576 | AW40: =INDEX($H30:$W30,AW$37) -> 0.0576 | AX40: =INDEX($H30:$W30,AX$37) -> 0.1152 | AY40: =INDEX($H30:$W30,AY$37) -> 0.1152 | AZ40: =INDEX($H30:$W30,AZ$37) -> 0.1152 | BA40: =INDEX($H30:$W30,BA$37) -> 0.1152 | BB40: =INDEX($H30:$W30,BB$37) -> 0.1152 | BC40: =INDEX($H30:$W30,BC$37) -> 0.1152 | BD40: =INDEX($H30:$W30,BD$37) -> 0.1152 | BE40: =INDEX($H30:$W30,BE$37) -> 0.1152 | BF40: =INDEX($H30:$W30,BF$37) -> 0.192 | BG40: =INDEX($H30:$W30,BG$37) -> 0.192 | BH40: =INDEX($H30:$W30,BH$37) -> 0.192 | BI40: =INDEX($H30:$W30,BI$37) -> 0.192 | BJ40: =INDEX($H30:$W30,BJ$37) -> 0.32 | BK40: =INDEX($H30:$W30,BK$37) -> 0.32 | BL40: =INDEX($H30:$W30,BL$37) -> 0.32 | BM40: =INDEX($H30:$W30,BM$37) -> 0.32 | BN40: =INDEX($H30:$W30,BN$37) -> 0.2 | BO40: =INDEX($H30:$W30,BO$37) -> 0.2 | BP40: =INDEX($H30:$W30,BP$37) -> 0.2 | BQ40: =INDEX($H30:$W30,BQ$37) -> 0.2
H41: =INDEX($H31:$W31,H$37) -> 0.0295 | I41: =INDEX($H31:$W31,I$37) -> 0.0295 | J41: =INDEX($H31:$W31,J$37) -> 0.0591 | K41: =INDEX($H31:$W31,K$37) -> 0.0591 | L41: =INDEX($H31:$W31,L$37) -> 0.0591 | M41: =INDEX($H31:$W31,M$37) -> 0.0591 | N41: =INDEX($H31:$W31,N$37) -> 0.059 | O41: =INDEX($H31:$W31,O$37) -> 0.059 | P41: =INDEX($H31:$W31,P$37) -> 0.059 | Q41: =INDEX($H31:$W31,Q$37) -> 0.059 | R41: =INDEX($H31:$W31,R$37) -> 0.0591 | S41: =INDEX($H31:$W31,S$37) -> 0.0591 | T41: =INDEX($H31:$W31,T$37) -> 0.0591 | U41: =INDEX($H31:$W31,U$37) -> 0.0591 | V41: =INDEX($H31:$W31,V$37) -> 0.059 | W41: =INDEX($H31:$W31,W$37) -> 0.059 | X41: =INDEX($H31:$W31,X$37) -> 0.059 | Y41: =INDEX($H31:$W31,Y$37) -> 0.059 | Z41: =INDEX($H31:$W31,Z$37) -> 0.0591 | AA41: =INDEX($H31:$W31,AA$37) -> 0.0591 | AB41: =INDEX($H31:$W31,AB$37) -> 0.0591 | AC41: =INDEX($H31:$W31,AC$37) -> 0.0591 | AD41: =INDEX($H31:$W31,AD$37) -> 0.059 | AE41: =INDEX($H31:$W31,AE$37) -> 0.059 | AF41: =INDEX($H31:$W31,AF$37) -> 0.059 | AG41: =INDEX($H31:$W31,AG$37) -> 0.059 | AH41: =INDEX($H31:$W31,AH$37) -> 0.0591 | AI41: =INDEX($H31:$W31,AI$37) -> 0.0591 | AJ41: =INDEX($H31:$W31,AJ$37) -> 0.0591 | AK41: =INDEX($H31:$W31,AK$37) -> 0.0591 | AL41: =INDEX($H31:$W31,AL$37) -> 0.059 | AM41: =INDEX($H31:$W31,AM$37) -> 0.059 | AN41: =INDEX($H31:$W31,AN$37) -> 0.059 | AO41: =INDEX($H31:$W31,AO$37) -> 0.059 | AP41: =INDEX($H31:$W31,AP$37) -> 0.059 | AQ41: =INDEX($H31:$W31,AQ$37) -> 0.059 | AR41: =INDEX($H31:$W31,AR$37) -> 0.059 | AS41: =INDEX($H31:$W31,AS$37) -> 0.059 | AT41: =INDEX($H31:$W31,AT$37) -> 0.0623 | AU41: =INDEX($H31:$W31,AU$37) -> 0.0623 | AV41: =INDEX($H31:$W31,AV$37) -> 0.0623 | AW41: =INDEX($H31:$W31,AW$37) -> 0.0623 | AX41: =INDEX($H31:$W31,AX$37) -> 0.0693 | AY41: =INDEX($H31:$W31,AY$37) -> 0.0693 | AZ41: =INDEX($H31:$W31,AZ$37) -> 0.0693 | BA41: =INDEX($H31:$W31,BA$37) -> 0.0693 | BB41: =INDEX($H31:$W31,BB$37) -> 0.077 | BC41: =INDEX($H31:$W31,BC$37) -> 0.077 | BD41: =INDEX($H31:$W31,BD$37) -> 0.077 | BE41: =INDEX($H31:$W31,BE$37) -> 0.077 | BF41: =INDEX($H31:$W31,BF$37) -> 0.0855 | BG41: =INDEX($H31:$W31,BG$37) -> 0.0855 | BH41: =INDEX($H31:$W31,BH$37) -> 0.0855 | BI41: =INDEX($H31:$W31,BI$37) -> 0.0855 | BJ41: =INDEX($H31:$W31,BJ$37) -> 0.095 | BK41: =INDEX($H31:$W31,BK$37) -> 0.095 | BL41: =INDEX($H31:$W31,BL$37) -> 0.095 | BM41: =INDEX($H31:$W31,BM$37) -> 0.095 | BN41: =INDEX($H31:$W31,BN$37) -> 0.05 | BO41: =INDEX($H31:$W31,BO$37) -> 0.05 | BP41: =INDEX($H31:$W31,BP$37) -> 0.05 | BQ41: =INDEX($H31:$W31,BQ$37) -> 0.05
B43: Tax Rates
C44: Federal tax rate | E44: 0.21
C46: Investment tax credit (ITC) | G46: Incl dev cost | J46: tax credit generated
C47: ITC eligibility | E47: 0.3 | G47: Capex | H47: ITC elig costs | J47: ITC amount | L47: TE investment $
C48: % of total project cost eligible for ITC | E48: 0.96 | G48: ='Partnership Cash Flow'!H109 -> 307650 | H48: =G48*E48 -> 295344 | J48: =E47*H48 -> 88603.2 | L48: =J48*E52 -> 106323.84 | M48: <<< 2% of this pre fliP
C49: % not eligible for ITC | E49: =1-E48 -> 0.04
C51: FMV tax basis step-up | E51: 0.25
C52: ITC investment multiple | E52: 1.2

Sheet Inputs - Financing
B2: Equity
C3: Returns | I3: << do not delete
C4: Flip method | E4: Partnership flip | I4: Equity flip method
I5: Yield based
C6: Flip date (from COD) | E6: =EOMONTH(Op_start,5*12) -> 2027-01-31 | I6: Partnership flip
E8: Preferred return | F8: EBITDA
C9: Cash share | E9: Pre-flip | F9: Post-flip
C10: Tax equity partner (class A) | E10: 0
C11: Sponsor partner (class B) | F11: 0.05
C13: Pref yield | E13: 0.02
C16: Tax share / income (loss) share | E16: Pre-flip | F16: Post-flip
C17: Tax equity partner (class A) | E17: 0.99 | F17: 0.05
C18: Sponsor partner (class B) | E18: =1-E17 -> 0.01 | F18: =1-F17 -> 0.95
C20: Depreciation
C21: % of basis eligible for 5-yr MACRS | E21: 0.96 | F21: =E21*'Inputs - Tax'!$G$48 -> 295344 | K21: Agency Fees: $60,000 per annum
C22: % of basis eligible for 15-yr MACRS | E22: 0.04 | F22: =E22*'Inputs - Tax'!$G$48 -> 12306 | K22: o Minimum Hedge Requirement: 90.0%
K23: o Hedge Credit Spread: 15 bps from offer
K24: o Required Reserves:
K25: ▪ Debt Service Reserve letter of credit
K26: ▪ Operations & Maintenance letter of credit
K27: ▪ PPA securities to be replaced with bank-provided letters of credit
C28: Equity dates | K28: o Commitment Fees: 50.0 bps on undrawn amounts
C29: Phase | E29: Pre-flip | F29: Post-flip
C30: Allocation period start | E30: =Op_start -> 2022-01-01 | F30: =E32+1 -> 2027-01-01
C31: Allocation period term | E31: 5 | F31: =Project_life-E31 -> 30
C32: Allocation period end | E32: =EOMONTH(E30,E31*12-1) -> 2026-12-31 | F32: =Op_end -> 2056-12-31
C35: Funding
C36: Funding structure
G37: Debt | H37: Sponsor equity | I37: Add equity Req.
C38: Total funding requirement | E38: =Construction!H39 -> 317049.4229 | G38: =1-H38 -> 0.85 | H38: 0.15 | I38: =Construction!H48 -> -53341.92293
G39: =G38*SUM('Inputs - Partnership'!E19:E22) -> 249007.5 | H39: =H38*SUM('Inputs - Partnership'!E19:E22) -> 43942.5
C41: Term loan
C42: P50 DSCR | E42: 1.5 | F42: << From investment grade counterparties
C43: P99 DSCR | E43: 1 | F43: << From investment grade counterparties
G45: Start | H45: End
C46: Amortization | E46: 15 | G46: 2021-12-31 | H46: =EOMONTH(G46,E46*12) -> 2036-12-31
C47: Tenor | E47: 6 | G47: 2021-01-01 | H47: =EOMONTH(G47,E47*12) -> 2027-01-31
C48: Grace period | E48: 0.5 | G48: 2021-12-31 | H48: =EOMONTH(G48,E48*12) -> 2022-06-30
C50: Upfront fee
C51: Construction / Term Loan / LCs | E51: 0.01875
C52: Tax equity bridge loan | E52: 0.0125
C54: Commitment fees | E54: 0.005 | F54: << On undrawn amounts
C55: Start date (COD) | E55: =Op_start -> 2022-01-01
C57: Admin Fees | D57: $ p.a. | E57: 60
C58: Percentage Hedged | D58: % | E58: 0.9
C60: Term loan
C61: 3-Month LIBOR | E61: 0.02483 | G61: Step-ups every 4 years
C62: Date | E62: ='Inputs - Partnership'!E8 -> 2019-12-31 | G62: =Op_start -> 2022-01-01 | H62: =EDATE(G62,4*12) -> 2026-01-01 | I62: =EDATE(H62,4*12) -> 2030-01-01 | J62: =EDATE(I62,4*12) -> 2034-01-01 | K62: =EDATE(J62,4*12) -> 2038-01-01 | L62: =EDATE(K62,4*12) -> 2042-01-01 | M62: =EDATE(L62,4*12) -> 2046-01-01 | N62: =EDATE(M62,4*12) -> 2050-01-01
C63: Step-up | E63: 0.00125 | H63: =E63 -> 0.00125 | I63: =H63 -> 0.00125 | J63: =I63 -> 0.00125 | K63: =J63 -> 0.00125 | L63: =K63 -> 0.00125 | M63: =L63 -> 0.00125 | N63: =M63 -> 0.00125
C64: Interest Rate Margin | E64: 0.0187 | G64: =E64 -> 0.0187 | H64: =G64+H63 -> 0.01995 | I64: =H64+I63 -> 0.0212 | J64: =I64+J63 -> 0.02245 | K64: =J64+K63 -> 0.0237 | L64: =K64+L63 -> 0.02495 | M64: =L64+M63 -> 0.0262 | N64: =M64+N63 -> 0.02745
C65: All-in Rate
C67: Interest Rate Step-up | E67: 0.00125
C68: Step-up dates | E68: 4
C70: Construction / tax equity bridge loan
C71: 3-month LIBOR | E71: 0.02483 | F71: << is this correct?
C72: Interest rate margin | E72: 0.0125
C73: All-in rate | E73: =SUM(E71:E72) -> 0.03733
C75: Letter of credit
C76: 3-month LIBOR | E76: 0.02483
C79: Required Reserve Accounts
C80: DSRA Letter of Credit
C81: O&M Letter of Credit
C82: PPA Securities

Sheet Timing
A1: TIMING
C2: Start of Period | K2: =F4 -> 2020-01-01 | L2: =EDATE(K2,3) -> 2020-04-01 | M2: 2020-07-01 | N2: 2020-10-01 | O2: 2021-01-01 | P2: 2021-04-01 | Q2: 2021-07-01 | R2: 2021-10-01 | S2: 2022-01-01 | T2: 2022-04-01 | U2: 2022-07-01 | V2: 2022-10-01 | W2: 2023-01-01 | X2: 2023-04-01 | Y2: 2023-07-01 | Z2: 2023-10-01 | AA2: 2024-01-01 | AB2: 2024-04-01 | AC2: 2024-07-01 | AD2: 2024-10-01 | AE2: 2025-01-01 | AF2: 2025-04-01 | AG2: 2025-07-01 | AH2: 2025-10-01 | AI2: 2026-01-01 | AJ2: 2026-04-01 | AK2: 2026-07-01 | AL2: 2026-10-01 | AM2: 2027-01-01 | AN2: 2027-04-01 | AO2: 2027-07-01 | AP2: 2027-10-01 | AQ2: 2028-01-01 | AR2: =EDATE(AQ2,3) -> 2028-04-01 | AS2: 2028-07-01 | AT2: 2028-10-01 | AU2: 2029-01-01 | AV2: 2029-04-01 | AW2: 2029-07-01 | AX2: 2029-10-01 | AY2: 2030-01-01 | AZ2: 2030-04-01 | BA2: 2030-07-01 | BB2: 2030-10-01 | BC2: 2031-01-01 | BD2: 2031-04-01 | BE2: 2031-07-01 | BF2: 2031-10-01 | BG2: 2032-01-01 | BH2: 2032-04-01 | BI2: 2032-07-01 | BJ2: 2032-10-01 | BK2: 2033-01-01 | BL2: 2033-04-01 | BM2: 2033-07-01 | BN2: 2033-10-01 | BO2: 2034-01-01 | BP2: 2034-04-01 | BQ2: 2034-07-01 | BR2: 2034-10-01 | BS2: 2035-01-01 | BT2: 2035-04-01 | BU2: 2035-07-01 | BV2: 2035-10-01 | BW2: 2036-01-01 | BX2: =EDATE(BW2,3) -> 2036-04-01 | BY2: 2036-07-01 | BZ2: 2036-10-01 | CA2: 2037-01-01 | CB2: 2037-04-01 | CC2: 2037-07-01 | CD2: 2037-10-01 | CE2: 2038-01-01 | CF2: 2038-04-01 | CG2: 2038-07-01 | CH2: 2038-10-01 | CI2: 2039-01-01 | CJ2: 2039-04-01 | CK2: 2039-07-01 | CL2: 2039-10-01 | CM2: 2040-01-01 | CN2: 2040-04-01 | CO2: 2040-07-01 | CP2: 2040-10-01 | CQ2: 2041-01-01 | CR2: 2041-04-01 | CS2: 2041-07-01 | CT2: 2041-10-01 | CU2: 2042-01-01 | CV2: 2042-04-01 | CW2: 2042-07-01 | CX2: 2042-10-01 | CY2: 2043-01-01 | CZ2: 2043-04-01 | DA2: 2043-07-01 | DB2: 2043-10-01 | DC2: 2044-01-01 | DD2: =EDATE(DC2,3) -> 2044-04-01 | DE2: 2044-07-01 | DF2: 2044-10-01 | DG2: 2045-01-01 | DH2: 2045-04-01 | DI2: 2045-07-01 | DJ2: 2045-10-01 | DK2: 2046-01-01 | DL2: 2046-04-01 | DM2: 2046-07-01 | DN2: 2046-10-01 | DO2: 2047-01-01 | DP2: 2047-04-01 | DQ2: 2047-07-01 | DR2: 2047-10-01 | DS2: 2048-01-01 | DT2: 2048-04-01 | DU2: 2048-07-01 | DV2: 2048-10-01 | DW2: 2049-01-01 | DX2: 2049-04-01 | DY2: 2049-07-01 | DZ2: 2049-10-01 | EA2: 2050-01-01 | EB2: 2050-04-01 | EC2: 2050-07-01 | ED2: 2050-10-01 | EE2: 2051-01-01 | EF2: 2051-04-01 | EG2: 2051-07-01 | EH2: 2051-10-01 | EI2: 2052-01-01 | EJ2: =EDATE(EI2,3) -> 2052-04-01 | EK2: 2052-07-01 | EL2: 2052-10-01 | EM2: 2053-01-01 | EN2: 2053-04-01 | EO2: 2053-07-01 | EP2: 2053-10-01 | EQ2: 2054-01-01 | ER2: 2054-04-01 | ES2: 2054-07-01 | ET2: 2054-10-01 | EU2: 2055-01-01 | EV2: 2055-04-01 | EW2: 2055-07-01 | EX2: 2055-10-01 | EY2: 2056-01-01 | EZ2: 2056-04-01 | FA2: 2056-07-01 | FB2: 2056-10-01 | FC2: 2057-01-01 | FD2: 2057-04-01 | FE2: 2057-07-01 | FF2: 2057-10-01 | FG2: 2058-01-01 | FH2: 2058-04-01 | FI2: 2058-07-01 | FJ2: 2058-10-01 | FK2: 2059-01-01 | FL2: 2059-04-01 | FM2: 2059-07-01 | FN2: 2059-10-01 | FO2: 2060-01-01 | FP2: =EDATE(FO2,3) -> 2060-04-01 | FQ2: 2060-07-01 | FR2: 2060-10-01 | FS2: 2061-01-01 | FT2: 2061-04-01 | FU2: 2061-07-01 | FV2: 2061-10-01 | FW2: 2062-01-01 | FX2: 2062-04-01 | FY2: 2062-07-01 | FZ2: 2062-10-01 | GA2: 2063-01-01
C3: End of Period | F3: Start | G3: End | K3: =EDATE(K2,3)-1 -> 2020-03-31 | L3: 2020-06-30 | M3: 2020-09-30 | N3: 2020-12-31 | O3: 2021-03-31 | P3: 2021-06-30 | Q3: 2021-09-30 | R3: 2021-12-31 | S3: 2022-03-31 | T3: 2022-06-30 | U3: 2022-09-30 | V3: 2022-12-31 | W3: 2023-03-31 | X3: 2023-06-30 | Y3: 2023-09-30 | Z3: 2023-12-31 | AA3: 2024-03-31 | AB3: 2024-06-30 | AC3: 2024-09-30 | AD3: 2024-12-31 | AE3: 2025-03-31 | AF3: 2025-06-30 | AG3: 2025-09-30 | AH3: 2025-12-31 | AI3: 2026-03-31 | AJ3: 2026-06-30 | AK3: 2026-09-30 | AL3: 2026-12-31 | AM3: 2027-03-31 | AN3: 2027-06-30 | AO3: 2027-09-30 | AP3: 2027-12-31 | AQ3: =EDATE(AQ2,3)-1 -> 2028-03-31 | AR3: 2028-06-30 | AS3: 2028-09-30 | AT3: 2028-12-31 | AU3: 2029-03-31 | AV3: 2029-06-30 | AW3: 2029-09-30 | AX3: 2029-12-31 | AY3: 2030-03-31 | AZ3: 2030-06-30 | BA3: 2030-09-30 | BB3: 2030-12-31 | BC3: 2031-03-31 | BD3: 2031-06-30 | BE3: 2031-09-30 | BF3: 2031-12-31 | BG3: 2032-03-31 | BH3: 2032-06-30 | BI3: 2032-09-30 | BJ3: 2032-12-31 | BK3: 2033-03-31 | BL3: 2033-06-30 | BM3: 2033-09-30 | BN3: 2033-12-31 | BO3: 2034-03-31 | BP3: 2034-06-30 | BQ3: 2034-09-30 | BR3: 2034-12-31 | BS3: 2035-03-31 | BT3: 2035-06-30 | BU3: 2035-09-30 | BV3: 2035-12-31 | BW3: =EDATE(BW2,3)-1 -> 2036-03-31 | BX3: 2036-06-30 | BY3: 2036-09-30 | BZ3: 2036-12-31 | CA3: 2037-03-31 | CB3: 2037-06-30 | CC3: 2037-09-30 | CD3: 2037-12-31 | CE3: 2038-03-31 | CF3: 2038-06-30 | CG3: 2038-09-30 | CH3: 2038-12-31 | CI3: 2039-03-31 | CJ3: 2039-06-30 | CK3: 2039-09-30 | CL3: 2039-12-31 | CM3: 2040-03-31 | CN3: 2040-06-30 | CO3: 2040-09-30 | CP3: 2040-12-31 | CQ3: 2041-03-31 | CR3: 2041-06-30 | CS3: 2041-09-30 | CT3: 2041-12-31 | CU3: 2042-03-31 | CV3: 2042-06-30 | CW3: 2042-09-30 | CX3: 2042-12-31 | CY3: 2043-03-31 | CZ3: 2043-06-30 | DA3: 2043-09-30 | DB3: 2043-12-31 | DC3: =EDATE(DC2,3)-1 -> 2044-03-31 | DD3: 2044-06-30 | DE3: 2044-09-30 | DF3: 2044-12-31 | DG3: 2045-03-31 | DH3: 2045-06-30 | DI3: 2045-09-30 | DJ3: 2045-12-31 | DK3: 2046-03-31 | DL3: 2046-06-30 | DM3: 2046-09-30 | DN3: 2046-12-31 | DO3: 2047-03-31 | DP3: 2047-06-30 | DQ3: 2047-09-30 | DR3: 2047-12-31 | DS3: 2048-03-31 | DT3: 2048-06-30 | DU3: 2048-09-30 | DV3: 2048-12-31 | DW3: 2049-03-31 | DX3: 2049-06-30 | DY3: 2049-09-30 | DZ3: 2049-12-31 | EA3: 2050-03-31 | EB3: 2050-06-30 | EC3: 2050-09-30 | ED3: 2050-12-31 | EE3: 2051-03-31 | EF3: 2051-06-30 | EG3: 2051-09-30 | EH3: 2051-12-31 | EI3: =EDATE(EI2,3)-1 -> 2052-03-31 | EJ3: 2052-06-30 | EK3: 2052-09-30 | EL3: 2052-12-31 | EM3: 2053-03-31 | EN3: 2053-06-30 | EO3: 2053-09-30 | EP3: 2053-12-31 | EQ3: 2054-03-31 | ER3: 2054-06-30 | ES3: 2054-09-30 | ET3: 2054-12-31 | EU3: 2055-03-31 | EV3: 2055-06-30 | EW3: 2055-09-30 | EX3: 2055-12-31 | EY3: 2056-03-31 | EZ3: 2056-06-30 | FA3: 2056-09-30 | FB3: 2056-12-31 | FC3: 2057-03-31 | FD3: 2057-06-30 | FE3: 2057-09-30 | FF3: 2057-12-31 | FG3: 2058-03-31 | FH3: 2058-06-30 | FI3: 2058-09-30 | FJ3: 2058-12-31 | FK3: 2059-03-31 | FL3: 2059-06-30 | FM3: 2059-09-30 | FN3: 2059-12-31 | FO3: =EDATE(FO2,3)-1 -> 2060-03-31 | FP3: 2060-06-30 | FQ3: 2060-09-30 | FR3: 2060-12-31 | FS3: 2061-03-31 | FT3: 2061-06-30 | FU3: 2061-09-30 | FV3: 2061-12-31 | FW3: 2062-03-31 | FX3: 2062-06-30 | FY3: 2062-09-30 | FZ3: 2062-12-31 | GA3: 2063-03-31
C4: Development Phase | F4: ='Inputs - Partnership'!G11 -> 2020-01-01 | G4: ='Inputs - Partnership'!H11 -> 2020-12-31 | K4: =IF(AND(K$2>=$F4,K$2<=$G4),1,0) -> 1 | L4: 1 | M4: 1 | N4: 1 | O4: 0 | P4: 0 | Q4: 0 | R4: 0 | S4: 0 | T4: 0 | U4: =IF(AND(U$2>=$F4,U$2<=$G4),1,0) -> 0 | V4: 0 | W4: 0 | X4: 0 | Y4: 0 | Z4: 0 | AA4: 0 | AB4: 0 | AC4: 0 | AD4: 0 | AE4: =IF(AND(AE$2>=$F4,AE$2<=$G4),1,0) -> 0 | AF4: 0 | AG4: 0 | AH4: 0 | AI4: 0 | AJ4: 0 | AK4: 0 | AL4: 0 | AM4: 0 | AN4: 0 | AO4: =IF(AND(AO$2>=$F4,AO$2<=$G4),1,0) -> 0 | AP4: 0 | AQ4: 0 | AR4: 0 | AS4: 0 | AT4: 0 | AU4: 0 | AV4: 0 | AW4: 0 | AX4: 0 | AY4: =IF(AND(AY$2>=$F4,AY$2<=$G4),1,0) -> 0 | AZ4: 0 | BA4: 0 | BB4: 0 | BC4: 0 | BD4: 0 | BE4: 0 | BF4: 0 | BG4: 0 | BH4: 0 | BI4: =IF(AND(BI$2>=$F4,BI$2<=$G4),1,0) -> 0 | BJ4: 0 | BK4: 0 | BL4: 0 | BM4: 0 | BN4: 0 | BO4: 0 | BP4: 0 | BQ4: 0 | BR4: 0 | BS4: =IF(AND(BS$2>=$F4,BS$2<=$G4),1,0) -> 0 | BT4: 0 | BU4: 0 | BV4: 0 | BW4: 0 | BX4: 0 | BY4: 0 | BZ4: 0 | CA4: 0 | CB4: 0 | CC4: =IF(AND(CC$2>=$F4,CC$2<=$G4),1,0) -> 0 | CD4: 0 | CE4: 0 | CF4: 0 | CG4: 0 | CH4: 0 | CI4: 0 | CJ4: 0 | CK4: 0 | CL4: 0 | CM4: =IF(AND(CM$2>=$F4,CM$2<=$G4),1,0) -> 0 | CN4: 0 | CO4: 0 | CP4: 0 | CQ4: 0 | CR4: 0 | CS4: 0 | CT4: 0 | CU4: 0 | CV4: 0 | CW4: =IF(AND(CW$2>=$F4,CW$2<=$G4),1,0) -> 0 | CX4: 0 | CY4: 0 | CZ4: 0 | DA4: 0 | DB4: 0 | DC4: 0 | DD4: 0 | DE4: 0 | DF4: 0 | DG4: =IF(AND(DG$2>=$F4,DG$2<=$G4),1,0) -> 0 | DH4: 0 | DI4: 0 | DJ4: 0 | DK4: 0 | DL4: 0 | DM4: 0 | DN4: 0 | DO4: 0 | DP4: 0 | DQ4: =IF(AND(DQ$2>=$F4,DQ$2<=$G4),1,0) -> 0 | DR4: 0 | DS4: 0 | DT4: 0 | DU4: 0 | DV4: 0 | DW4: 0 | DX4: 0 | DY4: 0 | DZ4: 0 | EA4: =IF(AND(EA$2>=$F4,EA$2<=$G4),1,0) -> 0 | EB4: 0 | EC4: 0 | ED4: 0 | EE4: 0 | EF4: 0 | EG4: 0 | EH4: 0 | EI4: 0 | EJ4: 0 | EK4: =IF(AND(EK$2>=$F4,EK$2<=$G4),1,0) -> 0 | EL4: 0 | EM4: 0 | EN4: 0 | EO4: 0 | EP4: 0 | EQ4: 0 | ER4: 0 | ES4: 0 | ET4: 0 | EU4: =IF(AND(EU$2>=$F4,EU$2<=$G4),1,0) -> 0 | EV4: 0 | EW4: 0 | EX4: 0 | EY4: 0 | EZ4: 0 | FA4: 0 | FB4: 0 | FC4: 0 | FD4: 0 | FE4: =IF(AND(FE$2>=$F4,FE$2<=$G4),1,0) -> 0 | FF4: 0 | FG4: 0 | FH4: 0 | FI4: 0 | FJ4: 0 | FK4: 0 | FL4: 0 | FM4: 0 | FN4: 0 | FO4: =IF(AND(FO$2>=$F4,FO$2<=$G4),1,0) -> 0 | FP4: 0 | FQ4: 0 | FR4: 0 | FS4: 0 | FT4: 0 | FU4: 0 | FV4: 0 | FW4: 0 | FX4: 0 | FY4: 0 | FZ4: 0 | GA4: 0
C5: Construction Phase | F5: ='Inputs - Partnership'!G12 -> 2021-01-01 | G5: ='Inputs - Partnership'!H12 -> 2021-12-31 | K5: 0 | L5: 0 | M5: 0 | N5: 0 | O5: 1 | P5: 1 | Q5: 1 | R5: 1 | S5: 0 | T5: 0 | U5: 0 | V5: 0 | W5: 0 | X5: 0 | Y5: 0 | Z5: 0 | AA5: 0 | AB5: 0 | AC5: 0 | AD5: 0 | AE5: 0 | AF5: 0 | AG5: 0 | AH5: 0 | AI5: 0 | AJ5: 0 | AK5: 0 | AL5: 0 | AM5: 0 | AN5: 0 | AO5: 0 | AP5: 0 | AQ5: 0 | AR5: 0 | AS5: 0 | AT5: 0 | AU5: 0 | AV5: 0 | AW5: 0 | AX5: 0 | AY5: 0 | AZ5: 0 | BA5: 0 | BB5: 0 | BC5: 0 | BD5: 0 | BE5: 0 | BF5: 0 | BG5: 0 | BH5: 0 | BI5: 0 | BJ5: 0 | BK5: 0 | BL5: 0 | BM5: 0 | BN5: 0 | BO5: 0 | BP5: 0 | BQ5: 0 | BR5: 0 | BS5: 0 | BT5: 0 | BU5: 0 | BV5: 0 | BW5: 0 | BX5: 0 | BY5: 0 | BZ5: 0 | CA5: 0 | CB5: 0 | CC5: 0 | CD5: 0 | CE5: 0 | CF5: 0 | CG5: 0 | CH5: 0 | CI5: 0 | CJ5: 0 | CK5: 0 | CL5: 0 | CM5: 0 | CN5: 0 | CO5: 0 | CP5: 0 | CQ5: 0 | CR5: 0 | CS5: 0 | CT5: 0 | CU5: 0 | CV5: 0 | CW5: 0 | CX5: 0 | CY5: 0 | CZ5: 0 | DA5: 0 | DB5: 0 | DC5: 0 | DD5: 0 | DE5: 0 | DF5: 0 | DG5: 0 | DH5: 0 | DI5: 0 | DJ5: 0 | DK5: 0 | DL5: 0 | DM5: 0 | DN5: 0 | DO5: 0 | DP5: 0 | DQ5: 0 | DR5: 0 | DS5: 0 | DT5: 0 | DU5: 0 | DV5: 0 | DW5: 0 | DX5: 0 | DY5: 0 | DZ5: 0 | EA5: 0 | EB5: 0 | EC5: 0 | ED5: 0 | EE5: 0 | EF5: 0 | EG5: 0 | EH5: 0 | EI5: 0 | EJ5: 0 | EK5: 0 | EL5: 0 | EM5: 0 | EN5: 0 | EO5: 0 | EP5: 0 | EQ5: 0 | ER5: 0 | ES5: 0 | ET5: 0 | EU5: 0 | EV5: 0 | EW5: 0 | EX5: 0 | EY5: 0 | EZ5: 0 | FA5: 0 | FB5: 0 | FC5: 0 | FD5: 0 | FE5: 0 | FF5: 0 | FG5: 0 | FH5: 0 | FI5: 0 | FJ5: 0 | FK5: 0 | FL5: 0 | FM5: 0 | FN5: 0 | FO5: 0 | FP5: 0 | FQ5: 0 | FR5: 0 | FS5: 0 | FT5: 0 | FU5: 0 | FV5: 0 | FW5: 0 | FX5: 0 | FY5: 0 | FZ5: 0 | GA5: 0
C6: Operating Phase | F6: ='Inputs - Partnership'!G13 -> 2022-01-01 | G6: ='Inputs - Partnership'!H13 -> 2056-12-31 | K6: 0 | L6: 0 | M6: 0 | N6: 0 | O6: 0 | P6: 0 | Q6: 0 | R6: 0 | S6: 1 | T6: 1 | U6: 1 | V6: 1 | W6: 1 | X6: 1 | Y6: 1 | Z6: 1 | AA6: 1 | AB6: 1 | AC6: 1 | AD6: 1 | AE6: 1 | AF6: 1 | AG6: 1 | AH6: 1 | AI6: 1 | AJ6: 1 | AK6: 1 | AL6: 1 | AM6: 1 | AN6: 1 | AO6: 1 | AP6: 1 | AQ6: 1 | AR6: 1 | AS6: 1 | AT6: 1 | AU6: 1 | AV6: 1 | AW6: 1 | AX6: 1 | AY6: 1 | AZ6: 1 | BA6: 1 | BB6: 1 | BC6: 1 | BD6: 1 | BE6: 1 | BF6: 1 | BG6: 1 | BH6: 1 | BI6: 1 | BJ6: 1 | BK6: 1 | BL6: 1 | BM6: 1 | BN6: 1 | BO6: 1 | BP6: 1 | BQ6: 1 | BR6: 1 | BS6: 1 | BT6: 1 | BU6: 1 | BV6: 1 | BW6: 1 | BX6: 1 | BY6: 1 | BZ6: 1 | CA6: 1 | CB6: 1 | CC6: 1 | CD6: 1 | CE6: 1 | CF6: 1 | CG6: 1 | CH6: 1 | CI6: 1 | CJ6: 1 | CK6: 1 | CL6: 1 | CM6: 1 | CN6: 1 | CO6: 1 | CP6: 1 | CQ6: 1 | CR6: 1 | CS6: 1 | CT6: 1 | CU6: 1 | CV6: 1 | CW6: 1 | CX6: 1 | CY6: 1 | CZ6: 1 | DA6: 1 | DB6: 1 | DC6: 1 | DD6: 1 | DE6: 1 | DF6: 1 | DG6: 1 | DH6: 1 | DI6: 1 | DJ6: 1 | DK6: 1 | DL6: 1 | DM6: 1 | DN6: 1 | DO6: 1 | DP6: 1 | DQ6: 1 | DR6: 1 | DS6: 1 | DT6: 1 | DU6: 1 | DV6: 1 | DW6: 1 | DX6: 1 | DY6: 1 | DZ6: 1 | EA6: 1 | EB6: 1 | EC6: 1 | ED6: 1 | EE6: 1 | EF6: 1 | EG6: 1 | EH6: 1 | EI6: 1 | EJ6: 1 | EK6: 1 | EL6: 1 | EM6: 1 | EN6: 1 | EO6: 1 | EP6: 1 | EQ6: 1 | ER6: 1 | ES6: 1 | ET6: 1 | EU6: 1 | EV6: 1 | EW6: 1 | EX6: 1 | EY6: 1 | EZ6: 1 | FA6: 1 | FB6: 1 | FC6: 0 | FD6: 0 | FE6: 0 | FF6: 0 | FG6: 0 | FH6: 0 | FI6: 0 | FJ6: 0 | FK6: 0 | FL6: 0 | FM6: 0 | FN6: 0 | FO6: 0 | FP6: 0 | FQ6: 0 | FR6: 0 | FS6: 0 | FT6: 0 | FU6: 0 | FV6: 0 | FW6: 0 | FX6: 0 | FY6: 0 | FZ6: 0 | GA6: 0
C8: Counters for call-ups
C9: Calendar year | K9: =YEAR(K3) -> 2020 | L9: 2020 | M9: 2020 | N9: 2020 | O9: 2021 | P9: 2021 | Q9: 2021 | R9: 2021 | S9: 2022 | T9: 2022 | U9: 2022 | V9: 2022 | W9: 2023 | X9: 2023 | Y9: 2023 | Z9: 2023 | AA9: 2024 | AB9: 2024 | AC9: 2024 | AD9: 2024 | AE9: 2025 | AF9: 2025 | AG9: 2025 | AH9: 2025 | AI9: 2026 | AJ9: 2026 | AK9: 2026 | AL9: 2026 | AM9: 2027 | AN9: 2027 | AO9: 2027 | AP9: 2027 | AQ9: =YEAR(AQ3) -> 2028 | AR9: 2028 | AS9: 2028 | AT9: 2028 | AU9: 2029 | AV9: 2029 | AW9: 2029 | AX9: 2029 | AY9: 2030 | AZ9: 2030 | BA9: 2030 | BB9: 2030 | BC9: 2031 | BD9: 2031 | BE9: 2031 | BF9: 2031 | BG9: 2032 | BH9: 2032 | BI9: 2032 | BJ9: 2032 | BK9: 2033 | BL9: 2033 | BM9: 2033 | BN9: 2033 | BO9: 2034 | BP9: 2034 | BQ9: 2034 | BR9: 2034 | BS9: 2035 | BT9: 2035 | BU9: 2035 | BV9: 2035 | BW9: =YEAR(BW3) -> 2036 | BX9: 2036 | BY9: 2036 | BZ9: 2036 | CA9: 2037 | CB9: 2037 | CC9: 2037 | CD9: 2037 | CE9: 2038 | CF9: 2038 | CG9: 2038 | CH9: 2038 | CI9: 2039 | CJ9: 2039 | CK9: 2039 | CL9: 2039 | CM9: 2040 | CN9: 2040 | CO9: 2040 | CP9: 2040 | CQ9: 2041 | CR9: 2041 | CS9: 2041 | CT9: 2041 | CU9: 2042 | CV9: 2042 | CW9: 2042 | CX9: 2042 | CY9: 2043 | CZ9: 2043 | DA9: 2043 | DB9: 2043 | DC9: =YEAR(DC3) -> 2044 | DD9: 2044 | DE9: 2044 | DF9: 2044 | DG9: 2045 | DH9: 2045 | DI9: 2045 | DJ9: 2045 | DK9: 2046 | DL9: 2046 | DM9: 2046 | DN9: 2046 | DO9: 2047 | DP9: 2047 | DQ9: 2047 | DR9: 2047 | DS9: 2048 | DT9: 2048 | DU9: 2048 | DV9: 2048 | DW9: 2049 | DX9: 2049 | DY9: 2049 | DZ9: 2049 | EA9: 2050 | EB9: 2050 | EC9: 2050 | ED9: 2050 | EE9: 2051 | EF9: 2051 | EG9: 2051 | EH9: 2051 | EI9: =YEAR(EI3) -> 2052 | EJ9: 2052 | EK9: 2052 | EL9: 2052 | EM9: 2053 | EN9: 2053 | EO9: 2053 | EP9: 2053 | EQ9: 2054 | ER9: 2054 | ES9: 2054 | ET9: 2054 | EU9: 2055 | EV9: 2055 | EW9: 2055 | EX9: 2055 | EY9: 2056 | EZ9: 2056 | FA9: 2056 | FB9: 2056 | FC9: 2057 | FD9: 2057 | FE9: 2057 | FF9: 2057 | FG9: 2058 | FH9: 2058 | FI9: 2058 | FJ9: 2058 | FK9: 2059 | FL9: 2059 | FM9: 2059 | FN9: 2059 | FO9: =YEAR(FO3) -> 2060 | FP9: 2060 | FQ9: 2060 | FR9: 2060 | FS9: 2061 | FT9: 2061 | FU9: 2061 | FV9: 2061 | FW9: 2062 | FX9: 2062 | FY9: 2062 | FZ9: 2062 | GA9: 2063
C10: Days in period | K10: =K3-K2+1 -> 91 | L10: 91 | M10: 92 | N10: 92 | O10: 90 | P10: 91 | Q10: 92 | R10: 92 | S10: 90 | T10: 91 | U10: 92 | V10: 92 | W10: 90 | X10: 91 | Y10: 92 | Z10: 92 | AA10: 91 | AB10: 91 | AC10: 92 | AD10: 92 | AE10: 90 | AF10: 91 | AG10: 92 | AH10: 92 | AI10: 90 | AJ10: 91 | AK10: 92 | AL10: 92 | AM10: 90 | AN10: 91 | AO10: 92 | AP10: 92 | AQ10: =AQ3-AQ2+1 -> 91 | AR10: 91 | AS10: 92 | AT10: 92 | AU10: 90 | AV10: 91 | AW10: 92 | AX10: 92 | AY10: 90 | AZ10: 91 | BA10: 92 | BB10: 92 | BC10: 90 | BD10: 91 | BE10: 92 | BF10: 92 | BG10: 91 | BH10: 91 | BI10: 92 | BJ10: 92 | BK10: 90 | BL10: 91 | BM10: 92 | BN10: 92 | BO10: 90 | BP10: 91 | BQ10: 92 | BR10: 92 | BS10: 90 | BT10: 91 | BU10: 92 | BV10: 92 | BW10: =BW3-BW2+1 -> 91 | BX10: 91 | BY10: 92 | BZ10: 92 | CA10: 90 | CB10: 91 | CC10: 92 | CD10: 92 | CE10: 90 | CF10: 91 | CG10: 92 | CH10: 92 | CI10: 90 | CJ10: 91 | CK10: 92 | CL10: 92 | CM10: 91 | CN10: 91 | CO10: 92 | CP10: 92 | CQ10: 90 | CR10: 91 | CS10: 92 | CT10: 92 | CU10: 90 | CV10: 91 | CW10: 92 | CX10: 92 | CY10: 90 | CZ10: 91 | DA10: 92 | DB10: 92 | DC10: =DC3-DC2+1 -> 91 | DD10: 91 | DE10: 92 | DF10: 92 | DG10: 90 | DH10: 91 | DI10: 92 | DJ10: 92 | DK10: 90 | DL10: 91 | DM10: 92 | DN10: 92 | DO10: 90 | DP10: 91 | DQ10: 92 | DR10: 92 | DS10: 91 | DT10: 91 | DU10: 92 | DV10: 92 | DW10: 90 | DX10: 91 | DY10: 92 | DZ10: 92 | EA10: 90 | EB10: 91 | EC10: 92 | ED10: 92 | EE10: 90 | EF10: 91 | EG10: 92 | EH10: 92 | EI10: =EI3-EI2+1 -> 91 | EJ10: 91 | EK10: 92 | EL10: 92 | EM10: 90 | EN10: 91 | EO10: 92 | EP10: 92 | EQ10: 90 | ER10: 91 | ES10: 92 | ET10: 92 | EU10: 90 | EV10: 91 | EW10: 92 | EX10: 92 | EY10: 91 | EZ10: 91 | FA10: 92 | FB10: 92 | FC10: 90 | FD10: 91 | FE10: 92 | FF10: 92 | FG10: 90 | FH10: 91 | FI10: 92 | FJ10: 92 | FK10: 90 | FL10: 91 | FM10: 92 | FN10: 92 | FO10: =FO3-FO2+1 -> 91 | FP10: 91 | FQ10: 92 | FR10: 92 | FS10: 90 | FT10: 91 | FU10: 92 | FV10: 92 | FW10: 90 | FX10: 91 | FY10: 92 | FZ10: 92 | GA10: 90
C11: Construction quarter | K11: =(J11+1)*K5 -> 0 | L11: 0 | M11: 0 | N11: 0 | O11: 1 | P11: 2 | Q11: 3 | R11: 4 | S11: 0 | T11: 0 | U11: 0 | V11: 0 | W11: 0 | X11: 0 | Y11: 0 | Z11: 0 | AA11: 0 | AB11: 0 | AC11: 0 | AD11: 0 | AE11: 0 | AF11: 0 | AG11: 0 | AH11: 0 | AI11: 0 | AJ11: 0 | AK11: 0 | AL11: 0 | AM11: 0 | AN11: 0 | AO11: 0 | AP11: 0 | AQ11: =(AP11+1)*AQ5 -> 0 | AR11: 0 | AS11: 0 | AT11: 0 | AU11: 0 | AV11: 0 | AW11: 0 | AX11: 0 | AY11: 0 | AZ11: 0 | BA11: 0 | BB11: 0 | BC11: 0 | BD11: 0 | BE11: 0 | BF11: 0 | BG11: 0 | BH11: 0 | BI11: 0 | BJ11: 0 | BK11: 0 | BL11: 0 | BM11: 0 | BN11: 0 | BO11: 0 | BP11: 0 | BQ11: 0 | BR11: 0 | BS11: 0 | BT11: 0 | BU11: 0 | BV11: 0 | BW11: =(BV11+1)*BW5 -> 0 | BX11: 0 | BY11: 0 | BZ11: 0 | CA11: 0 | CB11: 0 | CC11: 0 | CD11: 0 | CE11: 0 | CF11: 0 | CG11: 0 | CH11: 0 | CI11: 0 | CJ11: 0 | CK11: 0 | CL11: 0 | CM11: 0 | CN11: 0 | CO11: 0 | CP11: 0 | CQ11: 0 | CR11: 0 | CS11: 0 | CT11: 0 | CU11: 0 | CV11: 0 | CW11: 0 | CX11: 0 | CY11: 0 | CZ11: 0 | DA11: 0 | DB11: 0 | DC11: =(DB11+1)*DC5 -> 0 | DD11: 0 | DE11: 0 | DF11: 0 | DG11: 0 | DH11: 0 | DI11: 0 | DJ11: 0 | DK11: 0 | DL11: 0 | DM11: 0 | DN11: 0 | DO11: 0 | DP11: 0 | DQ11: 0 | DR11: 0 | DS11: 0 | DT11: 0 | DU11: 0 | DV11: 0 | DW11: 0 | DX11: 0 | DY11: 0 | DZ11: 0 | EA11: 0 | EB11: 0 | EC11: 0 | ED11: 0 | EE11: 0 | EF11: 0 | EG11: 0 | EH11: 0 | EI11: =(EH11+1)*EI5 -> 0 | EJ11: 0 | EK11: 0 | EL11: 0 | EM11: 0 | EN11: 0 | EO11: 0 | EP11: 0 | EQ11: 0 | ER11: 0 | ES11: 0 | ET11: 0 | EU11: 0 | EV11: 0 | EW11: 0 | EX11: 0 | EY11: 0 | EZ11: 0 | FA11: 0 | FB11: 0 | FC11: 0 | FD11: 0 | FE11: 0 | FF11: 0 | FG11: 0 | FH11: 0 | FI11: 0 | FJ11: 0 | FK11: 0 | FL11: 0 | FM11: 0 | FN11: 0 | FO11: =(FN11+1)*FO5 -> 0 | FP11: 0 | FQ11: 0 | FR11: 0 | FS11: 0 | FT11: 0 | FU11: 0 | FV11: 0 | FW11: 0 | FX11: 0 | FY11: 0 | FZ11: 0 | GA11: 0
C12: Operations quarter | K12: =(J12+1)*K6 -> 0 | L12: 0 | M12: 0 | N12: 0 | O12: 0 | P12: 0 | Q12: 0 | R12: 0 | S12: 1 | T12: 2 | U12: 3 | V12: 4 | W12: 5 | X12: 6 | Y12: 7 | Z12: 8 | AA12: 9 | AB12: 10 | AC12: 11 | AD12: 12 | AE12: 13 | AF12: 14 | AG12: 15 | AH12: 16 | AI12: 17 | AJ12: 18 | AK12: 19 | AL12: 20 | AM12: 21 | AN12: 22 | AO12: 23 | AP12: 24 | AQ12: =(AP12+1)*AQ6 -> 25 | AR12: 26 | AS12: 27 | AT12: 28 | AU12: 29 | AV12: 30 | AW12: 31 | AX12: 32 | AY12: 33 | AZ12: 34 | BA12: 35 | BB12: 36 | BC12: 37 | BD12: 38 | BE12: 39 | BF12: 40 | BG12: 41 | BH12: 42 | BI12: 43 | BJ12: 44 | BK12: 45 | BL12: 46 | BM12: 47 | BN12: 48 | BO12: 49 | BP12: 50 | BQ12: 51 | BR12: 52 | BS12: 53 | BT12: 54 | BU12: 55 | BV12: 56 | BW12: =(BV12+1)*BW6 -> 57 | BX12: 58 | BY12: 59 | BZ12: 60 | CA12: 61 | CB12: 62 | CC12: 63 | CD12: 64 | CE12: 65 | CF12: 66 | CG12: 67 | CH12: 68 | CI12: 69 | CJ12: 70 | CK12: 71 | CL12: 72 | CM12: 73 | CN12: 74 | CO12: 75 | CP12: 76 | CQ12: 77 | CR12: 78 | CS12: 79 | CT12: 80 | CU12: 81 | CV12: 82 | CW12: 83 | CX12: 84 | CY12: 85 | CZ12: 86 | DA12: 87 | DB12: 88 | DC12: =(DB12+1)*DC6 -> 89 | DD12: 90 | DE12: 91 | DF12: 92 | DG12: 93 | DH12: 94 | DI12: 95 | DJ12: 96 | DK12: 97 | DL12: 98 | DM12: 99 | DN12: 100 | DO12: 101 | DP12: 102 | DQ12: 103 | DR12: 104 | DS12: 105 | DT12: 106 | DU12: 107 | DV12: 108 | DW12: 109 | DX12: 110 | DY12: 111 | DZ12: 112 | EA12: 113 | EB12: 114 | EC12: 115 | ED12: 116 | EE12: 117 | EF12: 118 | EG12: 119 | EH12: 120 | EI12: =(EH12+1)*EI6 -> 121 | EJ12: 122 | EK12: 123 | EL12: 124 | EM12: 125 | EN12: 126 | EO12: 127 | EP12: 128 | EQ12: 129 | ER12: 130 | ES12: 131 | ET12: 132 | EU12: 133 | EV12: 134 | EW12: 135 | EX12: 136 | EY12: 137 | EZ12: 138 | FA12: 139 | FB12: 140 | FC12: 0 | FD12: 0 | FE12: 0 | FF12: 0 | FG12: 0 | FH12: 0 | FI12: 0 | FJ12: 0 | FK12: 0 | FL12: 0 | FM12: 0 | FN12: 0 | FO12: =(FN12+1)*FO6 -> 0 | FP12: 0 | FQ12: 0 | FR12: 0 | FS12: 0 | FT12: 0 | FU12: 0 | FV12: 0 | FW12: 0 | FX12: 0 | FY12: 0 | FZ12: 0 | GA12: 0
C13: Operations year | K13: =ROUNDUP(K12/4,0) -> 0 | L13: 0 | M13: 0 | N13: 0 | O13: 0 | P13: 0 | Q13: 0 | R13: 0 | S13: 1 | T13: 1 | U13: 1 | V13: 1 | W13: 2 | X13: 2 | Y13: 2 | Z13: 2 | AA13: 3 | AB13: 3 | AC13: 3 | AD13: 3 | AE13: 4 | AF13: 4 | AG13: 4 | AH13: 4 | AI13: 5 | AJ13: 5 | AK13: 5 | AL13: 5 | AM13: 6 | AN13: 6 | AO13: 6 | AP13: 6 | AQ13: =ROUNDUP(AQ12/4,0) -> 7 | AR13: 7 | AS13: 7 | AT13: 7 | AU13: 8 | AV13: 8 | AW13: 8 | AX13: 8 | AY13: 9 | AZ13: 9 | BA13: 9 | BB13: 9 | BC13: 10 | BD13: 10 | BE13: 10 | BF13: 10 | BG13: 11 | BH13: 11 | BI13: 11 | BJ13: 11 | BK13: 12 | BL13: 12 | BM13: 12 | BN13: 12 | BO13: 13 | BP13: 13 | BQ13: 13 | BR13: 13 | BS13: 14 | BT13: 14 | BU13: 14 | BV13: 14 | BW13: =ROUNDUP(BW12/4,0) -> 15 | BX13: 15 | BY13: 15 | BZ13: 15 | CA13: 16 | CB13: 16 | CC13: 16 | CD13: 16 | CE13: 17 | CF13: 17 | CG13: 17 | CH13: 17 | CI13: 18 | CJ13: 18 | CK13: 18 | CL13: 18 | CM13: 19 | CN13: 19 | CO13: 19 | CP13: 19 | CQ13: 20 | CR13: 20 | CS13: 20 | CT13: 20 | CU13: 21 | CV13: 21 | CW13: 21 | CX13: 21 | CY13: 22 | CZ13: 22 | DA13: 22 | DB13: 22 | DC13: =ROUNDUP(DC12/4,0) -> 23 | DD13: 23 | DE13: 23 | DF13: 23 | DG13: 24 | DH13: 24 | DI13: 24 | DJ13: 24 | DK13: 25 | DL13: 25 | DM13: 25 | DN13: 25 | DO13: 26 | DP13: 26 | DQ13: 26 | DR13: 26 | DS13: 27 | DT13: 27 | DU13: 27 | DV13: 27 | DW13: 28 | DX13: 28 | DY13: 28 | DZ13: 28 | EA13: 29 | EB13: 29 | EC13: 29 | ED13: 29 | EE13: 30 | EF13: 30 | EG13: 30 | EH13: 30 | EI13: =ROUNDUP(EI12/4,0) -> 31 | EJ13: 31 | EK13: 31 | EL13: 31 | EM13: 32 | EN13: 32 | EO13: 32 | EP13: 32 | EQ13: 33 | ER13: 33 | ES13: 33 | ET13: 33 | EU13: 34 | EV13: 34 | EW13: 34 | EX13: 34 | EY13: 35 | EZ13: 35 | FA13: 35 | FB13: 35 | FC13: 0 | FD13: 0 | FE13: 0 | FF13: 0 | FG13: 0 | FH13: 0 | FI13: 0 | FJ13: 0 | FK13: 0 | FL13: 0 | FM13: 0 | FN13: 0 | FO13: =ROUNDUP(FO12/4,0) -> 0 | FP13: 0 | FQ13: 0 | FR13: 0 | FS13: 0 | FT13: 0 | FU13: 0 | FV13: 0 | FW13: 0 | FX13: 0 | FY13: 0 | FZ13: 0 | GA13: 0
C14: Escalation counter | K14: =IF(K13=0,0,K13-1) -> 0 | L14: 0 | M14: 0 | N14: 0 | O14: 0 | P14: 0 | Q14: 0 | R14: 0 | S14: 0 | T14: 0 | U14: 0 | V14: 0 | W14: 1 | X14: 1 | Y14: 1 | Z14: 1 | AA14: 2 | AB14: 2 | AC14: 2 | AD14: 2 | AE14: 3 | AF14: 3 | AG14: 3 | AH14: 3 | AI14: 4 | AJ14: 4 | AK14: 4 | AL14: 4 | AM14: 5 | AN14: 5 | AO14: 5 | AP14: 5 | AQ14: =IF(AQ13=0,0,AQ13-1) -> 6 | AR14: 6 | AS14: 6 | AT14: 6 | AU14: 7 | AV14: 7 | AW14: 7 | AX14: 7 | AY14: 8 | AZ14: 8 | BA14: 8 | BB14: 8 | BC14: 9 | BD14: 9 | BE14: 9 | BF14: 9 | BG14: 10 | BH14: 10 | BI14: 10 | BJ14: 10 | BK14: 11 | BL14: 11 | BM14: 11 | BN14: 11 | BO14: 12 | BP14: 12 | BQ14: 12 | BR14: 12 | BS14: 13 | BT14: 13 | BU14: 13 | BV14: 13 | BW14: =IF(BW13=0,0,BW13-1) -> 14 | BX14: 14 | BY14: 14 | BZ14: 14 | CA14: 15 | CB14: 15 | CC14: 15 | CD14: 15 | CE14: 16 | CF14: 16 | CG14: 16 | CH14: 16 | CI14: 17 | CJ14: 17 | CK14: 17 | CL14: 17 | CM14: 18 | CN14: 18 | CO14: 18 | CP14: 18 | CQ14: 19 | CR14: 19 | CS14: 19 | CT14: 19 | CU14: 20 | CV14: 20 | CW14: 20 | CX14: 20 | CY14: 21 | CZ14: 21 | DA14: 21 | DB14: 21 | DC14: =IF(DC13=0,0,DC13-1) -> 22 | DD14: 22 | DE14: 22 | DF14: 22 | DG14: 23 | DH14: 23 | DI14: 23 | DJ14: 23 | DK14: 24 | DL14: 24 | DM14: 24 | DN14: 24 | DO14: 25 | DP14: 25 | DQ14: 25 | DR14: 25 | DS14: 26 | DT14: 26 | DU14: 26 | DV14: 26 | DW14: 27 | DX14: 27 | DY14: 27 | DZ14: 27 | EA14: 28 | EB14: 28 | EC14: 28 | ED14: 28 | EE14: 29 | EF14: 29 | EG14: 29 | EH14: 29 | EI14: =IF(EI13=0,0,EI13-1) -> 30 | EJ14: 30 | EK14: 30 | EL14: 30 | EM14: 31 | EN14: 31 | EO14: 31 | EP14: 31 | EQ14: 32 | ER14: 32 | ES14: 32 | ET14: 32 | EU14: 33 | EV14: 33 | EW14: 33 | EX14: 33 | EY14: 34 | EZ14: 34 | FA14: 34 | FB14: 34 | FC14: 0 | FD14: 0 | FE14: 0 | FF14: 0 | FG14: 0 | FH14: 0 | FI14: 0 | FJ14: 0 | FK14: 0 | FL14: 0 | FM14: 0 | FN14: 0 | FO14: =IF(FO13=0,0,FO13-1) -> 0 | FP14: 0 | FQ14: 0 | FR14: 0 | FS14: 0 | FT14: 0 | FU14: 0 | FV14: 0 | FW14: 0 | FX14: 0 | FY14: 0 | FZ14: 0 | GA14: 0
B17: Tax equity
C19: Equity flip
C20: Income/(loss) allocation pre-flip | F20: =F6 -> 2022-01-01 | G20: ='Inputs - Financing'!E32 -> 2026-12-31 | K20: =IF(AND(K$2>=$F20,K$3<=$G20),1,0) -> 0 | L20: =IF(AND(L$2>=$F20,L$3<=$G20),1,0) -> 0 | M20: 0 | N20: 0 | O20: 0 | P20: 0 | Q20: 0 | R20: 0 | S20: 1 | T20: 1 | U20: 1 | V20: 1 | W20: 1 | X20: 1 | Y20: 1 | Z20: 1 | AA20: 1 | AB20: 1 | AC20: 1 | AD20: 1 | AE20: 1 | AF20: 1 | AG20: 1 | AH20: 1 | AI20: 1 | AJ20: 1 | AK20: 1 | AL20: 1 | AM20: 0 | AN20: 0 | AO20: 0 | AP20: 0 | AQ20: 0 | AR20: 0 | AS20: 0 | AT20: 0 | AU20: 0 | AV20: 0 | AW20: 0 | AX20: 0 | AY20: 0 | AZ20: 0 | BA20: 0 | BB20: 0 | BC20: 0 | BD20: 0 | BE20: 0 | BF20: 0 | BG20: 0 | BH20: 0 | BI20: 0 | BJ20: 0 | BK20: 0 | BL20: 0 | BM20: 0 | BN20: 0 | BO20: 0 | BP20: 0 | BQ20: 0 | BR20: 0 | BS20: 0 | BT20: 0 | BU20: 0 | BV20: 0 | BW20: 0 | BX20: =IF(AND(BX$2>=$F20,BX$3<=$G20),1,0) -> 0 | BY20: 0 | BZ20: 0 | CA20: 0 | CB20: 0 | CC20: 0 | CD20: 0 | CE20: 0 | CF20: 0 | CG20: 0 | CH20: 0 | CI20: 0 | CJ20: 0 | CK20: 0 | CL20: 0 | CM20: 0 | CN20: 0 | CO20: 0 | CP20: 0 | CQ20: 0 | CR20: 0 | CS20: 0 | CT20: 0 | CU20: 0 | CV20: 0 | CW20: 0 | CX20: 0 | CY20: 0 | CZ20: 0 | DA20: 0 | DB20: 0 | DC20: 0 | DD20: 0 | DE20: 0 | DF20: 0 | DG20: 0 | DH20: 0 | DI20: 0 | DJ20: 0 | DK20: 0 | DL20: 0 | DM20: 0 | DN20: 0 | DO20: 0 | DP20: 0 | DQ20: 0 | DR20: 0 | DS20: 0 | DT20: 0 | DU20: 0 | DV20: 0 | DW20: 0 | DX20: 0 | DY20: 0 | DZ20: 0 | EA20: 0 | EB20: 0 | EC20: 0 | ED20: 0 | EE20: 0 | EF20: 0 | EG20: 0 | EH20: 0 | EI20: 0 | EJ20: =IF(AND(EJ$2>=$F20,EJ$3<=$G20),1,0) -> 0 | EK20: 0 | EL20: 0 | EM20: 0 | EN20: 0 | EO20: 0 | EP20: 0 | EQ20: 0 | ER20: 0 | ES20: 0 | ET20: 0 | EU20: 0 | EV20: 0 | EW20: 0 | EX20: 0 | EY20: 0 | EZ20: 0 | FA20: 0 | FB20: 0 | FC20: 0 | FD20: 0 | FE20: 0 | FF20: 0 | FG20: 0 | FH20: 0 | FI20: 0 | FJ20: 0 | FK20: 0 | FL20: 0 | FM20: 0 | FN20: 0 | FO20: 0 | FP20: 0 | FQ20: 0 | FR20: 0 | FS20: 0 | FT20: 0 | FU20: 0 | FV20: 0 | FW20: 0 | FX20: 0 | FY20: 0 | FZ20: 0 | GA20: 0
C21: Income/(loss) allocation post-flip | F21: ='Inputs - Financing'!F30 -> 2027-01-01 | G21: ='Inputs - Financing'!F32 -> 2056-12-31 | K21: =IF(AND(K$2>=$F21,K$3<=$G21),1,0) -> 0 | L21: 0 | M21: 0 | N21: 0 | O21: 0 | P21: 0 | Q21: 0 | R21: 0 | S21: 0 | T21: 0 | U21: 0 | V21: 0 | W21: 0 | X21: 0 | Y21: 0 | Z21: 0 | AA21: 0 | AB21: 0 | AC21: 0 | AD21: 0 | AE21: 0 | AF21: 0 | AG21: 0 | AH21: 0 | AI21: 0 | AJ21: 0 | AK21: 0 | AL21: 0 | AM21: 1 | AN21: 1 | AO21: 1 | AP21: 1 | AQ21: 1 | AR21: 1 | AS21: 1 | AT21: 1 | AU21: 1 | AV21: 1 | AW21: 1 | AX21: 1 | AY21: 1 | AZ21: 1 | BA21: 1 | BB21: 1 | BC21: 1 | BD21: 1 | BE21: 1 | BF21: 1 | BG21: 1 | BH21: 1 | BI21: 1 | BJ21: 1 | BK21: 1 | BL21: 1 | BM21: 1 | BN21: 1 | BO21: 1 | BP21: 1 | BQ21: 1 | BR21: 1 | BS21: 1 | BT21: 1 | BU21: 1 | BV21: 1 | BW21: 1 | BX21: 1 | BY21: 1 | BZ21: 1 | CA21: 1 | CB21: 1 | CC21: 1 | CD21: 1 | CE21: 1 | CF21: 1 | CG21: 1 | CH21: 1 | CI21: 1 | CJ21: 1 | CK21: 1 | CL21: 1 | CM21: 1 | CN21: 1 | CO21: 1 | CP21: 1 | CQ21: 1 | CR21: 1 | CS21: 1 | CT21: 1 | CU21: 1 | CV21: 1 | CW21: 1 | CX21: 1 | CY21: 1 | CZ21: 1 | DA21: 1 | DB21: 1 | DC21: 1 | DD21: 1 | DE21: 1 | DF21: 1 | DG21: 1 | DH21: 1 | DI21: 1 | DJ21: 1 | DK21: 1 | DL21: 1 | DM21: 1 | DN21: 1 | DO21: 1 | DP21: 1 | DQ21: 1 | DR21: 1 | DS21: 1 | DT21: 1 | DU21: 1 | DV21: 1 | DW21: 1 | DX21: 1 | DY21: 1 | DZ21: 1 | EA21: 1 | EB21: 1 | EC21: 1 | ED21: 1 | EE21: 1 | EF21: 1 | EG21: 1 | EH21: 1 | EI21: 1 | EJ21: 1 | EK21: 1 | EL21: 1 | EM21: 1 | EN21: 1 | EO21: 1 | EP21: 1 | EQ21: 1 | ER21: 1 | ES21: 1 | ET21: 1 | EU21: 1 | EV21: 1 | EW21: 1 | EX21: 1 | EY21: 1 | EZ21: 1 | FA21: 1 | FB21: 1 | FC21: 0 | FD21: 0 | FE21: 0 | FF21: 0 | FG21: 0 | FH21: 0 | FI21: 0 | FJ21: 0 | FK21: 0 | FL21: 0 | FM21: 0 | FN21: 0 | FO21: 0 | FP21: 0 | FQ21: 0 | FR21: 0 | FS21: 0 | FT21: 0 | FU21: 0 | FV21: 0 | FW21: 0 | FX21: 0 | FY21: 0 | FZ21: 0 | GA21: 0
C23: Income/losses/ITC split | F23: Pre-flip | G23: Post-flip
C24: Tax Equity partner | F24: ='Inputs - Financing'!E17 -> 0.99 | G24: ='Inputs - Financing'!F17 -> 0.05 | K24: =$F24*K$20+$G24*K$21 -> 0 | L24: =$F24*L$20+$G24*L$21 -> 0 | M24: 0 | N24: 0 | O24: 0 | P24: 0 | Q24: 0 | R24: 0 | S24: 0.99 | T24: 0.99 | U24: 0.99 | V24: 0.99 | W24: 0.99 | X24: 0.99 | Y24: 0.99 | Z24: 0.99 | AA24: 0.99 | AB24: 0.99 | AC24: 0.99 | AD24: 0.99 | AE24: 0.99 | AF24: 0.99 | AG24: 0.99 | AH24: 0.99 | AI24: 0.99 | AJ24: 0.99 | AK24: 0.99 | AL24: 0.99 | AM24: 0.05 | AN24: 0.05 | AO24: 0.05 | AP24: 0.05 | AQ24: 0.05 | AR24: 0.05 | AS24: 0.05 | AT24: 0.05 | AU24: 0.05 | AV24: 0.05 | AW24: 0.05 | AX24: 0.05 | AY24: 0.05 | AZ24: 0.05 | BA24: 0.05 | BB24: 0.05 | BC24: 0.05 | BD24: 0.05 | BE24: 0.05 | BF24: 0.05 | BG24: 0.05 | BH24: 0.05 | BI24: 0.05 | BJ24: 0.05 | BK24: 0.05 | BL24: 0.05 | BM24: 0.05 | BN24: 0.05 | BO24: 0.05 | BP24: 0.05 | BQ24: 0.05 | BR24: 0.05 | BS24: 0.05 | BT24: 0.05 | BU24: 0.05 | BV24: 0.05 | BW24: 0.05 | BX24: =$F24*BX$20+$G24*BX$21 -> 0.05 | BY24: 0.05 | BZ24: 0.05 | CA24: 0.05 | CB24: 0.05 | CC24: 0.05 | CD24: 0.05 | CE24: 0.05 | CF24: 0.05 | CG24: 0.05 | CH24: 0.05 | CI24: 0.05 | CJ24: 0.05 | CK24: 0.05 | CL24: 0.05 | CM24: 0.05 | CN24: 0.05 | CO24: 0.05 | CP24: 0.05 | CQ24: 0.05 | CR24: 0.05 | CS24: 0.05 | CT24: 0.05 | CU24: 0.05 | CV24: 0.05 | CW24: 0.05 | CX24: 0.05 | CY24: 0.05 | CZ24: 0.05 | DA24: 0.05 | DB24: 0.05 | DC24: 0.05 | DD24: 0.05 | DE24: 0.05 | DF24: 0.05 | DG24: 0.05 | DH24: 0.05 | DI24: 0.05 | DJ24: 0.05 | DK24: 0.05 | DL24: 0.05 | DM24: 0.05 | DN24: 0.05 | DO24: 0.05 | DP24: 0.05 | DQ24: 0.05 | DR24: 0.05 | DS24: 0.05 | DT24: 0.05 | DU24: 0.05 | DV24: 0.05 | DW24: 0.05 | DX24: 0.05 | DY24: 0.05 | DZ24: 0.05 | EA24: 0.05 | EB24: 0.05 | EC24: 0.05 | ED24: 0.05 | EE24: 0.05 | EF24: 0.05 | EG24: 0.05 | EH24: 0.05 | EI24: 0.05 | EJ24: =$F24*EJ$20+$G24*EJ$21 -> 0.05 | EK24: 0.05 | EL24: 0.05 | EM24: 0.05 | EN24: 0.05 | EO24: 0.05 | EP24: 0.05 | EQ24: 0.05 | ER24: 0.05 | ES24: 0.05 | ET24: 0.05 | EU24: 0.05 | EV24: 0.05 | EW24: 0.05 | EX24: 0.05 | EY24: 0.05 | EZ24: 0.05 | FA24: 0.05 | FB24: 0.05 | FC24: 0 | FD24: 0 | FE24: 0 | FF24: 0 | FG24: 0 | FH24: 0 | FI24: 0 | FJ24: 0 | FK24: 0 | FL24: 0 | FM24: 0 | FN24: 0 | FO24: 0 | FP24: 0 | FQ24: 0 | FR24: 0 | FS24: 0 | FT24: 0 | FU24: 0 | FV24: 0 | FW24: 0 | FX24: 0 | FY24: 0 | FZ24: 0 | GA24: 0
C25: Sponsor partner | F25: ='Inputs - Financing'!E18 -> 0.01 | G25: ='Inputs - Financing'!F18 -> 0.95 | K25: =$F25*K$20+$G25*K$21 -> 0 | L25: 0 | M25: 0 | N25: 0 | O25: 0 | P25: 0 | Q25: 0 | R25: 0 | S25: 0.01 | T25: 0.01 | U25: 0.01 | V25: 0.01 | W25: 0.01 | X25: 0.01 | Y25: 0.01 | Z25: 0.01 | AA25: 0.01 | AB25: 0.01 | AC25: 0.01 | AD25: 0.01 | AE25: 0.01 | AF25: 0.01 | AG25: 0.01 | AH25: 0.01 | AI25: 0.01 | AJ25: 0.01 | AK25: 0.01 | AL25: 0.01 | AM25: 0.95 | AN25: 0.95 | AO25: 0.95 | AP25: 0.95 | AQ25: 0.95 | AR25: 0.95 | AS25: 0.95 | AT25: 0.95 | AU25: 0.95 | AV25: 0.95 | AW25: 0.95 | AX25: 0.95 | AY25: 0.95 | AZ25: 0.95 | BA25: 0.95 | BB25: 0.95 | BC25: 0.95 | BD25: 0.95 | BE25: 0.95 | BF25: 0.95 | BG25: 0.95 | BH25: 0.95 | BI25: 0.95 | BJ25: 0.95 | BK25: 0.95 | BL25: 0.95 | BM25: 0.95 | BN25: 0.95 | BO25: 0.95 | BP25: 0.95 | BQ25: 0.95 | BR25: 0.95 | BS25: 0.95 | BT25: 0.95 | BU25: 0.95 | BV25: 0.95 | BW25: 0.95 | BX25: 0.95 | BY25: 0.95 | BZ25: 0.95 | CA25: 0.95 | CB25: 0.95 | CC25: 0.95 | CD25: 0.95 | CE25: 0.95 | CF25: 0.95 | CG25: 0.95 | CH25: 0.95 | CI25: 0.95 | CJ25: 0.95 | CK25: 0.95 | CL25: 0.95 | CM25: 0.95 | CN25: 0.95 | CO25: 0.95 | CP25: 0.95 | CQ25: 0.95 | CR25: 0.95 | CS25: 0.95 | CT25: 0.95 | CU25: 0.95 | CV25: 0.95 | CW25: 0.95 | CX25: 0.95 | CY25: 0.95 | CZ25: 0.95 | DA25: 0.95 | DB25: 0.95 | DC25: 0.95 | DD25: 0.95 | DE25: 0.95 | DF25: 0.95 | DG25: 0.95 | DH25: 0.95 | DI25: 0.95 | DJ25: 0.95 | DK25: 0.95 | DL25: 0.95 | DM25: 0.95 | DN25: 0.95 | DO25: 0.95 | DP25: 0.95 | DQ25: 0.95 | DR25: 0.95 | DS25: 0.95 | DT25: 0.95 | DU25: 0.95 | DV25: 0.95 | DW25: 0.95 | DX25: 0.95 | DY25: 0.95 | DZ25: 0.95 | EA25: 0.95 | EB25: 0.95 | EC25: 0.95 | ED25: 0.95 | EE25: 0.95 | EF25: 0.95 | EG25: 0.95 | EH25: 0.95 | EI25: 0.95 | EJ25: 0.95 | EK25: 0.95 | EL25: 0.95 | EM25: 0.95 | EN25: 0.95 | EO25: 0.95 | EP25: 0.95 | EQ25: 0.95 | ER25: 0.95 | ES25: 0.95 | ET25: 0.95 | EU25: 0.95 | EV25: 0.95 | EW25: 0.95 | EX25: 0.95 | EY25: 0.95 | EZ25: 0.95 | FA25: 0.95 | FB25: 0.95 | FC25: 0 | FD25: 0 | FE25: 0 | FF25: 0 | FG25: 0 | FH25: 0 | FI25: 0 | FJ25: 0 | FK25: 0 | FL25: 0 | FM25: 0 | FN25: 0 | FO25: 0 | FP25: 0 | FQ25: 0 | FR25: 0 | FS25: 0 | FT25: 0 | FU25: 0 | FV25: 0 | FW25: 0 | FX25: 0 | FY25: 0 | FZ25: 0 | GA25: 0
C26: Total | K26: =SUM(K24:K25) -> 0 | L26: =SUM(L24:L25) -> 0 | M26: 0 | N26: 0 | O26: 0 | P26: 0 | Q26: 0 | R26: 0 | S26: 1 | T26: 1 | U26: 1 | V26: 1 | W26: 1 | X26: 1 | Y26: 1 | Z26: 1 | AA26: 1 | AB26: 1 | AC26: 1 | AD26: 1 | AE26: 1 | AF26: 1 | AG26: 1 | AH26: 1 | AI26: 1 | AJ26: 1 | AK26: 1 | AL26: 1 | AM26: 1 | AN26: 1 | AO26: 1 | AP26: 1 | AQ26: 1 | AR26: 1 | AS26: 1 | AT26: 1 | AU26: 1 | AV26: 1 | AW26: 1 | AX26: 1 | AY26: 1 | AZ26: 1 | BA26: 1 | BB26: 1 | BC26: 1 | BD26: 1 | BE26: 1 | BF26: 1 | BG26: 1 | BH26: 1 | BI26: 1 | BJ26: 1 | BK26: 1 | BL26: 1 | BM26: 1 | BN26: 1 | BO26: 1 | BP26: 1 | BQ26: 1 | BR26: 1 | BS26: 1 | BT26: 1 | BU26: 1 | BV26: 1 | BW26: 1 | BX26: =SUM(BX24:BX25) -> 1 | BY26: 1 | BZ26: 1 | CA26: 1 | CB26: 1 | CC26: 1 | CD26: 1 | CE26: 1 | CF26: 1 | CG26: 1 | CH26: 1 | CI26: 1 | CJ26: 1 | CK26: 1 | CL26: 1 | CM26: 1 | CN26: 1 | CO26: 1 | CP26: 1 | CQ26: 1 | CR26: 1 | CS26: 1 | CT26: 1 | CU26: 1 | CV26: 1 | CW26: 1 | CX26: 1 | CY26: 1 | CZ26: 1 | DA26: 1 | DB26: 1 | DC26: 1 | DD26: 1 | DE26: 1 | DF26: 1 | DG26: 1 | DH26: 1 | DI26: 1 | DJ26: 1 | DK26: 1 | DL26: 1 | DM26: 1 | DN26: 1 | DO26: 1 | DP26: 1 | DQ26: 1 | DR26: 1 | DS26: 1 | DT26: 1 | DU26: 1 | DV26: 1 | DW26: 1 | DX26: 1 | DY26: 1 | DZ26: 1 | EA26: 1 | EB26: 1 | EC26: 1 | ED26: 1 | EE26: 1 | EF26: 1 | EG26: 1 | EH26: 1 | EI26: 1 | EJ26: =SUM(EJ24:EJ25) -> 1 | EK26: 1 | EL26: 1 | EM26: 1 | EN26: 1 | EO26: 1 | EP26: 1 | EQ26: 1 | ER26: 1 | ES26: 1 | ET26: 1 | EU26: 1 | EV26: 1 | EW26: 1 | EX26: 1 | EY26: 1 | EZ26: 1 | FA26: 1 | FB26: 1 | FC26: 0 | FD26: 0 | FE26: 0 | FF26: 0 | FG26: 0 | FH26: 0 | FI26: 0 | FJ26: 0 | FK26: 0 | FL26: 0 | FM26: 0 | FN26: 0 | FO26: 0 | FP26: 0 | FQ26: 0 | FR26: 0 | FS26: 0 | FT26: 0 | FU26: 0 | FV26: 0 | FW26: 0 | FX26: 0 | FY26: 0 | FZ26: 0 | GA26: 0
C28: Cash split
C29: Tax Equity partner's preferred yield - pre-flip | G29: ='Inputs - Financing'!E10 -> 0 | K29: =((1+$G29)^(K$10/360)-1)*MAX(K$4:K$6) -> 0 | L29: =((1+$G29)^(L$10/360)-1)*MAX(L$4:L$6) -> 0 | M29: 0 | N29: 0 | O29: 0 | P29: 0 | Q29: 0 | R29: 0 | S29: 0 | T29: 0 | U29: 0 | V29: 0 | W29: 0 | X29: 0 | Y29: 0 | Z29: 0 | AA29: 0 | AB29: 0 | AC29: 0 | AD29: 0 | AE29: 0 | AF29: 0 | AG29: 0 | AH29: 0 | AI29: 0 | AJ29: 0 | AK29: 0 | AL29: 0 | AM29: 0 | AN29: 0 | AO29: 0 | AP29: 0 | AQ29: 0 | AR29: 0 | AS29: 0 | AT29: 0 | AU29: 0 | AV29: 0 | AW29: 0 | AX29: 0 | AY29: 0 | AZ29: 0 | BA29: 0 | BB29: 0 | BC29: 0 | BD29: 0 | BE29: 0 | BF29: 0 | BG29: 0 | BH29: 0 | BI29: 0 | BJ29: 0 | BK29: 0 | BL29: 0 | BM29: 0 | BN29: 0 | BO29: 0 | BP29: 0 | BQ29: 0 | BR29: 0 | BS29: 0 | BT29: 0 | BU29: 0 | BV29: 0 | BW29: 0 | BX29: =((1+$G29)^(BX$10/360)-1)*MAX(BX$4:BX$6) -> 0 | BY29: 0 | BZ29: 0 | CA29: 0 | CB29: 0 | CC29: 0 | CD29: 0 | CE29: 0 | CF29: 0 | CG29: 0 | CH29: 0 | CI29: 0 | CJ29: 0 | CK29: 0 | CL29: 0 | CM29: 0 | CN29: 0 | CO29: 0 | CP29: 0 | CQ29: 0 | CR29: 0 | CS29: 0 | CT29: 0 | CU29: 0 | CV29: 0 | CW29: 0 | CX29: 0 | CY29: 0 | CZ29: 0 | DA29: 0 | DB29: 0 | DC29: 0 | DD29: 0 | DE29: 0 | DF29: 0 | DG29: 0 | DH29: 0 | DI29: 0 | DJ29: 0 | DK29: 0 | DL29: 0 | DM29: 0 | DN29: 0 | DO29: 0 | DP29: 0 | DQ29: 0 | DR29: 0 | DS29: 0 | DT29: 0 | DU29: 0 | DV29: 0 | DW29: 0 | DX29: 0 | DY29: 0 | DZ29: 0 | EA29: 0 | EB29: 0 | EC29: 0 | ED29: 0 | EE29: 0 | EF29: 0 | EG29: 0 | EH29: 0 | EI29: 0 | EJ29: =((1+$G29)^(EJ$10/360)-1)*MAX(EJ$4:EJ$6) -> 0 | EK29: 0 | EL29: 0 | EM29: 0 | EN29: 0 | EO29: 0 | EP29: 0 | EQ29: 0 | ER29: 0 | ES29: 0 | ET29: 0 | EU29: 0 | EV29: 0 | EW29: 0 | EX29: 0 | EY29: 0 | EZ29: 0 | FA29: 0 | FB29: 0 | FC29: 0 | FD29: 0 | FE29: 0 | FF29: 0 | FG29: 0 | FH29: 0 | FI29: 0 | FJ29: 0 | FK29: 0 | FL29: 0 | FM29: 0 | FN29: 0 | FO29: 0 | FP29: 0 | FQ29: 0 | FR29: 0 | FS29: 0 | FT29: 0 | FU29: 0 | FV29: 0 | FW29: 0 | FX29: 0 | FY29: 0 | FZ29: 0 | GA29: 0
C30: Tax Equity partner's preferred yield - post-flip | G30: ='Inputs - Financing'!F11 -> 0.05 | K30: =((1+$G30)^(K$10/360)-1)*MAX(K$4:K$6) -> 0.01240943519 | L30: 0.01240943519 | M30: 0.01254665456 | N30: 0.01254665456 | O30: 0.01227223443 | P30: 0.01240943519 | Q30: 0.01254665456 | R30: 0.01254665456 | S30: 0.01227223443 | T30: 0.01240943519 | U30: 0.01254665456 | V30: 0.01254665456 | W30: 0.01227223443 | X30: 0.01240943519 | Y30: 0.01254665456 | Z30: 0.01254665456 | AA30: 0.01240943519 | AB30: 0.01240943519 | AC30: 0.01254665456 | AD30: 0.01254665456 | AE30: 0.01227223443 | AF30: 0.01240943519 | AG30: 0.01254665456 | AH30: 0.01254665456 | AI30: 0.01227223443 | AJ30: 0.01240943519 | AK30: 0.01254665456 | AL30: 0.01254665456 | AM30: 0.01227223443 | AN30: 0.01240943519 | AO30: 0.01254665456 | AP30: 0.01254665456 | AQ30: 0.01240943519 | AR30: 0.01240943519 | AS30: 0.01254665456 | AT30: 0.01254665456 | AU30: 0.01227223443 | AV30: 0.01240943519 | AW30: 0.01254665456 | AX30: 0.01254665456 | AY30: 0.01227223443 | AZ30: 0.01240943519 | BA30: 0.01254665456 | BB30: 0.01254665456 | BC30: 0.01227223443 | BD30: 0.01240943519 | BE30: 0.01254665456 | BF30: 0.01254665456 | BG30: 0.01240943519 | BH30: 0.01240943519 | BI30: 0.01254665456 | BJ30: 0.01254665456 | BK30: 0.01227223443 | BL30: 0.01240943519 | BM30: 0.01254665456 | BN30: 0.01254665456 | BO30: 0.01227223443 | BP30: 0.01240943519 | BQ30: 0.01254665456 | BR30: 0.01254665456 | BS30: 0.01227223443 | BT30: 0.01240943519 | BU30: 0.01254665456 | BV30: 0.01254665456 | BW30: 0.01240943519 | BX30: 0.01240943519 | BY30: 0.01254665456 | BZ30: 0.01254665456 | CA30: 0.01227223443 | CB30: 0.01240943519 | CC30: 0.01254665456 | CD30: 0.01254665456 | CE30: 0.01227223443 | CF30: 0.01240943519 | CG30: 0.01254665456 | CH30: 0.01254665456 | CI30: 0.01227223443 | CJ30: 0.01240943519 | CK30: 0.01254665456 | CL30: 0.01254665456 | CM30: 0.01240943519 | CN30: 0.01240943519 | CO30: 0.01254665456 | CP30: 0.01254665456 | CQ30: 0.01227223443 | CR30: 0.01240943519 | CS30: 0.01254665456 | CT30: 0.01254665456 | CU30: 0.01227223443 | CV30: 0.01240943519 | CW30: 0.01254665456 | CX30: 0.01254665456 | CY30: 0.01227223443 | CZ30: 0.01240943519 | DA30: 0.01254665456 | DB30: 0.01254665456 | DC30: 0.01240943519 | DD30: 0.01240943519 | DE30: 0.01254665456 | DF30: 0.01254665456 | DG30: 0.01227223443 | DH30: 0.01240943519 | DI30: 0.01254665456 | DJ30: 0.01254665456 | DK30: 0.01227223443 | DL30: 0.01240943519 | DM30: 0.01254665456 | DN30: 0.01254665456 | DO30: 0.01227223443 | DP30: 0.01240943519 | DQ30: 0.01254665456 | DR30: 0.01254665456 | DS30: 0.01240943519 | DT30: 0.01240943519 | DU30: 0.01254665456 | DV30: 0.01254665456 | DW30: 0.01227223443 | DX30: 0.01240943519 | DY30: 0.01254665456 | DZ30: 0.01254665456 | EA30: 0.01227223443 | EB30: 0.01240943519 | EC30: 0.01254665456 | ED30: 0.01254665456 | EE30: 0.01227223443 | EF30: 0.01240943519 | EG30: 0.01254665456 | EH30: 0.01254665456 | EI30: 0.01240943519 | EJ30: 0.01240943519 | EK30: 0.01254665456 | EL30: 0.01254665456 | EM30: 0.01227223443 | EN30: 0.01240943519 | EO30: 0.01254665456 | EP30: 0.01254665456 | EQ30: 0.01227223443 | ER30: 0.01240943519 | ES30: 0.01254665456 | ET30: 0.01254665456 | EU30: 0.01227223443 | EV30: 0.01240943519 | EW30: 0.01254665456 | EX30: 0.01254665456 | EY30: 0.01240943519 | EZ30: 0.01240943519 | FA30: 0.01254665456 | FB30: 0.01254665456 | FC30: 0 | FD30: 0 | FE30: 0 | FF30: 0 | FG30: 0 | FH30: 0 | FI30: 0 | FJ30: 0 | FK30: 0 | FL30: 0 | FM30: 0 | FN30: 0 | FO30: 0 | FP30: 0 | FQ30: 0 | FR30: 0 | FS30: 0 | FT30: 0 | FU30: 0 | FV30: 0 | FW30: 0 | FX30: 0 | FY30: 0 | FZ30: 0 | GA30: 0
C31: Total | K31: =SUM(K29:K30) -> 0.01240943519 | L31: =SUM(L29:L30) -> 0.01240943519 | M31: 0.01254665456 | N31: 0.01254665456 | O31: 0.01227223443 | P31: 0.01240943519 | Q31: 0.01254665456 | R31: 0.01254665456 | S31: 0.01227223443 | T31: 0.01240943519 | U31: 0.01254665456 | V31: 0.01254665456 | W31: 0.01227223443 | X31: 0.01240943519 | Y31: 0.01254665456 | Z31: 0.01254665456 | AA31: 0.01240943519 | AB31: 0.01240943519 | AC31: 0.01254665456 | AD31: 0.01254665456 | AE31: 0.01227223443 | AF31: 0.01240943519 | AG31: 0.01254665456 | AH31: 0.01254665456 | AI31: 0.01227223443 | AJ31: 0.01240943519 | AK31: 0.01254665456 | AL31: 0.01254665456 | AM31: 0.01227223443 | AN31: 0.01240943519 | AO31: 0.01254665456 | AP31: 0.01254665456 | AQ31: 0.01240943519 | AR31: 0.01240943519 | AS31: 0.01254665456 | AT31: 0.01254665456 | AU31: 0.01227223443 | AV31: 0.01240943519 | AW31: 0.01254665456 | AX31: 0.01254665456 | AY31: 0.01227223443 | AZ31: 0.01240943519 | BA31: 0.01254665456 | BB31: 0.01254665456 | BC31: 0.01227223443 | BD31: 0.01240943519 | BE31: 0.01254665456 | BF31: 0.01254665456 | BG31: 0.01240943519 | BH31: 0.01240943519 | BI31: 0.01254665456 | BJ31: 0.01254665456 | BK31: 0.01227223443 | BL31: 0.01240943519 | BM31: 0.01254665456 | BN31: 0.01254665456 | BO31: 0.01227223443 | BP31: 0.01240943519 | BQ31: 0.01254665456 | BR31: 0.01254665456 | BS31: 0.01227223443 | BT31: 0.01240943519 | BU31: 0.01254665456 | BV31: 0.01254665456 | BW31: 0.01240943519 | BX31: =SUM(BX29:BX30) -> 0.01240943519 | BY31: 0.01254665456 | BZ31: 0.01254665456 | CA31: 0.01227223443 | CB31: 0.01240943519 | CC31: 0.01254665456 | CD31: 0.01254665456 | CE31: 0.01227223443 | CF31: 0.01240943519 | CG31: 0.01254665456 | CH31: 0.01254665456 | CI31: 0.01227223443 | CJ31: 0.01240943519 | CK31: 0.01254665456 | CL31: 0.01254665456 | CM31: 0.01240943519 | CN31: 0.01240943519 | CO31: 0.01254665456 | CP31: 0.01254665456 | CQ31: 0.01227223443 | CR31: 0.01240943519 | CS31: 0.01254665456 | CT31: 0.01254665456 | CU31: 0.01227223443 | CV31: 0.01240943519 | CW31: 0.01254665456 | CX31: 0.01254665456 | CY31: 0.01227223443 | CZ31: 0.01240943519 | DA31: 0.01254665456 | DB31: 0.01254665456 | DC31: 0.01240943519 | DD31: 0.01240943519 | DE31: 0.01254665456 | DF31: 0.01254665456 | DG31: 0.01227223443 | DH31: 0.01240943519 | DI31: 0.01254665456 | DJ31: 0.01254665456 | DK31: 0.01227223443 | DL31: 0.01240943519 | DM31: 0.01254665456 | DN31: 0.01254665456 | DO31: 0.01227223443 | DP31: 0.01240943519 | DQ31: 0.01254665456 | DR31: 0.01254665456 | DS31: 0.01240943519 | DT31: 0.01240943519 | DU31: 0.01254665456 | DV31: 0.01254665456 | DW31: 0.01227223443 | DX31: 0.01240943519 | DY31: 0.01254665456 | DZ31: 0.01254665456 | EA31: 0.01227223443 | EB31: 0.01240943519 | EC31: 0.01254665456 | ED31: 0.01254665456 | EE31: 0.01227223443 | EF31: 0.01240943519 | EG31: 0.01254665456 | EH31: 0.01254665456 | EI31: 0.01240943519 | EJ31: =SUM(EJ29:EJ30) -> 0.01240943519 | EK31: 0.01254665456 | EL31: 0.01254665456 | EM31: 0.01227223443 | EN31: 0.01240943519 | EO31: 0.01254665456 | EP31: 0.01254665456 | EQ31: 0.01227223443 | ER31: 0.01240943519 | ES31: 0.01254665456 | ET31: 0.01254665456 | EU31: 0.01227223443 | EV31: 0.01240943519 | EW31: 0.01254665456 | EX31: 0.01254665456 | EY31: 0.01240943519 | EZ31: 0.01240943519 | FA31: 0.01254665456 | FB31: 0.01254665456 | FC31: 0 | FD31: 0 | FE31: 0 | FF31: 0 | FG31: 0 | FH31: 0 | FI31: 0 | FJ31: 0 | FK31: 0 | FL31: 0 | FM31: 0 | FN31: 0 | FO31: 0 | FP31: 0 | FQ31: 0 | FR31: 0 | FS31: 0 | FT31: 0 | FU31: 0 | FV31: 0 | FW31: 0 | FX31: 0 | FY31: 0 | FZ31: 0 | GA31: 0
C33: Pre-flip
C34: Fixed pre-flip period flag | G34: =Op_start -> 2022-01-01 | K34: =IF(AND(K2>=$G$34,K2<=$G$35),1,0) -> 0 | L34: 0 | M34: 0 | N34: 0 | O34: 0 | P34: 0 | Q34: 0 | R34: 0 | S34: 1 | T34: 1 | U34: 1 | V34: 1 | W34: 1 | X34: 1 | Y34: 1 | Z34: 1 | AA34: 1 | AB34: 1 | AC34: 1 | AD34: 1 | AE34: 1 | AF34: 1 | AG34: 1 | AH34: 1 | AI34: 1 | AJ34: 1 | AK34: 1 | AL34: 1 | AM34: 0 | AN34: 0 | AO34: 0 | AP34: 0 | AQ34: =IF(AND(AQ2>=$G$34,AQ2<=$G$35),1,0) -> 0 | AR34: 0 | AS34: 0 | AT34: 0 | AU34: 0 | AV34: 0 | AW34: 0 | AX34: 0 | AY34: 0 | AZ34: 0 | BA34: 0 | BB34: 0 | BC34: 0 | BD34: 0 | BE34: 0 | BF34: 0 | BG34: 0 | BH34: 0 | BI34: 0 | BJ34: 0 | BK34: 0 | BL34: 0 | BM34: 0 | BN34: 0 | BO34: 0 | BP34: 0 | BQ34: 0 | BR34: 0 | BS34: 0 | BT34: 0 | BU34: 0 | BV34: 0 | BW34: =IF(AND(BW2>=$G$34,BW2<=$G$35),1,0) -> 0 | BX34: 0 | BY34: 0 | BZ34: 0 | CA34: 0 | CB34: 0 | CC34: 0 | CD34: 0 | CE34: 0 | CF34: 0 | CG34: 0 | CH34: 0 | CI34: 0 | CJ34: 0 | CK34: 0 | CL34: 0 | CM34: 0 | CN34: 0 | CO34: 0 | CP34: 0 | CQ34: 0 | CR34: 0 | CS34: 0 | CT34: 0 | CU34: 0 | CV34: 0 | CW34: 0 | CX34: 0 | CY34: 0 | CZ34: 0 | DA34: 0 | DB34: 0 | DC34: =IF(AND(DC2>=$G$34,DC2<=$G$35),1,0) -> 0 | DD34: 0 | DE34: 0 | DF34: 0 | DG34: 0 | DH34: 0 | DI34: 0 | DJ34: 0 | DK34: 0 | DL34: 0 | DM34: 0 | DN34: 0 | DO34: 0 | DP34: 0 | DQ34: 0 | DR34: 0 | DS34: 0 | DT34: 0 | DU34: 0 | DV34: 0 | DW34: 0 | DX34: 0 | DY34: 0 | DZ34: 0 | EA34: 0 | EB34: 0 | EC34: 0 | ED34: 0 | EE34: 0 | EF34: 0 | EG34: 0 | EH34: 0 | EI34: =IF(AND(EI2>=$G$34,EI2<=$G$35),1,0) -> 0 | EJ34: 0 | EK34: 0 | EL34: 0 | EM34: 0 | EN34: 0 | EO34: 0 | EP34: 0 | EQ34: 0 | ER34: 0 | ES34: 0 | ET34: 0 | EU34: 0 | EV34: 0 | EW34: 0 | EX34: 0 | EY34: 0 | EZ34: 0 | FA34: 0 | FB34: 0 | FC34: 0 | FD34: 0 | FE34: 0 | FF34: 0 | FG34: 0 | FH34: 0 | FI34: 0 | FJ34: 0 | FK34: 0 | FL34: 0 | FM34: 0 | FN34: 0 | FO34: =IF(AND(FO2>=$G$34,FO2<=$G$35),1,0) -> 0 | FP34: 0 | FQ34: 0 | FR34: 0 | FS34: 0 | FT34: 0 | FU34: 0 | FV34: 0 | FW34: 0 | FX34: 0 | FY34: 0 | FZ34: 0 | GA34: 0
C35: Fixed post-flip flag | F35: Flip date | G35: ='Inputs - Financing'!E32 -> 2026-12-31 | K35: =K6-K34 -> 0 | L35: 0 | M35: 0 | N35: 0 | O35: 0 | P35: 0 | Q35: 0 | R35: 0 | S35: 0 | T35: 0 | U35: 0 | V35: 0 | W35: 0 | X35: 0 | Y35: 0 | Z35: 0 | AA35: 0 | AB35: 0 | AC35: 0 | AD35: 0 | AE35: 0 | AF35: 0 | AG35: 0 | AH35: 0 | AI35: 0 | AJ35: 0 | AK35: 0 | AL35: 0 | AM35: 1 | AN35: 1 | AO35: 1 | AP35: 1 | AQ35: =AQ6-AQ34 -> 1 | AR35: 1 | AS35: 1 | AT35: 1 | AU35: 1 | AV35: 1 | AW35: 1 | AX35: 1 | AY35: 1 | AZ35: 1 | BA35: 1 | BB35: 1 | BC35: 1 | BD35: 1 | BE35: 1 | BF35: 1 | BG35: 1 | BH35: 1 | BI35: 1 | BJ35: 1 | BK35: 1 | BL35: 1 | BM35: 1 | BN35: 1 | BO35: 1 | BP35: 1 | BQ35: 1 | BR35: 1 | BS35: 1 | BT35: 1 | BU35: 1 | BV35: 1 | BW35: =BW6-BW34 -> 1 | BX35: 1 | BY35: 1 | BZ35: 1 | CA35: 1 | CB35: 1 | CC35: 1 | CD35: 1 | CE35: 1 | CF35: 1 | CG35: 1 | CH35: 1 | CI35: 1 | CJ35: 1 | CK35: 1 | CL35: 1 | CM35: 1 | CN35: 1 | CO35: 1 | CP35: 1 | CQ35: 1 | CR35: 1 | CS35: 1 | CT35: 1 | CU35: 1 | CV35: 1 | CW35: 1 | CX35: 1 | CY35: 1 | CZ35: 1 | DA35: 1 | DB35: 1 | DC35: =DC6-DC34 -> 1 | DD35: 1 | DE35: 1 | DF35: 1 | DG35: 1 | DH35: 1 | DI35: 1 | DJ35: 1 | DK35: 1 | DL35: 1 | DM35: 1 | DN35: 1 | DO35: 1 | DP35: 1 | DQ35: 1 | DR35: 1 | DS35: 1 | DT35: 1 | DU35: 1 | DV35: 1 | DW35: 1 | DX35: 1 | DY35: 1 | DZ35: 1 | EA35: 1 | EB35: 1 | EC35: 1 | ED35: 1 | EE35: 1 | EF35: 1 | EG35: 1 | EH35: 1 | EI35: =EI6-EI34 -> 1 | EJ35: 1 | EK35: 1 | EL35: 1 | EM35: 1 | EN35: 1 | EO35: 1 | EP35: 1 | EQ35: 1 | ER35: 1 | ES35: 1 | ET35: 1 | EU35: 1 | EV35: 1 | EW35: 1 | EX35: 1 | EY35: 1 | EZ35: 1 | FA35: 1 | FB35: 1 | FC35: 0 | FD35: 0 | FE35: 0 | FF35: 0 | FG35: 0 | FH35: 0 | FI35: 0 | FJ35: 0 | FK35: 0 | FL35: 0 | FM35: 0 | FN35: 0 | FO35: =FO6-FO34 -> 0 | FP35: 0 | FQ35: 0 | FR35: 0 | FS35: 0 | FT35: 0 | FU35: 0 | FV35: 0 | FW35: 0 | FX35: 0 | FY35: 0 | FZ35: 0 | GA35: 0
C63: Income/(loss) allocation pre-flip | F63: =F4 -> 2020-01-01 | G63: ='Inputs - Financing'!E32 -> 2026-12-31 | K63: =IF(AND(K$2>=$F63,K$3<=$G63),1,0) -> 1 | L63: =IF(AND(L$2>=$F63,L$3<=$G63),1,0) -> 1 | M63: 1 | N63: 1 | O63: 1 | P63: 1 | Q63: 1 | R63: 1 | S63: 1 | T63: 1 | U63: 1 | V63: 1 | W63: 1 | X63: 1 | Y63: 1 | Z63: 1 | AA63: 1 | AB63: 1 | AC63: 1 | AD63: 1 | AE63: 1 | AF63: 1 | AG63: 1 | AH63: 1 | AI63: 1 | AJ63: 1 | AK63: 1 | AL63: 1 | AM63: 0 | AN63: 0 | AO63: 0 | AP63: 0 | AQ63: 0 | AR63: 0 | AS63: 0 | AT63: 0 | AU63: 0 | AV63: 0 | AW63: 0 | AX63: 0 | AY63: 0 | AZ63: 0 | BA63: 0 | BB63: 0 | BC63: 0 | BD63: 0 | BE63: 0 | BF63: 0 | BG63: 0 | BH63: 0 | BI63: 0 | BJ63: 0 | BK63: 0 | BL63: 0 | BM63: 0 | BN63: 0 | BO63: 0 | BP63: 0 | BQ63: 0 | BR63: 0 | BS63: 0 | BT63: 0 | BU63: 0 | BV63: 0 | BW63: 0 | BX63: =IF(AND(BX$2>=$F63,BX$3<=$G63),1,0) -> 0 | BY63: 0 | BZ63: 0 | CA63: 0 | CB63: 0 | CC63: 0 | CD63: 0 | CE63: 0 | CF63: 0 | CG63: 0 | CH63: 0 | CI63: 0 | CJ63: 0 | CK63: 0 | CL63: 0 | CM63: 0 | CN63: 0 | CO63: 0 | CP63: 0 | CQ63: 0 | CR63: 0 | CS63: 0 | CT63: 0 | CU63: 0 | CV63: 0 | CW63: 0 | CX63: 0 | CY63: 0 | CZ63: 0 | DA63: 0 | DB63: 0 | DC63: 0 | DD63: 0 | DE63: 0 | DF63: 0 | DG63: 0 | DH63: 0 | DI63: 0 | DJ63: 0 | DK63: 0 | DL63: 0 | DM63: 0 | DN63: 0 | DO63: 0 | DP63: 0 | DQ63: 0 | DR63: 0 | DS63: 0 | DT63: 0 | DU63: 0 | DV63: 0 | DW63: 0 | DX63: 0 | DY63: 0 | DZ63: 0 | EA63: 0 | EB63: 0 | EC63: 0 | ED63: 0 | EE63: 0 | EF63: 0 | EG63: 0 | EH63: 0 | EI63: 0 | EJ63: =IF(AND(EJ$2>=$F63,EJ$3<=$G63),1,0) -> 0 | EK63: 0 | EL63: 0 | EM63: 0 | EN63: 0 | EO63: 0 | EP63: 0 | EQ63: 0 | ER63: 0 | ES63: 0 | ET63: 0 | EU63: 0 | EV63: 0 | EW63: 0 | EX63: 0 | EY63: 0 | EZ63: 0 | FA63: 0 | FB63: 0 | FC63: 0 | FD63: 0 | FE63: 0 | FF63: 0 | FG63: 0 | FH63: 0 | FI63: 0 | FJ63: 0 | FK63: 0 | FL63: 0 | FM63: 0 | FN63: 0 | FO63: 0 | FP63: 0 | FQ63: 0 | FR63: 0 | FS63: 0 | FT63: 0 | FU63: 0 | FV63: 0 | FW63: 0 | FX63: 0 | FY63: 0 | FZ63: 0 | GA63: 0
C64: Income/(loss) allocation post-flip | F64: ='Inputs - Financing'!F30 -> 2027-01-01 | G64: ='Inputs - Financing'!F32 -> 2056-12-31 | K64: =IF(AND(K$2>=$F64,K$3<=$G64),1,0) -> 0 | L64: 0 | M64: 0 | N64: 0 | O64: 0 | P64: 0 | Q64: 0 | R64: 0 | S64: 0 | T64: 0 | U64: 0 | V64: 0 | W64: 0 | X64: 0 | Y64: 0 | Z64: 0 | AA64: 0 | AB64: 0 | AC64: 0 | AD64: 0 | AE64: 0 | AF64: 0 | AG64: 0 | AH64: 0 | AI64: 0 | AJ64: 0 | AK64: 0 | AL64: 0 | AM64: 1 | AN64: 1 | AO64: 1 | AP64: 1 | AQ64: 1 | AR64: 1 | AS64: 1 | AT64: 1 | AU64: 1 | AV64: 1 | AW64: 1 | AX64: 1 | AY64: 1 | AZ64: 1 | BA64: 1 | BB64: 1 | BC64: 1 | BD64: 1 | BE64: 1 | BF64: 1 | BG64: 1 | BH64: 1 | BI64: 1 | BJ64: 1 | BK64: 1 | BL64: 1 | BM64: 1 | BN64: 1 | BO64: 1 | BP64: 1 | BQ64: 1 | BR64: 1 | BS64: 1 | BT64: 1 | BU64: 1 | BV64: 1 | BW64: 1 | BX64: 1 | BY64: 1 | BZ64: 1 | CA64: 1 | CB64: 1 | CC64: 1 | CD64: 1 | CE64: 1 | CF64: 1 | CG64: 1 | CH64: 1 | CI64: 1 | CJ64: 1 | CK64: 1 | CL64: 1 | CM64: 1 | CN64: 1 | CO64: 1 | CP64: 1 | CQ64: 1 | CR64: 1 | CS64: 1 | CT64: 1 | CU64: 1 | CV64: 1 | CW64: 1 | CX64: 1 | CY64: 1 | CZ64: 1 | DA64: 1 | DB64: 1 | DC64: 1 | DD64: 1 | DE64: 1 | DF64: 1 | DG64: 1 | DH64: 1 | DI64: 1 | DJ64: 1 | DK64: 1 | DL64: 1 | DM64: 1 | DN64: 1 | DO64: 1 | DP64: 1 | DQ64: 1 | DR64: 1 | DS64: 1 | DT64: 1 | DU64: 1 | DV64: 1 | DW64: 1 | DX64: 1 | DY64: 1 | DZ64: 1 | EA64: 1 | EB64: 1 | EC64: 1 | ED64: 1 | EE64: 1 | EF64: 1 | EG64: 1 | EH64: 1 | EI64: 1 | EJ64: 1 | EK64: 1 | EL64: 1 | EM64: 1 | EN64: 1 | EO64: 1 | EP64: 1 | EQ64: 1 | ER64: 1 | ES64: 1 | ET64: 1 | EU64: 1 | EV64: 1 | EW64: 1 | EX64: 1 | EY64: 1 | EZ64: 1 | FA64: 1 | FB64: 1 | FC64: 0 | FD64: 0 | FE64: 0 | FF64: 0 | FG64: 0 | FH64: 0 | FI64: 0 | FJ64: 0 | FK64: 0 | FL64: 0 | FM64: 0 | FN64: 0 | FO64: 0 | FP64: 0 | FQ64: 0 | FR64: 0 | FS64: 0 | FT64: 0 | FU64: 0 | FV64: 0 | FW64: 0 | FX64: 0 | FY64: 0 | FZ64: 0 | GA64: 0
C66: Income/losses/ITC split | F66: Pre-flip | G66: Post-flip
C67: Tax Equity partner | F67: ='Inputs - Financing'!E17 -> 0.99 | G67: ='Inputs - Financing'!F17 -> 0.05 | K67: =$F67*K$63+$G67*K$64 -> 0.99 | L67: =$F67*L$63+$G67*L$64 -> 0.99 | M67: 0.99 | N67: 0.99 | O67: 0.99 | P67: 0.99 | Q67: 0.99 | R67: 0.99 | S67: 0.99 | T67: 0.99 | U67: 0.99 | V67: 0.99 | W67: 0.99 | X67: 0.99 | Y67: 0.99 | Z67: 0.99 | AA67: 0.99 | AB67: 0.99 | AC67: 0.99 | AD67: 0.99 | AE67: 0.99 | AF67: 0.99 | AG67: 0.99 | AH67: 0.99 | AI67: 0.99 | AJ67: 0.99 | AK67: 0.99 | AL67: 0.99 | AM67: 0.05 | AN67: 0.05 | AO67: 0.05 | AP67: 0.05 | AQ67: 0.05 | AR67: 0.05 | AS67: 0.05 | AT67: 0.05 | AU67: 0.05 | AV67: 0.05 | AW67: 0.05 | AX67: 0.05 | AY67: 0.05 | AZ67: 0.05 | BA67: 0.05 | BB67: 0.05 | BC67: 0.05 | BD67: 0.05 | BE67: 0.05 | BF67: 0.05 | BG67: 0.05 | BH67: 0.05 | BI67: 0.05 | BJ67: 0.05 | BK67: 0.05 | BL67: 0.05 | BM67: 0.05 | BN67: 0.05 | BO67: 0.05 | BP67: 0.05 | BQ67: 0.05 | BR67: 0.05 | BS67: 0.05 | BT67: 0.05 | BU67: 0.05 | BV67: 0.05 | BW67: 0.05 | BX67: =$F67*BX$63+$G67*BX$64 -> 0.05 | BY67: 0.05 | BZ67: 0.05 | CA67: 0.05 | CB67: 0.05 | CC67: 0.05 | CD67: 0.05 | CE67: 0.05 | CF67: 0.05 | CG67: 0.05 | CH67: 0.05 | CI67: 0.05 | CJ67: 0.05 | CK67: 0.05 | CL67: 0.05 | CM67: 0.05 | CN67: 0.05 | CO67: 0.05 | CP67: 0.05 | CQ67: 0.05 | CR67: 0.05 | CS67: 0.05 | CT67: 0.05 | CU67: 0.05 | CV67: 0.05 | CW67: 0.05 | CX67: 0.05 | CY67: 0.05 | CZ67: 0.05 | DA67: 0.05 | DB67: 0.05 | DC67: 0.05 | DD67: 0.05 | DE67: 0.05 | DF67: 0.05 | DG67: 0.05 | DH67: 0.05 | DI67: 0.05 | DJ67: 0.05 | DK67: 0.05 | DL67: 0.05 | DM67: 0.05 | DN67: 0.05 | DO67: 0.05 | DP67: 0.05 | DQ67: 0.05 | DR67: 0.05 | DS67: 0.05 | DT67: 0.05 | DU67: 0.05 | DV67: 0.05 | DW67: 0.05 | DX67: 0.05 | DY67: 0.05 | DZ67: 0.05 | EA67: 0.05 | EB67: 0.05 | EC67: 0.05 | ED67: 0.05 | EE67: 0.05 | EF67: 0.05 | EG67: 0.05 | EH67: 0.05 | EI67: 0.05 | EJ67: =$F67*EJ$63+$G67*EJ$64 -> 0.05 | EK67: 0.05 | EL67: 0.05 | EM67: 0.05 | EN67: 0.05 | EO67: 0.05 | EP67: 0.05 | EQ67: 0.05 | ER67: 0.05 | ES67: 0.05 | ET67: 0.05 | EU67: 0.05 | EV67: 0.05 | EW67: 0.05 | EX67: 0.05 | EY67: 0.05 | EZ67: 0.05 | FA67: 0.05 | FB67: 0.05 | FC67: 0 | FD67: 0 | FE67: 0 | FF67: 0 | FG67: 0 | FH67: 0 | FI67: 0 | FJ67: 0 | FK67: 0 | FL67: 0 | FM67: 0 | FN67: 0 | FO67: 0 | FP67: 0 | FQ67: 0 | FR67: 0 | FS67: 0 | FT67: 0 | FU67: 0 | FV67: 0 | FW67: 0 | FX67: 0 | FY67: 0 | FZ67: 0 | GA67: 0
C68: Sponsor partner | F68: ='Inputs - Financing'!E18 -> 0.01 | G68: ='Inputs - Financing'!F18 -> 0.95 | K68: =$F68*K$63+$G68*K$64 -> 0.01 | L68: 0.01 | M68: 0.01 | N68: 0.01 | O68: 0.01 | P68: 0.01 | Q68: 0.01 | R68: 0.01 | S68: 0.01 | T68: 0.01 | U68: 0.01 | V68: 0.01 | W68: 0.01 | X68: 0.01 | Y68: 0.01 | Z68: 0.01 | AA68: 0.01 | AB68: 0.01 | AC68: 0.01 | AD68: 0.01 | AE68: 0.01 | AF68: 0.01 | AG68: 0.01 | AH68: 0.01 | AI68: 0.01 | AJ68: 0.01 | AK68: 0.01 | AL68: 0.01 | AM68: 0.95 | AN68: 0.95 | AO68: 0.95 | AP68: 0.95 | AQ68: 0.95 | AR68: 0.95 | AS68: 0.95 | AT68: 0.95 | AU68: 0.95 | AV68: 0.95 | AW68: 0.95 | AX68: 0.95 | AY68: 0.95 | AZ68: 0.95 | BA68: 0.95 | BB68: 0.95 | BC68: 0.95 | BD68: 0.95 | BE68: 0.95 | BF68: 0.95 | BG68: 0.95 | BH68: 0.95 | BI68: 0.95 | BJ68: 0.95 | BK68: 0.95 | BL68: 0.95 | BM68: 0.95 | BN68: 0.95 | BO68: 0.95 | BP68: 0.95 | BQ68: 0.95 | BR68: 0.95 | BS68: 0.95 | BT68: 0.95 | BU68: 0.95 | BV68: 0.95 | BW68: 0.95 | BX68: 0.95 | BY68: 0.95 | BZ68: 0.95 | CA68: 0.95 | CB68: 0.95 | CC68: 0.95 | CD68: 0.95 | CE68: 0.95 | CF68: 0.95 | CG68: 0.95 | CH68: 0.95 | CI68: 0.95 | CJ68: 0.95 | CK68: 0.95 | CL68: 0.95 | CM68: 0.95 | CN68: 0.95 | CO68: 0.95 | CP68: 0.95 | CQ68: 0.95 | CR68: 0.95 | CS68: 0.95 | CT68: 0.95 | CU68: 0.95 | CV68: 0.95 | CW68: 0.95 | CX68: 0.95 | CY68: 0.95 | CZ68: 0.95 | DA68: 0.95 | DB68: 0.95 | DC68: 0.95 | DD68: 0.95 | DE68: 0.95 | DF68: 0.95 | DG68: 0.95 | DH68: 0.95 | DI68: 0.95 | DJ68: 0.95 | DK68: 0.95 | DL68: 0.95 | DM68: 0.95 | DN68: 0.95 | DO68: 0.95 | DP68: 0.95 | DQ68: 0.95 | DR68: 0.95 | DS68: 0.95 | DT68: 0.95 | DU68: 0.95 | DV68: 0.95 | DW68: 0.95 | DX68: 0.95 | DY68: 0.95 | DZ68: 0.95 | EA68: 0.95 | EB68: 0.95 | EC68: 0.95 | ED68: 0.95 | EE68: 0.95 | EF68: 0.95 | EG68: 0.95 | EH68: 0.95 | EI68: 0.95 | EJ68: 0.95 | EK68: 0.95 | EL68: 0.95 | EM68: 0.95 | EN68: 0.95 | EO68: 0.95 | EP68: 0.95 | EQ68: 0.95 | ER68: 0.95 | ES68: 0.95 | ET68: 0.95 | EU68: 0.95 | EV68: 0.95 | EW68: 0.95 | EX68: 0.95 | EY68: 0.95 | EZ68: 0.95 | FA68: 0.95 | FB68: 0.95 | FC68: 0 | FD68: 0 | FE68: 0 | FF68: 0 | FG68: 0 | FH68: 0 | FI68: 0 | FJ68: 0 | FK68: 0 | FL68: 0 | FM68: 0 | FN68: 0 | FO68: 0 | FP68: 0 | FQ68: 0 | FR68: 0 | FS68: 0 | FT68: 0 | FU68: 0 | FV68: 0 | FW68: 0 | FX68: 0 | FY68: 0 | FZ68: 0 | GA68: 0
C69: Total | K69: =SUM(K67:K68) -> 1 | L69: =SUM(L67:L68) -> 1 | M69: 1 | N69: 1 | O69: 1 | P69: 1 | Q69: 1 | R69: 1 | S69: 1 | T69: 1 | U69: 1 | V69: 1 | W69: 1 | X69: 1 | Y69: 1 | Z69: 1 | AA69: 1 | AB69: 1 | AC69: 1 | AD69: 1 | AE69: 1 | AF69: 1 | AG69: 1 | AH69: 1 | AI69: 1 | AJ69: 1 | AK69: 1 | AL69: 1 | AM69: 1 | AN69: 1 | AO69: 1 | AP69: 1 | AQ69: 1 | AR69: 1 | AS69: 1 | AT69: 1 | AU69: 1 | AV69: 1 | AW69: 1 | AX69: 1 | AY69: 1 | AZ69: 1 | BA69: 1 | BB69: 1 | BC69: 1 | BD69: 1 | BE69: 1 | BF69: 1 | BG69: 1 | BH69: 1 | BI69: 1 | BJ69: 1 | BK69: 1 | BL69: 1 | BM69: 1 | BN69: 1 | BO69: 1 | BP69: 1 | BQ69: 1 | BR69: 1 | BS69: 1 | BT69: 1 | BU69: 1 | BV69: 1 | BW69: 1 | BX69: =SUM(BX67:BX68) -> 1 | BY69: 1 | BZ69: 1 | CA69: 1 | CB69: 1 | CC69: 1 | CD69: 1 | CE69: 1 | CF69: 1 | CG69: 1 | CH69: 1 | CI69: 1 | CJ69: 1 | CK69: 1 | CL69: 1 | CM69: 1 | CN69: 1 | CO69: 1 | CP69: 1 | CQ69: 1 | CR69: 1 | CS69: 1 | CT69: 1 | CU69: 1 | CV69: 1 | CW69: 1 | CX69: 1 | CY69: 1 | CZ69: 1 | DA69: 1 | DB69: 1 | DC69: 1 | DD69: 1 | DE69: 1 | DF69: 1 | DG69: 1 | DH69: 1 | DI69: 1 | DJ69: 1 | DK69: 1 | DL69: 1 | DM69: 1 | DN69: 1 | DO69: 1 | DP69: 1 | DQ69: 1 | DR69: 1 | DS69: 1 | DT69: 1 | DU69: 1 | DV69: 1 | DW69: 1 | DX69: 1 | DY69: 1 | DZ69: 1 | EA69: 1 | EB69: 1 | EC69: 1 | ED69: 1 | EE69: 1 | EF69: 1 | EG69: 1 | EH69: 1 | EI69: 1 | EJ69: =SUM(EJ67:EJ68) -> 1 | EK69: 1 | EL69: 1 | EM69: 1 | EN69: 1 | EO69: 1 | EP69: 1 | EQ69: 1 | ER69: 1 | ES69: 1 | ET69: 1 | EU69: 1 | EV69: 1 | EW69: 1 | EX69: 1 | EY69: 1 | EZ69: 1 | FA69: 1 | FB69: 1 | FC69: 0 | FD69: 0 | FE69: 0 | FF69: 0 | FG69: 0 | FH69: 0 | FI69: 0 | FJ69: 0 | FK69: 0 | FL69: 0 | FM69: 0 | FN69: 0 | FO69: 0 | FP69: 0 | FQ69: 0 | FR69: 0 | FS69: 0 | FT69: 0 | FU69: 0 | FV69: 0 | FW69: 0 | FX69: 0 | FY69: 0 | FZ69: 0 | GA69: 0
C72: Preferred yield for Tax Equity partner
C73: Tax Equity partner's preferred yield - pre-flip | F73: Pref return | G73: ='Inputs - Financing'!E10 -> 0 | K73: =((1+$G73) ^ (K$10/360)-1) * MAX(K$4:K$6) -> 0 | L73: =((1+$G73) ^ (L$10/360)-1) * MAX(L$4:L$6) -> 0 | M73: 0 | N73: 0 | O73: 0 | P73: 0 | Q73: 0 | R73: 0 | S73: 0 | T73: 0 | U73: 0 | V73: 0 | W73: 0 | X73: 0 | Y73: 0 | Z73: 0 | AA73: 0 | AB73: 0 | AC73: 0 | AD73: 0 | AE73: 0 | AF73: 0 | AG73: 0 | AH73: 0 | AI73: 0 | AJ73: 0 | AK73: 0 | AL73: 0 | AM73: 0 | AN73: 0 | AO73: 0 | AP73: 0 | AQ73: 0 | AR73: 0 | AS73: 0 | AT73: 0 | AU73: 0 | AV73: 0 | AW73: 0 | AX73: 0 | AY73: 0 | AZ73: 0 | BA73: 0 | BB73: 0 | BC73: 0 | BD73: 0 | BE73: 0 | BF73: 0 | BG73: 0 | BH73: 0 | BI73: 0 | BJ73: 0 | BK73: 0 | BL73: 0 | BM73: 0 | BN73: 0 | BO73: 0 | BP73: 0 | BQ73: 0 | BR73: 0 | BS73: 0 | BT73: 0 | BU73: 0 | BV73: 0 | BW73: 0 | BX73: =((1+$G73) ^ (BX$10/360)-1) * MAX(BX$4:BX$6) -> 0 | BY73: 0 | BZ73: 0 | CA73: 0 | CB73: 0 | CC73: 0 | CD73: 0 | CE73: 0 | CF73: 0 | CG73: 0 | CH73: 0 | CI73: 0 | CJ73: 0 | CK73: 0 | CL73: 0 | CM73: 0 | CN73: 0 | CO73: 0 | CP73: 0 | CQ73: 0 | CR73: 0 | CS73: 0 | CT73: 0 | CU73: 0 | CV73: 0 | CW73: 0 | CX73: 0 | CY73: 0 | CZ73: 0 | DA73: 0 | DB73: 0 | DC73: 0 | DD73: 0 | DE73: 0 | DF73: 0 | DG73: 0 | DH73: 0 | DI73: 0 | DJ73: 0 | DK73: 0 | DL73: 0 | DM73: 0 | DN73: 0 | DO73: 0 | DP73: 0 | DQ73: 0 | DR73: 0 | DS73: 0 | DT73: 0 | DU73: 0 | DV73: 0 | DW73: 0 | DX73: 0 | DY73: 0 | DZ73: 0 | EA73: 0 | EB73: 0 | EC73: 0 | ED73: 0 | EE73: 0 | EF73: 0 | EG73: 0 | EH73: 0 | EI73: 0 | EJ73: =((1+$G73) ^ (EJ$10/360)-1) * MAX(EJ$4:EJ$6) -> 0 | EK73: 0 | EL73: 0 | EM73: 0 | EN73: 0 | EO73: 0 | EP73: 0 | EQ73: 0 | ER73: 0 | ES73: 0 | ET73: 0 | EU73: 0 | EV73: 0 | EW73: 0 | EX73: 0 | EY73: 0 | EZ73: 0 | FA73: 0 | FB73: 0 | FC73: 0 | FD73: 0 | FE73: 0 | FF73: 0 | FG73: 0 | FH73: 0 | FI73: 0 | FJ73: 0 | FK73: 0 | FL73: 0 | FM73: 0 | FN73: 0 | FO73: 0 | FP73: 0 | FQ73: 0 | FR73: 0 | FS73: 0 | FT73: 0 | FU73: 0 | FV73: 0 | FW73: 0 | FX73: 0 | FY73: 0 | FZ73: 0 | GA73: 0
C74: Tax Equity partner's preferred yield - post-flip | F74: EBITDA | G74: ='Inputs - Financing'!F11 -> 0.05 | K74: =((1+$G74) ^ (K$10/360)-1) * MAX(K$4:K$6) -> 0.01240943519 | L74: 0.01240943519 | M74: 0.01254665456 | N74: 0.01254665456 | O74: 0.01227223443 | P74: 0.01240943519 | Q74: 0.01254665456 | R74: 0.01254665456 | S74: 0.01227223443 | T74: 0.01240943519 | U74: 0.01254665456 | V74: 0.01254665456 | W74: 0.01227223443 | X74: 0.01240943519 | Y74: 0.01254665456 | Z74: 0.01254665456 | AA74: 0.01240943519 | AB74: 0.01240943519 | AC74: 0.01254665456 | AD74: 0.01254665456 | AE74: 0.01227223443 | AF74: 0.01240943519 | AG74: 0.01254665456 | AH74: 0.01254665456 | AI74: 0.01227223443 | AJ74: 0.01240943519 | AK74: 0.01254665456 | AL74: 0.01254665456 | AM74: 0.01227223443 | AN74: 0.01240943519 | AO74: 0.01254665456 | AP74: 0.01254665456 | AQ74: 0.01240943519 | AR74: 0.01240943519 | AS74: 0.01254665456 | AT74: 0.01254665456 | AU74: 0.01227223443 | AV74: 0.01240943519 | AW74: 0.01254665456 | AX74: 0.01254665456 | AY74: 0.01227223443 | AZ74: 0.01240943519 | BA74: 0.01254665456 | BB74: 0.01254665456 | BC74: 0.01227223443 | BD74: 0.01240943519 | BE74: 0.01254665456 | BF74: 0.01254665456 | BG74: 0.01240943519 | BH74: 0.01240943519 | BI74: 0.01254665456 | BJ74: 0.01254665456 | BK74: 0.01227223443 | BL74: 0.01240943519 | BM74: 0.01254665456 | BN74: 0.01254665456 | BO74: 0.01227223443 | BP74: 0.01240943519 | BQ74: 0.01254665456 | BR74: 0.01254665456 | BS74: 0.01227223443 | BT74: 0.01240943519 | BU74: 0.01254665456 | BV74: 0.01254665456 | BW74: 0.01240943519 | BX74: 0.01240943519 | BY74: 0.01254665456 | BZ74: 0.01254665456 | CA74: 0.01227223443 | CB74: 0.01240943519 | CC74: 0.01254665456 | CD74: 0.01254665456 | CE74: 0.01227223443 | CF74: 0.01240943519 | CG74: 0.01254665456 | CH74: 0.01254665456 | CI74: 0.01227223443 | CJ74: 0.01240943519 | CK74: 0.01254665456 | CL74: 0.01254665456 | CM74: 0.01240943519 | CN74: 0.01240943519 | CO74: 0.01254665456 | CP74: 0.01254665456 | CQ74: 0.01227223443 | CR74: 0.01240943519 | CS74: 0.01254665456 | CT74: 0.01254665456 | CU74: 0.01227223443 | CV74: 0.01240943519 | CW74: 0.01254665456 | CX74: 0.01254665456 | CY74: 0.01227223443 | CZ74: 0.01240943519 | DA74: 0.01254665456 | DB74: 0.01254665456 | DC74: 0.01240943519 | DD74: 0.01240943519 | DE74: 0.01254665456 | DF74: 0.01254665456 | DG74: 0.01227223443 | DH74: 0.01240943519 | DI74: 0.01254665456 | DJ74: 0.01254665456 | DK74: 0.01227223443 | DL74: 0.01240943519 | DM74: 0.01254665456 | DN74: 0.01254665456 | DO74: 0.01227223443 | DP74: 0.01240943519 | DQ74: 0.01254665456 | DR74: 0.01254665456 | DS74: 0.01240943519 | DT74: 0.01240943519 | DU74: 0.01254665456 | DV74: 0.01254665456 | DW74: 0.01227223443 | DX74: 0.01240943519 | DY74: 0.01254665456 | DZ74: 0.01254665456 | EA74: 0.01227223443 | EB74: 0.01240943519 | EC74: 0.01254665456 | ED74: 0.01254665456 | EE74: 0.01227223443 | EF74: 0.01240943519 | EG74: 0.01254665456 | EH74: 0.01254665456 | EI74: 0.01240943519 | EJ74: 0.01240943519 | EK74: 0.01254665456 | EL74: 0.01254665456 | EM74: 0.01227223443 | EN74: 0.01240943519 | EO74: 0.01254665456 | EP74: 0.01254665456 | EQ74: 0.01227223443 | ER74: 0.01240943519 | ES74: 0.01254665456 | ET74: 0.01254665456 | EU74: 0.01227223443 | EV74: 0.01240943519 | EW74: 0.01254665456 | EX74: 0.01254665456 | EY74: 0.01240943519 | EZ74: 0.01240943519 | FA74: 0.01254665456 | FB74: 0.01254665456 | FC74: 0 | FD74: 0 | FE74: 0 | FF74: 0 | FG74: 0 | FH74: 0 | FI74: 0 | FJ74: 0 | FK74: 0 | FL74: 0 | FM74: 0 | FN74: 0 | FO74: 0 | FP74: 0 | FQ74: 0 | FR74: 0 | FS74: 0 | FT74: 0 | FU74: 0 | FV74: 0 | FW74: 0 | FX74: 0 | FY74: 0 | FZ74: 0 | GA74: 0

Sheet Partnership Cash Flow
A1: Partnership Cash Flow
C2: Start of Period | I2: =Timing!K2 -> 2020-01-01 | J2: =Timing!L2 -> 2020-04-01 | K2: =Timing!M2 -> 2020-07-01 | L2: =Timing!N2 -> 2020-10-01 | M2: =Timing!O2 -> 2021-01-01 | N2: =Timing!P2 -> 2021-04-01 | O2: =Timing!Q2 -> 2021-07-01 | P2: =Timing!R2 -> 2021-10-01 | Q2: =Timing!S2 -> 2022-01-01 | R2: =Timing!T2 -> 2022-04-01 | S2: =Timing!U2 -> 2022-07-01 | T2: =Timing!V2 -> 2022-10-01 | U2: =Timing!W2 -> 2023-01-01 | V2: =Timing!X2 -> 2023-04-01 | W2: =Timing!Y2 -> 2023-07-01 | X2: =Timing!Z2 -> 2023-10-01 | Y2: =Timing!AA2 -> 2024-01-01 | Z2: =Timing!AB2 -> 2024-04-01 | AA2: =Timing!AC2 -> 2024-07-01 | AB2: =Timing!AD2 -> 2024-10-01 | AC2: =Timing!AE2 -> 2025-01-01 | AD2: =Timing!AF2 -> 2025-04-01 | AE2: =Timing!AG2 -> 2025-07-01 | AF2: =Timing!AH2 -> 2025-10-01 | AG2: =Timing!AI2 -> 2026-01-01 | AH2: =Timing!AJ2 -> 2026-04-01 | AI2: =Timing!AK2 -> 2026-07-01 | AJ2: =Timing!AL2 -> 2026-10-01 | AK2: =Timing!AM2 -> 2027-01-01 | AL2: =Timing!AN2 -> 2027-04-01 | AM2: =Timing!AO2 -> 2027-07-01 | AN2: =Timing!AP2 -> 2027-10-01 | AO2: =Timing!AQ2 -> 2028-01-01 | AP2: =Timing!AR2 -> 2028-04-01 | AQ2: =Timing!AS2 -> 2028-07-01 | AR2: =Timing!AT2 -> 2028-10-01 | AS2: =Timing!AU2 -> 2029-01-01 | AT2: =Timing!AV2 -> 2029-04-01 | AU2: =Timing!AW2 -> 2029-07-01 | AV2: =Timing!AX2 -> 2029-10-01 | AW2: =Timing!AY2 -> 2030-01-01 | AX2: =Timing!AZ2 -> 2030-04-01 | AY2: =Timing!BA2 -> 2030-07-01 | AZ2: =Timing!BB2 -> 2030-10-01 | BA2: =Timing!BC2 -> 2031-01-01 | BB2: =Timing!BD2 -> 2031-04-01 | BC2: =Timing!BE2 -> 2031-07-01 | BD2: =Timing!BF2 -> 2031-10-01 | BE2: =Timing!BG2 -> 2032-01-01 | BF2: =Timing!BH2 -> 2032-04-01 | BG2: =Timing!BI2 -> 2032-07-01 | BH2: =Timing!BJ2 -> 2032-10-01 | BI2: =Timing!BK2 -> 2033-01-01 | BJ2: =Timing!BL2 -> 2033-04-01 | BK2: =Timing!BM2 -> 2033-07-01 | BL2: =Timing!BN2 -> 2033-10-01 | BM2: =Timing!BO2 -> 2034-01-01 | BN2: =Timing!BP2 -> 2034-04-01 | BO2: =Timing!BQ2 -> 2034-07-01 | BP2: =Timing!BR2 -> 2034-10-01 | BQ2: =Timing!BS2 -> 2035-01-01 | BR2: =Timing!BT2 -> 2035-04-01 | BS2: =Timing!BU2 -> 2035-07-01 | BT2: =Timing!BV2 -> 2035-10-01 | BU2: =Timing!BW2 -> 2036-01-01 | BV2: =Timing!BX2 -> 2036-04-01 | BW2: =Timing!BY2 -> 2036-07-01 | BX2: =Timing!BZ2 -> 2036-10-01 | BY2: =Timing!CA2 -> 2037-01-01 | BZ2: =Timing!CB2 -> 2037-04-01 | CA2: =Timing!CC2 -> 2037-07-01 | CB2: =Timing!CD2 -> 2037-10-01 | CC2: =Timing!CE2 -> 2038-01-01 | CD2: =Timing!CF2 -> 2038-04-01 | CE2: =Timing!CG2 -> 2038-07-01 | CF2: =Timing!CH2 -> 2038-10-01 | CG2: =Timing!CI2 -> 2039-01-01 | CH2: =Timing!CJ2 -> 2039-04-01 | CI2: =Timing!CK2 -> 2039-07-01 | CJ2: =Timing!CL2 -> 2039-10-01 | CK2: =Timing!CM2 -> 2040-01-01 | CL2: =Timing!CN2 -> 2040-04-01 | CM2: =Timing!CO2 -> 2040-07-01 | CN2: =Timing!CP2 -> 2040-10-01 | CO2: =Timing!CQ2 -> 2041-01-01 | CP2: =Timing!CR2 -> 2041-04-01 | CQ2: =Timing!CS2 -> 2041-07-01 | CR2: =Timing!CT2 -> 2041-10-01 | CS2: =Timing!CU2 -> 2042-01-01 | CT2: =Timing!CV2 -> 2042-04-01 | CU2: =Timing!CW2 -> 2042-07-01 | CV2: =Timing!CX2 -> 2042-10-01 | CW2: =Timing!CY2 -> 2043-01-01 | CX2: =Timing!CZ2 -> 2043-04-01 | CY2: =Timing!DA2 -> 2043-07-01 | CZ2: =Timing!DB2 -> 2043-10-01 | DA2: =Timing!DC2 -> 2044-01-01 | DB2: =Timing!DD2 -> 2044-04-01 | DC2: =Timing!DE2 -> 2044-07-01 | DD2: =Timing!DF2 -> 2044-10-01 | DE2: =Timing!DG2 -> 2045-01-01 | DF2: =Timing!DH2 -> 2045-04-01 | DG2: =Timing!DI2 -> 2045-07-01 | DH2: =Timing!DJ2 -> 2045-10-01 | DI2: =Timing!DK2 -> 2046-01-01 | DJ2: =Timing!DL2 -> 2046-04-01 | DK2: =Timing!DM2 -> 2046-07-01 | DL2: =Timing!DN2 -> 2046-10-01 | DM2: =Timing!DO2 -> 2047-01-01 | DN2: =Timing!DP2 -> 2047-04-01 | DO2: =Timing!DQ2 -> 2047-07-01 | DP2: =Timing!DR2 -> 2047-10-01 | DQ2: =Timing!DS2 -> 2048-01-01 | DR2: =Timing!DT2 -> 2048-04-01 | DS2: =Timing!DU2 -> 2048-07-01 | DT2: =Timing!DV2 -> 2048-10-01 | DU2: =Timing!DW2 -> 2049-01-01 | DV2: =Timing!DX2 -> 2049-04-01 | DW2: =Timing!DY2 -> 2049-07-01 | DX2: =Timing!DZ2 -> 2049-10-01 | DY2: =Timing!EA2 -> 2050-01-01 | DZ2: =Timing!EB2 -> 2050-04-01 | EA2: =Timing!EC2 -> 2050-07-01 | EB2: =Timing!ED2 -> 2050-10-01 | EC2: =Timing!EE2 -> 2051-01-01 | ED2: =Timing!EF2 -> 2051-04-01 | EE2: =Timing!EG2 -> 2051-07-01 | EF2: =Timing!EH2 -> 2051-10-01 | EG2: =Timing!EI2 -> 2052-01-01 | EH2: =Timing!EJ2 -> 2052-04-01 | EI2: =Timing!EK2 -> 2052-07-01 | EJ2: =Timing!EL2 -> 2052-10-01 | EK2: =Timing!EM2 -> 2053-01-01 | EL2: =Timing!EN2 -> 2053-04-01 | EM2: =Timing!EO2 -> 2053-07-01 | EN2: =Timing!EP2 -> 2053-10-01 | EO2: =Timing!EQ2 -> 2054-01-01 | EP2: =Timing!ER2 -> 2054-04-01 | EQ2: =Timing!ES2 -> 2054-07-01 | ER2: =Timing!ET2 -> 2054-10-01 | ES2: =Timing!EU2 -> 2055-01-01 | ET2: =Timing!EV2 -> 2055-04-01 | EU2: =Timing!EW2 -> 2055-07-01 | EV2: =Timing!EX2 -> 2055-10-01 | EW2: =Timing!EY2 -> 2056-01-01 | EX2: =Timing!EZ2 -> 2056-04-01 | EY2: =Timing!FA2 -> 2056-07-01 | EZ2: =Timing!FB2 -> 2056-10-01 | FA2: =Timing!FC2 -> 2057-01-01 | FB2: =Timing!FD2 -> 2057-04-01 | FC2: =Timing!FE2 -> 2057-07-01 | FD2: =Timing!FF2 -> 2057-10-01 | FE2: =Timing!FG2 -> 2058-01-01 | FF2: =Timing!FH2 -> 2058-04-01 | FG2: =Timing!FI2 -> 2058-07-01 | FH2: =Timing!FJ2 -> 2058-10-01 | FI2: =Timing!FK2 -> 2059-01-01 | FJ2: =Timing!FL2 -> 2059-04-01 | FK2: =Timing!FM2 -> 2059-07-01 | FL2: =Timing!FN2 -> 2059-10-01 | FM2: =Timing!FO2 -> 2060-01-01 | FN2: =Timing!FP2 -> 2060-04-01 | FO2: =Timing!FQ2 -> 2060-07-01 | FP2: =Timing!FR2 -> 2060-10-01 | FQ2: =Timing!FS2 -> 2061-01-01 | FR2: =Timing!FT2 -> 2061-04-01 | FS2: =Timing!FU2 -> 2061-07-01
C3: End of Period | E3: Start | F3: End | I3: =Timing!K3 -> 2020-03-31 | J3: =Timing!L3 -> 2020-06-30 | K3: =Timing!M3 -> 2020-09-30 | L3: =Timing!N3 -> 2020-12-31 | M3: =Timing!O3 -> 2021-03-31 | N3: =Timing!P3 -> 2021-06-30 | O3: =Timing!Q3 -> 2021-09-30 | P3: =Timing!R3 -> 2021-12-31 | Q3: =Timing!S3 -> 2022-03-31 | R3: =Timing!T3 -> 2022-06-30 | S3: =Timing!U3 -> 2022-09-30 | T3: =Timing!V3 -> 2022-12-31 | U3: =Timing!W3 -> 2023-03-31 | V3: =Timing!X3 -> 2023-06-30 | W3: =Timing!Y3 -> 2023-09-30 | X3: =Timing!Z3 -> 2023-12-31 | Y3: =Timing!AA3 -> 2024-03-31 | Z3: =Timing!AB3 -> 2024-06-30 | AA3: =Timing!AC3 -> 2024-09-30 | AB3: =Timing!AD3 -> 2024-12-31 | AC3: =Timing!AE3 -> 2025-03-31 | AD3: =Timing!AF3 -> 2025-06-30 | AE3: =Timing!AG3 -> 2025-09-30 | AF3: =Timing!AH3 -> 2025-12-31 | AG3: =Timing!AI3 -> 2026-03-31 | AH3: =Timing!AJ3 -> 2026-06-30 | AI3: =Timing!AK3 -> 2026-09-30 | AJ3: =Timing!AL3 -> 2026-12-31 | AK3: =Timing!AM3 -> 2027-03-31 | AL3: =Timing!AN3 -> 2027-06-30 | AM3: =Timing!AO3 -> 2027-09-30 | AN3: =Timing!AP3 -> 2027-12-31 | AO3: =Timing!AQ3 -> 2028-03-31 | AP3: =Timing!AR3 -> 2028-06-30 | AQ3: =Timing!AS3 -> 2028-09-30 | AR3: =Timing!AT3 -> 2028-12-31 | AS3: =Timing!AU3 -> 2029-03-31 | AT3: =Timing!AV3 -> 2029-06-30 | AU3: =Timing!AW3 -> 2029-09-30 | AV3: =Timing!AX3 -> 2029-12-31 | AW3: =Timing!AY3 -> 2030-03-31 | AX3: =Timing!AZ3 -> 2030-06-30 | AY3: =Timing!BA3 -> 2030-09-30 | AZ3: =Timing!BB3 -> 2030-12-31 | BA3: =Timing!BC3 -> 2031-03-31 | BB3: =Timing!BD3 -> 2031-06-30 | BC3: =Timing!BE3 -> 2031-09-30 | BD3: =Timing!BF3 -> 2031-12-31 | BE3: =Timing!BG3 -> 2032-03-31 | BF3: =Timing!BH3 -> 2032-06-30 | BG3: =Timing!BI3 -> 2032-09-30 | BH3: =Timing!BJ3 -> 2032-12-31 | BI3: =Timing!BK3 -> 2033-03-31 | BJ3: =Timing!BL3 -> 2033-06-30 | BK3: =Timing!BM3 -> 2033-09-30 | BL3: =Timing!BN3 -> 2033-12-31 | BM3: =Timing!BO3 -> 2034-03-31 | BN3: =Timing!BP3 -> 2034-06-30 | BO3: =Timing!BQ3 -> 2034-09-30 | BP3: =Timing!BR3 -> 2034-12-31 | BQ3: =Timing!BS3 -> 2035-03-31 | BR3: =Timing!BT3 -> 2035-06-30 | BS3: =Timing!BU3 -> 2035-09-30 | BT3: =Timing!BV3 -> 2035-12-31 | BU3: =Timing!BW3 -> 2036-03-31 | BV3: =Timing!BX3 -> 2036-06-30 | BW3: =Timing!BY3 -> 2036-09-30 | BX3: =Timing!BZ3 -> 2036-12-31 | BY3: =Timing!CA3 -> 2037-03-31 | BZ3: =Timing!CB3 -> 2037-06-30 | CA3: =Timing!CC3 -> 2037-09-30 | CB3: =Timing!CD3 -> 2037-12-31 | CC3: =Timing!CE3 -> 2038-03-31 | CD3: =Timing!CF3 -> 2038-06-30 | CE3: =Timing!CG3 -> 2038-09-30 | CF3: =Timing!CH3 -> 2038-12-31 | CG3: =Timing!CI3 -> 2039-03-31 | CH3: =Timing!CJ3 -> 2039-06-30 | CI3: =Timing!CK3 -> 2039-09-30 | CJ3: =Timing!CL3 -> 2039-12-31 | CK3: =Timing!CM3 -> 2040-03-31 | CL3: =Timing!CN3 -> 2040-06-30 | CM3: =Timing!CO3 -> 2040-09-30 | CN3: =Timing!CP3 -> 2040-12-31 | CO3: =Timing!CQ3 -> 2041-03-31 | CP3: =Timing!CR3 -> 2041-06-30 | CQ3: =Timing!CS3 -> 2041-09-30 | CR3: =Timing!CT3 -> 2041-12-31 | CS3: =Timing!CU3 -> 2042-03-31 | CT3: =Timing!CV3 -> 2042-06-30 | CU3: =Timing!CW3 -> 2042-09-30 | CV3: =Timing!CX3 -> 2042-12-31 | CW3: =Timing!CY3 -> 2043-03-31 | CX3: =Timing!CZ3 -> 2043-06-30 | CY3: =Timing!DA3 -> 2043-09-30 | CZ3: =Timing!DB3 -> 2043-12-31 | DA3: =Timing!DC3 -> 2044-03-31 | DB3: =Timing!DD3 -> 2044-06-30 | DC3: =Timing!DE3 -> 2044-09-30 | DD3: =Timing!DF3 -> 2044-12-31 | DE3: =Timing!DG3 -> 2045-03-31 | DF3: =Timing!DH3 -> 2045-06-30 | DG3: =Timing!DI3 -> 2045-09-30 | DH3: =Timing!DJ3 -> 2045-12-31 | DI3: =Timing!DK3 -> 2046-03-31 | DJ3: =Timing!DL3 -> 2046-06-30 | DK3: =Timing!DM3 -> 2046-09-30 | DL3: =Timing!DN3 -> 2046-12-31 | DM3: =Timing!DO3 -> 2047-03-31 | DN3: =Timing!DP3 -> 2047-06-30 | DO3: =Timing!DQ3 -> 2047-09-30 | DP3: =Timing!DR3 -> 2047-12-31 | DQ3: =Timing!DS3 -> 2048-03-31 | DR3: =Timing!DT3 -> 2048-06-30 | DS3: =Timing!DU3 -> 2048-09-30 | DT3: =Timing!DV3 -> 2048-12-31 | DU3: =Timing!DW3 -> 2049-03-31 | DV3: =Timing!DX3 -> 2049-06-30 | DW3: =Timing!DY3 -> 2049-09-30 | DX3: =Timing!DZ3 -> 2049-12-31 | DY3: =Timing!EA3 -> 2050-03-31 | DZ3: =Timing!EB3 -> 2050-06-30 | EA3: =Timing!EC3 -> 2050-09-30 | EB3: =Timing!ED3 -> 2050-12-31 | EC3: =Timing!EE3 -> 2051-03-31 | ED3: =Timing!EF3 -> 2051-06-30 | EE3: =Timing!EG3 -> 2051-09-30 | EF3: =Timing!EH3 -> 2051-12-31 | EG3: =Timing!EI3 -> 2052-03-31 | EH3: =Timing!EJ3 -> 2052-06-30 | EI3: =Timing!EK3 -> 2052-09-30 | EJ3: =Timing!EL3 -> 2052-12-31 | EK3: =Timing!EM3 -> 2053-03-31 | EL3: =Timing!EN3 -> 2053-06-30 | EM3: =Timing!EO3 -> 2053-09-30 | EN3: =Timing!EP3 -> 2053-12-31 | EO3: =Timing!EQ3 -> 2054-03-31 | EP3: =Timing!ER3 -> 2054-06-30 | EQ3: =Timing!ES3 -> 2054-09-30 | ER3: =Timing!ET3 -> 2054-12-31 | ES3: =Timing!EU3 -> 2055-03-31 | ET3: =Timing!EV3 -> 2055-06-30 | EU3: =Timing!EW3 -> 2055-09-30 | EV3: =Timing!EX3 -> 2055-12-31 | EW3: =Timing!EY3 -> 2056-03-31 | EX3: =Timing!EZ3 -> 2056-06-30 | EY3: =Timing!FA3 -> 2056-09-30 | EZ3: =Timing!FB3 -> 2056-12-31 | FA3: =Timing!FC3 -> 2057-03-31 | FB3: =Timing!FD3 -> 2057-06-30 | FC3: =Timing!FE3 -> 2057-09-30 | FD3: =Timing!FF3 -> 2057-12-31 | FE3: =Timing!FG3 -> 2058-03-31 | FF3: =Timing!FH3 -> 2058-06-30 | FG3: =Timing!FI3 -> 2058-09-30 | FH3: =Timing!FJ3 -> 2058-12-31 | FI3: =Timing!FK3 -> 2059-03-31 | FJ3: =Timing!FL3 -> 2059-06-30 | FK3: =Timing!FM3 -> 2059-09-30 | FL3: =Timing!FN3 -> 2059-12-31 | FM3: =Timing!FO3 -> 2060-03-31 | FN3: =Timing!FP3 -> 2060-06-30 | FO3: =Timing!FQ3 -> 2060-09-30 | FP3: =Timing!FR3 -> 2060-12-31 | FQ3: =Timing!FS3 -> 2061-03-31 | FR3: =Timing!FT3 -> 2061-06-30 | FS3: =Timing!FU3 -> 2061-09-30
C4: Development Phase | E4: =Timing!F4 -> 2020-01-01 | F4: =Timing!G4 -> 2020-12-31 | I4: =Timing!K4 -> 1 | J4: =Timing!L4 -> 1 | K4: =Timing!M4 -> 1 | L4: =Timing!N4 -> 1 | M4: =Timing!O4 -> 0 | N4: =Timing!P4 -> 0 | O4: =Timing!Q4 -> 0 | P4: =Timing!R4 -> 0 | Q4: =Timing!S4 -> 0 | R4: =Timing!T4 -> 0 | S4: =Timing!U4 -> 0 | T4: =Timing!V4 -> 0 | U4: =Timing!W4 -> 0 | V4: =Timing!X4 -> 0 | W4: =Timing!Y4 -> 0 | X4: =Timing!Z4 -> 0 | Y4: =Timing!AA4 -> 0 | Z4: =Timing!AB4 -> 0 | AA4: =Timing!AC4 -> 0 | AB4: =Timing!AD4 -> 0 | AC4: =Timing!AE4 -> 0 | AD4: =Timing!AF4 -> 0 | AE4: =Timing!AG4 -> 0 | AF4: =Timing!AH4 -> 0 | AG4: =Timing!AI4 -> 0 | AH4: =Timing!AJ4 -> 0 | AI4: =Timing!AK4 -> 0 | AJ4: =Timing!AL4 -> 0 | AK4: =Timing!AM4 -> 0 | AL4: =Timing!AN4 -> 0 | AM4: =Timing!AO4 -> 0 | AN4: =Timing!AP4 -> 0 | AO4: =Timing!AQ4 -> 0 | AP4: =Timing!AR4 -> 0 | AQ4: =Timing!AS4 -> 0 | AR4: =Timing!AT4 -> 0 | AS4: =Timing!AU4 -> 0 | AT4: =Timing!AV4 -> 0 | AU4: =Timing!AW4 -> 0 | AV4: =Timing!AX4 -> 0 | AW4: =Timing!AY4 -> 0 | AX4: =Timing!AZ4 -> 0 | AY4: =Timing!BA4 -> 0 | AZ4: =Timing!BB4 -> 0 | BA4: =Timing!BC4 -> 0 | BB4: =Timing!BD4 -> 0 | BC4: =Timing!BE4 -> 0 | BD4: =Timing!BF4 -> 0 | BE4: =Timing!BG4 -> 0 | BF4: =Timing!BH4 -> 0 | BG4: =Timing!BI4 -> 0 | BH4: =Timing!BJ4 -> 0 | BI4: =Timing!BK4 -> 0 | BJ4: =Timing!BL4 -> 0 | BK4: =Timing!BM4 -> 0 | BL4: =Timing!BN4 -> 0 | BM4: =Timing!BO4 -> 0 | BN4: =Timing!BP4 -> 0 | BO4: =Timing!BQ4 -> 0 | BP4: =Timing!BR4 -> 0 | BQ4: =Timing!BS4 -> 0 | BR4: =Timing!BT4 -> 0 | BS4: =Timing!BU4 -> 0 | BT4: =Timing!BV4 -> 0 | BU4: =Timing!BW4 -> 0 | BV4: =Timing!BX4 -> 0 | BW4: =Timing!BY4 -> 0 | BX4: =Timing!BZ4 -> 0 | BY4: =Timing!CA4 -> 0 | BZ4: =Timing!CB4 -> 0 | CA4: =Timing!CC4 -> 0 | CB4: =Timing!CD4 -> 0 | CC4: =Timing!CE4 -> 0 | CD4: =Timing!CF4 -> 0 | CE4: =Timing!CG4 -> 0 | CF4: =Timing!CH4 -> 0 | CG4: =Timing!CI4 -> 0 | CH4: =Timing!CJ4 -> 0 | CI4: =Timing!CK4 -> 0 | CJ4: =Timing!CL4 -> 0 | CK4: =Timing!CM4 -> 0 | CL4: =Timing!CN4 -> 0 | CM4: =Timing!CO4 -> 0 | CN4: =Timing!CP4 -> 0 | CO4: =Timing!CQ4 -> 0 | CP4: =Timing!CR4 -> 0 | CQ4: =Timing!CS4 -> 0 | CR4: =Timing!CT4 -> 0 | CS4: =Timing!CU4 -> 0 | CT4: =Timing!CV4 -> 0 | CU4: =Timing!CW4 -> 0 | CV4: =Timing!CX4 -> 0 | CW4: =Timing!CY4 -> 0 | CX4: =Timing!CZ4 -> 0 | CY4: =Timing!DA4 -> 0 | CZ4: =Timing!DB4 -> 0 | DA4: =Timing!DC4 -> 0 | DB4: =Timing!DD4 -> 0 | DC4: =Timing!DE4 -> 0 | DD4: =Timing!DF4 -> 0 | DE4: =Timing!DG4 -> 0 | DF4: =Timing!DH4 -> 0 | DG4: =Timing!DI4 -> 0 | DH4: =Timing!DJ4 -> 0 | DI4: =Timing!DK4 -> 0 | DJ4: =Timing!DL4 -> 0 | DK4: =Timing!DM4 -> 0 | DL4: =Timing!DN4 -> 0 | DM4: =Timing!DO4 -> 0 | DN4: =Timing!DP4 -> 0 | DO4: =Timing!DQ4 -> 0 | DP4: =Timing!DR4 -> 0 | DQ4: =Timing!DS4 -> 0 | DR4: =Timing!DT4 -> 0 | DS4: =Timing!DU4 -> 0 | DT4: =Timing!DV4 -> 0 | DU4: =Timing!DW4 -> 0 | DV4: =Timing!DX4 -> 0 | DW4: =Timing!DY4 -> 0 | DX4: =Timing!DZ4 -> 0 | DY4: =Timing!EA4 -> 0 | DZ4: =Timing!EB4 -> 0 | EA4: =Timing!EC4 -> 0 | EB4: =Timing!ED4 -> 0 | EC4: =Timing!EE4 -> 0 | ED4: =Timing!EF4 -> 0 | EE4: =Timing!EG4 -> 0 | EF4: =Timing!EH4 -> 0 | EG4: =Timing!EI4 -> 0 | EH4: =Timing!EJ4 -> 0 | EI4: =Timing!EK4 -> 0 | EJ4: =Timing!EL4 -> 0 | EK4: =Timing!EM4 -> 0 | EL4: =Timing!EN4 -> 0 | EM4: =Timing!EO4 -> 0 | EN4: =Timing!EP4 -> 0 | EO4: =Timing!EQ4 -> 0 | EP4: =Timing!ER4 -> 0 | EQ4: =Timing!ES4 -> 0 | ER4: =Timing!ET4 -> 0 | ES4: =Timing!EU4 -> 0 | ET4: =Timing!EV4 -> 0 | EU4: =Timing!EW4 -> 0 | EV4: =Timing!EX4 -> 0 | EW4: =Timing!EY4 -> 0 | EX4: =Timing!EZ4 -> 0 | EY4: =Timing!FA4 -> 0 | EZ4: =Timing!FB4 -> 0 | FA4: =Timing!FC4 -> 0 | FB4: =Timing!FD4 -> 0 | FC4: =Timing!FE4 -> 0 | FD4: =Timing!FF4 -> 0 | FE4: =Timing!FG4 -> 0 | FF4: =Timing!FH4 -> 0 | FG4: =Timing!FI4 -> 0 | FH4: =Timing!FJ4 -> 0 | FI4: =Timing!FK4 -> 0 | FJ4: =Timing!FL4 -> 0 | FK4: =Timing!FM4 -> 0 | FL4: =Timing!FN4 -> 0 | FM4: =Timing!FO4 -> 0 | FN4: =Timing!FP4 -> 0 | FO4: =Timing!FQ4 -> 0 | FP4: =Timing!FR4 -> 0 | FQ4: =Timing!FS4 -> 0 | FR4: =Timing!FT4 -> 0 | FS4: =Timing!FU4 -> 0
C5: Construction Phase | E5: =Timing!F5 -> 2021-01-01 | F5: =Timing!G5 -> 2021-12-31 | I5: =Timing!K5 -> 0 | J5: =Timing!L5 -> 0 | K5: =Timing!M5 -> 0 | L5: =Timing!N5 -> 0 | M5: =Timing!O5 -> 1 | N5: =Timing!P5 -> 1 | O5: =Timing!Q5 -> 1 | P5: =Timing!R5 -> 1 | Q5: =Timing!S5 -> 0 | R5: =Timing!T5 -> 0 | S5: =Timing!U5 -> 0 | T5: =Timing!V5 -> 0 | U5: =Timing!W5 -> 0 | V5: =Timing!X5 -> 0 | W5: =Timing!Y5 -> 0 | X5: =Timing!Z5 -> 0 | Y5: =Timing!AA5 -> 0 | Z5: =Timing!AB5 -> 0 | AA5: =Timing!AC5 -> 0 | AB5: =Timing!AD5 -> 0 | AC5: =Timing!AE5 -> 0 | AD5: =Timing!AF5 -> 0 | AE5: =Timing!AG5 -> 0 | AF5: =Timing!AH5 -> 0 | AG5: =Timing!AI5 -> 0 | AH5: =Timing!AJ5 -> 0 | AI5: =Timing!AK5 -> 0 | AJ5: =Timing!AL5 -> 0 | AK5: =Timing!AM5 -> 0 | AL5: =Timing!AN5 -> 0 | AM5: =Timing!AO5 -> 0 | AN5: =Timing!AP5 -> 0 | AO5: =Timing!AQ5 -> 0 | AP5: =Timing!AR5 -> 0 | AQ5: =Timing!AS5 -> 0 | AR5: =Timing!AT5 -> 0 | AS5: =Timing!AU5 -> 0 | AT5: =Timing!AV5 -> 0 | AU5: =Timing!AW5 -> 0 | AV5: =Timing!AX5 -> 0 | AW5: =Timing!AY5 -> 0 | AX5: =Timing!AZ5 -> 0 | AY5: =Timing!BA5 -> 0 | AZ5: =Timing!BB5 -> 0 | BA5: =Timing!BC5 -> 0 | BB5: =Timing!BD5 -> 0 | BC5: =Timing!BE5 -> 0 | BD5: =Timing!BF5 -> 0 | BE5: =Timing!BG5 -> 0 | BF5: =Timing!BH5 -> 0 | BG5: =Timing!BI5 -> 0 | BH5: =Timing!BJ5 -> 0 | BI5: =Timing!BK5 -> 0 | BJ5: =Timing!BL5 -> 0 | BK5: =Timing!BM5 -> 0 | BL5: =Timing!BN5 -> 0 | BM5: =Timing!BO5 -> 0 | BN5: =Timing!BP5 -> 0 | BO5: =Timing!BQ5 -> 0 | BP5: =Timing!BR5 -> 0 | BQ5: =Timing!BS5 -> 0 | BR5: =Timing!BT5 -> 0 | BS5: =Timing!BU5 -> 0 | BT5: =Timing!BV5 -> 0 | BU5: =Timing!BW5 -> 0 | BV5: =Timing!BX5 -> 0 | BW5: =Timing!BY5 -> 0 | BX5: =Timing!BZ5 -> 0 | BY5: =Timing!CA5 -> 0 | BZ5: =Timing!CB5 -> 0 | CA5: =Timing!CC5 -> 0 | CB5: =Timing!CD5 -> 0 | CC5: =Timing!CE5 -> 0 | CD5: =Timing!CF5 -> 0 | CE5: =Timing!CG5 -> 0 | CF5: =Timing!CH5 -> 0 | CG5: =Timing!CI5 -> 0 | CH5: =Timing!CJ5 -> 0 | CI5: =Timing!CK5 -> 0 | CJ5: =Timing!CL5 -> 0 | CK5: =Timing!CM5 -> 0 | CL5: =Timing!CN5 -> 0 | CM5: =Timing!CO5 -> 0 | CN5: =Timing!CP5 -> 0 | CO5: =Timing!CQ5 -> 0 | CP5: =Timing!CR5 -> 0 | CQ5: =Timing!CS5 -> 0 | CR5: =Timing!CT5 -> 0 | CS5: =Timing!CU5 -> 0 | CT5: =Timing!CV5 -> 0 | CU5: =Timing!CW5 -> 0 | CV5: =Timing!CX5 -> 0 | CW5: =Timing!CY5 -> 0 | CX5: =Timing!CZ5 -> 0 | CY5: =Timing!DA5 -> 0 | CZ5: =Timing!DB5 -> 0 | DA5: =Timing!DC5 -> 0 | DB5: =Timing!DD5 -> 0 | DC5: =Timing!DE5 -> 0 | DD5: =Timing!DF5 -> 0 | DE5: =Timing!DG5 -> 0 | DF5: =Timing!DH5 -> 0 | DG5: =Timing!DI5 -> 0 | DH5: =Timing!DJ5 -> 0 | DI5: =Timing!DK5 -> 0 | DJ5: =Timing!DL5 -> 0 | DK5: =Timing!DM5 -> 0 | DL5: =Timing!DN5 -> 0 | DM5: =Timing!DO5 -> 0 | DN5: =Timing!DP5 -> 0 | DO5: =Timing!DQ5 -> 0 | DP5: =Timing!DR5 -> 0 | DQ5: =Timing!DS5 -> 0 | DR5: =Timing!DT5 -> 0 | DS5: =Timing!DU5 -> 0 | DT5: =Timing!DV5 -> 0 | DU5: =Timing!DW5 -> 0 | DV5: =Timing!DX5 -> 0 | DW5: =Timing!DY5 -> 0 | DX5: =Timing!DZ5 -> 0 | DY5: =Timing!EA5 -> 0 | DZ5: =Timing!EB5 -> 0 | EA5: =Timing!EC5 -> 0 | EB5: =Timing!ED5 -> 0 | EC5: =Timing!EE5 -> 0 | ED5: =Timing!EF5 -> 0 | EE5: =Timing!EG5 -> 0 | EF5: =Timing!EH5 -> 0 | EG5: =Timing!EI5 -> 0 | EH5: =Timing!EJ5 -> 0 | EI5: =Timing!EK5 -> 0 | EJ5: =Timing!EL5 -> 0 | EK5: =Timing!EM5 -> 0 | EL5: =Timing!EN5 -> 0 | EM5: =Timing!EO5 -> 0 | EN5: =Timing!EP5 -> 0 | EO5: =Timing!EQ5 -> 0 | EP5: =Timing!ER5 -> 0 | EQ5: =Timing!ES5 -> 0 | ER5: =Timing!ET5 -> 0 | ES5: =Timing!EU5 -> 0 | ET5: =Timing!EV5 -> 0 | EU5: =Timing!EW5 -> 0 | EV5: =Timing!EX5 -> 0 | EW5: =Timing!EY5 -> 0 | EX5: =Timing!EZ5 -> 0 | EY5: =Timing!FA5 -> 0 | EZ5: =Timing!FB5 -> 0 | FA5: =Timing!FC5 -> 0 | FB5: =Timing!FD5 -> 0 | FC5: =Timing!FE5 -> 0 | FD5: =Timing!FF5 -> 0 | FE5: =Timing!FG5 -> 0 | FF5: =Timing!FH5 -> 0 | FG5: =Timing!FI5 -> 0 | FH5: =Timing!FJ5 -> 0 | FI5: =Timing!FK5 -> 0 | FJ5: =Timing!FL5 -> 0 | FK5: =Timing!FM5 -> 0 | FL5: =Timing!FN5 -> 0 | FM5: =Timing!FO5 -> 0 | FN5: =Timing!FP5 -> 0 | FO5: =Timing!FQ5 -> 0 | FP5: =Timing!FR5 -> 0 | FQ5: =Timing!FS5 -> 0 | FR5: =Timing!FT5 -> 0 | FS5: =Timing!FU5 -> 0
C6: Operation Phase | E6: =Timing!F6 -> 2022-01-01 | F6: =Timing!G6 -> 2056-12-31 | I6: =Timing!K6 -> 0 | J6: =Timing!L6 -> 0 | K6: =Timing!M6 -> 0 | L6: =Timing!N6 -> 0 | M6: =Timing!O6 -> 0 | N6: =Timing!P6 -> 0 | O6: =Timing!Q6 -> 0 | P6: =Timing!R6 -> 0 | Q6: =Timing!S6 -> 1 | R6: =Timing!T6 -> 1 | S6: =Timing!U6 -> 1 | T6: =Timing!V6 -> 1 | U6: =Timing!W6 -> 1 | V6: =Timing!X6 -> 1 | W6: =Timing!Y6 -> 1 | X6: =Timing!Z6 -> 1 | Y6: =Timing!AA6 -> 1 | Z6: =Timing!AB6 -> 1 | AA6: =Timing!AC6 -> 1 | AB6: =Timing!AD6 -> 1 | AC6: =Timing!AE6 -> 1 | AD6: =Timing!AF6 -> 1 | AE6: =Timing!AG6 -> 1 | AF6: =Timing!AH6 -> 1 | AG6: =Timing!AI6 -> 1 | AH6: =Timing!AJ6 -> 1 | AI6: =Timing!AK6 -> 1 | AJ6: =Timing!AL6 -> 1 | AK6: =Timing!AM6 -> 1 | AL6: =Timing!AN6 -> 1 | AM6: =Timing!AO6 -> 1 | AN6: =Timing!AP6 -> 1 | AO6: =Timing!AQ6 -> 1 | AP6: =Timing!AR6 -> 1 | AQ6: =Timing!AS6 -> 1 | AR6: =Timing!AT6 -> 1 | AS6: =Timing!AU6 -> 1 | AT6: =Timing!AV6 -> 1 | AU6: =Timing!AW6 -> 1 | AV6: =Timing!AX6 -> 1 | AW6: =Timing!AY6 -> 1 | AX6: =Timing!AZ6 -> 1 | AY6: =Timing!BA6 -> 1 | AZ6: =Timing!BB6 -> 1 | BA6: =Timing!BC6 -> 1 | BB6: =Timing!BD6 -> 1 | BC6: =Timing!BE6 -> 1 | BD6: =Timing!BF6 -> 1 | BE6: =Timing!BG6 -> 1 | BF6: =Timing!BH6 -> 1 | BG6: =Timing!BI6 -> 1 | BH6: =Timing!BJ6 -> 1 | BI6: =Timing!BK6 -> 1 | BJ6: =Timing!BL6 -> 1 | BK6: =Timing!BM6 -> 1 | BL6: =Timing!BN6 -> 1 | BM6: =Timing!BO6 -> 1 | BN6: =Timing!BP6 -> 1 | BO6: =Timing!BQ6 -> 1 | BP6: =Timing!BR6 -> 1 | BQ6: =Timing!BS6 -> 1 | BR6: =Timing!BT6 -> 1 | BS6: =Timing!BU6 -> 1 | BT6: =Timing!BV6 -> 1 | BU6: =Timing!BW6 -> 1 | BV6: =Timing!BX6 -> 1 | BW6: =Timing!BY6 -> 1 | BX6: =Timing!BZ6 -> 1 | BY6: =Timing!CA6 -> 1 | BZ6: =Timing!CB6 -> 1 | CA6: =Timing!CC6 -> 1 | CB6: =Timing!CD6 -> 1 | CC6: =Timing!CE6 -> 1 | CD6: =Timing!CF6 -> 1 | CE6: =Timing!CG6 -> 1 | CF6: =Timing!CH6 -> 1 | CG6: =Timing!CI6 -> 1 | CH6: =Timing!CJ6 -> 1 | CI6: =Timing!CK6 -> 1 | CJ6: =Timing!CL6 -> 1 | CK6: =Timing!CM6 -> 1 | CL6: =Timing!CN6 -> 1 | CM6: =Timing!CO6 -> 1 | CN6: =Timing!CP6 -> 1 | CO6: =Timing!CQ6 -> 1 | CP6: =Timing!CR6 -> 1 | CQ6: =Timing!CS6 -> 1 | CR6: =Timing!CT6 -> 1 | CS6: =Timing!CU6 -> 1 | CT6: =Timing!CV6 -> 1 | CU6: =Timing!CW6 -> 1 | CV6: =Timing!CX6 -> 1 | CW6: =Timing!CY6 -> 1 | CX6: =Timing!CZ6 -> 1 | CY6: =Timing!DA6 -> 1 | CZ6: =Timing!DB6 -> 1 | DA6: =Timing!DC6 -> 1 | DB6: =Timing!DD6 -> 1 | DC6: =Timing!DE6 -> 1 | DD6: =Timing!DF6 -> 1 | DE6: =Timing!DG6 -> 1 | DF6: =Timing!DH6 -> 1 | DG6: =Timing!DI6 -> 1 | DH6: =Timing!DJ6 -> 1 | DI6: =Timing!DK6 -> 1 | DJ6: =Timing!DL6 -> 1 | DK6: =Timing!DM6 -> 1 | DL6: =Timing!DN6 -> 1 | DM6: =Timing!DO6 -> 1 | DN6: =Timing!DP6 -> 1 | DO6: =Timing!DQ6 -> 1 | DP6: =Timing!DR6 -> 1 | DQ6: =Timing!DS6 -> 1 | DR6: =Timing!DT6 -> 1 | DS6: =Timing!DU6 -> 1 | DT6: =Timing!DV6 -> 1 | DU6: =Timing!DW6 -> 1 | DV6: =Timing!DX6 -> 1 | DW6: =Timing!DY6 -> 1 | DX6: =Timing!DZ6 -> 1 | DY6: =Timing!EA6 -> 1 | DZ6: =Timing!EB6 -> 1 | EA6: =Timing!EC6 -> 1 | EB6: =Timing!ED6 -> 1 | EC6: =Timing!EE6 -> 1 | ED6: =Timing!EF6 -> 1 | EE6: =Timing!EG6 -> 1 | EF6: =Timing!EH6 -> 1 | EG6: =Timing!EI6 -> 1 | EH6: =Timing!EJ6 -> 1 | EI6: =Timing!EK6 -> 1 | EJ6: =Timing!EL6 -> 1 | EK6: =Timing!EM6 -> 1 | EL6: =Timing!EN6 -> 1 | EM6: =Timing!EO6 -> 1 | EN6: =Timing!EP6 -> 1 | EO6: =Timing!EQ6 -> 1 | EP6: =Timing!ER6 -> 1 | EQ6: =Timing!ES6 -> 1 | ER6: =Timing!ET6 -> 1 | ES6: =Timing!EU6 -> 1 | ET6: =Timing!EV6 -> 1 | EU6: =Timing!EW6 -> 1 | EV6: =Timing!EX6 -> 1 | EW6: =Timing!EY6 -> 1 | EX6: =Timing!EZ6 -> 1 | EY6: =Timing!FA6 -> 1 | EZ6: =Timing!FB6 -> 1 | FA6: =Timing!FC6 -> 0 | FB6: =Timing!FD6 -> 0 | FC6: =Timing!FE6 -> 0 | FD6: =Timing!FF6 -> 0 | FE6: =Timing!FG6 -> 0 | FF6: =Timing!FH6 -> 0 | FG6: =Timing!FI6 -> 0 | FH6: =Timing!FJ6 -> 0 | FI6: =Timing!FK6 -> 0 | FJ6: =Timing!FL6 -> 0 | FK6: =Timing!FM6 -> 0 | FL6: =Timing!FN6 -> 0 | FM6: =Timing!FO6 -> 0 | FN6: =Timing!FP6 -> 0 | FO6: =Timing!FQ6 -> 0 | FP6: =Timing!FR6 -> 0 | FQ6: =Timing!FS6 -> 0 | FR6: =Timing!FT6 -> 0 | FS6: =Timing!FU6 -> 0
C8: Counters for call-ups
C9: Calendar year | I9: =YEAR(I3) -> 2020 | J9: 2020 | K9: 2020 | L9: 2020 | M9: 2021 | N9: 2021 | O9: 2021 | P9: 2021 | Q9: 2022 | R9: 2022 | S9: 2022 | T9: 2022 | U9: 2023 | V9: 2023 | W9: 2023 | X9: 2023 | Y9: 2024 | Z9: 2024 | AA9: 2024 | AB9: 2024 | AC9: 2025 | AD9: 2025 | AE9: 2025 | AF9: 2025 | AG9: 2026 | AH9: 2026 | AI9: 2026 | AJ9: 2026 | AK9: 2027 | AL9: 2027 | AM9: 2027 | AN9: 2027 | AO9: =YEAR(AO3) -> 2028 | AP9: 2028 | AQ9: 2028 | AR9: 2028 | AS9: 2029 | AT9: 2029 | AU9: 2029 | AV9: 2029 | AW9: 2030 | AX9: 2030 | AY9: 2030 | AZ9: 2030 | BA9: 2031 | BB9: 2031 | BC9: 2031 | BD9: 2031 | BE9: 2032 | BF9: 2032 | BG9: 2032 | BH9: 2032 | BI9: 2033 | BJ9: 2033 | BK9: 2033 | BL9: 2033 | BM9: 2034 | BN9: 2034 | BO9: 2034 | BP9: 2034 | BQ9: 2035 | BR9: 2035 | BS9: 2035 | BT9: 2035 | BU9: =YEAR(BU3) -> 2036 | BV9: 2036 | BW9: 2036 | BX9: 2036 | BY9: 2037 | BZ9: 2037 | CA9: 2037 | CB9: 2037 | CC9: 2038 | CD9: 2038 | CE9: 2038 | CF9: 2038 | CG9: 2039 | CH9: 2039 | CI9: 2039 | CJ9: 2039 | CK9: 2040 | CL9: 2040 | CM9: 2040 | CN9: 2040 | CO9: 2041 | CP9: 2041 | CQ9: 2041 | CR9: 2041 | CS9: 2042 | CT9: 2042 | CU9: 2042 | CV9: 2042 | CW9: 2043 | CX9: 2043 | CY9: 2043 | CZ9: 2043 | DA9: =YEAR(DA3) -> 2044 | DB9: 2044 | DC9: 2044 | DD9: 2044 | DE9: 2045 | DF9: 2045 | DG9: 2045 | DH9: 2045 | DI9: 2046 | DJ9: 2046 | DK9: 2046 | DL9: 2046 | DM9: 2047 | DN9: 2047 | DO9: 2047 | DP9: 2047 | DQ9: 2048 | DR9: 2048 | DS9: 2048 | DT9: 2048 | DU9: 2049 | DV9: 2049 | DW9: 2049 | DX9: 2049 | DY9: 2050 | DZ9: 2050 | EA9: 2050 | EB9: 2050 | EC9: 2051 | ED9: 2051 | EE9: 2051 | EF9: 2051 | EG9: =YEAR(EG3) -> 2052 | EH9: 2052 | EI9: 2052 | EJ9: 2052 | EK9: 2053 | EL9: 2053 | EM9: 2053 | EN9: 2053 | EO9: 2054 | EP9: 2054 | EQ9: 2054 | ER9: 2054 | ES9: 2055 | ET9: 2055 | EU9: 2055 | EV9: 2055 | EW9: 2056 | EX9: 2056 | EY9: 2056 | EZ9: 2056 | FA9: 2057 | FB9: 2057 | FC9: 2057 | FD9: 2057 | FE9: 2058 | FF9: 2058 | FG9: 2058 | FH9: 2058 | FI9: 2059 | FJ9: 2059 | FK9: 2059 | FL9: 2059 | FM9: =YEAR(FM3) -> 2060 | FN9: 2060 | FO9: 2060 | FP9: 2060 | FQ9: 2061 | FR9: 2061 | FS9: 2061
C10: Days in Period | I10: =I3-I2+1 -> 91 | J10: 91 | K10: 92 | L10: 92 | M10: 90 | N10: 91 | O10: 92 | P10: 92 | Q10: 90 | R10: 91 | S10: 92 | T10: 92 | U10: 90 | V10: 91 | W10: 92 | X10: 92 | Y10: 91 | Z10: 91 | AA10: 92 | AB10: 92 | AC10: 90 | AD10: 91 | AE10: 92 | AF10: 92 | AG10: 90 | AH10: 91 | AI10: 92 | AJ10: 92 | AK10: 90 | AL10: 91 | AM10: 92 | AN10: 92 | AO10: =AO3-AO2+1 -> 91 | AP10: 91 | AQ10: 92 | AR10: 92 | AS10: 90 | AT10: 91 | AU10: 92 | AV10: 92 | AW10: 90 | AX10: 91 | AY10: 92 | AZ10: 92 | BA10: 90 | BB10: 91 | BC10: 92 | BD10: 92 | BE10: 91 | BF10: 91 | BG10: 92 | BH10: 92 | BI10: 90 | BJ10: 91 | BK10: 92 | BL10: 92 | BM10: 90 | BN10: 91 | BO10: 92 | BP10: 92 | BQ10: 90 | BR10: 91 | BS10: 92 | BT10: 92 | BU10: =BU3-BU2+1 -> 91 | BV10: 91 | BW10: 92 | BX10: 92 | BY10: 90 | BZ10: 91 | CA10: 92 | CB10: 92 | CC10: 90 | CD10: 91 | CE10: 92 | CF10: 92 | CG10: 90 | CH10: 91 | CI10: 92 | CJ10: 92 | CK10: 91 | CL10: 91 | CM10: 92 | CN10: 92 | CO10: 90 | CP10: 91 | CQ10: 92 | CR10: 92 | CS10: 90 | CT10: 91 | CU10: 92 | CV10: 92 | CW10: 90 | CX10: 91 | CY10: 92 | CZ10: 92 | DA10: =DA3-DA2+1 -> 91 | DB10: 91 | DC10: 92 | DD10: 92 | DE10: 90 | DF10: 91 | DG10: 92 | DH10: 92 | DI10: 90 | DJ10: 91 | DK10: 92 | DL10: 92 | DM10: 90 | DN10: 91 | DO10: 92 | DP10: 92 | DQ10: 91 | DR10: 91 | DS10: 92 | DT10: 92 | DU10: 90 | DV10: 91 | DW10: 92 | DX10: 92 | DY10: 90 | DZ10: 91 | EA10: 92 | EB10: 92 | EC10: 90 | ED10: 91 | EE10: 92 | EF10: 92 | EG10: =EG3-EG2+1 -> 91 | EH10: 91 | EI10: 92 | EJ10: 92 | EK10: 90 | EL10: 91 | EM10: 92 | EN10: 92 | EO10: 90 | EP10: 91 | EQ10: 92 | ER10: 92 | ES10: 90 | ET10: 91 | EU10: 92 | EV10: 92 | EW10: 91 | EX10: 91 | EY10: 92 | EZ10: 92 | FA10: 90 | FB10: 91 | FC10: 92 | FD10: 92 | FE10: 90 | FF10: 91 | FG10: 92 | FH10: 92 | FI10: 90 | FJ10: 91 | FK10: 92 | FL10: 92 | FM10: =FM3-FM2+1 -> 91 | FN10: 91 | FO10: 92 | FP10: 92 | FQ10: 90 | FR10: 91 | FS10: 92
C11: Development quarter | I11: =(H11+1)*I4 -> 1 | J11: 2 | K11: 3 | L11: 4 | M11: 0 | N11: 0 | O11: 0 | P11: 0 | Q11: 0 | R11: 0 | S11: 0 | T11: 0 | U11: 0 | V11: 0 | W11: 0 | X11: 0 | Y11: 0 | Z11: 0 | AA11: 0 | AB11: 0 | AC11: 0 | AD11: 0 | AE11: 0 | AF11: 0 | AG11: 0 | AH11: 0 | AI11: 0 | AJ11: 0 | AK11: 0 | AL11: 0 | AM11: 0 | AN11: 0 | AO11: =(AN11+1)*AO4 -> 0 | AP11: 0 | AQ11: 0 | AR11: 0 | AS11: 0 | AT11: 0 | AU11: 0 | AV11: 0 | AW11: 0 | AX11: 0 | AY11: 0 | AZ11: 0 | BA11: 0 | BB11: 0 | BC11: 0 | BD11: 0 | BE11: 0 | BF11: 0 | BG11: 0 | BH11: 0 | BI11: 0 | BJ11: 0 | BK11: 0 | BL11: 0 | BM11: 0 | BN11: 0 | BO11: 0 | BP11: 0 | BQ11: 0 | BR11: 0 | BS11: 0 | BT11: 0 | BU11: =(BT11+1)*BU4 -> 0 | BV11: 0 | BW11: 0 | BX11: 0 | BY11: 0 | BZ11: 0 | CA11: 0 | CB11: 0 | CC11: 0 | CD11: 0 | CE11: 0 | CF11: 0 | CG11: 0 | CH11: 0 | CI11: 0 | CJ11: 0 | CK11: 0 | CL11: 0 | CM11: 0 | CN11: 0 | CO11: 0 | CP11: 0 | CQ11: 0 | CR11: 0 | CS11: 0 | CT11: 0 | CU11: 0 | CV11: 0 | CW11: 0 | CX11: 0 | CY11: 0 | CZ11: 0 | DA11: =(CZ11+1)*DA4 -> 0 | DB11: 0 | DC11: 0 | DD11: 0 | DE11: 0 | DF11: 0 | DG11: 0 | DH11: 0 | DI11: 0 | DJ11: 0 | DK11: 0 | DL11: 0 | DM11: 0 | DN11: 0 | DO11: 0 | DP11: 0 | DQ11: 0 | DR11: 0 | DS11: 0 | DT11: 0 | DU11: 0 | DV11: 0 | DW11: 0 | DX11: 0 | DY11: 0 | DZ11: 0 | EA11: 0 | EB11: 0 | EC11: 0 | ED11: 0 | EE11: 0 | EF11: 0 | EG11: =(EF11+1)*EG4 -> 0 | EH11: 0 | EI11: 0 | EJ11: 0 | EK11: 0 | EL11: 0 | EM11: 0 | EN11: 0 | EO11: 0 | EP11: 0 | EQ11: 0 | ER11: 0 | ES11: 0 | ET11: 0 | EU11: 0 | EV11: 0 | EW11: 0 | EX11: 0 | EY11: 0 | EZ11: 0 | FA11: 0 | FB11: 0 | FC11: 0 | FD11: 0 | FE11: 0 | FF11: 0 | FG11: 0 | FH11: 0 | FI11: 0 | FJ11: 0 | FK11: 0 | FL11: 0 | FM11: =(FL11+1)*FM4 -> 0 | FN11: 0 | FO11: 0 | FP11: 0 | FQ11: 0 | FR11: 0 | FS11: 0
C12: Construction Quarter | I12: =(H12+1)*I5 -> 0 | J12: 0 | K12: 0 | L12: 0 | M12: 1 | N12: 2 | O12: 3 | P12: 4 | Q12: 0 | R12: 0 | S12: 0 | T12: 0 | U12: 0 | V12: 0 | W12: 0 | X12: 0 | Y12: 0 | Z12: 0 | AA12: 0 | AB12: 0 | AC12: 0 | AD12: 0 | AE12: 0 | AF12: 0 | AG12: 0 | AH12: 0 | AI12: 0 | AJ12: 0 | AK12: 0 | AL12: 0 | AM12: 0 | AN12: 0 | AO12: =(AN12+1)*AO5 -> 0 | AP12: 0 | AQ12: 0 | AR12: 0 | AS12: 0 | AT12: 0 | AU12: 0 | AV12: 0 | AW12: 0 | AX12: 0 | AY12: 0 | AZ12: 0 | BA12: 0 | BB12: 0 | BC12: 0 | BD12: 0 | BE12: 0 | BF12: 0 | BG12: 0 | BH12: 0 | BI12: 0 | BJ12: 0 | BK12: 0 | BL12: 0 | BM12: 0 | BN12: 0 | BO12: 0 | BP12: 0 | BQ12: 0 | BR12: 0 | BS12: 0 | BT12: 0 | BU12: =(BT12+1)*BU5 -> 0 | BV12: 0 | BW12: 0 | BX12: 0 | BY12: 0 | BZ12: 0 | CA12: 0 | CB12: 0 | CC12: 0 | CD12: 0 | CE12: 0 | CF12: 0 | CG12: 0 | CH12: 0 | CI12: 0 | CJ12: 0 | CK12: 0 | CL12: 0 | CM12: 0 | CN12: 0 | CO12: 0 | CP12: 0 | CQ12: 0 | CR12: 0 | CS12: 0 | CT12: 0 | CU12: 0 | CV12: 0 | CW12: 0 | CX12: 0 | CY12: 0 | CZ12: 0 | DA12: =(CZ12+1)*DA5 -> 0 | DB12: 0 | DC12: 0 | DD12: 0 | DE12: 0 | DF12: 0 | DG12: 0 | DH12: 0 | DI12: 0 | DJ12: 0 | DK12: 0 | DL12: 0 | DM12: 0 | DN12: 0 | DO12: 0 | DP12: 0 | DQ12: 0 | DR12: 0 | DS12: 0 | DT12: 0 | DU12: 0 | DV12: 0 | DW12: 0 | DX12: 0 | DY12: 0 | DZ12: 0 | EA12: 0 | EB12: 0 | EC12: 0 | ED12: 0 | EE12: 0 | EF12: 0 | EG12: =(EF12+1)*EG5 -> 0 | EH12: 0 | EI12: 0 | EJ12: 0 | EK12: 0 | EL12: 0 | EM12: 0 | EN12: 0 | EO12: 0 | EP12: 0 | EQ12: 0 | ER12: 0 | ES12: 0 | ET12: 0 | EU12: 0 | EV12: 0 | EW12: 0 | EX12: 0 | EY12: 0 | EZ12: 0 | FA12: 0 | FB12: 0 | FC12: 0 | FD12: 0 | FE12: 0 | FF12: 0 | FG12: 0 | FH12: 0 | FI12: 0 | FJ12: 0 | FK12: 0 | FL12: 0 | FM12: =(FL12+1)*FM5 -> 0 | FN12: 0 | FO12: 0 | FP12: 0 | FQ12: 0 | FR12: 0 | FS12: 0
C13: Operations Quarter | I13: =(H13+1)*I6 -> 0 | J13: 0 | K13: 0 | L13: 0 | M13: 0 | N13: 0 | O13: 0 | P13: 0 | Q13: 1 | R13: 2 | S13: 3 | T13: 4 | U13: 5 | V13: 6 | W13: 7 | X13: 8 | Y13: 9 | Z13: 10 | AA13: 11 | AB13: 12 | AC13: 13 | AD13: 14 | AE13: 15 | AF13: 16 | AG13: 17 | AH13: 18 | AI13: 19 | AJ13: 20 | AK13: 21 | AL13: 22 | AM13: 23 | AN13: 24 | AO13: =(AN13+1)*AO6 -> 25 | AP13: 26 | AQ13: 27 | AR13: 28 | AS13: 29 | AT13: 30 | AU13: 31 | AV13: 32 | AW13: 33 | AX13: 34 | AY13: 35 | AZ13: 36 | BA13: 37 | BB13: 38 | BC13: 39 | BD13: 40 | BE13: 41 | BF13: 42 | BG13: 43 | BH13: 44 | BI13: 45 | BJ13: 46 | BK13: 47 | BL13: 48 | BM13: 49 | BN13: 50 | BO13: 51 | BP13: 52 | BQ13: 53 | BR13: 54 | BS13: 55 | BT13: 56 | BU13: =(BT13+1)*BU6 -> 57 | BV13: 58 | BW13: 59 | BX13: 60 | BY13: 61 | BZ13: 62 | CA13: 63 | CB13: 64 | CC13: 65 | CD13: 66 | CE13: 67 | CF13: 68 | CG13: 69 | CH13: 70 | CI13: 71 | CJ13: 72 | CK13: 73 | CL13: 74 | CM13: 75 | CN13: 76 | CO13: 77 | CP13: 78 | CQ13: 79 | CR13: 80 | CS13: 81 | CT13: 82 | CU13: 83 | CV13: 84 | CW13: 85 | CX13: 86 | CY13: 87 | CZ13: 88 | DA13: =(CZ13+1)*DA6 -> 89 | DB13: 90 | DC13: 91 | DD13: 92 | DE13: 93 | DF13: 94 | DG13: 95 | DH13: 96 | DI13: 97 | DJ13: 98 | DK13: 99 | DL13: 100 | DM13: 101 | DN13: 102 | DO13: 103 | DP13: 104 | DQ13: 105 | DR13: 106 | DS13: 107 | DT13: 108 | DU13: 109 | DV13: 110 | DW13: 111 | DX13: 112 | DY13: 113 | DZ13: 114 | EA13: 115 | EB13: 116 | EC13: 117 | ED13: 118 | EE13: 119 | EF13: 120 | EG13: =(EF13+1)*EG6 -> 121 | EH13: 122 | EI13: 123 | EJ13: 124 | EK13: 125 | EL13: 126 | EM13: 127 | EN13: 128 | EO13: 129 | EP13: 130 | EQ13: 131 | ER13: 132 | ES13: 133 | ET13: 134 | EU13: 135 | EV13: 136 | EW13: 137 | EX13: 138 | EY13: 139 | EZ13: 140 | FA13: 0 | FB13: 0 | FC13: 0 | FD13: 0 | FE13: 0 | FF13: 0 | FG13: 0 | FH13: 0 | FI13: 0 | FJ13: 0 | FK13: 0 | FL13: 0 | FM13: =(FL13+1)*FM6 -> 0 | FN13: 0 | FO13: 0 | FP13: 0 | FQ13: 0 | FR13: 0 | FS13: 0
C14: Operations Year | I14: =ROUNDUP(I13/4,0) -> 0 | J14: 0 | K14: 0 | L14: 0 | M14: 0 | N14: 0 | O14: 0 | P14: 0 | Q14: 1 | R14: 1 | S14: 1 | T14: 1 | U14: 2 | V14: 2 | W14: 2 | X14: 2 | Y14: 3 | Z14: 3 | AA14: 3 | AB14: 3 | AC14: 4 | AD14: 4 | AE14: 4 | AF14: 4 | AG14: 5 | AH14: 5 | AI14: 5 | AJ14: 5 | AK14: 6 | AL14: 6 | AM14: 6 | AN14: 6 | AO14: =ROUNDUP(AO13/4,0) -> 7 | AP14: 7 | AQ14: 7 | AR14: 7 | AS14: 8 | AT14: 8 | AU14: 8 | AV14: 8 | AW14: 9 | AX14: 9 | AY14: 9 | AZ14: 9 | BA14: 10 | BB14: 10 | BC14: 10 | BD14: 10 | BE14: 11 | BF14: 11 | BG14: 11 | BH14: 11 | BI14: 12 | BJ14: 12 | BK14: 12 | BL14: 12 | BM14: 13 | BN14: 13 | BO14: 13 | BP14: 13 | BQ14: 14 | BR14: 14 | BS14: 14 | BT14: 14 | BU14: =ROUNDUP(BU13/4,0) -> 15 | BV14: 15 | BW14: 15 | BX14: 15 | BY14: 16 | BZ14: 16 | CA14: 16 | CB14: 16 | CC14: 17 | CD14: 17 | CE14: 17 | CF14: 17 | CG14: 18 | CH14: 18 | CI14: 18 | CJ14: 18 | CK14: 19 | CL14: 19 | CM14: 19 | CN14: 19 | CO14: 20 | CP14: 20 | CQ14: 20 | CR14: 20 | CS14: 21 | CT14: 21 | CU14: 21 | CV14: 21 | CW14: 22 | CX14: 22 | CY14: 22 | CZ14: 22 | DA14: =ROUNDUP(DA13/4,0) -> 23 | DB14: 23 | DC14: 23 | DD14: 23 | DE14: 24 | DF14: 24 | DG14: 24 | DH14: 24 | DI14: 25 | DJ14: 25 | DK14: 25 | DL14: 25 | DM14: 26 | DN14: 26 | DO14: 26 | DP14: 26 | DQ14: 27 | DR14: 27 | DS14: 27 | DT14: 27 | DU14: 28 | DV14: 28 | DW14: 28 | DX14: 28 | DY14: 29 | DZ14: 29 | EA14: 29 | EB14: 29 | EC14: 30 | ED14: 30 | EE14: 30 | EF14: 30 | EG14: =ROUNDUP(EG13/4,0) -> 31 | EH14: 31 | EI14: 31 | EJ14: 31 | EK14: 32 | EL14: 32 | EM14: 32 | EN14: 32 | EO14: 33 | EP14: 33 | EQ14: 33 | ER14: 33 | ES14: 34 | ET14: 34 | EU14: 34 | EV14: 34 | EW14: 35 | EX14: 35 | EY14: 35 | EZ14: 35 | FA14: 0 | FB14: 0 | FC14: 0 | FD14: 0 | FE14: 0 | FF14: 0 | FG14: 0 | FH14: 0 | FI14: 0 | FJ14: 0 | FK14: 0 | FL14: 0 | FM14: =ROUNDUP(FM13/4,0) -> 0 | FN14: 0 | FO14: 0 | FP14: 0 | FQ14: 0 | FR14: 0 | FS14: 0
C15: Escalation Counter | I15: =IF(I14=0,0,I14-1) -> 0 | J15: 0 | K15: 0 | L15: 0 | M15: 0 | N15: 0 | O15: 0 | P15: 0 | Q15: 0 | R15: 0 | S15: 0 | T15: 0 | U15: 1 | V15: 1 | W15: 1 | X15: 1 | Y15: 2 | Z15: 2 | AA15: 2 | AB15: 2 | AC15: 3 | AD15: 3 | AE15: 3 | AF15: 3 | AG15: 4 | AH15: 4 | AI15: 4 | AJ15: 4 | AK15: 5 | AL15: 5 | AM15: 5 | AN15: 5 | AO15: =IF(AO14=0,0,AO14-1) -> 6 | AP15: 6 | AQ15: 6 | AR15: 6 | AS15: 7 | AT15: 7 | AU15: 7 | AV15: 7 | AW15: 8 | AX15: 8 | AY15: 8 | AZ15: 8 | BA15: 9 | BB15: 9 | BC15: 9 | BD15: 9 | BE15: 10 | BF15: 10 | BG15: 10 | BH15: 10 | BI15: 11 | BJ15: 11 | BK15: 11 | BL15: 11 | BM15: 12 | BN15: 12 | BO15: 12 | BP15: 12 | BQ15: 13 | BR15: 13 | BS15: 13 | BT15: 13 | BU15: =IF(BU14=0,0,BU14-1) -> 14 | BV15: 14 | BW15: 14 | BX15: 14 | BY15: 15 | BZ15: 15 | CA15: 15 | CB15: 15 | CC15: 16 | CD15: 16 | CE15: 16 | CF15: 16 | CG15: 17 | CH15: 17 | CI15: 17 | CJ15: 17 | CK15: 18 | CL15: 18 | CM15: 18 | CN15: 18 | CO15: 19 | CP15: 19 | CQ15: 19 | CR15: 19 | CS15: 20 | CT15: 20 | CU15: 20 | CV15: 20 | CW15: 21 | CX15: 21 | CY15: 21 | CZ15: 21 | DA15: =IF(DA14=0,0,DA14-1) -> 22 | DB15: 22 | DC15: 22 | DD15: 22 | DE15: 23 | DF15: 23 | DG15: 23 | DH15: 23 | DI15: 24 | DJ15: 24 | DK15: 24 | DL15: 24 | DM15: 25 | DN15: 25 | DO15: 25 | DP15: 25 | DQ15: 26 | DR15: 26 | DS15: 26 | DT15: 26 | DU15: 27 | DV15: 27 | DW15: 27 | DX15: 27 | DY15: 28 | DZ15: 28 | EA15: 28 | EB15: 28 | EC15: 29 | ED15: 29 | EE15: 29 | EF15: 29 | EG15: =IF(EG14=0,0,EG14-1) -> 30 | EH15: 30 | EI15: 30 | EJ15: 30 | EK15: 31 | EL15: 31 | EM15: 31 | EN15: 31 | EO15: 32 | EP15: 32 | EQ15: 32 | ER15: 32 | ES15: 33 | ET15: 33 | EU15: 33 | EV15: 33 | EW15: 34 | EX15: 34 | EY15: 34 | EZ15: 34 | FA15: 0 | FB15: 0 | FC15: 0 | FD15: 0 | FE15: 0 | FF15: 0 | FG15: 0 | FH15: 0 | FI15: 0 | FJ15: 0 | FK15: 0 | FL15: 0 | FM15: =IF(FM14=0,0,FM14-1) -> 0 | FN15: 0 | FO15: 0 | FP15: 0 | FQ15: 0 | FR15: 0 | FS15: 0
B18: Generation at P50
C19: Rated capacity | D19: MW | E19: ='Inputs - Partnership'!E28 -> 225 | I19: =$E19*I$6 -> 0 | J19: 0 | K19: 0 | L19: 0 | M19: 0 | N19: 0 | O19: 0 | P19: 0 | Q19: 225 | R19: 225 | S19: 225 | T19: 225 | U19: 225 | V19: 225 | W19: 225 | X19: 225 | Y19: 225 | Z19: 225 | AA19: 225 | AB19: 225 | AC19: 225 | AD19: 225 | AE19: 225 | AF19: 225 | AG19: 225 | AH19: 225 | AI19: 225 | AJ19: 225 | AK19: 225 | AL19: 225 | AM19: 225 | AN19: 225 | AO19: =$E19*AO$6 -> 225 | AP19: 225 | AQ19: 225 | AR19: 225 | AS19: 225 | AT19: 225 | AU19: 225 | AV19: 225 | AW19: 225 | AX19: 225 | AY19: 225 | AZ19: 225 | BA19: 225 | BB19: 225 | BC19: 225 | BD19: 225 | BE19: 225 | BF19: 225 | BG19: 225 | BH19: 225 | BI19: 225 | BJ19: 225 | BK19: 225 | BL19: 225 | BM19: 225 | BN19: 225 | BO19: 225 | BP19: 225 | BQ19: 225 | BR19: 225 | BS19: 225 | BT19: 225 | BU19: =$E19*BU$6 -> 225 | BV19: 225 | BW19: 225 | BX19: 225 | BY19: 225 | BZ19: 225 | CA19: 225 | CB19: 225 | CC19: 225 | CD19: 225 | CE19: 225 | CF19: 225 | CG19: 225 | CH19: 225 | CI19: 225 | CJ19: 225 | CK19: 225 | CL19: 225 | CM19: 225 | CN19: 225 | CO19: 225 | CP19: 225 | CQ19: 225 | CR19: 225 | CS19: 225 | CT19: 225 | CU19: 225 | CV19: 225 | CW19: 225 | CX19: 225 | CY19: 225 | CZ19: 225 | DA19: =$E19*DA$6 -> 225 | DB19: 225 | DC19: 225 | DD19: 225 | DE19: 225 | DF19: 225 | DG19: 225 | DH19: 225 | DI19: 225 | DJ19: 225 | DK19: 225 | DL19: 225 | DM19: 225 | DN19: 225 | DO19: 225 | DP19: 225 | DQ19: 225 | DR19: 225 | DS19: 225 | DT19: 225 | DU19: 225 | DV19: 225 | DW19: 225 | DX19: 225 | DY19: 225 | DZ19: 225 | EA19: 225 | EB19: 225 | EC19: 225 | ED19: 225 | EE19: 225 | EF19: 225 | EG19: =$E19*EG$6 -> 225 | EH19: 225 | EI19: 225 | EJ19: 225 | EK19: 225 | EL19: 225 | EM19: 225 | EN19: 225 | EO19: 225 | EP19: 225 | EQ19: 225 | ER19: 225 | ES19: 225 | ET19: 225 | EU19: 225 | EV19: 225 | EW19: 225 | EX19: 225 | EY19: 225 | EZ19: 225 | FA19: 0 | FB19: 0 | FC19: 0 | FD19: 0 | FE19: 0 | FF19: 0 | FG19: 0 | FH19: 0 | FI19: 0 | FJ19: 0 | FK19: 0 | FL19: 0 | FM19: =$E19*FM$6 -> 0 | FN19: 0 | FO19: 0 | FP19: 0 | FQ19: 0 | FR19: 0 | FS19: 0
C20: Degradation | D20: % | E20: ='Inputs - Partnership'!E34 -> 0.006 | I20: =I19/(1+$E20)^(I$14-1) -> 0 | J20: =J19/(1+$E$20)^(J14-1) -> 0 | K20: 0 | L20: 0 | M20: 0 | N20: 0 | O20: 0 | P20: 0 | Q20: 225 | R20: 225 | S20: 225 | T20: 225 | U20: 223.6580517 | V20: 223.6580517 | W20: 223.6580517 | X20: 223.6580517 | Y20: 222.324107 | Z20: 222.324107 | AA20: 222.324107 | AB20: 222.324107 | AC20: 220.9981183 | AD20: 220.9981183 | AE20: 220.9981183 | AF20: 220.9981183 | AG20: 219.6800381 | AH20: 219.6800381 | AI20: 219.6800381 | AJ20: 219.6800381 | AK20: 218.3698192 | AL20: 218.3698192 | AM20: 218.3698192 | AN20: 218.3698192 | AO20: =AO19/(1+$E$20)^(AO14-1) -> 217.0674147 | AP20: 217.0674147 | AQ20: 217.0674147 | AR20: 217.0674147 | AS20: 215.772778 | AT20: 215.772778 | AU20: 215.772778 | AV20: 215.772778 | AW20: 214.4858629 | AX20: 214.4858629 | AY20: 214.4858629 | AZ20: 214.4858629 | BA20: 213.2066231 | BB20: 213.2066231 | BC20: 213.2066231 | BD20: 213.2066231 | BE20: 211.935013 | BF20: 211.935013 | BG20: 211.935013 | BH20: 211.935013 | BI20: 210.6709871 | BJ20: 210.6709871 | BK20: 210.6709871 | BL20: 210.6709871 | BM20: 209.4145001 | BN20: 209.4145001 | BO20: 209.4145001 | BP20: 209.4145001 | BQ20: 208.1655071 | BR20: 208.1655071 | BS20: 208.1655071 | BT20: 208.1655071 | BU20: =BU19/(1+$E$20)^(BU14-1) -> 206.9239633 | BV20: 206.9239633 | BW20: 206.9239633 | BX20: 206.9239633 | BY20: 205.6898244 | BZ20: 205.6898244 | CA20: 205.6898244 | CB20: 205.6898244 | CC20: 204.4630461 | CD20: 204.4630461 | CE20: 204.4630461 | CF20: 204.4630461 | CG20: 203.2435846 | CH20: 203.2435846 | CI20: 203.2435846 | CJ20: 203.2435846 | CK20: 202.0313962 | CL20: 202.0313962 | CM20: 202.0313962 | CN20: 202.0313962 | CO20: 200.8264376 | CP20: 200.8264376 | CQ20: 200.8264376 | CR20: 200.8264376 | CS20: 199.6286656 | CT20: 199.6286656 | CU20: 199.6286656 | CV20: 199.6286656 | CW20: 198.4380373 | CX20: 198.4380373 | CY20: 198.4380373 | CZ20: 198.4380373 | DA20: =DA19/(1+$E$20)^(DA14-1) -> 197.2545103 | DB20: 197.2545103 | DC20: 197.2545103 | DD20: 197.2545103 | DE20: 196.078042 | DF20: 196.078042 | DG20: 196.078042 | DH20: 196.078042 | DI20: 194.9085905 | DJ20: 194.9085905 | DK20: 194.9085905 | DL20: 194.9085905 | DM20: 193.7461138 | DN20: 193.7461138 | DO20: 193.7461138 | DP20: 193.7461138 | DQ20: 192.5905704 | DR20: 192.5905704 | DS20: 192.5905704 | DT20: 192.5905704 | DU20: 191.4419189 | DV20: 191.4419189 | DW20: 191.4419189 | DX20: 191.4419189 | DY20: 190.3001182 | DZ20: 190.3001182 | EA20: 190.3001182 | EB20: 190.3001182 | EC20: 189.1651274 | ED20: 189.1651274 | EE20: 189.1651274 | EF20: 189.1651274 | EG20: =EG19/(1+$E$20)^(EG14-1) -> 188.036906 | EH20: 188.036906 | EI20: 188.036906 | EJ20: 188.036906 | EK20: 186.9154135 | EL20: 186.9154135 | EM20: 186.9154135 | EN20: 186.9154135 | EO20: 185.8006098 | EP20: 185.8006098 | EQ20: 185.8006098 | ER20: 185.8006098 | ES20: 184.6924551 | ET20: 184.6924551 | EU20: 184.6924551 | EV20: 184.6924551 | EW20: 183.5909096 | EX20: 183.5909096 | EY20: 183.5909096 | EZ20: 183.5909096 | FA20: 0 | FB20: 0 | FC20: 0 | FD20: 0 | FE20: 0 | FF20: 0 | FG20: 0 | FH20: 0 | FI20: 0 | FJ20: 0 | FK20: 0 | FL20: 0 | FM20: =FM19/(1+$E$20)^(FM14-1) -> 0 | FN20: 0 | FO20: 0 | FP20: 0 | FQ20: 0 | FR20: 0 | FS20: 0
C21: Production curve | D21: % | I21: =IF(I$13=0,0,LOOKUP(I$13,'Inputs - Partnership'!$H$34:$K$34,'Inputs - Partnership'!$H$35:$K$35)) -> 0 | J21: =IF(J$13=0,0,LOOKUP(J$13,'Inputs - Partnership'!$H$34:$K$34,'Inputs - Partnership'!$H$35:$K$35)) -> 0 | K21: =IF(K$13=0,0,LOOKUP(K$13,'Inputs - Partnership'!$H$34:$K$34,'Inputs - Partnership'!$H$35:$K$35)) -> 0 | L21: =IF(L$13=0,0,LOOKUP(L$13,'Inputs - Partnership'!$H$34:$K$34,'Inputs - Partnership'!$H$35:$K$35)) -> 0 | M21: =IF(M$13=0,0,LOOKUP(M$13,'Inputs - Partnership'!$H$34:$K$34,'Inputs - Partnership'!$H$35:$K$35)) -> 0 | N21: =IF(N$13=0,0,LOOKUP(N$13,'Inputs - Partnership'!$H$34:$K$34,'Inputs - Partnership'!$H$35:$K$35)) -> 0 | O21: =IF(O$13=0,0,LOOKUP(O$13,'Inputs - Partnership'!$H$34:$K$34,'Inputs - Partnership'!$H$35:$K$35)) -> 0 | P21: =IF(P$13=0,0,LOOKUP(P$13,'Inputs - Partnership'!$H$34:$K$34,'Inputs - Partnership'!$H$35:$K$35)) -> 0 | Q21: =IF(Q$13=0,0,LOOKUP(Q$13,'Inputs - Partnership'!$H$34:$K$34,'Inputs - Partnership'!$H$35:$K$35)) -> 0.2 | R21: =IF(R$13=0,0,LOOKUP(R$13,'Inputs - Partnership'!$H$34:$K$34,'Inputs - Partnership'!$H$35:$K$35)) -> 0.325 | S21: =IF(S$13=0,0,LOOKUP(S$13,'Inputs - Partnership'!$H$34:$K$34,'Inputs - Partnership'!$H$35:$K$35)) -> 0.294 | T21: =IF(T$13=0,0,LOOKUP(T$13,'Inputs - Partnership'!$H$34:$K$34,'Inputs - Partnership'!$H$35:$K$35)) -> 0.181 | U21: =IF(U$13=0,0,LOOKUP(U$13,'Inputs - Partnership'!$H$34:$K$34,'Inputs - Partnership'!$H$35:$K$35)) -> 0.181 | V21: =IF(V$13=0,0,LOOKUP(V$13,'Inputs - Partnership'!$H$34:$K$34,'Inputs - Partnership'!$H$35:$K$35)) -> 0.181 | W21: =IF(W$13=0,0,LOOKUP(W$13,'Inputs - Partnership'!$H$34:$K$34,'Inputs - Partnership'!$H$35:$K$35)) -> 0.181 | X21: =IF(X$13=0,0,LOOKUP(X$13,'Inputs - Partnership'!$H$34:$K$34,'Inputs - Partnership'!$H$35:$K$35)) -> 0.181 | Y21: =IF(Y$13=0,0,LOOKUP(Y$13,'Inputs - Partnership'!$H$34:$K$34,'Inputs - Partnership'!$H$35:$K$35)) -> 0.181 | Z21: =IF(Z$13=0,0,LOOKUP(Z$13,'Inputs - Partnership'!$H$34:$K$34,'Inputs - Partnership'!$H$35:$K$35)) -> 0.181 | AA21: =IF(AA$13=0,0,LOOKUP(AA$13,'Inputs - Partnership'!$H$34:$K$34,'Inputs - Partnership'!$H$35:$K$35)) -> 0.181 | AB21: =IF(AB$13=0,0,LOOKUP(AB$13,'Inputs - Partnership'!$H$34:$K$34,'Inputs - Partnership'!$H$35:$K$35)) -> 0.181 | AC21: =IF(AC$13=0,0,LOOKUP(AC$13,'Inputs - Partnership'!$H$34:$K$34,'Inputs - Partnership'!$H$35:$K$35)) -> 0.181 | AD21: =IF(AD$13=0,0,LOOKUP(AD$13,'Inputs - Partnership'!$H$34:$K$34,'Inputs - Partnership'!$H$35:$K$35)) -> 0.181 | AE21: =IF(AE$13=0,0,LOOKUP(AE$13,'Inputs - Partnership'!$H$34:$K$34,'Inputs - Partnership'!$H$35:$K$35)) -> 0.181 | AF21: =IF(AF$13=0,0,LOOKUP(AF$13,'Inputs - Partnership'!$H$34:$K$34,'Inputs - Partnership'!$H$35:$K$35)) -> 0.181 | AG21: =IF(AG$13=0,0,LOOKUP(AG$13,'Inputs - Partnership'!$H$34:$K$34,'Inputs - Partnership'!$H$35:$K$35)) -> 0.181 | AH21: =IF(AH$13=0,0,LOOKUP(AH$13,'Inputs - Partnership'!$H$34:$K$34,'Inputs - Partnership'!$H$35:$K$35)) -> 0.181 | AI21: =IF(AI$13=0,0,LOOKUP(AI$13,'Inputs - Partnership'!$H$34:$K$34,'Inputs - Partnership'!$H$35:$K$35)) -> 0.181 | AJ21: =IF(AJ$13=0,0,LOOKUP(AJ$13,'Inputs - Partnership'!$H$34:$K$34,'Inputs - Partnership'!$H$35:$K$35)) -> 0.181 | AK21: =IF(AK$13=0,0,LOOKUP(AK$13,'Inputs - Partnership'!$H$34:$K$34,'Inputs - Partnership'!$H$35:$K$35)) -> 0.181 | AL21: =IF(AL$13=0,0,LOOKUP(AL$13,'Inputs - Partnership'!$H$34:$K$34,'Inputs - Partnership'!$H$35:$K$35)) -> 0.181 | AM21: =IF(AM$13=0,0,LOOKUP(AM$13,'Inputs - Partnership'!$H$34:$K$34,'Inputs - Partnership'!$H$35:$K$35)) -> 0.181 | AN21: =IF(AN$13=0,0,LOOKUP(AN$13,'Inputs - Partnership'!$H$34:$K$34,'Inputs - Partnership'!$H$35:$K$35)) -> 0.181 | AO21: =IF(AO$13=0,0,LOOKUP(AO$13,'Inputs - Partnership'!$H$34:$K$34,'Inputs - Partnership'!$H$35:$K$35)) -> 0.181 | AP21: =IF(AP$13=0,0,LOOKUP(AP$13,'Inputs - Partnership'!$H$34:$K$34,'Inputs - Partnership'!$H$35:$K$35)) -> 0.181 | AQ21: =IF(AQ$13=0,0,LOOKUP(AQ$13,'Inputs - Partnership'!$H$34:$K$34,'Inputs - Partnership'!$H$35:$K$35)) -> 0.181 | AR21: =IF(AR$13=0,0,LOOKUP(AR$13,'Inputs - Partnership'!$H$34:$K$34,'Inputs - Partnership'!$H$35:$K$35)) -> 0.181 | AS21: =IF(AS$13=0,0,LOOKUP(AS$13,'Inputs - Partnership'!$H$34:$K$34,'Inputs - Partnership'!$H$35:$K$35)) -> 0.181 | AT21: =IF(AT$13=0,0,LOOKUP(AT$13,'Inputs - Partnership'!$H$34:$K$34,'Inputs - Partnership'!$H$35:$K$35)) -> 0.181 | AU21: =IF(AU$13=0,0,LOOKUP(AU$13,'Inputs - Partnership'!$H$34:$K$34,'Inputs - Partnership'!$H$35:$K$35)) -> 0.181 | AV21: =IF(AV$13=0,0,LOOKUP(AV$13,'Inputs - Partnership'!$H$34:$K$34,'Inputs - Partnership'!$H$35:$K$35)) -> 0.181 | AW21: =IF(AW$13=0,0,LOOKUP(AW$13,'Inputs - Partnership'!$H$34:$K$34,'Inputs - Partnership'!$H$35:$K$35)) -> 0.181 | AX21: =IF(AX$13=0,0,LOOKUP(AX$13,'Inputs - Partnership'!$H$34:$K$34,'Inputs - Partnership'!$H$35:$K$35)) -> 0.181 | AY21: =IF(AY$13=0,0,LOOKUP(AY$13,'Inputs - Partnership'!$H$34:$K$34,'Inputs - Partnership'!$H$35:$K$35)) -> 0.181 | AZ21: =IF(AZ$13=0,0,LOOKUP(AZ$13,'Inputs - Partnership'!$H$34:$K$34,'Inputs - Partnership'!$H$35:$K$35)) -> 0.181 | BA21: =IF(BA$13=0,0,LOOKUP(BA$13,'Inputs - Partnership'!$H$34:$K$34,'Inputs - Partnership'!$H$35:$K$35)) -> 0.181 | BB21: =IF(BB$13=0,0,LOOKUP(BB$13,'Inputs - Partnership'!$H$34:$K$34,'Inputs - Partnership'!$H$35:$K$35)) -> 0.181 | BC21: =IF(BC$13=0,0,LOOKUP(BC$13,'Inputs - Partnership'!$H$34:$K$34,'Inputs - Partnership'!$H$35:$K$35)) -> 0.181 | BD21: =IF(BD$13=0,0,LOOKUP(BD$13,'Inputs - Partnership'!$H$34:$K$34,'Inputs - Partnership'!$H$35:$K$35)) -> 0.181 | BE21: =IF(BE$13=0,0,LOOKUP(BE$13,'Inputs - Partnership'!$H$34:$K$34,'Inputs - Partnership'!$H$35:$K$35)) -> 0.181 | BF21: =IF(BF$13=0,0,LOOKUP(BF$13,'Inputs - Partnership'!$H$34:$K$34,'Inputs - Partnership'!$H$35:$K$35)) -> 0.181 | BG21: =IF(BG$13=0,0,LOOKUP(BG$13,'Inputs - Partnership'!$H$34:$K$34,'Inputs - Partnership'!$H$35:$K$35)) -> 0.181 | BH21: =IF(BH$13=0,0,LOOKUP(BH$13,'Inputs - Partnership'!$H$34:$K$34,'Inputs - Partnership'!$H$35:$K$35)) -> 0.181 | BI21: =IF(BI$13=0,0,LOOKUP(BI$13,'Inputs - Partnership'!$H$34:$K$34,'Inputs - Partnership'!$H$35:$K$35)) -> 0.181 | BJ21: =IF(BJ$13=0,0,LOOKUP(BJ$13,'Inputs - Partnership'!$H$34:$K$34,'Inputs - Partnership'!$H$35:$K$35)) -> 0.181 | BK21: =IF(BK$13=0,0,LOOKUP(BK$13,'Inputs - Partnership'!$H$34:$K$34,'Inputs - Partnership'!$H$35:$K$35)) -> 0.181 | BL21: =IF(BL$13=0,0,LOOKUP(BL$13,'Inputs - Partnership'!$H$34:$K$34,'Inputs - Partnership'!$H$35:$K$35)) -> 0.181 | BM21: =IF(BM$13=0,0,LOOKUP(BM$13,'Inputs - Partnership'!$H$34:$K$34,'Inputs - Partnership'!$H$35:$K$35)) -> 0.181 | BN21: =IF(BN$13=0,0,LOOKUP(BN$13,'Inputs - Partnership'!$H$34:$K$34,'Inputs - Partnership'!$H$35:$K$35)) -> 0.181 | BO21: =IF(BO$13=0,0,LOOKUP(BO$13,'Inputs - Partnership'!$H$34:$K$34,'Inputs - Partnership'!$H$35:$K$35)) -> 0.181 | BP21: =IF(BP$13=0,0,LOOKUP(BP$13,'Inputs - Partnership'!$H$34:$K$34,'Inputs - Partnership'!$H$35:$K$35)) -> 0.181 | BQ21: =IF(BQ$13=0,0,LOOKUP(BQ$13,'Inputs - Partnership'!$H$34:$K$34,'Inputs - Partnership'!$H$35:$K$35)) -> 0.181 | BR21: =IF(BR$13=0,0,LOOKUP(BR$13,'Inputs - Partnership'!$H$34:$K$34,'Inputs - Partnership'!$H$35:$K$35)) -> 0.181 | BS21: =IF(BS$13=0,0,LOOKUP(BS$13,'Inputs - Partnership'!$H$34:$K$34,'Inputs - Partnership'!$H$35:$K$35)) -> 0.181 | BT21: =IF(BT$13=0,0,LOOKUP(BT$13,'Inputs - Partnership'!$H$34:$K$34,'Inputs - Partnership'!$H$35:$K$35)) -> 0.181 | BU21: =IF(BU$13=0,0,LOOKUP(BU$13,'Inputs - Partnership'!$H$34:$K$34,'Inputs - Partnership'!$H$35:$K$35)) -> 0.181 | BV21: =IF(BV$13=0,0,LOOKUP(BV$13,'Inputs - Partnership'!$H$34:$K$34,'Inputs - Partnership'!$H$35:$K$35)) -> 0.181 | BW21: =IF(BW$13=0,0,LOOKUP(BW$13,'Inputs - Partnership'!$H$34:$K$34,'Inputs - Partnership'!$H$35:$K$35)) -> 0.181 | BX21: =IF(BX$13=0,0,LOOKUP(BX$13,'Inputs - Partnership'!$H$34:$K$34,'Inputs - Partnership'!$H$35:$K$35)) -> 0.181 | BY21: =IF(BY$13=0,0,LOOKUP(BY$13,'Inputs - Partnership'!$H$34:$K$34,'Inputs - Partnership'!$H$35:$K$35)) -> 0.181 | BZ21: =IF(BZ$13=0,0,LOOKUP(BZ$13,'Inputs - Partnership'!$H$34:$K$34,'Inputs - Partnership'!$H$35:$K$35)) -> 0.181 | CA21: =IF(CA$13=0,0,LOOKUP(CA$13,'Inputs - Partnership'!$H$34:$K$34,'Inputs - Partnership'!$H$35:$K$35)) -> 0.181 | CB21: =IF(CB$13=0,0,LOOKUP(CB$13,'Inputs - Partnership'!$H$34:$K$34,'Inputs - Partnership'!$H$35:$K$35)) -> 0.181 | CC21: =IF(CC$13=0,0,LOOKUP(CC$13,'Inputs - Partnership'!$H$34:$K$34,'Inputs - Partnership'!$H$35:$K$35)) -> 0.181 | CD21: =IF(CD$13=0,0,LOOKUP(CD$13,'Inputs - Partnership'!$H$34:$K$34,'Inputs - Partnership'!$H$35:$K$35)) -> 0.181 | CE21: =IF(CE$13=0,0,LOOKUP(CE$13,'Inputs - Partnership'!$H$34:$K$34,'Inputs - Partnership'!$H$35:$K$35)) -> 0.181 | CF21: =IF(CF$13=0,0,LOOKUP(CF$13,'Inputs - Partnership'!$H$34:$K$34,'Inputs - Partnership'!$H$35:$K$35)) -> 0.181 | CG21: =IF(CG$13=0,0,LOOKUP(CG$13,'Inputs - Partnership'!$H$34:$K$34,'Inputs - Partnership'!$H$35:$K$35)) -> 0.181 | CH21: =IF(CH$13=0,0,LOOKUP(CH$13,'Inputs - Partnership'!$H$34:$K$34,'Inputs - Partnership'!$H$35:$K$35)) -> 0.181 | CI21: =IF(CI$13=0,0,LOOKUP(CI$13,'Inputs - Partnership'!$H$34:$K$34,'Inputs - Partnership'!$H$35:$K$35)) -> 0.181 | CJ21: =IF(CJ$13=0,0,LOOKUP(CJ$13,'Inputs - Partnership'!$H$34:$K$34,'Inputs - Partnership'!$H$35:$K$35)) -> 0.181 | CK21: =IF(CK$13=0,0,LOOKUP(CK$13,'Inputs - Partnership'!$H$34:$K$34,'Inputs - Partnership'!$H$35:$K$35)) -> 0.181 | CL21: =IF(CL$13=0,0,LOOKUP(CL$13,'Inputs - Partnership'!$H$34:$K$34,'Inputs - Partnership'!$H$35:$K$35)) -> 0.181 | CM21: =IF(CM$13=0,0,LOOKUP(CM$13,'Inputs - Partnership'!$H$34:$K$34,'Inputs - Partnership'!$H$35:$K$35)) -> 0.181 | CN21: =IF(CN$13=0,0,LOOKUP(CN$13,'Inputs - Partnership'!$H$34:$K$34,'Inputs - Partnership'!$H$35:$K$35)) -> 0.181 | CO21: =IF(CO$13=0,0,LOOKUP(CO$13,'Inputs - Partnership'!$H$34:$K$34,'Inputs - Partnership'!$H$35:$K$35)) -> 0.181 | CP21: =IF(CP$13=0,0,LOOKUP(CP$13,'Inputs - Partnership'!$H$34:$K$34,'Inputs - Partnership'!$H$35:$K$35)) -> 0.181 | CQ21: =IF(CQ$13=0,0,LOOKUP(CQ$13,'Inputs - Partnership'!$H$34:$K$34,'Inputs - Partnership'!$H$35:$K$35)) -> 0.181 | CR21: =IF(CR$13=0,0,LOOKUP(CR$13,'Inputs - Partnership'!$H$34:$K$34,'Inputs - Partnership'!$H$35:$K$35)) -> 0.181 | CS21: =IF(CS$13=0,0,LOOKUP(CS$13,'Inputs - Partnership'!$H$34:$K$34,'Inputs - Partnership'!$H$35:$K$35)) -> 0.181 | CT21: =IF(CT$13=0,0,LOOKUP(CT$13,'Inputs - Partnership'!$H$34:$K$34,'Inputs - Partnership'!$H$35:$K$35)) -> 0.181 | CU21: =IF(CU$13=0,0,LOOKUP(CU$13,'Inputs - Partnership'!$H$34:$K$34,'Inputs - Partnership'!$H$35:$K$35)) -> 0.181 | CV21: =IF(CV$13=0,0,LOOKUP(CV$13,'Inputs - Partnership'!$H$34:$K$34,'Inputs - Partnership'!$H$35:$K$35)) -> 0.181 | CW21: =IF(CW$13=0,0,LOOKUP(CW$13,'Inputs - Partnership'!$H$34:$K$34,'Inputs - Partnership'!$H$35:$K$35)) -> 0.181 | CX21: =IF(CX$13=0,0,LOOKUP(CX$13,'Inputs - Partnership'!$H$34:$K$34,'Inputs - Partnership'!$H$35:$K$35)) -> 0.181 | CY21: =IF(CY$13=0,0,LOOKUP(CY$13,'Inputs - Partnership'!$H$34:$K$34,'Inputs - Partnership'!$H$35:$K$35)) -> 0.181 | CZ21: =IF(CZ$13=0,0,LOOKUP(CZ$13,'Inputs - Partnership'!$H$34:$K$34,'Inputs - Partnership'!$H$35:$K$35)) -> 0.181 | DA21: =IF(DA$13=0,0,LOOKUP(DA$13,'Inputs - Partnership'!$H$34:$K$34,'Inputs - Partnership'!$H$35:$K$35)) -> 0.181 | DB21: =IF(DB$13=0,0,LOOKUP(DB$13,'Inputs - Partnership'!$H$34:$K$34,'Inputs - Partnership'!$H$35:$K$35)) -> 0.181 | DC21: =IF(DC$13=0,0,LOOKUP(DC$13,'Inputs - Partnership'!$H$34:$K$34,'Inputs - Partnership'!$H$35:$K$35)) -> 0.181 | DD21: =IF(DD$13=0,0,LOOKUP(DD$13,'Inputs - Partnership'!$H$34:$K$34,'Inputs - Partnership'!$H$35:$K$35)) -> 0.181 | DE21: =IF(DE$13=0,0,LOOKUP(DE$13,'Inputs - Partnership'!$H$34:$K$34,'Inputs - Partnership'!$H$35:$K$35)) -> 0.181 | DF21: =IF(DF$13=0,0,LOOKUP(DF$13,'Inputs - Partnership'!$H$34:$K$34,'Inputs - Partnership'!$H$35:$K$35)) -> 0.181 | DG21: =IF(DG$13=0,0,LOOKUP(DG$13,'Inputs - Partnership'!$H$34:$K$34,'Inputs - Partnership'!$H$35:$K$35)) -> 0.181 | DH21: =IF(DH$13=0,0,LOOKUP(DH$13,'Inputs - Partnership'!$H$34:$K$34,'Inputs - Partnership'!$H$35:$K$35)) -> 0.181 | DI21: =IF(DI$13=0,0,LOOKUP(DI$13,'Inputs - Partnership'!$H$34:$K$34,'Inputs - Partnership'!$H$35:$K$35)) -> 0.181 | DJ21: =IF(DJ$13=0,0,LOOKUP(DJ$13,'Inputs - Partnership'!$H$34:$K$34,'Inputs - Partnership'!$H$35:$K$35)) -> 0.181 | DK21: =IF(DK$13=0,0,LOOKUP(DK$13,'Inputs - Partnership'!$H$34:$K$34,'Inputs - Partnership'!$H$35:$K$35)) -> 0.181 | DL21: =IF(DL$13=0,0,LOOKUP(DL$13,'Inputs - Partnership'!$H$34:$K$34,'Inputs - Partnership'!$H$35:$K$35)) -> 0.181 | DM21: =IF(DM$13=0,0,LOOKUP(DM$13,'Inputs - Partnership'!$H$34:$K$34,'Inputs - Partnership'!$H$35:$K$35)) -> 0.181 | DN21: =IF(DN$13=0,0,LOOKUP(DN$13,'Inputs - Partnership'!$H$34:$K$34,'Inputs - Partnership'!$H$35:$K$35)) -> 0.181 | DO21: =IF(DO$13=0,0,LOOKUP(DO$13,'Inputs - Partnership'!$H$34:$K$34,'Inputs - Partnership'!$H$35:$K$35)) -> 0.181 | DP21: =IF(DP$13=0,0,LOOKUP(DP$13,'Inputs - Partnership'!$H$34:$K$34,'Inputs - Partnership'!$H$35:$K$35)) -> 0.181 | DQ21: =IF(DQ$13=0,0,LOOKUP(DQ$13,'Inputs - Partnership'!$H$34:$K$34,'Inputs - Partnership'!$H$35:$K$35)) -> 0.181 | DR21: =IF(DR$13=0,0,LOOKUP(DR$13,'Inputs - Partnership'!$H$34:$K$34,'Inputs - Partnership'!$H$35:$K$35)) -> 0.181 | DS21: =IF(DS$13=0,0,LOOKUP(DS$13,'Inputs - Partnership'!$H$34:$K$34,'Inputs - Partnership'!$H$35:$K$35)) -> 0.181 | DT21: =IF(DT$13=0,0,LOOKUP(DT$13,'Inputs - Partnership'!$H$34:$K$34,'Inputs - Partnership'!$H$35:$K$35)) -> 0.181 | DU21: =IF(DU$13=0,0,LOOKUP(DU$13,'Inputs - Partnership'!$H$34:$K$34,'Inputs - Partnership'!$H$35:$K$35)) -> 0.181 | DV21: =IF(DV$13=0,0,LOOKUP(DV$13,'Inputs - Partnership'!$H$34:$K$34,'Inputs - Partnership'!$H$35:$K$35)) -> 0.181 | DW21: =IF(DW$13=0,0,LOOKUP(DW$13,'Inputs - Partnership'!$H$34:$K$34,'Inputs - Partnership'!$H$35:$K$35)) -> 0.181 | DX21: =IF(DX$13=0,0,LOOKUP(DX$13,'Inputs - Partnership'!$H$34:$K$34,'Inputs - Partnership'!$H$35:$K$35)) -> 0.181 | DY21: =IF(DY$13=0,0,LOOKUP(DY$13,'Inputs - Partnership'!$H$34:$K$34,'Inputs - Partnership'!$H$35:$K$35)) -> 0.181 | DZ21: =IF(DZ$13=0,0,LOOKUP(DZ$13,'Inputs - Partnership'!$H$34:$K$34,'Inputs - Partnership'!$H$35:$K$35)) -> 0.181 | EA21: =IF(EA$13=0,0,LOOKUP(EA$13,'Inputs - Partnership'!$H$34:$K$34,'Inputs - Partnership'!$H$35:$K$35)) -> 0.181 | EB21: =IF(EB$13=0,0,LOOKUP(EB$13,'Inputs - Partnership'!$H$34:$K$34,'Inputs - Partnership'!$H$35:$K$35)) -> 0.181 | EC21: =IF(EC$13=0,0,LOOKUP(EC$13,'Inputs - Partnership'!$H$34:$K$34,'Inputs - Partnership'!$H$35:$K$35)) -> 0.181 | ED21: =IF(ED$13=0,0,LOOKUP(ED$13,'Inputs - Partnership'!$H$34:$K$34,'Inputs - Partnership'!$H$35:$K$35)) -> 0.181 | EE21: =IF(EE$13=0,0,LOOKUP(EE$13,'Inputs - Partnership'!$H$34:$K$34,'Inputs - Partnership'!$H$35:$K$35)) -> 0.181 | EF21: =IF(EF$13=0,0,LOOKUP(EF$13,'Inputs - Partnership'!$H$34:$K$34,'Inputs - Partnership'!$H$35:$K$35)) -> 0.181 | EG21: =IF(EG$13=0,0,LOOKUP(EG$13,'Inputs - Partnership'!$H$34:$K$34,'Inputs - Partnership'!$H$35:$K$35)) -> 0.181 | EH21: =IF(EH$13=0,0,LOOKUP(EH$13,'Inputs - Partnership'!$H$34:$K$34,'Inputs - Partnership'!$H$35:$K$35)) -> 0.181 | EI21: =IF(EI$13=0,0,LOOKUP(EI$13,'Inputs - Partnership'!$H$34:$K$34,'Inputs - Partnership'!$H$35:$K$35)) -> 0.181 | EJ21: =IF(EJ$13=0,0,LOOKUP(EJ$13,'Inputs - Partnership'!$H$34:$K$34,'Inputs - Partnership'!$H$35:$K$35)) -> 0.181 | EK21: =IF(EK$13=0,0,LOOKUP(EK$13,'Inputs - Partnership'!$H$34:$K$34,'Inputs - Partnership'!$H$35:$K$35)) -> 0.181 | EL21: =IF(EL$13=0,0,LOOKUP(EL$13,'Inputs - Partnership'!$H$34:$K$34,'Inputs - Partnership'!$H$35:$K$35)) -> 0.181 | EM21: =IF(EM$13=0,0,LOOKUP(EM$13,'Inputs - Partnership'!$H$34:$K$34,'Inputs - Partnership'!$H$35:$K$35)) -> 0.181 | EN21: =IF(EN$13=0,0,LOOKUP(EN$13,'Inputs - Partnership'!$H$34:$K$34,'Inputs - Partnership'!$H$35:$K$35)) -> 0.181 | EO21: =IF(EO$13=0,0,LOOKUP(EO$13,'Inputs - Partnership'!$H$34:$K$34,'Inputs - Partnership'!$H$35:$K$35)) -> 0.181 | EP21: =IF(EP$13=0,0,LOOKUP(EP$13,'Inputs - Partnership'!$H$34:$K$34,'Inputs - Partnership'!$H$35:$K$35)) -> 0.181 | EQ21: =IF(EQ$13=0,0,LOOKUP(EQ$13,'Inputs - Partnership'!$H$34:$K$34,'Inputs - Partnership'!$H$35:$K$35)) -> 0.181 | ER21: =IF(ER$13=0,0,LOOKUP(ER$13,'Inputs - Partnership'!$H$34:$K$34,'Inputs - Partnership'!$H$35:$K$35)) -> 0.181 | ES21: =IF(ES$13=0,0,LOOKUP(ES$13,'Inputs - Partnership'!$H$34:$K$34,'Inputs - Partnership'!$H$35:$K$35)) -> 0.181 | ET21: =IF(ET$13=0,0,LOOKUP(ET$13,'Inputs - Partnership'!$H$34:$K$34,'Inputs - Partnership'!$H$35:$K$35)) -> 0.181 | EU21: =IF(EU$13=0,0,LOOKUP(EU$13,'Inputs - Partnership'!$H$34:$K$34,'Inputs - Partnership'!$H$35:$K$35)) -> 0.181 | EV21: =IF(EV$13=0,0,LOOKUP(EV$13,'Inputs - Partnership'!$H$34:$K$34,'Inputs - Partnership'!$H$35:$K$35)) -> 0.181 | EW21: =IF(EW$13=0,0,LOOKUP(EW$13,'Inputs - Partnership'!$H$34:$K$34,'Inputs - Partnership'!$H$35:$K$35)) -> 0.181 | EX21: =IF(EX$13=0,0,LOOKUP(EX$13,'Inputs - Partnership'!$H$34:$K$34,'Inputs - Partnership'!$H$35:$K$35)) -> 0.181 | EY21: =IF(EY$13=0,0,LOOKUP(EY$13,'Inputs - Partnership'!$H$34:$K$34,'Inputs - Partnership'!$H$35:$K$35)) -> 0.181 | EZ21: =IF(EZ$13=0,0,LOOKUP(EZ$13,'Inputs - Partnership'!$H$34:$K$34,'Inputs - Partnership'!$H$35:$K$35)) -> 0.181 | FA21: =IF(FA$13=0,0,LOOKUP(FA$13,'Inputs - Partnership'!$H$34:$K$34,'Inputs - Partnership'!$H$35:$K$35)) -> 0 | FB21: =IF(FB$13=0,0,LOOKUP(FB$13,'Inputs - Partnership'!$H$34:$K$34,'Inputs - Partnership'!$H$35:$K$35)) -> 0 | FC21: =IF(FC$13=0,0,LOOKUP(FC$13,'Inputs - Partnership'!$H$34:$K$34,'Inputs - Partnership'!$H$35:$K$35)) -> 0 | FD21: =IF(FD$13=0,0,LOOKUP(FD$13,'Inputs - Partnership'!$H$34:$K$34,'Inputs - Partnership'!$H$35:$K$35)) -> 0 | FE21: =IF(FE$13=0,0,LOOKUP(FE$13,'Inputs - Partnership'!$H$34:$K$34,'Inputs - Partnership'!$H$35:$K$35)) -> 0 | FF21: =IF(FF$13=0,0,LOOKUP(FF$13,'Inputs - Partnership'!$H$34:$K$34,'Inputs - Partnership'!$H$35:$K$35)) -> 0 | FG21: =IF(FG$13=0,0,LOOKUP(FG$13,'Inputs - Partnership'!$H$34:$K$34,'Inputs - Partnership'!$H$35:$K$35)) -> 0 | FH21: =IF(FH$13=0,0,LOOKUP(FH$13,'Inputs - Partnership'!$H$34:$K$34,'Inputs - Partnership'!$H$35:$K$35)) -> 0 | FI21: =IF(FI$13=0,0,LOOKUP(FI$13,'Inputs - Partnership'!$H$34:$K$34,'Inputs - Partnership'!$H$35:$K$35)) -> 0 | FJ21: =IF(FJ$13=0,0,LOOKUP(FJ$13,'Inputs - Partnership'!$H$34:$K$34,'Inputs - Partnership'!$H$35:$K$35)) -> 0 | FK21: =IF(FK$13=0,0,LOOKUP(FK$13,'Inputs - Partnership'!$H$34:$K$34,'Inputs - Partnership'!$H$35:$K$35)) -> 0 | FL21: =IF(FL$13=0,0,LOOKUP(FL$13,'Inputs - Partnership'!$H$34:$K$34,'Inputs - Partnership'!$H$35:$K$35)) -> 0 | FM21: =IF(FM$13=0,0,LOOKUP(FM$13,'Inputs - Partnership'!$H$34:$K$34,'Inputs - Partnership'!$H$35:$K$35)) -> 0 | FN21: =IF(FN$13=0,0,LOOKUP(FN$13,'Inputs - Partnership'!$H$34:$K$34,'Inputs - Partnership'!$H$35:$K$35)) -> 0 | FO21: =IF(FO$13=0,0,LOOKUP(FO$13,'Inputs - Partnership'!$H$34:$K$34,'Inputs - Partnership'!$H$35:$K$35)) -> 0 | FP21: =IF(FP$13=0,0,LOOKUP(FP$13,'Inputs - Partnership'!$H$34:$K$34,'Inputs - Partnership'!$H$35:$K$35)) -> 0 | FQ21: =IF(FQ$13=0,0,LOOKUP(FQ$13,'Inputs - Partnership'!$H$34:$K$34,'Inputs - Partnership'!$H$35:$K$35)) -> 0 | FR21: =IF(FR$13=0,0,LOOKUP(FR$13,'Inputs - Partnership'!$H$34:$K$34,'Inputs - Partnership'!$H$35:$K$35)) -> 0 | FS21: =IF(FS$13=0,0,LOOKUP(FS$13,'Inputs - Partnership'!$H$34:$K$34,'Inputs - Partnership'!$H$35:$K$35)) -> 0
C22: Grid availability | D22: % | E22: ='Inputs - Partnership'!E35 -> 1 | I22: =$E22*I$6 -> 0 | J22: =$E$22*J6 -> 0 | K22: 0 | L22: 0 | M22: 0 | N22: 0 | O22: 0 | P22: 0 | Q22: 1 | R22: 1 | S22: 1 | T22: 1 | U22: 1 | V22: 1 | W22: 1 | X22: 1 | Y22: 1 | Z22: 1 | AA22: 1 | AB22: 1 | AC22: 1 | AD22: 1 | AE22: 1 | AF22: 1 | AG22: 1 | AH22: 1 | AI22: 1 | AJ22: 1 | AK22: 1 | AL22: 1 | AM22: 1 | AN22: 1 | AO22: 1 | AP22: 1 | AQ22: 1 | AR22: 1 | AS22: 1 | AT22: 1 | AU22: 1 | AV22: 1 | AW22: 1 | AX22: 1 | AY22: 1 | AZ22: 1 | BA22: 1 | BB22: 1 | BC22: 1 | BD22: 1 | BE22: 1 | BF22: 1 | BG22: 1 | BH22: 1 | BI22: 1 | BJ22: 1 | BK22: 1 | BL22: 1 | BM22: 1 | BN22: 1 | BO22: 1 | BP22: 1 | BQ22: 1 | BR22: 1 | BS22: 1 | BT22: 1 | BU22: =$E$22*BU6 -> 1 | BV22: 1 | BW22: 1 | BX22: 1 | BY22: 1 | BZ22: 1 | CA22: 1 | CB22: 1 | CC22: 1 | CD22: 1 | CE22: 1 | CF22: 1 | CG22: 1 | CH22: 1 | CI22: 1 | CJ22: 1 | CK22: 1 | CL22: 1 | CM22: 1 | CN22: 1 | CO22: 1 | CP22: 1 | CQ22: 1 | CR22: 1 | CS22: 1 | CT22: 1 | CU22: 1 | CV22: 1 | CW22: 1 | CX22: 1 | CY22: 1 | CZ22: 1 | DA22: 1 | DB22: 1 | DC22: 1 | DD22: 1 | DE22: 1 | DF22: 1 | DG22: 1 | DH22: 1 | DI22: 1 | DJ22: 1 | DK22: 1 | DL22: 1 | DM22: 1 | DN22: 1 | DO22: 1 | DP22: 1 | DQ22: 1 | DR22: 1 | DS22: 1 | DT22: 1 | DU22: 1 | DV22: 1 | DW22: 1 | DX22: 1 | DY22: 1 | DZ22: 1 | EA22: 1 | EB22: 1 | EC22: 1 | ED22: 1 | EE22: 1 | EF22: 1 | EG22: =$E$22*EG6 -> 1 | EH22: 1 | EI22: 1 | EJ22: 1 | EK22: 1 | EL22: 1 | EM22: 1 | EN22: 1 | EO22: 1 | EP22: 1 | EQ22: 1 | ER22: 1 | ES22: 1 | ET22: 1 | EU22: 1 | EV22: 1 | EW22: 1 | EX22: 1 | EY22: 1 | EZ22: 1 | FA22: 0 | FB22: 0 | FC22: 0 | FD22: 0 | FE22: 0 | FF22: 0 | FG22: 0 | FH22: 0 | FI22: 0 | FJ22: 0 | FK22: 0 | FL22: 0 | FM22: 0 | FN22: 0 | FO22: 0 | FP22: 0 | FQ22: 0 | FR22: 0 | FS22: 0
C23: P50 Production ratio | D23: kWh/kW | E23: ='Inputs - Partnership'!I30 -> 2785.68 | I23: =$E23*I$6 -> 0 | J23: 0 | K23: 0 | L23: 0 | M23: 0 | N23: 0 | O23: 0 | P23: 0 | Q23: 2785.68 | R23: 2785.68 | S23: 2785.68 | T23: 2785.68 | U23: 2785.68 | V23: 2785.68 | W23: 2785.68 | X23: 2785.68 | Y23: =$E23*Y$6 -> 2785.68 | Z23: 2785.68 | AA23: 2785.68 | AB23: 2785.68 | AC23: 2785.68 | AD23: 2785.68 | AE23: 2785.68 | AF23: 2785.68 | AG23: 2785.68 | AH23: 2785.68 | AI23: 2785.68 | AJ23: 2785.68 | AK23: 2785.68 | AL23: 2785.68 | AM23: 2785.68 | AN23: 2785.68 | AO23: 2785.68 | AP23: 2785.68 | AQ23: 2785.68 | AR23: 2785.68 | AS23: 2785.68 | AT23: 2785.68 | AU23: 2785.68 | AV23: 2785.68 | AW23: 2785.68 | AX23: 2785.68 | AY23: 2785.68 | AZ23: 2785.68 | BA23: 2785.68 | BB23: 2785.68 | BC23: 2785.68 | BD23: 2785.68 | BE23: 2785.68 | BF23: 2785.68 | BG23: 2785.68 | BH23: 2785.68 | BI23: 2785.68 | BJ23: 2785.68 | BK23: 2785.68 | BL23: 2785.68 | BM23: 2785.68 | BN23: 2785.68 | BO23: 2785.68 | BP23: 2785.68 | BQ23: 2785.68 | BR23: 2785.68 | BS23: 2785.68 | BT23: 2785.68 | BU23: 2785.68 | BV23: 2785.68 | BW23: 2785.68 | BX23: 2785.68 | BY23: 2785.68 | BZ23: 2785.68 | CA23: 2785.68 | CB23: 2785.68 | CC23: 2785.68 | CD23: 2785.68 | CE23: 2785.68 | CF23: 2785.68 | CG23: 2785.68 | CH23: 2785.68 | CI23: 2785.68 | CJ23: 2785.68 | CK23: =$E23*CK$6 -> 2785.68 | CL23: 2785.68 | CM23: 2785.68 | CN23: 2785.68 | CO23: 2785.68 | CP23: 2785.68 | CQ23: 2785.68 | CR23: 2785.68 | CS23: 2785.68 | CT23: 2785.68 | CU23: 2785.68 | CV23: 2785.68 | CW23: 2785.68 | CX23: 2785.68 | CY23: 2785.68 | CZ23: 2785.68 | DA23: 2785.68 | DB23: 2785.68 | DC23: 2785.68 | DD23: 2785.68 | DE23: 2785.68 | DF23: 2785.68 | DG23: 2785.68 | DH23: 2785.68 | DI23: 2785.68 | DJ23: 2785.68 | DK23: 2785.68 | DL23: 2785.68 | DM23: 2785.68 | DN23: 2785.68 | DO23: 2785.68 | DP23: 2785.68 | DQ23: 2785.68 | DR23: 2785.68 | DS23: 2785.68 | DT23: 2785.68 | DU23: 2785.68 | DV23: 2785.68 | DW23: 2785.68 | DX23: 2785.68 | DY23: 2785.68 | DZ23: 2785.68 | EA23: 2785.68 | EB23: 2785.68 | EC23: 2785.68 | ED23: 2785.68 | EE23: 2785.68 | EF23: 2785.68 | EG23: 2785.68 | EH23: 2785.68 | EI23: 2785.68 | EJ23: 2785.68 | EK23: 2785.68 | EL23: 2785.68 | EM23: 2785.68 | EN23: 2785.68 | EO23: 2785.68 | EP23: 2785.68 | EQ23: 2785.68 | ER23: 2785.68 | ES23: 2785.68 | ET23: 2785.68 | EU23: 2785.68 | EV23: 2785.68 | EW23: =$E23*EW$6 -> 2785.68 | EX23: 2785.68 | EY23: 2785.68 | EZ23: 2785.68 | FA23: 0 | FB23: 0 | FC23: 0 | FD23: 0 | FE23: 0 | FF23: 0 | FG23: 0 | FH23: 0 | FI23: 0 | FJ23: 0 | FK23: 0 | FL23: 0 | FM23: 0 | FN23: 0 | FO23: 0 | FP23: 0 | FQ23: 0 | FR23: 0 | FS23: 0
C24: Total generation - P50 | D24: MWh | H24: =SUM(I24:FS24) -> 14545976.63 | I24: =I23*I22*I21*I20 -> 0 | J24: 0 | K24: 0 | L24: 0 | M24: 0 | N24: 0 | O24: 0 | P24: 0 | Q24: 125355.6 | R24: 203702.85 | S24: 184272.732 | T24: 113446.818 | U24: 112770.1968 | V24: 112770.1968 | W24: 112770.1968 | X24: 112770.1968 | Y24: 112097.6112 | Z24: 112097.6112 | AA24: 112097.6112 | AB24: 112097.6112 | AC24: 111429.0369 | AD24: 111429.0369 | AE24: 111429.0369 | AF24: 111429.0369 | AG24: 110764.4502 | AH24: 110764.4502 | AI24: 110764.4502 | AJ24: 110764.4502 | AK24: 110103.8273 | AL24: 110103.8273 | AM24: 110103.8273 | AN24: 110103.8273 | AO24: =AO23*AO22*AO21*AO20 -> 109447.1444 | AP24: 109447.1444 | AQ24: 109447.1444 | AR24: 109447.1444 | AS24: 108794.3781 | AT24: 108794.3781 | AU24: 108794.3781 | AV24: 108794.3781 | AW24: 108145.5051 | AX24: 108145.5051 | AY24: 108145.5051 | AZ24: 108145.5051 | BA24: 107500.5021 | BB24: 107500.5021 | BC24: 107500.5021 | BD24: 107500.5021 | BE24: 106859.346 | BF24: 106859.346 | BG24: 106859.346 | BH24: 106859.346 | BI24: 106222.0139 | BJ24: 106222.0139 | BK24: 106222.0139 | BL24: 106222.0139 | BM24: 105588.483 | BN24: 105588.483 | BO24: 105588.483 | BP24: 105588.483 | BQ24: 104958.7306 | BR24: 104958.7306 | BS24: 104958.7306 | BT24: 104958.7306 | BU24: =BU23*BU22*BU21*BU20 -> 104332.7342 | BV24: 104332.7342 | BW24: 104332.7342 | BX24: 104332.7342 | BY24: 103710.4714 | BZ24: 103710.4714 | CA24: 103710.4714 | CB24: 103710.4714 | CC24: 103091.9199 | CD24: 103091.9199 | CE24: 103091.9199 | CF24: 103091.9199 | CG24: 102477.0575 | CH24: 102477.0575 | CI24: 102477.0575 | CJ24: 102477.0575 | CK24: 101865.8624 | CL24: 101865.8624 | CM24: 101865.8624 | CN24: 101865.8624 | CO24: 101258.3125 | CP24: 101258.3125 | CQ24: 101258.3125 | CR24: 101258.3125 | CS24: 100654.3862 | CT24: 100654.3862 | CU24: 100654.3862 | CV24: 100654.3862 | CW24: 100054.0618 | CX24: 100054.0618 | CY24: 100054.0618 | CZ24: 100054.0618 | DA24: =DA23*DA22*DA21*DA20 -> 99457.3179 | DB24: 99457.3179 | DC24: 99457.3179 | DD24: 99457.3179 | DE24: 98864.1331 | DF24: 98864.1331 | DG24: 98864.1331 | DH24: 98864.1331 | DI24: 98274.48619 | DJ24: 98274.48619 | DK24: 98274.48619 | DL24: 98274.48619 | DM24: 97688.35605 | DN24: 97688.35605 | DO24: 97688.35605 | DP24: 97688.35605 | DQ24: 97105.72172 | DR24: 97105.72172 | DS24: 97105.72172 | DT24: 97105.72172 | DU24: 96526.56235 | DV24: 96526.56235 | DW24: 96526.56235 | DX24: 96526.56235 | DY24: 95950.8572 | DZ24: 95950.8572 | EA24: 95950.8572 | EB24: 95950.8572 | EC24: 95378.58569 | ED24: 95378.58569 | EE24: 95378.58569 | EF24: 95378.58569 | EG24: =EG23*EG22*EG21*EG20 -> 94809.72732 | EH24: 94809.72732 | EI24: 94809.72732 | EJ24: 94809.72732 | EK24: 94244.26175 | EL24: 94244.26175 | EM24: 94244.26175 | EN24: 94244.26175 | EO24: 93682.16874 | EP24: 93682.16874 | EQ24: 93682.16874 | ER24: 93682.16874 | ES24: 93123.42817 | ET24: 93123.42817 | EU24: 93123.42817 | EV24: 93123.42817 | EW24: 92568.02005 | EX24: 92568.02005 | EY24: 92568.02005 | EZ24: 92568.02005 | FA24: 0 | FB24: 0 | FC24: 0 | FD24: 0 | FE24: 0 | FF24: 0 | FG24: 0 | FH24: 0 | FI24: 0 | FJ24: 0 | FK24: 0 | FL24: 0 | FM24: =FM23*FM22*FM21*FM20 -> 0 | FN24: 0 | FO24: 0 | FP24: 0 | FQ24: 0 | FR24: 0 | FS24: 0
B26: Revenue
C27: PPA 1
C28: PPA 1 period flag | D28: Flag | E28: ='Inputs - Partnership'!G41 -> 2021-12-31 | F28: ='Inputs - Partnership'!H41 -> 2036-12-31 | I28: =IF(AND(I$2>=$E28,I$3<=$F28),1,0) -> 0 | J28: 0 | K28: 0 | L28: 0 | M28: 0 | N28: 0 | O28: 0 | P28: 0 | Q28: 1 | R28: 1 | S28: 1 | T28: 1 | U28: 1 | V28: 1 | W28: 1 | X28: 1 | Y28: 1 | Z28: 1 | AA28: 1 | AB28: 1 | AC28: 1 | AD28: 1 | AE28: 1 | AF28: 1 | AG28: 1 | AH28: 1 | AI28: 1 | AJ28: 1 | AK28: 1 | AL28: 1 | AM28: 1 | AN28: 1 | AO28: =IF(AND(AO$2>=$E28,AO$3<=$F28),1,0) -> 1 | AP28: 1 | AQ28: 1 | AR28: 1 | AS28: 1 | AT28: 1 | AU28: 1 | AV28: 1 | AW28: 1 | AX28: 1 | AY28: 1 | AZ28: 1 | BA28: 1 | BB28: 1 | BC28: 1 | BD28: 1 | BE28: 1 | BF28: 1 | BG28: 1 | BH28: 1 | BI28: 1 | BJ28: 1 | BK28: 1 | BL28: 1 | BM28: 1 | BN28: 1 | BO28: 1 | BP28: 1 | BQ28: 1 | BR28: 1 | BS28: 1 | BT28: 1 | BU28: =IF(AND(BU$2>=$E28,BU$3<=$F28),1,0) -> 1 | BV28: 1 | BW28: 1 | BX28: 1 | BY28: 0 | BZ28: 0 | CA28: 0 | CB28: 0 | CC28: 0 | CD28: 0 | CE28: 0 | CF28: 0 | CG28: 0 | CH28: 0 | CI28: 0 | CJ28: 0 | CK28: 0 | CL28: 0 | CM28: 0 | CN28: 0 | CO28: 0 | CP28: 0 | CQ28: 0 | CR28: 0 | CS28: 0 | CT28: 0 | CU28: 0 | CV28: 0 | CW28: 0 | CX28: 0 | CY28: 0 | CZ28: 0 | DA28: =IF(AND(DA$2>=$E28,DA$3<=$F28),1,0) -> 0 | DB28: 0 | DC28: 0 | DD28: 0 | DE28: 0 | DF28: 0 | DG28: 0 | DH28: 0 | DI28: 0 | DJ28: 0 | DK28: 0 | DL28: 0 | DM28: 0 | DN28: 0 | DO28: 0 | DP28: 0 | DQ28: 0 | DR28: 0 | DS28: 0 | DT28: 0 | DU28: 0 | DV28: 0 | DW28: 0 | DX28: 0 | DY28: 0 | DZ28: 0 | EA28: 0 | EB28: 0 | EC28: 0 | ED28: 0 | EE28: 0 | EF28: 0 | EG28: =IF(AND(EG$2>=$E28,EG$3<=$F28),1,0) -> 0 | EH28: 0 | EI28: 0 | EJ28: 0 | EK28: 0 | EL28: 0 | EM28: 0 | EN28: 0 | EO28: 0 | EP28: 0 | EQ28: 0 | ER28: 0 | ES28: 0 | ET28: 0 | EU28: 0 | EV28: 0 | EW28: 0 | EX28: 0 | EY28: 0 | EZ28: 0 | FA28: 0 | FB28: 0 | FC28: 0 | FD28: 0 | FE28: 0 | FF28: 0 | FG28: 0 | FH28: 0 | FI28: 0 | FJ28: 0 | FK28: 0 | FL28: 0 | FM28: =IF(AND(FM$2>=$E28,FM$3<=$F28),1,0) -> 0 | FN28: 0 | FO28: 0 | FP28: 0 | FQ28: 0 | FR28: 0 | FS28: 0
C29: Production | D29: MWh | E29: ='Inputs - Partnership'!E42 -> 0.6 | I29: =$E29*I$24*I28 -> 0 | J29: 0 | K29: 0 | L29: 0 | M29: 0 | N29: 0 | O29: 0 | P29: 0 | Q29: 75213.36 | R29: 122221.71 | S29: 110563.6392 | T29: 68068.0908 | U29: 67662.11809 | V29: 67662.11809 | W29: 67662.11809 | X29: 67662.11809 | Y29: 67258.56669 | Z29: 67258.56669 | AA29: 67258.56669 | AB29: 67258.56669 | AC29: 66857.42216 | AD29: 66857.42216 | AE29: 66857.42216 | AF29: 66857.42216 | AG29: 66458.67014 | AH29: 66458.67014 | AI29: 66458.67014 | AJ29: 66458.67014 | AK29: 66062.29636 | AL29: 66062.29636 | AM29: 66062.29636 | AN29: 66062.29636 | AO29: 65668.28664 | AP29: 65668.28664 | AQ29: 65668.28664 | AR29: 65668.28664 | AS29: 65276.62688 | AT29: 65276.62688 | AU29: 65276.62688 | AV29: 65276.62688 | AW29: 64887.30306 | AX29: 64887.30306 | AY29: 64887.30306 | AZ29: 64887.30306 | BA29: 64500.30125 | BB29: 64500.30125 | BC29: 64500.30125 | BD29: 64500.30125 | BE29: 64115.60761 | BF29: 64115.60761 | BG29: 64115.60761 | BH29: 64115.60761 | BI29: 63733.20836 | BJ29: 63733.20836 | BK29: 63733.20836 | BL29: 63733.20836 | BM29: 63353.08982 | BN29: 63353.08982 | BO29: 63353.08982 | BP29: 63353.08982 | BQ29: 62975.23839 | BR29: 62975.23839 | BS29: 62975.23839 | BT29: 62975.23839 | BU29: =$E29*BU$24*BU28 -> 62599.64054 | BV29: 62599.64054 | BW29: 62599.64054 | BX29: 62599.64054 | BY29: 0 | BZ29: 0 | CA29: 0 | CB29: 0 | CC29: 0 | CD29: 0 | CE29: 0 | CF29: 0 | CG29: 0 | CH29: 0 | CI29: 0 | CJ29: 0 | CK29: 0 | CL29: 0 | CM29: 0 | CN29: 0 | CO29: 0 | CP29: 0 | CQ29: 0 | CR29: 0 | CS29: 0 | CT29: 0 | CU29: 0 | CV29: 0 | CW29: 0 | CX29: 0 | CY29: 0 | CZ29: 0 | DA29: 0 | DB29: 0 | DC29: 0 | DD29: 0 | DE29: 0 | DF29: 0 | DG29: 0 | DH29: 0 | DI29: 0 | DJ29: 0 | DK29: 0 | DL29: 0 | DM29: 0 | DN29: 0 | DO29: 0 | DP29: 0 | DQ29: 0 | DR29: 0 | DS29: 0 | DT29: 0 | DU29: 0 | DV29: 0 | DW29: 0 | DX29: 0 | DY29: 0 | DZ29: 0 | EA29: 0 | EB29: 0 | EC29: 0 | ED29: 0 | EE29: 0 | EF29: 0 | EG29: =$E29*EG$24*EG28 -> 0 | EH29: 0 | EI29: 0 | EJ29: 0 | EK29: 0 | EL29: 0 | EM29: 0 | EN29: 0 | EO29: 0 | EP29: 0 | EQ29: 0 | ER29: 0 | ES29: 0 | ET29: 0 | EU29: 0 | EV29: 0 | EW29: 0 | EX29: 0 | EY29: 0 | EZ29: 0 | FA29: 0 | FB29: 0 | FC29: 0 | FD29: 0 | FE29: 0 | FF29: 0 | FG29: 0 | FH29: 0 | FI29: 0 | FJ29: 0 | FK29: 0 | FL29: 0 | FM29: 0 | FN29: 0 | FO29: 0 | FP29: 0 | FQ29: 0 | FR29: 0 | FS29: 0
C30: Price | D30: $ / MWh | E30: ='Inputs - Partnership'!E40 -> 38 | I30: =$E30*((1+($E31/4))^I$15)*I28 -> 0 | J30: 0 | K30: 0 | L30: 0 | M30: 0 | N30: 0 | O30: 0 | P30: 0 | Q30: 38 | R30: 38 | S30: 38 | T30: 38 | U30: 38.2375 | V30: 38.2375 | W30: 38.2375 | X30: 38.2375 | Y30: 38.47648438 | Z30: 38.47648438 | AA30: 38.47648438 | AB30: 38.47648438 | AC30: 38.7169624 | AD30: 38.7169624 | AE30: 38.7169624 | AF30: 38.7169624 | AG30: 38.95894342 | AH30: 38.95894342 | AI30: 38.95894342 | AJ30: 38.95894342 | AK30: 39.20243681 | AL30: 39.20243681 | AM30: 39.20243681 | AN30: 39.20243681 | AO30: =$E30*((1+($E31/4))^AO$15)*AO28 -> 39.44745204 | AP30: 39.44745204 | AQ30: 39.44745204 | AR30: 39.44745204 | AS30: 39.69399862 | AT30: 39.69399862 | AU30: 39.69399862 | AV30: 39.69399862 | AW30: 39.94208611 | AX30: 39.94208611 | AY30: 39.94208611 | AZ30: 39.94208611 | BA30: 40.19172415 | BB30: 40.19172415 | BC30: 40.19172415 | BD30: 40.19172415 | BE30: 40.44292242 | BF30: 40.44292242 | BG30: 40.44292242 | BH30: 40.44292242 | BI30: 40.69569069 | BJ30: 40.69569069 | BK30: 40.69569069 | BL30: 40.69569069 | BM30: 40.95003876 | BN30: 40.95003876 | BO30: 40.95003876 | BP30: 40.95003876 | BQ30: 41.2059765 | BR30: 41.2059765 | BS30: 41.2059765 | BT30: 41.2059765 | BU30: =$E30*((1+($E31/4))^BU$15)*BU28 -> 41.46351385 | BV30: 41.46351385 | BW30: 41.46351385 | BX30: 41.46351385 | BY30: 0 | BZ30: 0 | CA30: 0 | CB30: 0 | CC30: 0 | CD30: 0 | CE30: 0 | CF30: 0 | CG30: 0 | CH30: 0 | CI30: 0 | CJ30: 0 | CK30: 0 | CL30: 0 | CM30: 0 | CN30: 0 | CO30: 0 | CP30: 0 | CQ30: 0 | CR30: 0 | CS30: 0 | CT30: 0 | CU30: 0 | CV30: 0 | CW30: 0 | CX30: 0 | CY30: 0 | CZ30: 0 | DA30: =$E30*((1+($E31/4))^DA$15)*DA28 -> 0 | DB30: 0 | DC30: 0 | DD30: 0 | DE30: 0 | DF30: 0 | DG30: 0 | DH30: 0 | DI30: 0 | DJ30: 0 | DK30: 0 | DL30: 0 | DM30: 0 | DN30: 0 | DO30: 0 | DP30: 0 | DQ30: 0 | DR30: 0 | DS30: 0 | DT30: 0 | DU30: 0 | DV30: 0 | DW30: 0 | DX30: 0 | DY30: 0 | DZ30: 0 | EA30: 0 | EB30: 0 | EC30: 0 | ED30: 0 | EE30: 0 | EF30: 0 | EG30: =$E30*((1+($E31/4))^EG$15)*EG28 -> 0 | EH30: 0 | EI30: 0 | EJ30: 0 | EK30: 0 | EL30: 0 | EM30: 0 | EN30: 0 | EO30: 0 | EP30: 0 | EQ30: 0 | ER30: 0 | ES30: 0 | ET30: 0 | EU30: 0 | EV30: 0 | EW30: 0 | EX30: 0 | EY30: 0 | EZ30: 0 | FA30: 0 | FB30: 0 | FC30: 0 | FD30: 0 | FE30: 0 | FF30: 0 | FG30: 0 | FH30: 0 | FI30: 0 | FJ30: 0 | FK30: 0 | FL30: 0 | FM30: =$E30*((1+($E31/4))^FM$15)*FM28 -> 0 | FN30: 0 | FO30: 0 | FP30: 0 | FQ30: 0 | FR30: 0 | FS30: 0
C31: Escalation | E31: ='Inputs - Partnership'!E44 -> 0.025
C32: PPA 1 revenue | D32: USD '000 | H32: =SUM(I32:FS32) -> 159409.6984 | I32: =I29*I30/1000 -> 0 | J32: 0 | K32: 0 | L32: 0 | M32: 0 | N32: 0 | O32: 0 | P32: 0 | Q32: 2858.10768 | R32: 4644.42498 | S32: 4201.41829 | T32: 2586.58745 | U32: 2587.230241 | V32: 2587.230241 | W32: 2587.230241 | X32: 2587.230241 | Y32: 2587.87319 | Z32: 2587.87319 | AA32: 2587.87319 | AB32: 2587.87319 | AC32: 2588.5163 | AD32: 2588.5163 | AE32: 2588.5163 | AF32: 2588.5163 | AG32: 2589.159569 | AH32: 2589.159569 | AI32: 2589.159569 | AJ32: 2589.159569 | AK32: 2589.802999 | AL32: 2589.802999 | AM32: 2589.802999 | AN32: 2589.802999 | AO32: =AO29*AO30/1000 -> 2590.446588 | AP32: 2590.446588 | AQ32: 2590.446588 | AR32: 2590.446588 | AS32: 2591.090337 | AT32: 2591.090337 | AU32: 2591.090337 | AV32: 2591.090337 | AW32: 2591.734246 | AX32: 2591.734246 | AY32: 2591.734246 | AZ32: 2591.734246 | BA32: 2592.378315 | BB32: 2592.378315 | BC32: 2592.378315 | BD32: 2592.378315 | BE32: 2593.022545 | BF32: 2593.022545 | BG32: 2593.022545 | BH32: 2593.022545 | BI32: 2593.666934 | BJ32: 2593.666934 | BK32: 2593.666934 | BL32: 2593.666934 | BM32: 2594.311483 | BN32: 2594.311483 | BO32: 2594.311483 | BP32: 2594.311483 | BQ32: 2594.956193 | BR32: 2594.956193 | BS32: 2594.956193 | BT32: 2594.956193 | BU32: =BU29*BU30/1000 -> 2595.601063 | BV32: 2595.601063 | BW32: 2595.601063 | BX32: 2595.601063 | BY32: 0 | BZ32: 0 | CA32: 0 | CB32: 0 | CC32: 0 | CD32: 0 | CE32: 0 | CF32: 0 | CG32: 0 | CH32: 0 | CI32: 0 | CJ32: 0 | CK32: 0 | CL32: 0 | CM32: 0 | CN32: 0 | CO32: 0 | CP32: 0 | CQ32: 0 | CR32: 0 | CS32: 0 | CT32: 0 | CU32: 0 | CV32: 0 | CW32: 0 | CX32: 0 | CY32: 0 | CZ32: 0 | DA32: =DA29*DA30/1000 -> 0 | DB32: 0 | DC32: 0 | DD32: 0 | DE32: 0 | DF32: 0 | DG32: 0 | DH32: 0 | DI32: 0 | DJ32: 0 | DK32: 0 | DL32: 0 | DM32: 0 | DN32: 0 | DO32: 0 | DP32: 0 | DQ32: 0 | DR32: 0 | DS32: 0 | DT32: 0 | DU32: 0 | DV32: 0 | DW32: 0 | DX32: 0 | DY32: 0 | DZ32: 0 | EA32: 0 | EB32: 0 | EC32: 0 | ED32: 0 | EE32: 0 | EF32: 0 | EG32: =EG29*EG30/1000 -> 0 | EH32: 0 | EI32: 0 | EJ32: 0 | EK32: 0 | EL32: 0 | EM32: 0 | EN32: 0 | EO32: 0 | EP32: 0 | EQ32: 0 | ER32: 0 | ES32: 0 | ET32: 0 | EU32: 0 | EV32: 0 | EW32: 0 | EX32: 0 | EY32: 0 | EZ32: 0 | FA32: 0 | FB32: 0 | FC32: 0 | FD32: 0 | FE32: 0 | FF32: 0 | FG32: 0 | FH32: 0 | FI32: 0 | FJ32: 0 | FK32: 0 | FL32: 0 | FM32: =FM29*FM30/1000 -> 0 | FN32: 0 | FO32: 0 | FP32: 0 | FQ32: 0 | FR32: 0 | FS32: 0
C34: PPA 2
C35: PPA 2 period flag | D35: Flag | E35: ='Inputs - Partnership'!G53 -> 2022-01-01 | F35: ='Inputs - Partnership'!H53 -> 2042-01-31 | I35: =IF(AND(I$2>=$E35,I$3<=$F35),1,0) -> 0 | J35: 0 | K35: 0 | L35: 0 | M35: 0 | N35: 0 | O35: 0 | P35: 0 | Q35: 1 | R35: 1 | S35: 1 | T35: 1 | U35: 1 | V35: 1 | W35: 1 | X35: 1 | Y35: 1 | Z35: 1 | AA35: 1 | AB35: 1 | AC35: 1 | AD35: 1 | AE35: 1 | AF35: 1 | AG35: 1 | AH35: 1 | AI35: 1 | AJ35: 1 | AK35: 1 | AL35: 1 | AM35: 1 | AN35: 1 | AO35: =IF(AND(AO$2>=$E35,AO$3<=$F35),1,0) -> 1 | AP35: 1 | AQ35: 1 | AR35: 1 | AS35: 1 | AT35: 1 | AU35: 1 | AV35: 1 | AW35: 1 | AX35: 1 | AY35: 1 | AZ35: 1 | BA35: 1 | BB35: 1 | BC35: 1 | BD35: 1 | BE35: 1 | BF35: 1 | BG35: 1 | BH35: 1 | BI35: 1 | BJ35: 1 | BK35: 1 | BL35: 1 | BM35: 1 | BN35: 1 | BO35: 1 | BP35: 1 | BQ35: 1 | BR35: 1 | BS35: 1 | BT35: 1 | BU35: =IF(AND(BU$2>=$E35,BU$3<=$F35),1,0) -> 1 | BV35: 1 | BW35: 1 | BX35: 1 | BY35: 1 | BZ35: 1 | CA35: 1 | CB35: 1 | CC35: 1 | CD35: 1 | CE35: 1 | CF35: 1 | CG35: 1 | CH35: 1 | CI35: 1 | CJ35: 1 | CK35: 1 | CL35: 1 | CM35: 1 | CN35: 1 | CO35: 1 | CP35: 1 | CQ35: 1 | CR35: 1 | CS35: 0 | CT35: 0 | CU35: 0 | CV35: 0 | CW35: 0 | CX35: 0 | CY35: 0 | CZ35: 0 | DA35: =IF(AND(DA$2>=$E35,DA$3<=$F35),1,0) -> 0 | DB35: 0 | DC35: 0 | DD35: 0 | DE35: 0 | DF35: 0 | DG35: 0 | DH35: 0 | DI35: 0 | DJ35: 0 | DK35: 0 | DL35: 0 | DM35: 0 | DN35: 0 | DO35: 0 | DP35: 0 | DQ35: 0 | DR35: 0 | DS35: 0 | DT35: 0 | DU35: 0 | DV35: 0 | DW35: 0 | DX35: 0 | DY35: 0 | DZ35: 0 | EA35: 0 | EB35: 0 | EC35: 0 | ED35: 0 | EE35: 0 | EF35: 0 | EG35: =IF(AND(EG$2>=$E35,EG$3<=$F35),1,0) -> 0 | EH35: 0 | EI35: 0 | EJ35: 0 | EK35: 0 | EL35: 0 | EM35: 0 | EN35: 0 | EO35: 0 | EP35: 0 | EQ35: 0 | ER35: 0 | ES35: 0 | ET35: 0 | EU35: 0 | EV35: 0 | EW35: 0 | EX35: 0 | EY35: 0 | EZ35: 0 | FA35: 0 | FB35: 0 | FC35: 0 | FD35: 0 | FE35: 0 | FF35: 0 | FG35: 0 | FH35: 0 | FI35: 0 | FJ35: 0 | FK35: 0 | FL35: 0 | FM35: =IF(AND(FM$2>=$E35,FM$3<=$F35),1,0) -> 0 | FN35: 0 | FO35: 0 | FP35: 0 | FQ35: 0 | FR35: 0 | FS35: 0
C36: Production | D36: MWh | E36: ='Inputs - Partnership'!E54 -> 0.35 | I36: =$E36*I$24*I35 -> 0 | J36: 0 | K36: 0 | L36: 0 | M36: 0 | N36: 0 | O36: 0 | P36: 0 | Q36: 43874.46 | R36: 71295.9975 | S36: 64495.4562 | T36: 39706.3863 | U36: 39469.56889 | V36: 39469.56889 | W36: 39469.56889 | X36: 39469.56889 | Y36: 39234.1639 | Z36: 39234.1639 | AA36: 39234.1639 | AB36: 39234.1639 | AC36: 39000.16293 | AD36: 39000.16293 | AE36: 39000.16293 | AF36: 39000.16293 | AG36: 38767.55758 | AH36: 38767.55758 | AI36: 38767.55758 | AJ36: 38767.55758 | AK36: 38536.33954 | AL36: 38536.33954 | AM36: 38536.33954 | AN36: 38536.33954 | AO36: =$E36*AO$24*AO35 -> 38306.50054 | AP36: 38306.50054 | AQ36: 38306.50054 | AR36: 38306.50054 | AS36: 38078.03235 | AT36: 38078.03235 | AU36: 38078.03235 | AV36: 38078.03235 | AW36: 37850.92678 | AX36: 37850.92678 | AY36: 37850.92678 | AZ36: 37850.92678 | BA36: 37625.17573 | BB36: 37625.17573 | BC36: 37625.17573 | BD36: 37625.17573 | BE36: 37400.7711 | BF36: 37400.7711 | BG36: 37400.7711 | BH36: 37400.7711 | BI36: 37177.70487 | BJ36: 37177.70487 | BK36: 37177.70487 | BL36: 37177.70487 | BM36: 36955.96906 | BN36: 36955.96906 | BO36: 36955.96906 | BP36: 36955.96906 | BQ36: 36735.55573 | BR36: 36735.55573 | BS36: 36735.55573 | BT36: 36735.55573 | BU36: =$E36*BU$24*BU35 -> 36516.45698 | BV36: 36516.45698 | BW36: 36516.45698 | BX36: 36516.45698 | BY36: 36298.66499 | BZ36: 36298.66499 | CA36: 36298.66499 | CB36: 36298.66499 | CC36: 36082.17196 | CD36: 36082.17196 | CE36: 36082.17196 | CF36: 36082.17196 | CG36: 35866.97014 | CH36: 35866.97014 | CI36: 35866.97014 | CJ36: 35866.97014 | CK36: 35653.05183 | CL36: 35653.05183 | CM36: 35653.05183 | CN36: 35653.05183 | CO36: 35440.40937 | CP36: 35440.40937 | CQ36: 35440.40937 | CR36: 35440.40937 | CS36: 0 | CT36: 0 | CU36: 0 | CV36: 0 | CW36: 0 | CX36: 0 | CY36: 0 | CZ36: 0 | DA36: =$E36*DA$24*DA35 -> 0 | DB36: 0 | DC36: 0 | DD36: 0 | DE36: 0 | DF36: 0 | DG36: 0 | DH36: 0 | DI36: 0 | DJ36: 0 | DK36: 0 | DL36: 0 | DM36: 0 | DN36: 0 | DO36: 0 | DP36: 0 | DQ36: 0 | DR36: 0 | DS36: 0 | DT36: 0 | DU36: 0 | DV36: 0 | DW36: 0 | DX36: 0 | DY36: 0 | DZ36: 0 | EA36: 0 | EB36: 0 | EC36: 0 | ED36: 0 | EE36: 0 | EF36: 0 | EG36: =$E36*EG$24*EG35 -> 0 | EH36: 0 | EI36: 0 | EJ36: 0 | EK36: 0 | EL36: 0 | EM36: 0 | EN36: 0 | EO36: 0 | EP36: 0 | EQ36: 0 | ER36: 0 | ES36: 0 | ET36: 0 | EU36: 0 | EV36: 0 | EW36: 0 | EX36: 0 | EY36: 0 | EZ36: 0 | FA36: 0 | FB36: 0 | FC36: 0 | FD36: 0 | FE36: 0 | FF36: 0 | FG36: 0 | FH36: 0 | FI36: 0 | FJ36: 0 | FK36: 0 | FL36: 0 | FM36: =$E36*FM$24*FM35 -> 0 | FN36: 0 | FO36: 0 | FP36: 0 | FQ36: 0 | FR36: 0 | FS36: 0
C37: Price | D37: $ / MWh | E37: ='Inputs - Partnership'!E52 -> 42.5 | I37: =$E37*((1+($E38/4))^I$15)*I35 -> 0 | J37: 0 | K37: 0 | L37: 0 | M37: 0 | N37: 0 | O37: 0 | P37: 0 | Q37: 42.5 | R37: 42.5 | S37: 42.5 | T37: 42.5 | U37: 42.5 | V37: 42.5 | W37: 42.5 | X37: 42.5 | Y37: 42.5 | Z37: 42.5 | AA37: 42.5 | AB37: 42.5 | AC37: 42.5 | AD37: 42.5 | AE37: 42.5 | AF37: 42.5 | AG37: 42.5 | AH37: 42.5 | AI37: 42.5 | AJ37: 42.5 | AK37: 42.5 | AL37: 42.5 | AM37: 42.5 | AN37: 42.5 | AO37: =$E37*((1+($E38/4))^AO$15)*AO35 -> 42.5 | AP37: 42.5 | AQ37: 42.5 | AR37: 42.5 | AS37: 42.5 | AT37: 42.5 | AU37: 42.5 | AV37: 42.5 | AW37: 42.5 | AX37: 42.5 | AY37: 42.5 | AZ37: 42.5 | BA37: 42.5 | BB37: 42.5 | BC37: 42.5 | BD37: 42.5 | BE37: 42.5 | BF37: 42.5 | BG37: 42.5 | BH37: 42.5 | BI37: 42.5 | BJ37: 42.5 | BK37: 42.5 | BL37: 42.5 | BM37: 42.5 | BN37: 42.5 | BO37: 42.5 | BP37: 42.5 | BQ37: 42.5 | BR37: 42.5 | BS37: 42.5 | BT37: 42.5 | BU37: =$E37*((1+($E38/4))^BU$15)*BU35 -> 42.5 | BV37: 42.5 | BW37: 42.5 | BX37: 42.5 | BY37: 42.5 | BZ37: 42.5 | CA37: 42.5 | CB37: 42.5 | CC37: 42.5 | CD37: 42.5 | CE37: 42.5 | CF37: 42.5 | CG37: 42.5 | CH37: 42.5 | CI37: 42.5 | CJ37: 42.5 | CK37: 42.5 | CL37: 42.5 | CM37: 42.5 | CN37: 42.5 | CO37: 42.5 | CP37: 42.5 | CQ37: 42.5 | CR37: 42.5 | CS37: 0 | CT37: 0 | CU37: 0 | CV37: 0 | CW37: 0 | CX37: 0 | CY37: 0 | CZ37: 0 | DA37: =$E37*((1+($E38/4))^DA$15)*DA35 -> 0 | DB37: 0 | DC37: 0 | DD37: 0 | DE37: 0 | DF37: 0 | DG37: 0 | DH37: 0 | DI37: 0 | DJ37: 0 | DK37: 0 | DL37: 0 | DM37: 0 | DN37: 0 | DO37: 0 | DP37: 0 | DQ37: 0 | DR37: 0 | DS37: 0 | DT37: 0 | DU37: 0 | DV37: 0 | DW37: 0 | DX37: 0 | DY37: 0 | DZ37: 0 | EA37: 0 | EB37: 0 | EC37: 0 | ED37: 0 | EE37: 0 | EF37: 0 | EG37: =$E37*((1+($E38/4))^EG$15)*EG35 -> 0 | EH37: 0 | EI37: 0 | EJ37: 0 | EK37: 0 | EL37: 0 | EM37: 0 | EN37: 0 | EO37: 0 | EP37: 0 | EQ37: 0 | ER37: 0 | ES37: 0 | ET37: 0 | EU37: 0 | EV37: 0 | EW37: 0 | EX37: 0 | EY37: 0 | EZ37: 0 | FA37: 0 | FB37: 0 | FC37: 0 | FD37: 0 | FE37: 0 | FF37: 0 | FG37: 0 | FH37: 0 | FI37: 0 | FJ37: 0 | FK37: 0 | FL37: 0 | FM37: =$E37*((1+($E38/4))^FM$15)*FM35 -> 0 | FN37: 0 | FO37: 0 | FP37: 0 | FQ37: 0 | FR37: 0 | FS37: 0
C38: Escalation | E38: ='Inputs - Partnership'!E56 -> 0
C39: PPA 2 Revenue | D39: USD '000 | H39: =SUM(I39:FS39) -> 130192.669 | I39: =I36*I37/1000 -> 0 | J39: 0 | K39: 0 | L39: 0 | M39: 0 | N39: 0 | O39: 0 | P39: 0 | Q39: 1864.66455 | R39: 3030.079894 | S39: 2741.056888 | T39: 1687.521418 | U39: 1677.456678 | V39: 1677.456678 | W39: 1677.456678 | X39: 1677.456678 | Y39: 1667.451966 | Z39: 1667.451966 | AA39: 1667.451966 | AB39: 1667.451966 | AC39: 1657.506924 | AD39: 1657.506924 | AE39: 1657.506924 | AF39: 1657.506924 | AG39: 1647.621197 | AH39: 1647.621197 | AI39: 1647.621197 | AJ39: 1647.621197 | AK39: 1637.794431 | AL39: 1637.794431 | AM39: 1637.794431 | AN39: 1637.794431 | AO39: =AO36*AO37/1000 -> 1628.026273 | AP39: 1628.026273 | AQ39: 1628.026273 | AR39: 1628.026273 | AS39: 1618.316375 | AT39: 1618.316375 | AU39: 1618.316375 | AV39: 1618.316375 | AW39: 1608.664388 | AX39: 1608.664388 | AY39: 1608.664388 | AZ39: 1608.664388 | BA39: 1599.069969 | BB39: 1599.069969 | BC39: 1599.069969 | BD39: 1599.069969 | BE39: 1589.532772 | BF39: 1589.532772 | BG39: 1589.532772 | BH39: 1589.532772 | BI39: 1580.052457 | BJ39: 1580.052457 | BK39: 1580.052457 | BL39: 1580.052457 | BM39: 1570.628685 | BN39: 1570.628685 | BO39: 1570.628685 | BP39: 1570.628685 | BQ39: 1561.261118 | BR39: 1561.261118 | BS39: 1561.261118 | BT39: 1561.261118 | BU39: =BU36*BU37/1000 -> 1551.949422 | BV39: 1551.949422 | BW39: 1551.949422 | BX39: 1551.949422 | BY39: 1542.693262 | BZ39: 1542.693262 | CA39: 1542.693262 | CB39: 1542.693262 | CC39: 1533.492308 | CD39: 1533.492308 | CE39: 1533.492308 | CF39: 1533.492308 | CG39: 1524.346231 | CH39: 1524.346231 | CI39: 1524.346231 | CJ39: 1524.346231 | CK39: 1515.254703 | CL39: 1515.254703 | CM39: 1515.254703 | CN39: 1515.254703 | CO39: 1506.217398 | CP39: 1506.217398 | CQ39: 1506.217398 | CR39: 1506.217398 | CS39: 0 | CT39: 0 | CU39: 0 | CV39: 0 | CW39: 0 | CX39: 0 | CY39: 0 | CZ39: 0 | DA39: =DA36*DA37/1000 -> 0 | DB39: 0 | DC39: 0 | DD39: 0 | DE39: 0 | DF39: 0 | DG39: 0 | DH39: 0 | DI39: 0 | DJ39: 0 | DK39: 0 | DL39: 0 | DM39: 0 | DN39: 0 | DO39: 0 | DP39: 0 | DQ39: 0 | DR39: 0 | DS39: 0 | DT39: 0 | DU39: 0 | DV39: 0 | DW39: 0 | DX39: 0 | DY39: 0 | DZ39: 0 | EA39: 0 | EB39: 0 | EC39: 0 | ED39: 0 | EE39: 0 | EF39: 0 | EG39: =EG36*EG37/1000 -> 0 | EH39: 0 | EI39: 0 | EJ39: 0 | EK39: 0 | EL39: 0 | EM39: 0 | EN39: 0 | EO39: 0 | EP39: 0 | EQ39: 0 | ER39: 0 | ES39: 0 | ET39: 0 | EU39: 0 | EV39: 0 | EW39: 0 | EX39: 0 | EY39: 0 | EZ39: 0 | FA39: 0 | FB39: 0 | FC39: 0 | FD39: 0 | FE39: 0 | FF39: 0 | FG39: 0 | FH39: 0 | FI39: 0 | FJ39: 0 | FK39: 0 | FL39: 0 | FM39: =FM36*FM37/1000 -> 0 | FN39: 0 | FO39: 0 | FP39: 0 | FQ39: 0 | FR39: 0 | FS39: 0
C41: REC
C42: REC period flag | E42: ='Inputs - Partnership'!E61 -> 10 | I42: =(I$14<=$E42)*(I$14>0)*1 -> 0 | J42: 0 | K42: 0 | L42: 0 | M42: 0 | N42: 0 | O42: 0 | P42: 0 | Q42: 1 | R42: 1 | S42: 1 | T42: 1 | U42: 1 | V42: 1 | W42: 1 | X42: 1 | Y42: 1 | Z42: 1 | AA42: 1 | AB42: 1 | AC42: 1 | AD42: 1 | AE42: 1 | AF42: 1 | AG42: 1 | AH42: 1 | AI42: 1 | AJ42: 1 | AK42: 1 | AL42: 1 | AM42: 1 | AN42: 1 | AO42: =(AO$14<=$E42)*(AO$14>0)*1 -> 1 | AP42: 1 | AQ42: 1 | AR42: 1 | AS42: 1 | AT42: 1 | AU42: 1 | AV42: 1 | AW42: 1 | AX42: 1 | AY42: 1 | AZ42: 1 | BA42: 1 | BB42: 1 | BC42: 1 | BD42: 1 | BE42: 0 | BF42: 0 | BG42: 0 | BH42: 0 | BI42: 0 | BJ42: 0 | BK42: 0 | BL42: 0 | BM42: 0 | BN42: 0 | BO42: 0 | BP42: 0 | BQ42: 0 | BR42: 0 | BS42: 0 | BT42: 0 | BU42: =(BU$14<=$E42)*(BU$14>0)*1 -> 0 | BV42: 0 | BW42: 0 | BX42: 0 | BY42: 0 | BZ42: 0 | CA42: 0 | CB42: 0 | CC42: 0 | CD42: 0 | CE42: 0 | CF42: 0 | CG42: 0 | CH42: 0 | CI42: 0 | CJ42: 0 | CK42: 0 | CL42: 0 | CM42: 0 | CN42: 0 | CO42: 0 | CP42: 0 | CQ42: 0 | CR42: 0 | CS42: 0 | CT42: 0 | CU42: 0 | CV42: 0 | CW42: 0 | CX42: 0 | CY42: 0 | CZ42: 0 | DA42: =(DA$14<=$E42)*(DA$14>0)*1 -> 0 | DB42: 0 | DC42: 0 | DD42: 0 | DE42: 0 | DF42: 0 | DG42: 0 | DH42: 0 | DI42: 0 | DJ42: 0 | DK42: 0 | DL42: 0 | DM42: 0 | DN42: 0 | DO42: 0 | DP42: 0 | DQ42: 0 | DR42: 0 | DS42: 0 | DT42: 0 | DU42: 0 | DV42: 0 | DW42: 0 | DX42: 0 | DY42: 0 | DZ42: 0 | EA42: 0 | EB42: 0 | EC42: 0 | ED42: 0 | EE42: 0 | EF42: 0 | EG42: =(EG$14<=$E42)*(EG$14>0)*1 -> 0 | EH42: 0 | EI42: 0 | EJ42: 0 | EK42: 0 | EL42: 0 | EM42: 0 | EN42: 0 | EO42: 0 | EP42: 0 | EQ42: 0 | ER42: 0 | ES42: 0 | ET42: 0 | EU42: 0 | EV42: 0 | EW42: 0 | EX42: 0 | EY42: 0 | EZ42: 0 | FA42: 0 | FB42: 0 | FC42: 0 | FD42: 0 | FE42: 0 | FF42: 0 | FG42: 0 | FH42: 0 | FI42: 0 | FJ42: 0 | FK42: 0 | FL42: 0 | FM42: =(FM$14<=$E42)*(FM$14>0)*1 -> 0 | FN42: 0 | FO42: 0 | FP42: 0 | FQ42: 0 | FR42: 0 | FS42: 0
C43: Price | D43: USD / kWh | E43: ='Inputs - Partnership'!E62 -> 1.25 | I43: =IF(I$14=0,0,LOOKUP(I$9,'Inputs - Partnership'!$I$60:$R$60,'Inputs - Partnership'!$I$61:$R$61)*I42) -> 0 | J43: =IF(J14=0,0,LOOKUP(J9,'Inputs - Partnership'!$I$60:$R$60,'Inputs - Partnership'!$I$61:$R$61)*J42) -> 0 | K43: =IF(K14=0,0,LOOKUP(K9,'Inputs - Partnership'!$I$60:$R$60,'Inputs - Partnership'!$I$61:$R$61)*K42) -> 0 | L43: =IF(L14=0,0,LOOKUP(L9,'Inputs - Partnership'!$I$60:$R$60,'Inputs - Partnership'!$I$61:$R$61)*L42) -> 0 | M43: =IF(M14=0,0,LOOKUP(M9,'Inputs - Partnership'!$I$60:$R$60,'Inputs - Partnership'!$I$61:$R$61)*M42) -> 0 | N43: =IF(N14=0,0,LOOKUP(N9,'Inputs - Partnership'!$I$60:$R$60,'Inputs - Partnership'!$I$61:$R$61)*N42) -> 0 | O43: =IF(O14=0,0,LOOKUP(O9,'Inputs - Partnership'!$I$60:$R$60,'Inputs - Partnership'!$I$61:$R$61)*O42) -> 0 | P43: =IF(P14=0,0,LOOKUP(P9,'Inputs - Partnership'!$I$60:$R$60,'Inputs - Partnership'!$I$61:$R$61)*P42) -> 0 | Q43: =IF(Q14=0,0,LOOKUP(Q9,'Inputs - Partnership'!$I$60:$R$60,'Inputs - Partnership'!$I$61:$R$61)*Q42) -> 1.25 | R43: =IF(R14=0,0,LOOKUP(R9,'Inputs - Partnership'!$I$60:$R$60,'Inputs - Partnership'!$I$61:$R$61)*R42) -> 1.25 | S43: =IF(S14=0,0,LOOKUP(S9,'Inputs - Partnership'!$I$60:$R$60,'Inputs - Partnership'!$I$61:$R$61)*S42) -> 1.25 | T43: =IF(T14=0,0,LOOKUP(T9,'Inputs - Partnership'!$I$60:$R$60,'Inputs - Partnership'!$I$61:$R$61)*T42) -> 1.25 | U43: =IF(U14=0,0,LOOKUP(U9,'Inputs - Partnership'!$I$60:$R$60,'Inputs - Partnership'!$I$61:$R$61)*U42) -> 1.25 | V43: =IF(V14=0,0,LOOKUP(V9,'Inputs - Partnership'!$I$60:$R$60,'Inputs - Partnership'!$I$61:$R$61)*V42) -> 1.25 | W43: =IF(W14=0,0,LOOKUP(W9,'Inputs - Partnership'!$I$60:$R$60,'Inputs - Partnership'!$I$61:$R$61)*W42) -> 1.25 | X43: =IF(X14=0,0,LOOKUP(X9,'Inputs - Partnership'!$I$60:$R$60,'Inputs - Partnership'!$I$61:$R$61)*X42) -> 1.25 | Y43: =IF(Y14=0,0,LOOKUP(Y9,'Inputs - Partnership'!$I$60:$R$60,'Inputs - Partnership'!$I$61:$R$61)*Y42) -> 1.25 | Z43: =IF(Z14=0,0,LOOKUP(Z9,'Inputs - Partnership'!$I$60:$R$60,'Inputs - Partnership'!$I$61:$R$61)*Z42) -> 1.25 | AA43: =IF(AA14=0,0,LOOKUP(AA9,'Inputs - Partnership'!$I$60:$R$60,'Inputs - Partnership'!$I$61:$R$61)*AA42) -> 1.25 | AB43: =IF(AB14=0,0,LOOKUP(AB9,'Inputs - Partnership'!$I$60:$R$60,'Inputs - Partnership'!$I$61:$R$61)*AB42) -> 1.25 | AC43: =IF(AC14=0,0,LOOKUP(AC9,'Inputs - Partnership'!$I$60:$R$60,'Inputs - Partnership'!$I$61:$R$61)*AC42) -> 1.25 | AD43: =IF(AD14=0,0,LOOKUP(AD9,'Inputs - Partnership'!$I$60:$R$60,'Inputs - Partnership'!$I$61:$R$61)*AD42) -> 1.25 | AE43: =IF(AE14=0,0,LOOKUP(AE9,'Inputs - Partnership'!$I$60:$R$60,'Inputs - Partnership'!$I$61:$R$61)*AE42) -> 1.25 | AF43: =IF(AF14=0,0,LOOKUP(AF9,'Inputs - Partnership'!$I$60:$R$60,'Inputs - Partnership'!$I$61:$R$61)*AF42) -> 1.25 | AG43: =IF(AG14=0,0,LOOKUP(AG9,'Inputs - Partnership'!$I$60:$R$60,'Inputs - Partnership'!$I$61:$R$61)*AG42) -> 1.25 | AH43: =IF(AH14=0,0,LOOKUP(AH9,'Inputs - Partnership'!$I$60:$R$60,'Inputs - Partnership'!$I$61:$R$61)*AH42) -> 1.25 | AI43: =IF(AI14=0,0,LOOKUP(AI9,'Inputs - Partnership'!$I$60:$R$60,'Inputs - Partnership'!$I$61:$R$61)*AI42) -> 1.25 | AJ43: =IF(AJ14=0,0,LOOKUP(AJ9,'Inputs - Partnership'!$I$60:$R$60,'Inputs - Partnership'!$I$61:$R$61)*AJ42) -> 1.25 | AK43: =IF(AK14=0,0,LOOKUP(AK9,'Inputs - Partnership'!$I$60:$R$60,'Inputs - Partnership'!$I$61:$R$61)*AK42) -> 1.25 | AL43: =IF(AL14=0,0,LOOKUP(AL9,'Inputs - Partnership'!$I$60:$R$60,'Inputs - Partnership'!$I$61:$R$61)*AL42) -> 1.25 | AM43: =IF(AM14=0,0,LOOKUP(AM9,'Inputs - Partnership'!$I$60:$R$60,'Inputs - Partnership'!$I$61:$R$61)*AM42) -> 1.25 | AN43: =IF(AN14=0,0,LOOKUP(AN9,'Inputs - Partnership'!$I$60:$R$60,'Inputs - Partnership'!$I$61:$R$61)*AN42) -> 1.25 | AO43: =IF(AO14=0,0,LOOKUP(AO9,'Inputs - Partnership'!$I$60:$R$60,'Inputs - Partnership'!$I$61:$R$61)*AO42) -> 1.25 | AP43: =IF(AP14=0,0,LOOKUP(AP9,'Inputs - Partnership'!$I$60:$R$60,'Inputs - Partnership'!$I$61:$R$61)*AP42) -> 1.25 | AQ43: =IF(AQ14=0,0,LOOKUP(AQ9,'Inputs - Partnership'!$I$60:$R$60,'Inputs - Partnership'!$I$61:$R$61)*AQ42) -> 1.25 | AR43: =IF(AR14=0,0,LOOKUP(AR9,'Inputs - Partnership'!$I$60:$R$60,'Inputs - Partnership'!$I$61:$R$61)*AR42) -> 1.25 | AS43: =IF(AS14=0,0,LOOKUP(AS9,'Inputs - Partnership'!$I$60:$R$60,'Inputs - Partnership'!$I$61:$R$61)*AS42) -> 1.25 | AT43: =IF(AT14=0,0,LOOKUP(AT9,'Inputs - Partnership'!$I$60:$R$60,'Inputs - Partnership'!$I$61:$R$61)*AT42) -> 1.25 | AU43: =IF(AU14=0,0,LOOKUP(AU9,'Inputs - Partnership'!$I$60:$R$60,'Inputs - Partnership'!$I$61:$R$61)*AU42) -> 1.25 | AV43: =IF(AV14=0,0,LOOKUP(AV9,'Inputs - Partnership'!$I$60:$R$60,'Inputs - Partnership'!$I$61:$R$61)*AV42) -> 1.25 | AW43: =IF(AW14=0,0,LOOKUP(AW9,'Inputs - Partnership'!$I$60:$R$60,'Inputs - Partnership'!$I$61:$R$61)*AW42) -> 1.25 | AX43: =IF(AX14=0,0,LOOKUP(AX9,'Inputs - Partnership'!$I$60:$R$60,'Inputs - Partnership'!$I$61:$R$61)*AX42) -> 1.25 | AY43: =IF(AY14=0,0,LOOKUP(AY9,'Inputs - Partnership'!$I$60:$R$60,'Inputs - Partnership'!$I$61:$R$61)*AY42) -> 1.25 | AZ43: =IF(AZ14=0,0,LOOKUP(AZ9,'Inputs - Partnership'!$I$60:$R$60,'Inputs - Partnership'!$I$61:$R$61)*AZ42) -> 1.25 | BA43: =IF(BA14=0,0,LOOKUP(BA9,'Inputs - Partnership'!$I$60:$R$60,'Inputs - Partnership'!$I$61:$R$61)*BA42) -> 1.25 | BB43: =IF(BB14=0,0,LOOKUP(BB9,'Inputs - Partnership'!$I$60:$R$60,'Inputs - Partnership'!$I$61:$R$61)*BB42) -> 1.25 | BC43: =IF(BC14=0,0,LOOKUP(BC9,'Inputs - Partnership'!$I$60:$R$60,'Inputs - Partnership'!$I$61:$R$61)*BC42) -> 1.25 | BD43: =IF(BD14=0,0,LOOKUP(BD9,'Inputs - Partnership'!$I$60:$R$60,'Inputs - Partnership'!$I$61:$R$61)*BD42) -> 1.25 | BE43: =IF(BE14=0,0,LOOKUP(BE9,'Inputs - Partnership'!$I$60:$R$60,'Inputs - Partnership'!$I$61:$R$61)*BE42) -> 0 | BF43: =IF(BF14=0,0,LOOKUP(BF9,'Inputs - Partnership'!$I$60:$R$60,'Inputs - Partnership'!$I$61:$R$61)*BF42) -> 0 | BG43: =IF(BG14=0,0,LOOKUP(BG9,'Inputs - Partnership'!$I$60:$R$60,'Inputs - Partnership'!$I$61:$R$61)*BG42) -> 0 | BH43: =IF(BH14=0,0,LOOKUP(BH9,'Inputs - Partnership'!$I$60:$R$60,'Inputs - Partnership'!$I$61:$R$61)*BH42) -> 0 | BI43: =IF(BI14=0,0,LOOKUP(BI9,'Inputs - Partnership'!$I$60:$R$60,'Inputs - Partnership'!$I$61:$R$61)*BI42) -> 0 | BJ43: =IF(BJ14=0,0,LOOKUP(BJ9,'Inputs - Partnership'!$I$60:$R$60,'Inputs - Partnership'!$I$61:$R$61)*BJ42) -> 0 | BK43: =IF(BK14=0,0,LOOKUP(BK9,'Inputs - Partnership'!$I$60:$R$60,'Inputs - Partnership'!$I$61:$R$61)*BK42) -> 0 | BL43: =IF(BL14=0,0,LOOKUP(BL9,'Inputs - Partnership'!$I$60:$R$60,'Inputs - Partnership'!$I$61:$R$61)*BL42) -> 0 | BM43: =IF(BM14=0,0,LOOKUP(BM9,'Inputs - Partnership'!$I$60:$R$60,'Inputs - Partnership'!$I$61:$R$61)*BM42) -> 0 | BN43: =IF(BN14=0,0,LOOKUP(BN9,'Inputs - Partnership'!$I$60:$R$60,'Inputs - Partnership'!$I$61:$R$61)*BN42) -> 0 | BO43: =IF(BO14=0,0,LOOKUP(BO9,'Inputs - Partnership'!$I$60:$R$60,'Inputs - Partnership'!$I$61:$R$61)*BO42) -> 0 | BP43: =IF(BP14=0,0,LOOKUP(BP9,'Inputs - Partnership'!$I$60:$R$60,'Inputs - Partnership'!$I$61:$R$61)*BP42) -> 0 | BQ43: =IF(BQ14=0,0,LOOKUP(BQ9,'Inputs - Partnership'!$I$60:$R$60,'Inputs - Partnership'!$I$61:$R$61)*BQ42) -> 0 | BR43: =IF(BR14=0,0,LOOKUP(BR9,'Inputs - Partnership'!$I$60:$R$60,'Inputs - Partnership'!$I$61:$R$61)*BR42) -> 0 | BS43: =IF(BS14=0,0,LOOKUP(BS9,'Inputs - Partnership'!$I$60:$R$60,'Inputs - Partnership'!$I$61:$R$61)*BS42) -> 0 | BT43: =IF(BT14=0,0,LOOKUP(BT9,'Inputs - Partnership'!$I$60:$R$60,'Inputs - Partnership'!$I$61:$R$61)*BT42) -> 0 | BU43: =IF(BU14=0,0,LOOKUP(BU9,'Inputs - Partnership'!$I$60:$R$60,'Inputs - Partnership'!$I$61:$R$61)*BU42) -> 0 | BV43: =IF(BV14=0,0,LOOKUP(BV9,'Inputs - Partnership'!$I$60:$R$60,'Inputs - Partnership'!$I$61:$R$61)*BV42) -> 0 | BW43: =IF(BW14=0,0,LOOKUP(BW9,'Inputs - Partnership'!$I$60:$R$60,'Inputs - Partnership'!$I$61:$R$61)*BW42) -> 0 | BX43: =IF(BX14=0,0,LOOKUP(BX9,'Inputs - Partnership'!$I$60:$R$60,'Inputs - Partnership'!$I$61:$R$61)*BX42) -> 0 | BY43: =IF(BY14=0,0,LOOKUP(BY9,'Inputs - Partnership'!$I$60:$R$60,'Inputs - Partnership'!$I$61:$R$61)*BY42) -> 0 | BZ43: =IF(BZ14=0,0,LOOKUP(BZ9,'Inputs - Partnership'!$I$60:$R$60,'Inputs - Partnership'!$I$61:$R$61)*BZ42) -> 0 | CA43: =IF(CA14=0,0,LOOKUP(CA9,'Inputs - Partnership'!$I$60:$R$60,'Inputs - Partnership'!$I$61:$R$61)*CA42) -> 0 | CB43: =IF(CB14=0,0,LOOKUP(CB9,'Inputs - Partnership'!$I$60:$R$60,'Inputs - Partnership'!$I$61:$R$61)*CB42) -> 0 | CC43: =IF(CC14=0,0,LOOKUP(CC9,'Inputs - Partnership'!$I$60:$R$60,'Inputs - Partnership'!$I$61:$R$61)*CC42) -> 0 | CD43: =IF(CD14=0,0,LOOKUP(CD9,'Inputs - Partnership'!$I$60:$R$60,'Inputs - Partnership'!$I$61:$R$61)*CD42) -> 0 | CE43: =IF(CE14=0,0,LOOKUP(CE9,'Inputs - Partnership'!$I$60:$R$60,'Inputs - Partnership'!$I$61:$R$61)*CE42) -> 0 | CF43: =IF(CF14=0,0,LOOKUP(CF9,'Inputs - Partnership'!$I$60:$R$60,'Inputs - Partnership'!$I$61:$R$61)*CF42) -> 0 | CG43: =IF(CG14=0,0,LOOKUP(CG9,'Inputs - Partnership'!$I$60:$R$60,'Inputs - Partnership'!$I$61:$R$61)*CG42) -> 0 | CH43: =IF(CH14=0,0,LOOKUP(CH9,'Inputs - Partnership'!$I$60:$R$60,'Inputs - Partnership'!$I$61:$R$61)*CH42) -> 0 | CI43: =IF(CI14=0,0,LOOKUP(CI9,'Inputs - Partnership'!$I$60:$R$60,'Inputs - Partnership'!$I$61:$R$61)*CI42) -> 0 | CJ43: =IF(CJ14=0,0,LOOKUP(CJ9,'Inputs - Partnership'!$I$60:$R$60,'Inputs - Partnership'!$I$61:$R$61)*CJ42) -> 0 | CK43: =IF(CK14=0,0,LOOKUP(CK9,'Inputs - Partnership'!$I$60:$R$60,'Inputs - Partnership'!$I$61:$R$61)*CK42) -> 0 | CL43: =IF(CL14=0,0,LOOKUP(CL9,'Inputs - Partnership'!$I$60:$R$60,'Inputs - Partnership'!$I$61:$R$61)*CL42) -> 0 | CM43: =IF(CM14=0,0,LOOKUP(CM9,'Inputs - Partnership'!$I$60:$R$60,'Inputs - Partnership'!$I$61:$R$61)*CM42) -> 0 | CN43: =IF(CN14=0,0,LOOKUP(CN9,'Inputs - Partnership'!$I$60:$R$60,'Inputs - Partnership'!$I$61:$R$61)*CN42) -> 0 | CO43: =IF(CO14=0,0,LOOKUP(CO9,'Inputs - Partnership'!$I$60:$R$60,'Inputs - Partnership'!$I$61:$R$61)*CO42) -> 0 | CP43: =IF(CP14=0,0,LOOKUP(CP9,'Inputs - Partnership'!$I$60:$R$60,'Inputs - Partnership'!$I$61:$R$61)*CP42) -> 0 | CQ43: =IF(CQ14=0,0,LOOKUP(CQ9,'Inputs - Partnership'!$I$60:$R$60,'Inputs - Partnership'!$I$61:$R$61)*CQ42) -> 0 | CR43: =IF(CR14=0,0,LOOKUP(CR9,'Inputs - Partnership'!$I$60:$R$60,'Inputs - Partnership'!$I$61:$R$61)*CR42) -> 0 | CS43: =IF(CS14=0,0,LOOKUP(CS9,'Inputs - Partnership'!$I$60:$R$60,'Inputs - Partnership'!$I$61:$R$61)*CS42) -> 0 | CT43: =IF(CT14=0,0,LOOKUP(CT9,'Inputs - Partnership'!$I$60:$R$60,'Inputs - Partnership'!$I$61:$R$61)*CT42) -> 0 | CU43: =IF(CU14=0,0,LOOKUP(CU9,'Inputs - Partnership'!$I$60:$R$60,'Inputs - Partnership'!$I$61:$R$61)*CU42) -> 0 | CV43: =IF(CV14=0,0,LOOKUP(CV9,'Inputs - Partnership'!$I$60:$R$60,'Inputs - Partnership'!$I$61:$R$61)*CV42) -> 0 | CW43: =IF(CW14=0,0,LOOKUP(CW9,'Inputs - Partnership'!$I$60:$R$60,'Inputs - Partnership'!$I$61:$R$61)*CW42) -> 0 | CX43: =IF(CX14=0,0,LOOKUP(CX9,'Inputs - Partnership'!$I$60:$R$60,'Inputs - Partnership'!$I$61:$R$61)*CX42) -> 0 | CY43: =IF(CY14=0,0,LOOKUP(CY9,'Inputs - Partnership'!$I$60:$R$60,'Inputs - Partnership'!$I$61:$R$61)*CY42) -> 0 | CZ43: =IF(CZ14=0,0,LOOKUP(CZ9,'Inputs - Partnership'!$I$60:$R$60,'Inputs - Partnership'!$I$61:$R$61)*CZ42) -> 0 | DA43: =IF(DA14=0,0,LOOKUP(DA9,'Inputs - Partnership'!$I$60:$R$60,'Inputs - Partnership'!$I$61:$R$61)*DA42) -> 0 | DB43: =IF(DB14=0,0,LOOKUP(DB9,'Inputs - Partnership'!$I$60:$R$60,'Inputs - Partnership'!$I$61:$R$61)*DB42) -> 0 | DC43: =IF(DC14=0,0,LOOKUP(DC9,'Inputs - Partnership'!$I$60:$R$60,'Inputs - Partnership'!$I$61:$R$61)*DC42) -> 0 | DD43: =IF(DD14=0,0,LOOKUP(DD9,'Inputs - Partnership'!$I$60:$R$60,'Inputs - Partnership'!$I$61:$R$61)*DD42) -> 0 | DE43: =IF(DE14=0,0,LOOKUP(DE9,'Inputs - Partnership'!$I$60:$R$60,'Inputs - Partnership'!$I$61:$R$61)*DE42) -> 0 | DF43: =IF(DF14=0,0,LOOKUP(DF9,'Inputs - Partnership'!$I$60:$R$60,'Inputs - Partnership'!$I$61:$R$61)*DF42) -> 0 | DG43: =IF(DG14=0,0,LOOKUP(DG9,'Inputs - Partnership'!$I$60:$R$60,'Inputs - Partnership'!$I$61:$R$61)*DG42) -> 0 | DH43: =IF(DH14=0,0,LOOKUP(DH9,'Inputs - Partnership'!$I$60:$R$60,'Inputs - Partnership'!$I$61:$R$61)*DH42) -> 0 | DI43: =IF(DI14=0,0,LOOKUP(DI9,'Inputs - Partnership'!$I$60:$R$60,'Inputs - Partnership'!$I$61:$R$61)*DI42) -> 0 | DJ43: =IF(DJ14=0,0,LOOKUP(DJ9,'Inputs - Partnership'!$I$60:$R$60,'Inputs - Partnership'!$I$61:$R$61)*DJ42) -> 0 | DK43: =IF(DK14=0,0,LOOKUP(DK9,'Inputs - Partnership'!$I$60:$R$60,'Inputs - Partnership'!$I$61:$R$61)*DK42) -> 0 | DL43: =IF(DL14=0,0,LOOKUP(DL9,'Inputs - Partnership'!$I$60:$R$60,'Inputs - Partnership'!$I$61:$R$61)*DL42) -> 0 | DM43: =IF(DM14=0,0,LOOKUP(DM9,'Inputs - Partnership'!$I$60:$R$60,'Inputs - Partnership'!$I$61:$R$61)*DM42) -> 0 | DN43: =IF(DN14=0,0,LOOKUP(DN9,'Inputs - Partnership'!$I$60:$R$60,'Inputs - Partnership'!$I$61:$R$61)*DN42) -> 0 | DO43: =IF(DO14=0,0,LOOKUP(DO9,'Inputs - Partnership'!$I$60:$R$60,'Inputs - Partnership'!$I$61:$R$61)*DO42) -> 0 | DP43: =IF(DP14=0,0,LOOKUP(DP9,'Inputs - Partnership'!$I$60:$R$60,'Inputs - Partnership'!$I$61:$R$61)*DP42) -> 0 | DQ43: =IF(DQ14=0,0,LOOKUP(DQ9,'Inputs - Partnership'!$I$60:$R$60,'Inputs - Partnership'!$I$61:$R$61)*DQ42) -> 0 | DR43: =IF(DR14=0,0,LOOKUP(DR9,'Inputs - Partnership'!$I$60:$R$60,'Inputs - Partnership'!$I$61:$R$61)*DR42) -> 0 | DS43: =IF(DS14=0,0,LOOKUP(DS9,'Inputs - Partnership'!$I$60:$R$60,'Inputs - Partnership'!$I$61:$R$61)*DS42) -> 0 | DT43: =IF(DT14=0,0,LOOKUP(DT9,'Inputs - Partnership'!$I$60:$R$60,'Inputs - Partnership'!$I$61:$R$61)*DT42) -> 0 | DU43: =IF(DU14=0,0,LOOKUP(DU9,'Inputs - Partnership'!$I$60:$R$60,'Inputs - Partnership'!$I$61:$R$61)*DU42) -> 0 | DV43: =IF(DV14=0,0,LOOKUP(DV9,'Inputs - Partnership'!$I$60:$R$60,'Inputs - Partnership'!$I$61:$R$61)*DV42) -> 0 | DW43: =IF(DW14=0,0,LOOKUP(DW9,'Inputs - Partnership'!$I$60:$R$60,'Inputs - Partnership'!$I$61:$R$61)*DW42) -> 0 | DX43: =IF(DX14=0,0,LOOKUP(DX9,'Inputs - Partnership'!$I$60:$R$60,'Inputs - Partnership'!$I$61:$R$61)*DX42) -> 0 | DY43: =IF(DY14=0,0,LOOKUP(DY9,'Inputs - Partnership'!$I$60:$R$60,'Inputs - Partnership'!$I$61:$R$61)*DY42) -> 0 | DZ43: =IF(DZ14=0,0,LOOKUP(DZ9,'Inputs - Partnership'!$I$60:$R$60,'Inputs - Partnership'!$I$61:$R$61)*DZ42) -> 0 | EA43: =IF(EA14=0,0,LOOKUP(EA9,'Inputs - Partnership'!$I$60:$R$60,'Inputs - Partnership'!$I$61:$R$61)*EA42) -> 0 | EB43: =IF(EB14=0,0,LOOKUP(EB9,'Inputs - Partnership'!$I$60:$R$60,'Inputs - Partnership'!$I$61:$R$61)*EB42) -> 0 | EC43: =IF(EC14=0,0,LOOKUP(EC9,'Inputs - Partnership'!$I$60:$R$60,'Inputs - Partnership'!$I$61:$R$61)*EC42) -> 0 | ED43: =IF(ED14=0,0,LOOKUP(ED9,'Inputs - Partnership'!$I$60:$R$60,'Inputs - Partnership'!$I$61:$R$61)*ED42) -> 0 | EE43: =IF(EE14=0,0,LOOKUP(EE9,'Inputs - Partnership'!$I$60:$R$60,'Inputs - Partnership'!$I$61:$R$61)*EE42) -> 0 | EF43: =IF(EF14=0,0,LOOKUP(EF9,'Inputs - Partnership'!$I$60:$R$60,'Inputs - Partnership'!$I$61:$R$61)*EF42) -> 0 | EG43: =IF(EG14=0,0,LOOKUP(EG9,'Inputs - Partnership'!$I$60:$R$60,'Inputs - Partnership'!$I$61:$R$61)*EG42) -> 0 | EH43: =IF(EH14=0,0,LOOKUP(EH9,'Inputs - Partnership'!$I$60:$R$60,'Inputs - Partnership'!$I$61:$R$61)*EH42) -> 0 | EI43: =IF(EI14=0,0,LOOKUP(EI9,'Inputs - Partnership'!$I$60:$R$60,'Inputs - Partnership'!$I$61:$R$61)*EI42) -> 0 | EJ43: =IF(EJ14=0,0,LOOKUP(EJ9,'Inputs - Partnership'!$I$60:$R$60,'Inputs - Partnership'!$I$61:$R$61)*EJ42) -> 0 | EK43: =IF(EK14=0,0,LOOKUP(EK9,'Inputs - Partnership'!$I$60:$R$60,'Inputs - Partnership'!$I$61:$R$61)*EK42) -> 0 | EL43: =IF(EL14=0,0,LOOKUP(EL9,'Inputs - Partnership'!$I$60:$R$60,'Inputs - Partnership'!$I$61:$R$61)*EL42) -> 0 | EM43: =IF(EM14=0,0,LOOKUP(EM9,'Inputs - Partnership'!$I$60:$R$60,'Inputs - Partnership'!$I$61:$R$61)*EM42) -> 0 | EN43: =IF(EN14=0,0,LOOKUP(EN9,'Inputs - Partnership'!$I$60:$R$60,'Inputs - Partnership'!$I$61:$R$61)*EN42) -> 0 | EO43: =IF(EO14=0,0,LOOKUP(EO9,'Inputs - Partnership'!$I$60:$R$60,'Inputs - Partnership'!$I$61:$R$61)*EO42) -> 0 | EP43: =IF(EP14=0,0,LOOKUP(EP9,'Inputs - Partnership'!$I$60:$R$60,'Inputs - Partnership'!$I$61:$R$61)*EP42) -> 0 | EQ43: =IF(EQ14=0,0,LOOKUP(EQ9,'Inputs - Partnership'!$I$60:$R$60,'Inputs - Partnership'!$I$61:$R$61)*EQ42) -> 0 | ER43: =IF(ER14=0,0,LOOKUP(ER9,'Inputs - Partnership'!$I$60:$R$60,'Inputs - Partnership'!$I$61:$R$61)*ER42) -> 0 | ES43: =IF(ES14=0,0,LOOKUP(ES9,'Inputs - Partnership'!$I$60:$R$60,'Inputs - Partnership'!$I$61:$R$61)*ES42) -> 0 | ET43: =IF(ET14=0,0,LOOKUP(ET9,'Inputs - Partnership'!$I$60:$R$60,'Inputs - Partnership'!$I$61:$R$61)*ET42) -> 0 | EU43: =IF(EU14=0,0,LOOKUP(EU9,'Inputs - Partnership'!$I$60:$R$60,'Inputs - Partnership'!$I$61:$R$61)*EU42) -> 0 | EV43: =IF(EV14=0,0,LOOKUP(EV9,'Inputs - Partnership'!$I$60:$R$60,'Inputs - Partnership'!$I$61:$R$61)*EV42) -> 0 | EW43: =IF(EW14=0,0,LOOKUP(EW9,'Inputs - Partnership'!$I$60:$R$60,'Inputs - Partnership'!$I$61:$R$61)*EW42) -> 0 | EX43: =IF(EX14=0,0,LOOKUP(EX9,'Inputs - Partnership'!$I$60:$R$60,'Inputs - Partnership'!$I$61:$R$61)*EX42) -> 0 | EY43: =IF(EY14=0,0,LOOKUP(EY9,'Inputs - Partnership'!$I$60:$R$60,'Inputs - Partnership'!$I$61:$R$61)*EY42) -> 0 | EZ43: =IF(EZ14=0,0,LOOKUP(EZ9,'Inputs - Partnership'!$I$60:$R$60,'Inputs - Partnership'!$I$61:$R$61)*EZ42) -> 0 | FA43: =IF(FA14=0,0,LOOKUP(FA9,'Inputs - Partnership'!$I$60:$R$60,'Inputs - Partnership'!$I$61:$R$61)*FA42) -> 0 | FB43: =IF(FB14=0,0,LOOKUP(FB9,'Inputs - Partnership'!$I$60:$R$60,'Inputs - Partnership'!$I$61:$R$61)*FB42) -> 0 | FC43: =IF(FC14=0,0,LOOKUP(FC9,'Inputs - Partnership'!$I$60:$R$60,'Inputs - Partnership'!$I$61:$R$61)*FC42) -> 0 | FD43: =IF(FD14=0,0,LOOKUP(FD9,'Inputs - Partnership'!$I$60:$R$60,'Inputs - Partnership'!$I$61:$R$61)*FD42) -> 0 | FE43: =IF(FE14=0,0,LOOKUP(FE9,'Inputs - Partnership'!$I$60:$R$60,'Inputs - Partnership'!$I$61:$R$61)*FE42) -> 0 | FF43: =IF(FF14=0,0,LOOKUP(FF9,'Inputs - Partnership'!$I$60:$R$60,'Inputs - Partnership'!$I$61:$R$61)*FF42) -> 0 | FG43: =IF(FG14=0,0,LOOKUP(FG9,'Inputs - Partnership'!$I$60:$R$60,'Inputs - Partnership'!$I$61:$R$61)*FG42) -> 0 | FH43: =IF(FH14=0,0,LOOKUP(FH9,'Inputs - Partnership'!$I$60:$R$60,'Inputs - Partnership'!$I$61:$R$61)*FH42) -> 0 | FI43: =IF(FI14=0,0,LOOKUP(FI9,'Inputs - Partnership'!$I$60:$R$60,'Inputs - Partnership'!$I$61:$R$61)*FI42) -> 0 | FJ43: =IF(FJ14=0,0,LOOKUP(FJ9,'Inputs - Partnership'!$I$60:$R$60,'Inputs - Partnership'!$I$61:$R$61)*FJ42) -> 0 | FK43: =IF(FK14=0,0,LOOKUP(FK9,'Inputs - Partnership'!$I$60:$R$60,'Inputs - Partnership'!$I$61:$R$61)*FK42) -> 0 | FL43: =IF(FL14=0,0,LOOKUP(FL9,'Inputs - Partnership'!$I$60:$R$60,'Inputs - Partnership'!$I$61:$R$61)*FL42) -> 0 | FM43: =IF(FM14=0,0,LOOKUP(FM9,'Inputs - Partnership'!$I$60:$R$60,'Inputs - Partnership'!$I$61:$R$61)*FM42) -> 0 | FN43: =IF(FN14=0,0,LOOKUP(FN9,'Inputs - Partnership'!$I$60:$R$60,'Inputs - Partnership'!$I$61:$R$61)*FN42) -> 0 | FO43: =IF(FO14=0,0,LOOKUP(FO9,'Inputs - Partnership'!$I$60:$R$60,'Inputs - Partnership'!$I$61:$R$61)*FO42) -> 0 | FP43: =IF(FP14=0,0,LOOKUP(FP9,'Inputs - Partnership'!$I$60:$R$60,'Inputs - Partnership'!$I$61:$R$61)*FP42) -> 0 | FQ43: =IF(FQ14=0,0,LOOKUP(FQ9,'Inputs - Partnership'!$I$60:$R$60,'Inputs - Partnership'!$I$61:$R$61)*FQ42) -> 0 | FR43: =IF(FR14=0,0,LOOKUP(FR9,'Inputs - Partnership'!$I$60:$R$60,'Inputs - Partnership'!$I$61:$R$61)*FR42) -> 0 | FS43: =IF(FS14=0,0,LOOKUP(FS9,'Inputs - Partnership'!$I$60:$R$60,'Inputs - Partnership'!$I$61:$R$61)*FS42) -> 0
C44: REC revenue | D44: USD '000 | H44: =SUM(I44:FS44) -> 5738.735761 | I44: =I$24*I43/1000 -> 0 | J44: =J$24*J43/1000 -> 0 | K44: 0 | L44: 0 | M44: 0 | N44: 0 | O44: 0 | P44: 0 | Q44: 156.6945 | R44: 254.6285625 | S44: 230.340915 | T44: 141.8085225 | U44: 140.962746 | V44: 140.962746 | W44: 140.962746 | X44: 140.962746 | Y44: 140.1220139 | Z44: 140.1220139 | AA44: 140.1220139 | AB44: 140.1220139 | AC44: 139.2862962 | AD44: 139.2862962 | AE44: 139.2862962 | AF44: 139.2862962 | AG44: 138.4555628 | AH44: 138.4555628 | AI44: 138.4555628 | AJ44: 138.4555628 | AK44: 137.6297841 | AL44: 137.6297841 | AM44: 137.6297841 | AN44: 137.6297841 | AO44: 136.8089305 | AP44: 136.8089305 | AQ44: 136.8089305 | AR44: 136.8089305 | AS44: 135.9929727 | AT44: 135.9929727 | AU44: 135.9929727 | AV44: 135.9929727 | AW44: 135.1818814 | AX44: 135.1818814 | AY44: 135.1818814 | AZ44: 135.1818814 | BA44: 134.3756276 | BB44: 134.3756276 | BC44: 134.3756276 | BD44: 134.3756276 | BE44: 0 | BF44: 0 | BG44: 0 | BH44: 0 | BI44: 0 | BJ44: 0 | BK44: 0 | BL44: 0 | BM44: 0 | BN44: 0 | BO44: 0 | BP44: 0 | BQ44: 0 | BR44: 0 | BS44: 0 | BT44: 0 | BU44: 0 | BV44: =BV$24*BV43/1000 -> 0 | BW44: 0 | BX44: 0 | BY44: 0 | BZ44: 0 | CA44: 0 | CB44: 0 | CC44: 0 | CD44: 0 | CE44: 0 | CF44: 0 | CG44: 0 | CH44: 0 | CI44: 0 | CJ44: 0 | CK44: 0 | CL44: 0 | CM44: 0 | CN44: 0 | CO44: 0 | CP44: 0 | CQ44: 0 | CR44: 0 | CS44: 0 | CT44: 0 | CU44: 0 | CV44: 0 | CW44: 0 | CX44: 0 | CY44: 0 | CZ44: 0 | DA44: 0 | DB44: 0 | DC44: 0 | DD44: 0 | DE44: 0 | DF44: 0 | DG44: 0 | DH44: 0 | DI44: 0 | DJ44: 0 | DK44: 0 | DL44: 0 | DM44: 0 | DN44: 0 | DO44: 0 | DP44: 0 | DQ44: 0 | DR44: 0 | DS44: 0 | DT44: 0 | DU44: 0 | DV44: 0 | DW44: 0 | DX44: 0 | DY44: 0 | DZ44: 0 | EA44: 0 | EB44: 0 | EC44: 0 | ED44: 0 | EE44: 0 | EF44: 0 | EG44: 0 | EH44: =EH$24*EH43/1000 -> 0 | EI44: 0 | EJ44: 0 | EK44: 0 | EL44: 0 | EM44: 0 | EN44: 0 | EO44: 0 | EP44: 0 | EQ44: 0 | ER44: 0 | ES44: 0 | ET44: 0 | EU44: 0 | EV44: 0 | EW44: 0 | EX44: 0 | EY44: 0 | EZ44: 0 | FA44: 0 | FB44: 0 | FC44: 0 | FD44: 0 | FE44: 0 | FF44: 0 | FG44: 0 | FH44: 0 | FI44: 0 | FJ44: 0 | FK44: 0 | FL44: 0 | FM44: 0 | FN44: 0 | FO44: 0 | FP44: 0 | FQ44: 0 | FR44: 0 | FS44: 0
C46: Merchant
C47: Merchant period flag | D47: Flag | E47: =F35 -> 2042-01-31 | F47: =EOMONTH(E47,15*12) -> 2057-01-31 | I47: =IF(AND(I$2>=$E47,I$3<=$F47),1,0) -> 0 | J47: 0 | K47: 0 | L47: 0 | M47: 0 | N47: 0 | O47: 0 | P47: 0 | Q47: 0 | R47: 0 | S47: 0 | T47: 0 | U47: 0 | V47: 0 | W47: 0 | X47: 0 | Y47: 0 | Z47: 0 | AA47: 0 | AB47: 0 | AC47: 0 | AD47: 0 | AE47: 0 | AF47: 0 | AG47: 0 | AH47: 0 | AI47: 0 | AJ47: 0 | AK47: 0 | AL47: 0 | AM47: 0 | AN47: 0 | AO47: 0 | AP47: 0 | AQ47: 0 | AR47: 0 | AS47: 0 | AT47: 0 | AU47: 0 | AV47: 0 | AW47: 0 | AX47: 0 | AY47: 0 | AZ47: 0 | BA47: 0 | BB47: 0 | BC47: 0 | BD47: 0 | BE47: 0 | BF47: 0 | BG47: 0 | BH47: 0 | BI47: 0 | BJ47: 0 | BK47: 0 | BL47: 0 | BM47: 0 | BN47: 0 | BO47: 0 | BP47: 0 | BQ47: 0 | BR47: 0 | BS47: 0 | BT47: 0 | BU47: =IF(AND(BU$2>=$E47,BU$3<=$F47),1,0) -> 0 | BV47: 0 | BW47: 0 | BX47: 0 | BY47: 0 | BZ47: 0 | CA47: 0 | CB47: 0 | CC47: 0 | CD47: 0 | CE47: 0 | CF47: 0 | CG47: 0 | CH47: 0 | CI47: 0 | CJ47: 0 | CK47: 0 | CL47: 0 | CM47: 0 | CN47: 0 | CO47: 0 | CP47: 0 | CQ47: 0 | CR47: 0 | CS47: 0 | CT47: 1 | CU47: 1 | CV47: 1 | CW47: 1 | CX47: 1 | CY47: 1 | CZ47: 1 | DA47: 1 | DB47: 1 | DC47: 1 | DD47: 1 | DE47: 1 | DF47: 1 | DG47: 1 | DH47: 1 | DI47: 1 | DJ47: 1 | DK47: 1 | DL47: 1 | DM47: 1 | DN47: 1 | DO47: 1 | DP47: 1 | DQ47: 1 | DR47: 1 | DS47: 1 | DT47: 1 | DU47: 1 | DV47: 1 | DW47: 1 | DX47: 1 | DY47: 1 | DZ47: 1 | EA47: 1 | EB47: 1 | EC47: 1 | ED47: 1 | EE47: 1 | EF47: 1 | EG47: =IF(AND(EG$2>=$E47,EG$3<=$F47),1,0) -> 1 | EH47: 1 | EI47: 1 | EJ47: 1 | EK47: 1 | EL47: 1 | EM47: 1 | EN47: 1 | EO47: 1 | EP47: 1 | EQ47: 1 | ER47: 1 | ES47: 1 | ET47: 1 | EU47: 1 | EV47: 1 | EW47: 1 | EX47: 1 | EY47: 1 | EZ47: 1 | FA47: 0 | FB47: 0 | FC47: 0 | FD47: 0 | FE47: 0 | FF47: 0 | FG47: 0 | FH47: 0 | FI47: 0 | FJ47: 0 | FK47: 0 | FL47: 0 | FM47: 0 | FN47: 0 | FO47: 0 | FP47: 0 | FQ47: 0 | FR47: 0 | FS47: 0
C48: Production | D48: MWh | I48: =I$24-I$32-I$39 -> 0 | J48: 0 | K48: 0 | L48: 0 | M48: 0 | N48: 0 | O48: 0 | P48: 0 | Q48: 120632.8278 | R48: 196028.3451 | S48: 177330.2568 | T48: 109172.7091 | U48: 108505.5099 | V48: 108505.5099 | W48: 108505.5099 | X48: 108505.5099 | Y48: 107842.286 | Z48: 107842.286 | AA48: 107842.286 | AB48: 107842.286 | AC48: 107183.0137 | AD48: 107183.0137 | AE48: 107183.0137 | AF48: 107183.0137 | AG48: 106527.6695 | AH48: 106527.6695 | AI48: 106527.6695 | AJ48: 106527.6695 | AK48: 105876.2298 | AL48: 105876.2298 | AM48: 105876.2298 | AN48: 105876.2298 | AO48: =AO$24-AO$32-AO$39 -> 105228.6715 | AP48: 105228.6715 | AQ48: 105228.6715 | AR48: 105228.6715 | AS48: 104584.9714 | AT48: 104584.9714 | AU48: 104584.9714 | AV48: 104584.9714 | AW48: 103945.1065 | AX48: 103945.1065 | AY48: 103945.1065 | AZ48: 103945.1065 | BA48: 103309.0538 | BB48: 103309.0538 | BC48: 103309.0538 | BD48: 103309.0538 | BE48: 102676.7907 | BF48: 102676.7907 | BG48: 102676.7907 | BH48: 102676.7907 | BI48: 102048.2945 | BJ48: 102048.2945 | BK48: 102048.2945 | BL48: 102048.2945 | BM48: 101423.5429 | BN48: 101423.5429 | BO48: 101423.5429 | BP48: 101423.5429 | BQ48: 100802.5133 | BR48: 100802.5133 | BS48: 100802.5133 | BT48: 100802.5133 | BU48: =BU$24-BU$32-BU$39 -> 100185.1838 | BV48: 100185.1838 | BW48: 100185.1838 | BX48: 100185.1838 | BY48: 102167.7781 | BZ48: 102167.7781 | CA48: 102167.7781 | CB48: 102167.7781 | CC48: 101558.4276 | CD48: 101558.4276 | CE48: 101558.4276 | CF48: 101558.4276 | CG48: 100952.7113 | CH48: 100952.7113 | CI48: 100952.7113 | CJ48: 100952.7113 | CK48: 100350.6077 | CL48: 100350.6077 | CM48: 100350.6077 | CN48: 100350.6077 | CO48: 99752.0951 | CP48: 99752.0951 | CQ48: 99752.0951 | CR48: 99752.0951 | CS48: 100654.3862 | CT48: 100654.3862 | CU48: 100654.3862 | CV48: 100654.3862 | CW48: 100054.0618 | CX48: 100054.0618 | CY48: 100054.0618 | CZ48: 100054.0618 | DA48: =DA$24-DA$32-DA$39 -> 99457.3179 | DB48: 99457.3179 | DC48: 99457.3179 | DD48: 99457.3179 | DE48: 98864.1331 | DF48: 98864.1331 | DG48: 98864.1331 | DH48: 98864.1331 | DI48: 98274.48619 | DJ48: 98274.48619 | DK48: 98274.48619 | DL48: 98274.48619 | DM48: 97688.35605 | DN48: 97688.35605 | DO48: 97688.35605 | DP48: 97688.35605 | DQ48: 97105.72172 | DR48: 97105.72172 | DS48: 97105.72172 | DT48: 97105.72172 | DU48: 96526.56235 | DV48: 96526.56235 | DW48: 96526.56235 | DX48: 96526.56235 | DY48: 95950.8572 | DZ48: 95950.8572 | EA48: 95950.8572 | EB48: 95950.8572 | EC48: 95378.58569 | ED48: 95378.58569 | EE48: 95378.58569 | EF48: 95378.58569 | EG48: =EG$24-EG$32-EG$39 -> 94809.72732 | EH48: 94809.72732 | EI48: 94809.72732 | EJ48: 94809.72732 | EK48: 94244.26175 | EL48: 94244.26175 | EM48: 94244.26175 | EN48: 94244.26175 | EO48: 93682.16874 | EP48: 93682.16874 | EQ48: 93682.16874 | ER48: 93682.16874 | ES48: 93123.42817 | ET48: 93123.42817 | EU48: 93123.42817 | EV48: 93123.42817 | EW48: 92568.02005 | EX48: 92568.02005 | EY48: 92568.02005 | EZ48: 92568.02005 | FA48: 0 | FB48: 0 | FC48: 0 | FD48: 0 | FE48: 0 | FF48: 0 | FG48: 0 | FH48: 0 | FI48: 0 | FJ48: 0 | FK48: 0 | FL48: 0 | FM48: =FM$24-FM$32-FM$39 -> 0 | FN48: 0 | FO48: 0 | FP48: 0 | FQ48: 0 | FR48: 0 | FS48: 0
C49: Real Merchant Price | D49: $ / MWh | E49: Inflation % | I49: =IFERROR(LOOKUP(I$9,'Merchant curves'!$B$8:$AD$8,'Merchant curves'!$B$9:$AD$9),0)*I47 -> 0 | J49: =IFERROR(LOOKUP(J$9,'Merchant curves'!$B$8:$AD$8,'Merchant curves'!$B$9:$AD$9),0)*J47 -> 0 | K49: =IFERROR(LOOKUP(K$9,'Merchant curves'!$B$8:$AD$8,'Merchant curves'!$B$9:$AD$9),0)*K47 -> 0 | L49: =IFERROR(LOOKUP(L$9,'Merchant curves'!$B$8:$AD$8,'Merchant curves'!$B$9:$AD$9),0)*L47 -> 0 | M49: =IFERROR(LOOKUP(M$9,'Merchant curves'!$B$8:$AD$8,'Merchant curves'!$B$9:$AD$9),0)*M47 -> 0 | N49: =IFERROR(LOOKUP(N$9,'Merchant curves'!$B$8:$AD$8,'Merchant curves'!$B$9:$AD$9),0)*N47 -> 0 | O49: =IFERROR(LOOKUP(O$9,'Merchant curves'!$B$8:$AD$8,'Merchant curves'!$B$9:$AD$9),0)*O47 -> 0 | P49: =IFERROR(LOOKUP(P$9,'Merchant curves'!$B$8:$AD$8,'Merchant curves'!$B$9:$AD$9),0)*P47 -> 0 | Q49: =IFERROR(LOOKUP(Q$9,'Merchant curves'!$B$8:$AD$8,'Merchant curves'!$B$9:$AD$9),0)*Q47 -> 0 | R49: =IFERROR(LOOKUP(R$9,'Merchant curves'!$B$8:$AD$8,'Merchant curves'!$B$9:$AD$9),0)*R47 -> 0 | S49: =IFERROR(LOOKUP(S$9,'Merchant curves'!$B$8:$AD$8,'Merchant curves'!$B$9:$AD$9),0)*S47 -> 0 | T49: =IFERROR(LOOKUP(T$9,'Merchant curves'!$B$8:$AD$8,'Merchant curves'!$B$9:$AD$9),0)*T47 -> 0 | U49: =IFERROR(LOOKUP(U$9,'Merchant curves'!$B$8:$AD$8,'Merchant curves'!$B$9:$AD$9),0)*U47 -> 0 | V49: =IFERROR(LOOKUP(V$9,'Merchant curves'!$B$8:$AD$8,'Merchant curves'!$B$9:$AD$9),0)*V47 -> 0 | W49: =IFERROR(LOOKUP(W$9,'Merchant curves'!$B$8:$AD$8,'Merchant curves'!$B$9:$AD$9),0)*W47 -> 0 | X49: =IFERROR(LOOKUP(X$9,'Merchant curves'!$B$8:$AD$8,'Merchant curves'!$B$9:$AD$9),0)*X47 -> 0 | Y49: =IFERROR(LOOKUP(Y$9,'Merchant curves'!$B$8:$AD$8,'Merchant curves'!$B$9:$AD$9),0)*Y47 -> 0 | Z49: =IFERROR(LOOKUP(Z$9,'Merchant curves'!$B$8:$AD$8,'Merchant curves'!$B$9:$AD$9),0)*Z47 -> 0 | AA49: =IFERROR(LOOKUP(AA$9,'Merchant curves'!$B$8:$AD$8,'Merchant curves'!$B$9:$AD$9),0)*AA47 -> 0 | AB49: =IFERROR(LOOKUP(AB$9,'Merchant curves'!$B$8:$AD$8,'Merchant curves'!$B$9:$AD$9),0)*AB47 -> 0 | AC49: =IFERROR(LOOKUP(AC$9,'Merchant curves'!$B$8:$AD$8,'Merchant curves'!$B$9:$AD$9),0)*AC47 -> 0 | AD49: =IFERROR(LOOKUP(AD$9,'Merchant curves'!$B$8:$AD$8,'Merchant curves'!$B$9:$AD$9),0)*AD47 -> 0 | AE49: =IFERROR(LOOKUP(AE$9,'Merchant curves'!$B$8:$AD$8,'Merchant curves'!$B$9:$AD$9),0)*AE47 -> 0 | AF49: =IFERROR(LOOKUP(AF$9,'Merchant curves'!$B$8:$AD$8,'Merchant curves'!$B$9:$AD$9),0)*AF47 -> 0 | AG49: =IFERROR(LOOKUP(AG$9,'Merchant curves'!$B$8:$AD$8,'Merchant curves'!$B$9:$AD$9),0)*AG47 -> 0 | AH49: =IFERROR(LOOKUP(AH$9,'Merchant curves'!$B$8:$AD$8,'Merchant curves'!$B$9:$AD$9),0)*AH47 -> 0 | AI49: =IFERROR(LOOKUP(AI$9,'Merchant curves'!$B$8:$AD$8,'Merchant curves'!$B$9:$AD$9),0)*AI47 -> 0 | AJ49: =IFERROR(LOOKUP(AJ$9,'Merchant curves'!$B$8:$AD$8,'Merchant curves'!$B$9:$AD$9),0)*AJ47 -> 0 | AK49: =IFERROR(LOOKUP(AK$9,'Merchant curves'!$B$8:$AD$8,'Merchant curves'!$B$9:$AD$9),0)*AK47 -> 0 | AL49: =IFERROR(LOOKUP(AL$9,'Merchant curves'!$B$8:$AD$8,'Merchant curves'!$B$9:$AD$9),0)*AL47 -> 0 | AM49: =IFERROR(LOOKUP(AM$9,'Merchant curves'!$B$8:$AD$8,'Merchant curves'!$B$9:$AD$9),0)*AM47 -> 0 | AN49: =IFERROR(LOOKUP(AN$9,'Merchant curves'!$B$8:$AD$8,'Merchant curves'!$B$9:$AD$9),0)*AN47 -> 0 | AO49: =IFERROR(LOOKUP(AO$9,'Merchant curves'!$B$8:$AD$8,'Merchant curves'!$B$9:$AD$9),0)*AO47 -> 0 | AP49: =IFERROR(LOOKUP(AP$9,'Merchant curves'!$B$8:$AD$8,'Merchant curves'!$B$9:$AD$9),0)*AP47 -> 0 | AQ49: =IFERROR(LOOKUP(AQ$9,'Merchant curves'!$B$8:$AD$8,'Merchant curves'!$B$9:$AD$9),0)*AQ47 -> 0 | AR49: =IFERROR(LOOKUP(AR$9,'Merchant curves'!$B$8:$AD$8,'Merchant curves'!$B$9:$AD$9),0)*AR47 -> 0 | AS49: =IFERROR(LOOKUP(AS$9,'Merchant curves'!$B$8:$AD$8,'Merchant curves'!$B$9:$AD$9),0)*AS47 -> 0 | AT49: =IFERROR(LOOKUP(AT$9,'Merchant curves'!$B$8:$AD$8,'Merchant curves'!$B$9:$AD$9),0)*AT47 -> 0 | AU49: =IFERROR(LOOKUP(AU$9,'Merchant curves'!$B$8:$AD$8,'Merchant curves'!$B$9:$AD$9),0)*AU47 -> 0 | AV49: =IFERROR(LOOKUP(AV$9,'Merchant curves'!$B$8:$AD$8,'Merchant curves'!$B$9:$AD$9),0)*AV47 -> 0 | AW49: =IFERROR(LOOKUP(AW$9,'Merchant curves'!$B$8:$AD$8,'Merchant curves'!$B$9:$AD$9),0)*AW47 -> 0 | AX49: =IFERROR(LOOKUP(AX$9,'Merchant curves'!$B$8:$AD$8,'Merchant curves'!$B$9:$AD$9),0)*AX47 -> 0 | AY49: =IFERROR(LOOKUP(AY$9,'Merchant curves'!$B$8:$AD$8,'Merchant curves'!$B$9:$AD$9),0)*AY47 -> 0 | AZ49: =IFERROR(LOOKUP(AZ$9,'Merchant curves'!$B$8:$AD$8,'Merchant curves'!$B$9:$AD$9),0)*AZ47 -> 0 | BA49: =IFERROR(LOOKUP(BA$9,'Merchant curves'!$B$8:$AD$8,'Merchant curves'!$B$9:$AD$9),0)*BA47 -> 0 | BB49: =IFERROR(LOOKUP(BB$9,'Merchant curves'!$B$8:$AD$8,'Merchant curves'!$B$9:$AD$9),0)*BB47 -> 0 | BC49: =IFERROR(LOOKUP(BC$9,'Merchant curves'!$B$8:$AD$8,'Merchant curves'!$B$9:$AD$9),0)*BC47 -> 0 | BD49: =IFERROR(LOOKUP(BD$9,'Merchant curves'!$B$8:$AD$8,'Merchant curves'!$B$9:$AD$9),0)*BD47 -> 0 | BE49: =IFERROR(LOOKUP(BE$9,'Merchant curves'!$B$8:$AD$8,'Merchant curves'!$B$9:$AD$9),0)*BE47 -> 0 | BF49: =IFERROR(LOOKUP(BF$9,'Merchant curves'!$B$8:$AD$8,'Merchant curves'!$B$9:$AD$9),0)*BF47 -> 0 | BG49: =IFERROR(LOOKUP(BG$9,'Merchant curves'!$B$8:$AD$8,'Merchant curves'!$B$9:$AD$9),0)*BG47 -> 0 | BH49: =IFERROR(LOOKUP(BH$9,'Merchant curves'!$B$8:$AD$8,'Merchant curves'!$B$9:$AD$9),0)*BH47 -> 0 | BI49: =IFERROR(LOOKUP(BI$9,'Merchant curves'!$B$8:$AD$8,'Merchant curves'!$B$9:$AD$9),0)*BI47 -> 0 | BJ49: =IFERROR(LOOKUP(BJ$9,'Merchant curves'!$B$8:$AD$8,'Merchant curves'!$B$9:$AD$9),0)*BJ47 -> 0 | BK49: =IFERROR(LOOKUP(BK$9,'Merchant curves'!$B$8:$AD$8,'Merchant curves'!$B$9:$AD$9),0)*BK47 -> 0 | BL49: =IFERROR(LOOKUP(BL$9,'Merchant curves'!$B$8:$AD$8,'Merchant curves'!$B$9:$AD$9),0)*BL47 -> 0 | BM49: =IFERROR(LOOKUP(BM$9,'Merchant curves'!$B$8:$AD$8,'Merchant curves'!$B$9:$AD$9),0)*BM47 -> 0 | BN49: =IFERROR(LOOKUP(BN$9,'Merchant curves'!$B$8:$AD$8,'Merchant curves'!$B$9:$AD$9),0)*BN47 -> 0 | BO49: =IFERROR(LOOKUP(BO$9,'Merchant curves'!$B$8:$AD$8,'Merchant curves'!$B$9:$AD$9),0)*BO47 -> 0 | BP49: =IFERROR(LOOKUP(BP$9,'Merchant curves'!$B$8:$AD$8,'Merchant curves'!$B$9:$AD$9),0)*BP47 -> 0 | BQ49: =IFERROR(LOOKUP(BQ$9,'Merchant curves'!$B$8:$AD$8,'Merchant curves'!$B$9:$AD$9),0)*BQ47 -> 0 | BR49: =IFERROR(LOOKUP(BR$9,'Merchant curves'!$B$8:$AD$8,'Merchant curves'!$B$9:$AD$9),0)*BR47 -> 0 | BS49: =IFERROR(LOOKUP(BS$9,'Merchant curves'!$B$8:$AD$8,'Merchant curves'!$B$9:$AD$9),0)*BS47 -> 0 | BT49: =IFERROR(LOOKUP(BT$9,'Merchant curves'!$B$8:$AD$8,'Merchant curves'!$B$9:$AD$9),0)*BT47 -> 0 | BU49: =IFERROR(LOOKUP(BU$9,'Merchant curves'!$B$8:$AD$8,'Merchant curves'!$B$9:$AD$9),0)*BU47 -> 0 | BV49: =IFERROR(LOOKUP(BV$9,'Merchant curves'!$B$8:$AD$8,'Merchant curves'!$B$9:$AD$9),0)*BV47 -> 0 | BW49: =IFERROR(LOOKUP(BW$9,'Merchant curves'!$B$8:$AD$8,'Merchant curves'!$B$9:$AD$9),0)*BW47 -> 0 | BX49: =IFERROR(LOOKUP(BX$9,'Merchant curves'!$B$8:$AD$8,'Merchant curves'!$B$9:$AD$9),0)*BX47 -> 0 | BY49: =IFERROR(LOOKUP(BY$9,'Merchant curves'!$B$8:$AD$8,'Merchant curves'!$B$9:$AD$9),0)*BY47 -> 0 | BZ49: =IFERROR(LOOKUP(BZ$9,'Merchant curves'!$B$8:$AD$8,'Merchant curves'!$B$9:$AD$9),0)*BZ47 -> 0 | CA49: =IFERROR(LOOKUP(CA$9,'Merchant curves'!$B$8:$AD$8,'Merchant curves'!$B$9:$AD$9),0)*CA47 -> 0 | CB49: =IFERROR(LOOKUP(CB$9,'Merchant curves'!$B$8:$AD$8,'Merchant curves'!$B$9:$AD$9),0)*CB47 -> 0 | CC49: =IFERROR(LOOKUP(CC$9,'Merchant curves'!$B$8:$AD$8,'Merchant curves'!$B$9:$AD$9),0)*CC47 -> 0 | CD49: =IFERROR(LOOKUP(CD$9,'Merchant curves'!$B$8:$AD$8,'Merchant curves'!$B$9:$AD$9),0)*CD47 -> 0 | CE49: =IFERROR(LOOKUP(CE$9,'Merchant curves'!$B$8:$AD$8,'Merchant curves'!$B$9:$AD$9),0)*CE47 -> 0 | CF49: =IFERROR(LOOKUP(CF$9,'Merchant curves'!$B$8:$AD$8,'Merchant curves'!$B$9:$AD$9),0)*CF47 -> 0 | CG49: =IFERROR(LOOKUP(CG$9,'Merchant curves'!$B$8:$AD$8,'Merchant curves'!$B$9:$AD$9),0)*CG47 -> 0 | CH49: =IFERROR(LOOKUP(CH$9,'Merchant curves'!$B$8:$AD$8,'Merchant curves'!$B$9:$AD$9),0)*CH47 -> 0 | CI49: =IFERROR(LOOKUP(CI$9,'Merchant curves'!$B$8:$AD$8,'Merchant curves'!$B$9:$AD$9),0)*CI47 -> 0 | CJ49: =IFERROR(LOOKUP(CJ$9,'Merchant curves'!$B$8:$AD$8,'Merchant curves'!$B$9:$AD$9),0)*CJ47 -> 0 | CK49: =IFERROR(LOOKUP(CK$9,'Merchant curves'!$B$8:$AD$8,'Merchant curves'!$B$9:$AD$9),0)*CK47 -> 0 | CL49: =IFERROR(LOOKUP(CL$9,'Merchant curves'!$B$8:$AD$8,'Merchant curves'!$B$9:$AD$9),0)*CL47 -> 0 | CM49: =IFERROR(LOOKUP(CM$9,'Merchant curves'!$B$8:$AD$8,'Merchant curves'!$B$9:$AD$9),0)*CM47 -> 0 | CN49: =IFERROR(LOOKUP(CN$9,'Merchant curves'!$B$8:$AD$8,'Merchant curves'!$B$9:$AD$9),0)*CN47 -> 0 | CO49: =IFERROR(LOOKUP(CO$9,'Merchant curves'!$B$8:$AD$8,'Merchant curves'!$B$9:$AD$9),0)*CO47 -> 0 | CP49: =IFERROR(LOOKUP(CP$9,'Merchant curves'!$B$8:$AD$8,'Merchant curves'!$B$9:$AD$9),0)*CP47 -> 0 | CQ49: =IFERROR(LOOKUP(CQ$9,'Merchant curves'!$B$8:$AD$8,'Merchant curves'!$B$9:$AD$9),0)*CQ47 -> 0 | CR49: =IFERROR(LOOKUP(CR$9,'Merchant curves'!$B$8:$AD$8,'Merchant curves'!$B$9:$AD$9),0)*CR47 -> 0 | CS49: =IFERROR(LOOKUP(CS$9,'Merchant curves'!$B$8:$AD$8,'Merchant curves'!$B$9:$AD$9),0)*CS47 -> 0 | CT49: =IFERROR(LOOKUP(CT$9,'Merchant curves'!$B$8:$AD$8,'Merchant curves'!$B$9:$AD$9),0)*CT47 -> 27.50332558 | CU49: =IFERROR(LOOKUP(CU$9,'Merchant curves'!$B$8:$AD$8,'Merchant curves'!$B$9:$AD$9),0)*CU47 -> 27.50332558 | CV49: =IFERROR(LOOKUP(CV$9,'Merchant curves'!$B$8:$AD$8,'Merchant curves'!$B$9:$AD$9),0)*CV47 -> 27.50332558 | CW49: =IFERROR(LOOKUP(CW$9,'Merchant curves'!$B$8:$AD$8,'Merchant curves'!$B$9:$AD$9),0)*CW47 -> 27.15480399 | CX49: =IFERROR(LOOKUP(CX$9,'Merchant curves'!$B$8:$AD$8,'Merchant curves'!$B$9:$AD$9),0)*CX47 -> 27.15480399 | CY49: =IFERROR(LOOKUP(CY$9,'Merchant curves'!$B$8:$AD$8,'Merchant curves'!$B$9:$AD$9),0)*CY47 -> 27.15480399 | CZ49: =IFERROR(LOOKUP(CZ$9,'Merchant curves'!$B$8:$AD$8,'Merchant curves'!$B$9:$AD$9),0)*CZ47 -> 27.15480399 | DA49: =IFERROR(LOOKUP(DA$9,'Merchant curves'!$B$8:$AD$8,'Merchant curves'!$B$9:$AD$9),0)*DA47 -> 25.81485937 | DB49: =IFERROR(LOOKUP(DB$9,'Merchant curves'!$B$8:$AD$8,'Merchant curves'!$B$9:$AD$9),0)*DB47 -> 25.81485937 | DC49: =IFERROR(LOOKUP(DC$9,'Merchant curves'!$B$8:$AD$8,'Merchant curves'!$B$9:$AD$9),0)*DC47 -> 25.81485937 | DD49: =IFERROR(LOOKUP(DD$9,'Merchant curves'!$B$8:$AD$8,'Merchant curves'!$B$9:$AD$9),0)*DD47 -> 25.81485937 | DE49: =IFERROR(LOOKUP(DE$9,'Merchant curves'!$B$8:$AD$8,'Merchant curves'!$B$9:$AD$9),0)*DE47 -> 25.86502621 | DF49: =IFERROR(LOOKUP(DF$9,'Merchant curves'!$B$8:$AD$8,'Merchant curves'!$B$9:$AD$9),0)*DF47 -> 25.86502621 | DG49: =IFERROR(LOOKUP(DG$9,'Merchant curves'!$B$8:$AD$8,'Merchant curves'!$B$9:$AD$9),0)*DG47 -> 25.86502621 | DH49: =IFERROR(LOOKUP(DH$9,'Merchant curves'!$B$8:$AD$8,'Merchant curves'!$B$9:$AD$9),0)*DH47 -> 25.86502621 | DI49: =IFERROR(LOOKUP(DI$9,'Merchant curves'!$B$8:$AD$8,'Merchant curves'!$B$9:$AD$9),0)*DI47 -> 27.05360387 | DJ49: =IFERROR(LOOKUP(DJ$9,'Merchant curves'!$B$8:$AD$8,'Merchant curves'!$B$9:$AD$9),0)*DJ47 -> 27.05360387 | DK49: =IFERROR(LOOKUP(DK$9,'Merchant curves'!$B$8:$AD$8,'Merchant curves'!$B$9:$AD$9),0)*DK47 -> 27.05360387 | DL49: =IFERROR(LOOKUP(DL$9,'Merchant curves'!$B$8:$AD$8,'Merchant curves'!$B$9:$AD$9),0)*DL47 -> 27.05360387 | DM49: =IFERROR(LOOKUP(DM$9,'Merchant curves'!$B$8:$AD$8,'Merchant curves'!$B$9:$AD$9),0)*DM47 -> 26.48179026 | DN49: =IFERROR(LOOKUP(DN$9,'Merchant curves'!$B$8:$AD$8,'Merchant curves'!$B$9:$AD$9),0)*DN47 -> 26.48179026 | DO49: =IFERROR(LOOKUP(DO$9,'Merchant curves'!$B$8:$AD$8,'Merchant curves'!$B$9:$AD$9),0)*DO47 -> 26.48179026 | DP49: =IFERROR(LOOKUP(DP$9,'Merchant curves'!$B$8:$AD$8,'Merchant curves'!$B$9:$AD$9),0)*DP47 -> 26.48179026 | DQ49: =IFERROR(LOOKUP(DQ$9,'Merchant curves'!$B$8:$AD$8,'Merchant curves'!$B$9:$AD$9),0)*DQ47 -> 25.22960547 | DR49: =IFERROR(LOOKUP(DR$9,'Merchant curves'!$B$8:$AD$8,'Merchant curves'!$B$9:$AD$9),0)*DR47 -> 25.22960547 | DS49: =IFERROR(LOOKUP(DS$9,'Merchant curves'!$B$8:$AD$8,'Merchant curves'!$B$9:$AD$9),0)*DS47 -> 25.22960547 | DT49: =IFERROR(LOOKUP(DT$9,'Merchant curves'!$B$8:$AD$8,'Merchant curves'!$B$9:$AD$9),0)*DT47 -> 25.22960547 | DU49: =IFERROR(LOOKUP(DU$9,'Merchant curves'!$B$8:$AD$8,'Merchant curves'!$B$9:$AD$9),0)*DU47 -> 25.70014995 | DV49: =IFERROR(LOOKUP(DV$9,'Merchant curves'!$B$8:$AD$8,'Merchant curves'!$B$9:$AD$9),0)*DV47 -> 25.70014995 | DW49: =IFERROR(LOOKUP(DW$9,'Merchant curves'!$B$8:$AD$8,'Merchant curves'!$B$9:$AD$9),0)*DW47 -> 25.70014995 | DX49: =IFERROR(LOOKUP(DX$9,'Merchant curves'!$B$8:$AD$8,'Merchant curves'!$B$9:$AD$9),0)*DX47 -> 25.70014995 | DY49: =IFERROR(LOOKUP(DY$9,'Merchant curves'!$B$8:$AD$8,'Merchant curves'!$B$9:$AD$9),0)*DY47 -> 26.0522957 | DZ49: =IFERROR(LOOKUP(DZ$9,'Merchant curves'!$B$8:$AD$8,'Merchant curves'!$B$9:$AD$9),0)*DZ47 -> 26.0522957 | EA49: =IFERROR(LOOKUP(EA$9,'Merchant curves'!$B$8:$AD$8,'Merchant curves'!$B$9:$AD$9),0)*EA47 -> 26.0522957 | EB49: =IFERROR(LOOKUP(EB$9,'Merchant curves'!$B$8:$AD$8,'Merchant curves'!$B$9:$AD$9),0)*EB47 -> 26.0522957 | EC49: =IFERROR(LOOKUP(EC$9,'Merchant curves'!$B$8:$AD$8,'Merchant curves'!$B$9:$AD$9),0)*EC47 -> 26.0522957 | ED49: =IFERROR(LOOKUP(ED$9,'Merchant curves'!$B$8:$AD$8,'Merchant curves'!$B$9:$AD$9),0)*ED47 -> 26.0522957 | EE49: =IFERROR(LOOKUP(EE$9,'Merchant curves'!$B$8:$AD$8,'Merchant curves'!$B$9:$AD$9),0)*EE47 -> 26.0522957 | EF49: =IFERROR(LOOKUP(EF$9,'Merchant curves'!$B$8:$AD$8,'Merchant curves'!$B$9:$AD$9),0)*EF47 -> 26.0522957 | EG49: =IFERROR(LOOKUP(EG$9,'Merchant curves'!$B$8:$AD$8,'Merchant curves'!$B$9:$AD$9),0)*EG47 -> 26.0522957 | EH49: =IFERROR(LOOKUP(EH$9,'Merchant curves'!$B$8:$AD$8,'Merchant curves'!$B$9:$AD$9),0)*EH47 -> 26.0522957 | EI49: =IFERROR(LOOKUP(EI$9,'Merchant curves'!$B$8:$AD$8,'Merchant curves'!$B$9:$AD$9),0)*EI47 -> 26.0522957 | EJ49: =IFERROR(LOOKUP(EJ$9,'Merchant curves'!$B$8:$AD$8,'Merchant curves'!$B$9:$AD$9),0)*EJ47 -> 26.0522957 | EK49: =IFERROR(LOOKUP(EK$9,'Merchant curves'!$B$8:$AD$8,'Merchant curves'!$B$9:$AD$9),0)*EK47 -> 26.0522957 | EL49: =IFERROR(LOOKUP(EL$9,'Merchant curves'!$B$8:$AD$8,'Merchant curves'!$B$9:$AD$9),0)*EL47 -> 26.0522957 | EM49: =IFERROR(LOOKUP(EM$9,'Merchant curves'!$B$8:$AD$8,'Merchant curves'!$B$9:$AD$9),0)*EM47 -> 26.0522957 | EN49: =IFERROR(LOOKUP(EN$9,'Merchant curves'!$B$8:$AD$8,'Merchant curves'!$B$9:$AD$9),0)*EN47 -> 26.0522957 | EO49: =IFERROR(LOOKUP(EO$9,'Merchant curves'!$B$8:$AD$8,'Merchant curves'!$B$9:$AD$9),0)*EO47 -> 26.0522957 | EP49: =IFERROR(LOOKUP(EP$9,'Merchant curves'!$B$8:$AD$8,'Merchant curves'!$B$9:$AD$9),0)*EP47 -> 26.0522957 | EQ49: =IFERROR(LOOKUP(EQ$9,'Merchant curves'!$B$8:$AD$8,'Merchant curves'!$B$9:$AD$9),0)*EQ47 -> 26.0522957 | ER49: =IFERROR(LOOKUP(ER$9,'Merchant curves'!$B$8:$AD$8,'Merchant curves'!$B$9:$AD$9),0)*ER47 -> 26.0522957 | ES49: =IFERROR(LOOKUP(ES$9,'Merchant curves'!$B$8:$AD$8,'Merchant curves'!$B$9:$AD$9),0)*ES47 -> 26.0522957 | ET49: =IFERROR(LOOKUP(ET$9,'Merchant curves'!$B$8:$AD$8,'Merchant curves'!$B$9:$AD$9),0)*ET47 -> 26.0522957 | EU49: =IFERROR(LOOKUP(EU$9,'Merchant curves'!$B$8:$AD$8,'Merchant curves'!$B$9:$AD$9),0)*EU47 -> 26.0522957 | EV49: =IFERROR(LOOKUP(EV$9,'Merchant curves'!$B$8:$AD$8,'Merchant curves'!$B$9:$AD$9),0)*EV47 -> 26.0522957 | EW49: =IFERROR(LOOKUP(EW$9,'Merchant curves'!$B$8:$AD$8,'Merchant curves'!$B$9:$AD$9),0)*EW47 -> 26.0522957 | EX49: =IFERROR(LOOKUP(EX$9,'Merchant curves'!$B$8:$AD$8,'Merchant curves'!$B$9:$AD$9),0)*EX47 -> 26.0522957 | EY49: =IFERROR(LOOKUP(EY$9,'Merchant curves'!$B$8:$AD$8,'Merchant curves'!$B$9:$AD$9),0)*EY47 -> 26.0522957 | EZ49: =IFERROR(LOOKUP(EZ$9,'Merchant curves'!$B$8:$AD$8,'Merchant curves'!$B$9:$AD$9),0)*EZ47 -> 26.0522957 | FA49: =IFERROR(LOOKUP(FA$9,'Merchant curves'!$B$8:$AD$8,'Merchant curves'!$B$9:$AD$9),0)*FA47 -> 0 | FB49: =IFERROR(LOOKUP(FB$9,'Merchant curves'!$B$8:$AD$8,'Merchant curves'!$B$9:$AD$9),0)*FB47 -> 0 | FC49: =IFERROR(LOOKUP(FC$9,'Merchant curves'!$B$8:$AD$8,'Merchant curves'!$B$9:$AD$9),0)*FC47 -> 0 | FD49: =IFERROR(LOOKUP(FD$9,'Merchant curves'!$B$8:$AD$8,'Merchant curves'!$B$9:$AD$9),0)*FD47 -> 0 | FE49: =IFERROR(LOOKUP(FE$9,'Merchant curves'!$B$8:$AD$8,'Merchant curves'!$B$9:$AD$9),0)*FE47 -> 0 | FF49: =IFERROR(LOOKUP(FF$9,'Merchant curves'!$B$8:$AD$8,'Merchant curves'!$B$9:$AD$9),0)*FF47 -> 0 | FG49: =IFERROR(LOOKUP(FG$9,'Merchant curves'!$B$8:$AD$8,'Merchant curves'!$B$9:$AD$9),0)*FG47 -> 0 | FH49: =IFERROR(LOOKUP(FH$9,'Merchant curves'!$B$8:$AD$8,'Merchant curves'!$B$9:$AD$9),0)*FH47 -> 0 | FI49: =IFERROR(LOOKUP(FI$9,'Merchant curves'!$B$8:$AD$8,'Merchant curves'!$B$9:$AD$9),0)*FI47 -> 0 | FJ49: =IFERROR(LOOKUP(FJ$9,'Merchant curves'!$B$8:$AD$8,'Merchant curves'!$B$9:$AD$9),0)*FJ47 -> 0 | FK49: =IFERROR(LOOKUP(FK$9,'Merchant curves'!$B$8:$AD$8,'Merchant curves'!$B$9:$AD$9),0)*FK47 -> 0 | FL49: =IFERROR(LOOKUP(FL$9,'Merchant curves'!$B$8:$AD$8,'Merchant curves'!$B$9:$AD$9),0)*FL47 -> 0 | FM49: =IFERROR(LOOKUP(FM$9,'Merchant curves'!$B$8:$AD$8,'Merchant curves'!$B$9:$AD$9),0)*FM47 -> 0 | FN49: =IFERROR(LOOKUP(FN$9,'Merchant curves'!$B$8:$AD$8,'Merchant curves'!$B$9:$AD$9),0)*FN47 -> 0 | FO49: =IFERROR(LOOKUP(FO$9,'Merchant curves'!$B$8:$AD$8,'Merchant curves'!$B$9:$AD$9),0)*FO47 -> 0 | FP49: =IFERROR(LOOKUP(FP$9,'Merchant curves'!$B$8:$AD$8,'Merchant curves'!$B$9:$AD$9),0)*FP47 -> 0 | FQ49: =IFERROR(LOOKUP(FQ$9,'Merchant curves'!$B$8:$AD$8,'Merchant curves'!$B$9:$AD$9),0)*FQ47 -> 0 | FR49: =IFERROR(LOOKUP(FR$9,'Merchant curves'!$B$8:$AD$8,'Merchant curves'!$B$9:$AD$9),0)*FR47 -> 0 | FS49: =IFERROR(LOOKUP(FS$9,'Merchant curves'!$B$8:$AD$8,'Merchant curves'!$B$9:$AD$9),0)*FS47 -> 0
C50: Inflated Merchant Price | D50: $ / MWh | E50: ='Merchant curves'!C11 -> 0.025 | I50: =I49*((1+($E50/4)))*I47 -> 0 | J50: =J49*((1+($E50/4)))*J47 -> 0 | K50: 0 | L50: 0 | M50: 0 | N50: 0 | O50: 0 | P50: 0 | Q50: 0 | R50: 0 | S50: 0 | T50: 0 | U50: 0 | V50: 0 | W50: 0 | X50: 0 | Y50: 0 | Z50: 0 | AA50: 0 | AB50: 0 | AC50: 0 | AD50: 0 | AE50: 0 | AF50: 0 | AG50: 0 | AH50: 0 | AI50: 0 | AJ50: 0 | AK50: 0 | AL50: 0 | AM50: 0 | AN50: 0 | AO50: 0 | AP50: 0 | AQ50: 0 | AR50: 0 | AS50: 0 | AT50: 0 | AU50: 0 | AV50: 0 | AW50: 0 | AX50: 0 | AY50: 0 | AZ50: 0 | BA50: 0 | BB50: 0 | BC50: 0 | BD50: 0 | BE50: 0 | BF50: 0 | BG50: 0 | BH50: 0 | BI50: 0 | BJ50: 0 | BK50: 0 | BL50: 0 | BM50: 0 | BN50: 0 | BO50: 0 | BP50: 0 | BQ50: 0 | BR50: 0 | BS50: 0 | BT50: 0 | BU50: 0 | BV50: =BV49*((1+($E50/4)))*BV47 -> 0 | BW50: 0 | BX50: 0 | BY50: 0 | BZ50: 0 | CA50: 0 | CB50: 0 | CC50: 0 | CD50: 0 | CE50: 0 | CF50: 0 | CG50: 0 | CH50: 0 | CI50: 0 | CJ50: 0 | CK50: 0 | CL50: 0 | CM50: 0 | CN50: 0 | CO50: 0 | CP50: 0 | CQ50: 0 | CR50: 0 | CS50: 0 | CT50: 27.67522136 | CU50: 27.67522136 | CV50: 27.67522136 | CW50: 27.32452152 | CX50: 27.32452152 | CY50: 27.32452152 | CZ50: 27.32452152 | DA50: 25.97620224 | DB50: 25.97620224 | DC50: 25.97620224 | DD50: 25.97620224 | DE50: 26.02668262 | DF50: 26.02668262 | DG50: 26.02668262 | DH50: 26.02668262 | DI50: 27.2226889 | DJ50: 27.2226889 | DK50: 27.2226889 | DL50: 27.2226889 | DM50: 26.64730145 | DN50: 26.64730145 | DO50: 26.64730145 | DP50: 26.64730145 | DQ50: 25.3872905 | DR50: 25.3872905 | DS50: 25.3872905 | DT50: 25.3872905 | DU50: 25.86077589 | DV50: 25.86077589 | DW50: 25.86077589 | DX50: 25.86077589 | DY50: 26.21512255 | DZ50: 26.21512255 | EA50: 26.21512255 | EB50: 26.21512255 | EC50: 26.21512255 | ED50: 26.21512255 | EE50: 26.21512255 | EF50: 26.21512255 | EG50: 26.21512255 | EH50: =EH49*((1+($E50/4)))*EH47 -> 26.21512255 | EI50: 26.21512255 | EJ50: 26.21512255 | EK50: 26.21512255 | EL50: 26.21512255 | EM50: 26.21512255 | EN50: 26.21512255 | EO50: 26.21512255 | EP50: 26.21512255 | EQ50: 26.21512255 | ER50: 26.21512255 | ES50: 26.21512255 | ET50: 26.21512255 | EU50: 26.21512255 | EV50: 26.21512255 | EW50: 26.21512255 | EX50: 26.21512255 | EY50: 26.21512255 | EZ50: 26.21512255 | FA50: 0 | FB50: 0 | FC50: 0 | FD50: 0 | FE50: 0 | FF50: 0 | FG50: 0 | FH50: 0 | FI50: 0 | FJ50: 0 | FK50: 0 | FL50: 0 | FM50: 0 | FN50: 0 | FO50: 0 | FP50: 0 | FQ50: 0 | FR50: 0 | FS50: 0
H51: =SUM(I51:FS51) -> 150061.2967 | I51: =I50*I48/1000 -> 0 | J51: 0 | K51: 0 | L51: 0 | M51: 0 | N51: 0 | O51: 0 | P51: 0 | Q51: 0 | R51: 0 | S51: 0 | T51: 0 | U51: 0 | V51: 0 | W51: 0 | X51: 0 | Y51: 0 | Z51: 0 | AA51: 0 | AB51: 0 | AC51: 0 | AD51: 0 | AE51: 0 | AF51: 0 | AG51: 0 | AH51: 0 | AI51: 0 | AJ51: 0 | AK51: 0 | AL51: 0 | AM51: 0 | AN51: 0 | AO51: =AO50*AO48/1000 -> 0 | AP51: 0 | AQ51: 0 | AR51: 0 | AS51: 0 | AT51: 0 | AU51: 0 | AV51: 0 | AW51: 0 | AX51: 0 | AY51: 0 | AZ51: 0 | BA51: 0 | BB51: 0 | BC51: 0 | BD51: 0 | BE51: 0 | BF51: 0 | BG51: 0 | BH51: 0 | BI51: 0 | BJ51: 0 | BK51: 0 | BL51: 0 | BM51: 0 | BN51: 0 | BO51: 0 | BP51: 0 | BQ51: 0 | BR51: 0 | BS51: 0 | BT51: 0 | BU51: =BU50*BU48/1000 -> 0 | BV51: 0 | BW51: 0 | BX51: 0 | BY51: 0 | BZ51: 0 | CA51: 0 | CB51: 0 | CC51: 0 | CD51: 0 | CE51: 0 | CF51: 0 | CG51: 0 | CH51: 0 | CI51: 0 | CJ51: 0 | CK51: 0 | CL51: 0 | CM51: 0 | CN51: 0 | CO51: 0 | CP51: 0 | CQ51: 0 | CR51: 0 | CS51: 0 | CT51: 2785.632419 | CU51: 2785.632419 | CV51: 2785.632419 | CW51: 2733.929365 | CX51: 2733.929365 | CY51: 2733.929365 | CZ51: 2733.929365 | DA51: =DA50*DA48/1000 -> 2583.523404 | DB51: 2583.523404 | DC51: 2583.523404 | DD51: 2583.523404 | DE51: 2573.105415 | DF51: 2573.105415 | DG51: 2573.105415 | DH51: 2573.105415 | DI51: 2675.295764 | DJ51: 2675.295764 | DK51: 2675.295764 | DL51: 2675.295764 | DM51: 2603.131072 | DN51: 2603.131072 | DO51: 2603.131072 | DP51: 2603.131072 | DQ51: 2465.251167 | DR51: 2465.251167 | DS51: 2465.251167 | DT51: 2465.251167 | DU51: 2496.251796 | DV51: 2496.251796 | DW51: 2496.251796 | DX51: 2496.251796 | DY51: 2515.36348 | DZ51: 2515.36348 | EA51: 2515.36348 | EB51: 2515.36348 | EC51: 2500.361312 | ED51: 2500.361312 | EE51: 2500.361312 | EF51: 2500.361312 | EG51: =EG50*EG48/1000 -> 2485.448621 | EH51: 2485.448621 | EI51: 2485.448621 | EJ51: 2485.448621 | EK51: 2470.624871 | EL51: 2470.624871 | EM51: 2470.624871 | EN51: 2470.624871 | EO51: 2455.889534 | EP51: 2455.889534 | EQ51: 2455.889534 | ER51: 2455.889534 | ES51: 2441.242082 | ET51: 2441.242082 | EU51: 2441.242082 | EV51: 2441.242082 | EW51: 2426.68199 | EX51: 2426.68199 | EY51: 2426.68199 | EZ51: 2426.68199 | FA51: 0 | FB51: 0 | FC51: 0 | FD51: 0 | FE51: 0 | FF51: 0 | FG51: 0 | FH51: 0 | FI51: 0 | FJ51: 0 | FK51: 0 | FL51: 0 | FM51: =FM50*FM48/1000 -> 0 | FN51: 0 | FO51: 0 | FP51: 0 | FQ51: 0 | FR51: 0 | FS51: 0
C52: Summary
C53: PPA 1 revenue | D53: USD '000 | I53: =I32 -> 0 | J53: 0 | K53: 0 | L53: 0 | M53: 0 | N53: 0 | O53: 0 | P53: 0 | Q53: 2858.10768 | R53: 4644.42498 | S53: 4201.41829 | T53: 2586.58745 | U53: 2587.230241 | V53: 2587.230241 | W53: 2587.230241 | X53: 2587.230241 | Y53: 2587.87319 | Z53: 2587.87319 | AA53: 2587.87319 | AB53: 2587.87319 | AC53: 2588.5163 | AD53: 2588.5163 | AE53: 2588.5163 | AF53: 2588.5163 | AG53: 2589.159569 | AH53: 2589.159569 | AI53: 2589.159569 | AJ53: 2589.159569 | AK53: 2589.802999 | AL53: 2589.802999 | AM53: 2589.802999 | AN53: 2589.802999 | AO53: =AO32 -> 2590.446588 | AP53: 2590.446588 | AQ53: 2590.446588 | AR53: 2590.446588 | AS53: 2591.090337 | AT53: 2591.090337 | AU53: 2591.090337 | AV53: 2591.090337 | AW53: 2591.734246 | AX53: 2591.734246 | AY53: 2591.734246 | AZ53: 2591.734246 | BA53: 2592.378315 | BB53: 2592.378315 | BC53: 2592.378315 | BD53: 2592.378315 | BE53: 2593.022545 | BF53: 2593.022545 | BG53: 2593.022545 | BH53: 2593.022545 | BI53: 2593.666934 | BJ53: 2593.666934 | BK53: 2593.666934 | BL53: 2593.666934 | BM53: 2594.311483 | BN53: 2594.311483 | BO53: 2594.311483 | BP53: 2594.311483 | BQ53: 2594.956193 | BR53: 2594.956193 | BS53: 2594.956193 | BT53: 2594.956193 | BU53: =BU32 -> 2595.601063 | BV53: 2595.601063 | BW53: 2595.601063 | BX53: 2595.601063 | BY53: 0 | BZ53: 0 | CA53: 0 | CB53: 0 | CC53: 0 | CD53: 0 | CE53: 0 | CF53: 0 | CG53: 0 | CH53: 0 | CI53: 0 | CJ53: 0 | CK53: 0 | CL53: 0 | CM53: 0 | CN53: 0 | CO53: 0 | CP53: 0 | CQ53: 0 | CR53: 0 | CS53: 0 | CT53: 0 | CU53: 0 | CV53: 0 | CW53: 0 | CX53: 0 | CY53: 0 | CZ53: 0 | DA53: =DA32 -> 0 | DB53: 0 | DC53: 0 | DD53: 0 | DE53: 0 | DF53: 0 | DG53: 0 | DH53: 0 | DI53: 0 | DJ53: 0 | DK53: 0 | DL53: 0 | DM53: 0 | DN53: 0 | DO53: 0 | DP53: 0 | DQ53: 0 | DR53: 0 | DS53: 0 | DT53: 0 | DU53: 0 | DV53: 0 | DW53: 0 | DX53: 0 | DY53: 0 | DZ53: 0 | EA53: 0 | EB53: 0 | EC53: 0 | ED53: 0 | EE53: 0 | EF53: 0 | EG53: =EG32 -> 0 | EH53: 0 | EI53: 0 | EJ53: 0 | EK53: 0 | EL53: 0 | EM53: 0 | EN53: 0 | EO53: 0 | EP53: 0 | EQ53: 0 | ER53: 0 | ES53: 0 | ET53: 0 | EU53: 0 | EV53: 0 | EW53: 0 | EX53: 0 | EY53: 0 | EZ53: 0 | FA53: 0 | FB53: 0 | FC53: 0 | FD53: 0 | FE53: 0 | FF53: 0 | FG53: 0 | FH53: 0 | FI53: 0 | FJ53: 0 | FK53: 0 | FL53: 0 | FM53: =FM32 -> 0 | FN53: 0 | FO53: 0 | FP53: 0 | FQ53: 0 | FR53: 0 | FS53: 0
C54: PPA 2 revenue | D54: USD '000 | I54: =I39 -> 0 | J54: 0 | K54: 0 | L54: 0 | M54: 0 | N54: 0 | O54: 0 | P54: 0 | Q54: 1864.66455 | R54: 3030.079894 | S54: 2741.056888 | T54: 1687.521418 | U54: 1677.456678 | V54: 1677.456678 | W54: 1677.456678 | X54: 1677.456678 | Y54: 1667.451966 | Z54: 1667.451966 | AA54: 1667.451966 | AB54: 1667.451966 | AC54: 1657.506924 | AD54: 1657.506924 | AE54: 1657.506924 | AF54: 1657.506924 | AG54: 1647.621197 | AH54: 1647.621197 | AI54: 1647.621197 | AJ54: 1647.621197 | AK54: 1637.794431 | AL54: 1637.794431 | AM54: 1637.794431 | AN54: 1637.794431 | AO54: =AO39 -> 1628.026273 | AP54: 1628.026273 | AQ54: 1628.026273 | AR54: 1628.026273 | AS54: 1618.316375 | AT54: 1618.316375 | AU54: 1618.316375 | AV54: 1618.316375 | AW54: 1608.664388 | AX54: 1608.664388 | AY54: 1608.664388 | AZ54: 1608.664388 | BA54: 1599.069969 | BB54: 1599.069969 | BC54: 1599.069969 | BD54: 1599.069969 | BE54: 1589.532772 | BF54: 1589.532772 | BG54: 1589.532772 | BH54: 1589.532772 | BI54: 1580.052457 | BJ54: 1580.052457 | BK54: 1580.052457 | BL54: 1580.052457 | BM54: 1570.628685 | BN54: 1570.628685 | BO54: 1570.628685 | BP54: 1570.628685 | BQ54: 1561.261118 | BR54: 1561.261118 | BS54: 1561.261118 | BT54: 1561.261118 | BU54: =BU39 -> 1551.949422 | BV54: 1551.949422 | BW54: 1551.949422 | BX54: 1551.949422 | BY54: 1542.693262 | BZ54: 1542.693262 | CA54: 1542.693262 | CB54: 1542.693262 | CC54: 1533.492308 | CD54: 1533.492308 | CE54: 1533.492308 | CF54: 1533.492308 | CG54: 1524.346231 | CH54: 1524.346231 | CI54: 1524.346231 | CJ54: 1524.346231 | CK54: 1515.254703 | CL54: 1515.254703 | CM54: 1515.254703 | CN54: 1515.254703 | CO54: 1506.217398 | CP54: 1506.217398 | CQ54: 1506.217398 | CR54: 1506.217398 | CS54: 0 | CT54: 0 | CU54: 0 | CV54: 0 | CW54: 0 | CX54: 0 | CY54: 0 | CZ54: 0 | DA54: =DA39 -> 0 | DB54: 0 | DC54: 0 | DD54: 0 | DE54: 0 | DF54: 0 | DG54: 0 | DH54: 0 | DI54: 0 | DJ54: 0 | DK54: 0 | DL54: 0 | DM54: 0 | DN54: 0 | DO54: 0 | DP54: 0 | DQ54: 0 | DR54: 0 | DS54: 0 | DT54: 0 | DU54: 0 | DV54: 0 | DW54: 0 | DX54: 0 | DY54: 0 | DZ54: 0 | EA54: 0 | EB54: 0 | EC54: 0 | ED54: 0 | EE54: 0 | EF54: 0 | EG54: =EG39 -> 0 | EH54: 0 | EI54: 0 | EJ54: 0 | EK54: 0 | EL54: 0 | EM54: 0 | EN54: 0 | EO54: 0 | EP54: 0 | EQ54: 0 | ER54: 0 | ES54: 0 | ET54: 0 | EU54: 0 | EV54: 0 | EW54: 0 | EX54: 0 | EY54: 0 | EZ54: 0 | FA54: 0 | FB54: 0 | FC54: 0 | FD54: 0 | FE54: 0 | FF54: 0 | FG54: 0 | FH54: 0 | FI54: 0 | FJ54: 0 | FK54: 0 | FL54: 0 | FM54: =FM39 -> 0 | FN54: 0 | FO54: 0 | FP54: 0 | FQ54: 0 | FR54: 0 | FS54: 0
C55: REC revenue | D55: USD '000 | I55: =I44 -> 0 | J55: 0 | K55: 0 | L55: 0 | M55: 0 | N55: 0 | O55: 0 | P55: 0 | Q55: 156.6945 | R55: 254.6285625 | S55: 230.340915 | T55: 141.8085225 | U55: 140.962746 | V55: 140.962746 | W55: 140.962746 | X55: 140.962746 | Y55: 140.1220139 | Z55: 140.1220139 | AA55: 140.1220139 | AB55: 140.1220139 | AC55: 139.2862962 | AD55: 139.2862962 | AE55: 139.2862962 | AF55: 139.2862962 | AG55: 138.4555628 | AH55: 138.4555628 | AI55: 138.4555628 | AJ55: 138.4555628 | AK55: 137.6297841 | AL55: 137.6297841 | AM55: 137.6297841 | AN55: 137.6297841 | AO55: =AO44 -> 136.8089305 | AP55: 136.8089305 | AQ55: 136.8089305 | AR55: 136.8089305 | AS55: 135.9929727 | AT55: 135.9929727 | AU55: 135.9929727 | AV55: 135.9929727 | AW55: 135.1818814 | AX55: 135.1818814 | AY55: 135.1818814 | AZ55: 135.1818814 | BA55: 134.3756276 | BB55: 134.3756276 | BC55: 134.3756276 | BD55: 134.3756276 | BE55: 0 | BF55: 0 | BG55: 0 | BH55: 0 | BI55: 0 | BJ55: 0 | BK55: 0 | BL55: 0 | BM55: 0 | BN55: 0 | BO55: 0 | BP55: 0 | BQ55: 0 | BR55: 0 | BS55: 0 | BT55: 0 | BU55: =BU44 -> 0 | BV55: 0 | BW55: 0 | BX55: 0 | BY55: 0 | BZ55: 0 | CA55: 0 | CB55: 0 | CC55: 0 | CD55: 0 | CE55: 0 | CF55: 0 | CG55: 0 | CH55: 0 | CI55: 0 | CJ55: 0 | CK55: 0 | CL55: 0 | CM55: 0 | CN55: 0 | CO55: 0 | CP55: 0 | CQ55: 0 | CR55: 0 | CS55: 0 | CT55: 0 | CU55: 0 | CV55: 0 | CW55: 0 | CX55: 0 | CY55: 0 | CZ55: 0 | DA55: =DA44 -> 0 | DB55: 0 | DC55: 0 | DD55: 0 | DE55: 0 | DF55: 0 | DG55: 0 | DH55: 0 | DI55: 0 | DJ55: 0 | DK55: 0 | DL55: 0 | DM55: 0 | DN55: 0 | DO55: 0 | DP55: 0 | DQ55: 0 | DR55: 0 | DS55: 0 | DT55: 0 | DU55: 0 | DV55: 0 | DW55: 0 | DX55: 0 | DY55: 0 | DZ55: 0 | EA55: 0 | EB55: 0 | EC55: 0 | ED55: 0 | EE55: 0 | EF55: 0 | EG55: =EG44 -> 0 | EH55: 0 | EI55: 0 | EJ55: 0 | EK55: 0 | EL55: 0 | EM55: 0 | EN55: 0 | EO55: 0 | EP55: 0 | EQ55: 0 | ER55: 0 | ES55: 0 | ET55: 0 | EU55: 0 | EV55: 0 | EW55: 0 | EX55: 0 | EY55: 0 | EZ55: 0 | FA55: 0 | FB55: 0 | FC55: 0 | FD55: 0 | FE55: 0 | FF55: 0 | FG55: 0 | FH55: 0 | FI55: 0 | FJ55: 0 | FK55: 0 | FL55: 0 | FM55: =FM44 -> 0 | FN55: 0 | FO55: 0 | FP55: 0 | FQ55: 0 | FR55: 0 | FS55: 0
C56: Merchant revenue | D56: USD '000 | I56: =I51 -> 0 | J56: 0 | K56: 0 | L56: 0 | M56: 0 | N56: 0 | O56: 0 | P56: 0 | Q56: 0 | R56: 0 | S56: 0 | T56: 0 | U56: 0 | V56: 0 | W56: 0 | X56: 0 | Y56: 0 | Z56: 0 | AA56: 0 | AB56: 0 | AC56: 0 | AD56: 0 | AE56: 0 | AF56: 0 | AG56: 0 | AH56: 0 | AI56: 0 | AJ56: 0 | AK56: 0 | AL56: 0 | AM56: 0 | AN56: 0 | AO56: =AO51 -> 0 | AP56: 0 | AQ56: 0 | AR56: 0 | AS56: 0 | AT56: 0 | AU56: 0 | AV56: 0 | AW56: 0 | AX56: 0 | AY56: 0 | AZ56: 0 | BA56: 0 | BB56: 0 | BC56: 0 | BD56: 0 | BE56: 0 | BF56: 0 | BG56: 0 | BH56: 0 | BI56: 0 | BJ56: 0 | BK56: 0 | BL56: 0 | BM56: 0 | BN56: 0 | BO56: 0 | BP56: 0 | BQ56: 0 | BR56: 0 | BS56: 0 | BT56: 0 | BU56: =BU51 -> 0 | BV56: 0 | BW56: 0 | BX56: 0 | BY56: 0 | BZ56: 0 | CA56: 0 | CB56: 0 | CC56: 0 | CD56: 0 | CE56: 0 | CF56: 0 | CG56: 0 | CH56: 0 | CI56: 0 | CJ56: 0 | CK56: 0 | CL56: 0 | CM56: 0 | CN56: 0 | CO56: 0 | CP56: 0 | CQ56: 0 | CR56: 0 | CS56: 0 | CT56: 2785.632419 | CU56: 2785.632419 | CV56: 2785.632419 | CW56: 2733.929365 | CX56: 2733.929365 | CY56: 2733.929365 | CZ56: 2733.929365 | DA56: =DA51 -> 2583.523404 | DB56: 2583.523404 | DC56: 2583.523404 | DD56: 2583.523404 | DE56: 2573.105415 | DF56: 2573.105415 | DG56: 2573.105415 | DH56: 2573.105415 | DI56: 2675.295764 | DJ56: 2675.295764 | DK56: 2675.295764 | DL56: 2675.295764 | DM56: 2603.131072 | DN56: 2603.131072 | DO56: 2603.131072 | DP56: 2603.131072 | DQ56: 2465.251167 | DR56: 2465.251167 | DS56: 2465.251167 | DT56: 2465.251167 | DU56: 2496.251796 | DV56: 2496.251796 | DW56: 2496.251796 | DX56: 2496.251796 | DY56: 2515.36348 | DZ56: 2515.36348 | EA56: 2515.36348 | EB56: 2515.36348 | EC56: 2500.361312 | ED56: 2500.361312 | EE56: 2500.361312 | EF56: 2500.361312 | EG56: =EG51 -> 2485.448621 | EH56: 2485.448621 | EI56: 2485.448621 | EJ56: 2485.448621 | EK56: 2470.624871 | EL56: 2470.624871 | EM56: 2470.624871 | EN56: 2470.624871 | EO56: 2455.889534 | EP56: 2455.889534 | EQ56: 2455.889534 | ER56: 2455.889534 | ES56: 2441.242082 | ET56: 2441.242082 | EU56: 2441.242082 | EV56: 2441.242082 | EW56: 2426.68199 | EX56: 2426.68199 | EY56: 2426.68199 | EZ56: 2426.68199 | FA56: 0 | FB56: 0 | FC56: 0 | FD56: 0 | FE56: 0 | FF56: 0 | FG56: 0 | FH56: 0 | FI56: 0 | FJ56: 0 | FK56: 0 | FL56: 0 | FM56: =FM51 -> 0 | FN56: 0 | FO56: 0 | FP56: 0 | FQ56: 0 | FR56: 0 | FS56: 0
C57: Total revenue | D57: USD '000 | H57: =SUM(I57:FS57) -> 445402.3999 | I57: =SUM(I53:I56) -> 0 | J57: 0 | K57: 0 | L57: 0 | M57: 0 | N57: 0 | O57: 0 | P57: 0 | Q57: 4879.46673 | R57: 7929.133436 | S57: 7172.816093 | T57: 4415.917391 | U57: 4405.649664 | V57: 4405.649664 | W57: 4405.649664 | X57: 4405.649664 | Y57: 4395.44717 | Z57: 4395.44717 | AA57: 4395.44717 | AB57: 4395.44717 | AC57: 4385.309521 | AD57: 4385.309521 | AE57: 4385.309521 | AF57: 4385.309521 | AG57: 4375.236329 | AH57: 4375.236329 | AI57: 4375.236329 | AJ57: 4375.236329 | AK57: 4365.227213 | AL57: 4365.227213 | AM57: 4365.227213 | AN57: 4365.227213 | AO57: =SUM(AO53:AO56) -> 4355.281791 | AP57: 4355.281791 | AQ57: 4355.281791 | AR57: 4355.281791 | AS57: 4345.399685 | AT57: 4345.399685 | AU57: 4345.399685 | AV57: 4345.399685 | AW57: 4335.580516 | AX57: 4335.580516 | AY57: 4335.580516 | AZ57: 4335.580516 | BA57: 4325.823912 | BB57: 4325.823912 | BC57: 4325.823912 | BD57: 4325.823912 | BE57: 4182.555317 | BF57: 4182.555317 | BG57: 4182.555317 | BH57: 4182.555317 | BI57: 4173.719391 | BJ57: 4173.719391 | BK57: 4173.719391 | BL57: 4173.719391 | BM57: 4164.940168 | BN57: 4164.940168 | BO57: 4164.940168 | BP57: 4164.940168 | BQ57: 4156.217311 | BR57: 4156.217311 | BS57: 4156.217311 | BT57: 4156.217311 | BU57: =SUM(BU53:BU56) -> 4147.550485 | BV57: 4147.550485 | BW57: 4147.550485 | BX57: 4147.550485 | BY57: 1542.693262 | BZ57: 1542.693262 | CA57: 1542.693262 | CB57: 1542.693262 | CC57: 1533.492308 | CD57: 1533.492308 | CE57: 1533.492308 | CF57: 1533.492308 | CG57: 1524.346231 | CH57: 1524.346231 | CI57: 1524.346231 | CJ57: 1524.346231 | CK57: 1515.254703 | CL57: 1515.254703 | CM57: 1515.254703 | CN57: 1515.254703 | CO57: 1506.217398 | CP57: 1506.217398 | CQ57: 1506.217398 | CR57: 1506.217398 | CS57: 0 | CT57: 2785.632419 | CU57: 2785.632419 | CV57: 2785.632419 | CW57: 2733.929365 | CX57: 2733.929365 | CY57: 2733.929365 | CZ57: 2733.929365 | DA57: =SUM(DA53:DA56) -> 2583.523404 | DB57: 2583.523404 | DC57: 2583.523404 | DD57: 2583.523404 | DE57: 2573.105415 | DF57: 2573.105415 | DG57: 2573.105415 | DH57: 2573.105415 | DI57: 2675.295764 | DJ57: 2675.295764 | DK57: 2675.295764 | DL57: 2675.295764 | DM57: 2603.131072 | DN57: 2603.131072 | DO57: 2603.131072 | DP57: 2603.131072 | DQ57: 2465.251167 | DR57: 2465.251167 | DS57: 2465.251167 | DT57: 2465.251167 | DU57: 2496.251796 | DV57: 2496.251796 | DW57: 2496.251796 | DX57: 2496.251796 | DY57: 2515.36348 | DZ57: 2515.36348 | EA57: 2515.36348 | EB57: 2515.36348 | EC57: 2500.361312 | ED57: 2500.361312 | EE57: 2500.361312 | EF57: 2500.361312 | EG57: =SUM(EG53:EG56) -> 2485.448621 | EH57: 2485.448621 | EI57: 2485.448621 | EJ57: 2485.448621 | EK57: 2470.624871 | EL57: 2470.624871 | EM57: 2470.624871 | EN57: 2470.624871 | EO57: 2455.889534 | EP57: 2455.889534 | EQ57: 2455.889534 | ER57: 2455.889534 | ES57: 2441.242082 | ET57: 2441.242082 | EU57: 2441.242082 | EV57: 2441.242082 | EW57: 2426.68199 | EX57: 2426.68199 | EY57: 2426.68199 | EZ57: 2426.68199 | FA57: 0 | FB57: 0 | FC57: 0 | FD57: 0 | FE57: 0 | FF57: 0 | FG57: 0 | FH57: 0 | FI57: 0 | FJ57: 0 | FK57: 0 | FL57: 0 | FM57: =SUM(FM53:FM56) -> 0 | FN57: 0 | FO57: 0 | FP57: 0 | FQ57: 0 | FR57: 0 | FS57: 0
B59: Operating costs
C60: Fixed costs
C62: Inflation Quarterly 2.5% | D62: % p.p. | E62: ='Inputs - Partnership'!$G$67 -> 0.025 | I62: =(1+$E$62)^(1/4)-1 -> 0.006192246326 | J62: =(1+$E$62)^(1/4)-1 -> 0.006192246326 | K62: =(1+$E$62)^(1/4)-1 -> 0.006192246326 | L62: =(1+$E$62)^(1/4)-1 -> 0.006192246326 | M62: =(1+$E$62)^(1/4)-1 -> 0.006192246326 | N62: =(1+$E$62)^(1/4)-1 -> 0.006192246326 | O62: =(1+$E$62)^(1/4)-1 -> 0.006192246326 | P62: =(1+$E$62)^(1/4)-1 -> 0.006192246326 | Q62: =(1+$E$62)^(1/4)-1 -> 0.006192246326 | R62: =(1+$E$62)^(1/4)-1 -> 0.006192246326 | S62: =(1+$E$62)^(1/4)-1 -> 0.006192246326 | T62: =(1+$E$62)^(1/4)-1 -> 0.006192246326 | U62: =(1+$E$62)^(1/4)-1 -> 0.006192246326 | V62: =(1+$E$62)^(1/4)-1 -> 0.006192246326 | W62: =(1+$E$62)^(1/4)-1 -> 0.006192246326 | X62: =(1+$E$62)^(1/4)-1 -> 0.006192246326 | Y62: =(1+$E$62)^(1/4)-1 -> 0.006192246326 | Z62: =(1+$E$62)^(1/4)-1 -> 0.006192246326 | AA62: =(1+$E$62)^(1/4)-1 -> 0.006192246326 | AB62: =(1+$E$62)^(1/4)-1 -> 0.006192246326 | AC62: =(1+$E$62)^(1/4)-1 -> 0.006192246326 | AD62: =(1+$E$62)^(1/4)-1 -> 0.006192246326 | AE62: =(1+$E$62)^(1/4)-1 -> 0.006192246326 | AF62: =(1+$E$62)^(1/4)-1 -> 0.006192246326 | AG62: =(1+$E$62)^(1/4)-1 -> 0.006192246326 | AH62: =(1+$E$62)^(1/4)-1 -> 0.006192246326 | AI62: =(1+$E$62)^(1/4)-1 -> 0.006192246326 | AJ62: =(1+$E$62)^(1/4)-1 -> 0.006192246326 | AK62: =(1+$E$62)^(1/4)-1 -> 0.006192246326 | AL62: =(1+$E$62)^(1/4)-1 -> 0.006192246326 | AM62: =(1+$E$62)^(1/4)-1 -> 0.006192246326 | AN62: =(1+$E$62)^(1/4)-1 -> 0.006192246326 | AO62: =(1+$E$62)^(1/4)-1 -> 0.006192246326 | AP62: =(1+$E$62)^(1/4)-1 -> 0.006192246326 | AQ62: =(1+$E$62)^(1/4)-1 -> 0.006192246326 | AR62: =(1+$E$62)^(1/4)-1 -> 0.006192246326 | AS62: =(1+$E$62)^(1/4)-1 -> 0.006192246326 | AT62: =(1+$E$62)^(1/4)-1 -> 0.006192246326 | AU62: =(1+$E$62)^(1/4)-1 -> 0.006192246326 | AV62: =(1+$E$62)^(1/4)-1 -> 0.006192246326 | AW62: =(1+$E$62)^(1/4)-1 -> 0.006192246326 | AX62: =(1+$E$62)^(1/4)-1 -> 0.006192246326 | AY62: =(1+$E$62)^(1/4)-1 -> 0.006192246326 | AZ62: =(1+$E$62)^(1/4)-1 -> 0.006192246326 | BA62: =(1+$E$62)^(1/4)-1 -> 0.006192246326 | BB62: =(1+$E$62)^(1/4)-1 -> 0.006192246326 | BC62: =(1+$E$62)^(1/4)-1 -> 0.006192246326 | BD62: =(1+$E$62)^(1/4)-1 -> 0.006192246326 | BE62: =(1+$E$62)^(1/4)-1 -> 0.006192246326 | BF62: =(1+$E$62)^(1/4)-1 -> 0.006192246326 | BG62: =(1+$E$62)^(1/4)-1 -> 0.006192246326 | BH62: =(1+$E$62)^(1/4)-1 -> 0.006192246326 | BI62: =(1+$E$62)^(1/4)-1 -> 0.006192246326 | BJ62: =(1+$E$62)^(1/4)-1 -> 0.006192246326 | BK62: =(1+$E$62)^(1/4)-1 -> 0.006192246326 | BL62: =(1+$E$62)^(1/4)-1 -> 0.006192246326 | BM62: =(1+$E$62)^(1/4)-1 -> 0.006192246326 | BN62: =(1+$E$62)^(1/4)-1 -> 0.006192246326 | BO62: =(1+$E$62)^(1/4)-1 -> 0.006192246326 | BP62: =(1+$E$62)^(1/4)-1 -> 0.006192246326 | BQ62: =(1+$E$62)^(1/4)-1 -> 0.006192246326 | BR62: =(1+$E$62)^(1/4)-1 -> 0.006192246326 | BS62: =(1+$E$62)^(1/4)-1 -> 0.006192246326 | BT62: =(1+$E$62)^(1/4)-1 -> 0.006192246326 | BU62: =(1+$E$62)^(1/4)-1 -> 0.006192246326 | BV62: =(1+$E$62)^(1/4)-1 -> 0.006192246326 | BW62: =(1+$E$62)^(1/4)-1 -> 0.006192246326 | BX62: =(1+$E$62)^(1/4)-1 -> 0.006192246326 | BY62: =(1+$E$62)^(1/4)-1 -> 0.006192246326 | BZ62: =(1+$E$62)^(1/4)-1 -> 0.006192246326 | CA62: =(1+$E$62)^(1/4)-1 -> 0.006192246326 | CB62: =(1+$E$62)^(1/4)-1 -> 0.006192246326 | CC62: =(1+$E$62)^(1/4)-1 -> 0.006192246326 | CD62: =(1+$E$62)^(1/4)-1 -> 0.006192246326 | CE62: =(1+$E$62)^(1/4)-1 -> 0.006192246326 | CF62: =(1+$E$62)^(1/4)-1 -> 0.006192246326 | CG62: =(1+$E$62)^(1/4)-1 -> 0.006192246326 | CH62: =(1+$E$62)^(1/4)-1 -> 0.006192246326 | CI62: =(1+$E$62)^(1/4)-1 -> 0.006192246326 | CJ62: =(1+$E$62)^(1/4)-1 -> 0.006192246326 | CK62: =(1+$E$62)^(1/4)-1 -> 0.006192246326 | CL62: =(1+$E$62)^(1/4)-1 -> 0.006192246326 | CM62: =(1+$E$62)^(1/4)-1 -> 0.006192246326 | CN62: =(1+$E$62)^(1/4)-1 -> 0.006192246326 | CO62: =(1+$E$62)^(1/4)-1 -> 0.006192246326 | CP62: =(1+$E$62)^(1/4)-1 -> 0.006192246326 | CQ62: =(1+$E$62)^(1/4)-1 -> 0.006192246326 | CR62: =(1+$E$62)^(1/4)-1 -> 0.006192246326 | CS62: =(1+$E$62)^(1/4)-1 -> 0.006192246326 | CT62: =(1+$E$62)^(1/4)-1 -> 0.006192246326 | CU62: =(1+$E$62)^(1/4)-1 -> 0.006192246326 | CV62: =(1+$E$62)^(1/4)-1 -> 0.006192246326 | CW62: =(1+$E$62)^(1/4)-1 -> 0.006192246326 | CX62: =(1+$E$62)^(1/4)-1 -> 0.006192246326 | CY62: =(1+$E$62)^(1/4)-1 -> 0.006192246326 | CZ62: =(1+$E$62)^(1/4)-1 -> 0.006192246326 | DA62: =(1+$E$62)^(1/4)-1 -> 0.006192246326 | DB62: =(1+$E$62)^(1/4)-1 -> 0.006192246326 | DC62: =(1+$E$62)^(1/4)-1 -> 0.006192246326 | DD62: =(1+$E$62)^(1/4)-1 -> 0.006192246326 | DE62: =(1+$E$62)^(1/4)-1 -> 0.006192246326 | DF62: =(1+$E$62)^(1/4)-1 -> 0.006192246326 | DG62: =(1+$E$62)^(1/4)-1 -> 0.006192246326 | DH62: =(1+$E$62)^(1/4)-1 -> 0.006192246326 | DI62: =(1+$E$62)^(1/4)-1 -> 0.006192246326 | DJ62: =(1+$E$62)^(1/4)-1 -> 0.006192246326 | DK62: =(1+$E$62)^(1/4)-1 -> 0.006192246326 | DL62: =(1+$E$62)^(1/4)-1 -> 0.006192246326 | DM62: =(1+$E$62)^(1/4)-1 -> 0.006192246326 | DN62: =(1+$E$62)^(1/4)-1 -> 0.006192246326 | DO62: =(1+$E$62)^(1/4)-1 -> 0.006192246326 | DP62: =(1+$E$62)^(1/4)-1 -> 0.006192246326 | DQ62: =(1+$E$62)^(1/4)-1 -> 0.006192246326 | DR62: =(1+$E$62)^(1/4)-1 -> 0.006192246326 | DS62: =(1+$E$62)^(1/4)-1 -> 0.006192246326 | DT62: =(1+$E$62)^(1/4)-1 -> 0.006192246326 | DU62: =(1+$E$62)^(1/4)-1 -> 0.006192246326 | DV62: =(1+$E$62)^(1/4)-1 -> 0.006192246326 | DW62: =(1+$E$62)^(1/4)-1 -> 0.006192246326 | DX62: =(1+$E$62)^(1/4)-1 -> 0.006192246326 | DY62: =(1+$E$62)^(1/4)-1 -> 0.006192246326 | DZ62: =(1+$E$62)^(1/4)-1 -> 0.006192246326 | EA62: =(1+$E$62)^(1/4)-1 -> 0.006192246326 | EB62: =(1+$E$62)^(1/4)-1 -> 0.006192246326 | EC62: =(1+$E$62)^(1/4)-1 -> 0.006192246326 | ED62: =(1+$E$62)^(1/4)-1 -> 0.006192246326 | EE62: =(1+$E$62)^(1/4)-1 -> 0.006192246326 | EF62: =(1+$E$62)^(1/4)-1 -> 0.006192246326 | EG62: =(1+$E$62)^(1/4)-1 -> 0.006192246326 | EH62: =(1+$E$62)^(1/4)-1 -> 0.006192246326 | EI62: =(1+$E$62)^(1/4)-1 -> 0.006192246326 | EJ62: =(1+$E$62)^(1/4)-1 -> 0.006192246326 | EK62: =(1+$E$62)^(1/4)-1 -> 0.006192246326 | EL62: =(1+$E$62)^(1/4)-1 -> 0.006192246326 | EM62: =(1+$E$62)^(1/4)-1 -> 0.006192246326 | EN62: =(1+$E$62)^(1/4)-1 -> 0.006192246326 | EO62: =(1+$E$62)^(1/4)-1 -> 0.006192246326 | EP62: =(1+$E$62)^(1/4)-1 -> 0.006192246326 | EQ62: =(1+$E$62)^(1/4)-1 -> 0.006192246326 | ER62: =(1+$E$62)^(1/4)-1 -> 0.006192246326 | ES62: =(1+$E$62)^(1/4)-1 -> 0.006192246326 | ET62: =(1+$E$62)^(1/4)-1 -> 0.006192246326 | EU62: =(1+$E$62)^(1/4)-1 -> 0.006192246326 | EV62: =(1+$E$62)^(1/4)-1 -> 0.006192246326 | EW62: =(1+$E$62)^(1/4)-1 -> 0.006192246326 | EX62: =(1+$E$62)^(1/4)-1 -> 0.006192246326 | EY62: =(1+$E$62)^(1/4)-1 -> 0.006192246326 | EZ62: =(1+$E$62)^(1/4)-1 -> 0.006192246326 | FA62: =(1+$E$62)^(1/4)-1 -> 0.006192246326 | FB62: =(1+$E$62)^(1/4)-1 -> 0.006192246326 | FC62: =(1+$E$62)^(1/4)-1 -> 0.006192246326 | FD62: =(1+$E$62)^(1/4)-1 -> 0.006192246326 | FE62: =(1+$E$62)^(1/4)-1 -> 0.006192246326 | FF62: =(1+$E$62)^(1/4)-1 -> 0.006192246326 | FG62: =(1+$E$62)^(1/4)-1 -> 0.006192246326 | FH62: =(1+$E$62)^(1/4)-1 -> 0.006192246326 | FI62: =(1+$E$62)^(1/4)-1 -> 0.006192246326 | FJ62: =(1+$E$62)^(1/4)-1 -> 0.006192246326 | FK62: =(1+$E$62)^(1/4)-1 -> 0.006192246326 | FL62: =(1+$E$62)^(1/4)-1 -> 0.006192246326 | FM62: =(1+$E$62)^(1/4)-1 -> 0.006192246326 | FN62: =(1+$E$62)^(1/4)-1 -> 0.006192246326 | FO62: =(1+$E$62)^(1/4)-1 -> 0.006192246326 | FP62: =(1+$E$62)^(1/4)-1 -> 0.006192246326 | FQ62: =(1+$E$62)^(1/4)-1 -> 0.006192246326 | FR62: =(1+$E$62)^(1/4)-1 -> 0.006192246326 | FS62: =(1+$E$62)^(1/4)-1 -> 0.006192246326
C63: Inflation Quarterly 2.0% | D63: % p.p. | E63: ='Inputs - Partnership'!$G$68 -> 0.02 | I63: =(1+$E$63)^(1/4)-1 -> 0.004962931573 | J63: =(1+$E$63)^(1/4)-1 -> 0.004962931573 | K63: 0.004962931573 | L63: 0.004962931573 | M63: 0.004962931573 | N63: 0.004962931573 | O63: 0.004962931573 | P63: 0.004962931573 | Q63: 0.004962931573 | R63: 0.004962931573 | S63: 0.004962931573 | T63: 0.004962931573 | U63: 0.004962931573 | V63: 0.004962931573 | W63: 0.004962931573 | X63: 0.004962931573 | Y63: 0.004962931573 | Z63: 0.004962931573 | AA63: 0.004962931573 | AB63: 0.004962931573 | AC63: 0.004962931573 | AD63: 0.004962931573 | AE63: 0.004962931573 | AF63: 0.004962931573 | AG63: 0.004962931573 | AH63: 0.004962931573 | AI63: 0.004962931573 | AJ63: 0.004962931573 | AK63: 0.004962931573 | AL63: 0.004962931573 | AM63: 0.004962931573 | AN63: 0.004962931573 | AO63: 0.004962931573 | AP63: 0.004962931573 | AQ63: 0.004962931573 | AR63: 0.004962931573 | AS63: 0.004962931573 | AT63: 0.004962931573 | AU63: 0.004962931573 | AV63: 0.004962931573 | AW63: 0.004962931573 | AX63: 0.004962931573 | AY63: 0.004962931573 | AZ63: 0.004962931573 | BA63: 0.004962931573 | BB63: 0.004962931573 | BC63: 0.004962931573 | BD63: 0.004962931573 | BE63: 0.004962931573 | BF63: 0.004962931573 | BG63: 0.004962931573 | BH63: 0.004962931573 | BI63: 0.004962931573 | BJ63: 0.004962931573 | BK63: 0.004962931573 | BL63: 0.004962931573 | BM63: 0.004962931573 | BN63: 0.004962931573 | BO63: 0.004962931573 | BP63: 0.004962931573 | BQ63: 0.004962931573 | BR63: 0.004962931573 | BS63: 0.004962931573 | BT63: 0.004962931573 | BU63: 0.004962931573 | BV63: =(1+$E$63)^(1/4)-1 -> 0.004962931573 | BW63: 0.004962931573 | BX63: 0.004962931573 | BY63: 0.004962931573 | BZ63: 0.004962931573 | CA63: 0.004962931573 | CB63: 0.004962931573 | CC63: 0.004962931573 | CD63: 0.004962931573 | CE63: 0.004962931573 | CF63: 0.004962931573 | CG63: 0.004962931573 | CH63: 0.004962931573 | CI63: 0.004962931573 | CJ63: 0.004962931573 | CK63: 0.004962931573 | CL63: 0.004962931573 | CM63: 0.004962931573 | CN63: 0.004962931573 | CO63: 0.004962931573 | CP63: 0.004962931573 | CQ63: 0.004962931573 | CR63: 0.004962931573 | CS63: 0.004962931573 | CT63: 0.004962931573 | CU63: 0.004962931573 | CV63: 0.004962931573 | CW63: 0.004962931573 | CX63: 0.004962931573 | CY63: 0.004962931573 | CZ63: 0.004962931573 | DA63: 0.004962931573 | DB63: 0.004962931573 | DC63: 0.004962931573 | DD63: 0.004962931573 | DE63: 0.004962931573 | DF63: 0.004962931573 | DG63: 0.004962931573 | DH63: 0.004962931573 | DI63: 0.004962931573 | DJ63: 0.004962931573 | DK63: 0.004962931573 | DL63: 0.004962931573 | DM63: 0.004962931573 | DN63: 0.004962931573 | DO63: 0.004962931573 | DP63: 0.004962931573 | DQ63: 0.004962931573 | DR63: 0.004962931573 | DS63: 0.004962931573 | DT63: 0.004962931573 | DU63: 0.004962931573 | DV63: 0.004962931573 | DW63: 0.004962931573 | DX63: 0.004962931573 | DY63: 0.004962931573 | DZ63: 0.004962931573 | EA63: 0.004962931573 | EB63: 0.004962931573 | EC63: 0.004962931573 | ED63: 0.004962931573 | EE63: 0.004962931573 | EF63: 0.004962931573 | EG63: 0.004962931573 | EH63: =(1+$E$63)^(1/4)-1 -> 0.004962931573 | EI63: 0.004962931573 | EJ63: 0.004962931573 | EK63: 0.004962931573 | EL63: 0.004962931573 | EM63: 0.004962931573 | EN63: 0.004962931573 | EO63: 0.004962931573 | EP63: 0.004962931573 | EQ63: 0.004962931573 | ER63: 0.004962931573 | ES63: 0.004962931573 | ET63: 0.004962931573 | EU63: 0.004962931573 | EV63: 0.004962931573 | EW63: 0.004962931573 | EX63: 0.004962931573 | EY63: 0.004962931573 | EZ63: 0.004962931573 | FA63: 0.004962931573 | FB63: 0.004962931573 | FC63: 0.004962931573 | FD63: 0.004962931573 | FE63: 0.004962931573 | FF63: 0.004962931573 | FG63: 0.004962931573 | FH63: 0.004962931573 | FI63: 0.004962931573 | FJ63: 0.004962931573 | FK63: 0.004962931573 | FL63: 0.004962931573 | FM63: 0.004962931573 | FN63: 0.004962931573 | FO63: 0.004962931573 | FP63: 0.004962931573 | FQ63: 0.004962931573 | FR63: 0.004962931573 | FS63: 0.004962931573
C65: Inflation Index 2.5% | D65: Index | H65: 1 | I65: =H65*(1+I62*I$6) -> 1 | J65: =I65*(1+J62*J$6) -> 1 | K65: 1 | L65: 1 | M65: 1 | N65: 1 | O65: 1 | P65: 1 | Q65: 1.006192246 | R65: 1.012422837 | S65: 1.018692008 | T65: 1.025 | U65: 1.031347052 | V65: 1.037733407 | W65: 1.044159308 | X65: 1.050625 | Y65: 1.057130729 | Z65: 1.063676743 | AA65: 1.070263291 | AB65: 1.076890625 | AC65: 1.083558997 | AD65: 1.090268661 | AE65: 1.097019873 | AF65: 1.103812891 | AG65: 1.110647972 | AH65: 1.117525378 | AI65: 1.12444537 | AJ65: 1.131408213 | AK65: 1.138414171 | AL65: 1.145463512 | AM65: 1.152556504 | AN65: 1.159693418 | AO65: 1.166874526 | AP65: 1.1741001 | AQ65: 1.181370417 | AR65: 1.188685754 | AS65: 1.196046389 | AT65: 1.203452603 | AU65: 1.210904677 | AV65: 1.218402898 | AW65: 1.225947548 | AX65: 1.233538918 | AY65: 1.241177294 | AZ65: 1.24886297 | BA65: 1.256596237 | BB65: 1.264377391 | BC65: 1.272206727 | BD65: 1.280084544 | BE65: 1.288011143 | BF65: 1.295986825 | BG65: 1.304011895 | BH65: 1.312086658 | BI65: 1.320211422 | BJ65: 1.328386496 | BK65: 1.336612192 | BL65: 1.344888824 | BM65: 1.353216707 | BN65: 1.361596158 | BO65: 1.370027497 | BP65: 1.378511045 | BQ65: 1.387047125 | BR65: 1.395636062 | BS65: 1.404278185 | BT65: 1.412973821 | BU65: 1.421723303 | BV65: =BU65*(1+BV62*BV$6) -> 1.430526964 | BW65: 1.439385139 | BX65: 1.448298166 | BY65: 1.457266385 | BZ65: 1.466290138 | CA65: 1.475369768 | CB65: 1.484505621 | CC65: 1.493698045 | CD65: 1.502947391 | CE65: 1.512254012 | CF65: 1.521618261 | CG65: 1.531040496 | CH65: 1.540521076 | CI65: 1.550060362 | CJ65: 1.559658718 | CK65: 1.569316509 | CL65: 1.579034103 | CM65: 1.588811871 | CN65: 1.598650186 | CO65: 1.608549421 | CP65: 1.618509956 | CQ65: 1.628532168 | CR65: 1.63861644 | CS65: 1.648763157 | CT65: 1.658972705 | CU65: 1.669245472 | CV65: 1.679581851 | CW65: 1.689982236 | CX65: 1.700447022 | CY65: 1.710976609 | CZ65: 1.721571398 | DA65: 1.732231792 | DB65: 1.742958198 | DC65: 1.753751024 | DD65: 1.764610683 | DE65: 1.775537587 | DF65: 1.786532153 | DG65: 1.7975948 | DH65: 1.80872595 | DI65: 1.819926026 | DJ65: 1.831195456 | DK65: 1.84253467 | DL65: 1.853944098 | DM65: 1.865424177 | DN65: 1.876975343 | DO65: 1.888598037 | DP65: 1.900292701 | DQ65: 1.912059781 | DR65: 1.923899726 | DS65: 1.935812987 | DT65: 1.947800018 | DU65: 1.959861276 | DV65: 1.97199722 | DW65: 1.984208312 | DX65: 1.996495019 | DY65: 2.008857808 | DZ65: 2.02129715 | EA65: 2.03381352 | EB65: 2.046407394 | EC65: 2.059079253 | ED65: 2.071829579 | EE65: 2.084658858 | EF65: 2.097567579 | EG65: 2.110556234 | EH65: =EG65*(1+EH62*EH$6) -> 2.123625318 | EI65: 2.136775329 | EJ65: 2.150006769 | EK65: 2.16332014 | EL65: 2.176715951 | EM65: 2.190194713 | EN65: 2.203756938 | EO65: 2.217403144 | EP65: 2.23113385 | EQ65: 2.24494958 | ER65: 2.258850861 | ES65: 2.272838222 | ET65: 2.286912196 | EU65: 2.30107332 | EV65: 2.315322133 | EW65: 2.329659178 | EX65: 2.344085001 | EY65: 2.358600153 | EZ65: 2.373205186 | FA65: 2.373205186 | FB65: 2.373205186 | FC65: 2.373205186 | FD65: 2.373205186 | FE65: 2.373205186 | FF65: 2.373205186 | FG65: 2.373205186 | FH65: 2.373205186 | FI65: 2.373205186 | FJ65: 2.373205186 | FK65: 2.373205186 | FL65: 2.373205186 | FM65: 2.373205186 | FN65: 2.373205186 | FO65: 2.373205186 | FP65: 2.373205186 | FQ65: 2.373205186 | FR65: 2.373205186 | FS65: 2.373205186
C66: Inflation Index 2% | D66: Index | H66: 1 | I66: =H66*(1+I63*I$6) -> 1 | J66: =I66*(1+J63*J$6) -> 1 | K66: 1 | L66: 1 | M66: 1 | N66: 1 | O66: 1 | P66: 1 | Q66: 1.004962932 | R66: 1.009950494 | S66: 1.014962809 | T66: 1.02 | U66: 1.02506219 | V66: 1.030149504 | W66: 1.035262065 | X66: 1.0404 | Y66: 1.045563434 | Z66: 1.050752494 | AA66: 1.055967307 | AB66: 1.061208 | AC66: 1.066474703 | AD66: 1.071767544 | AE66: 1.077086653 | AF66: 1.08243216 | AG66: 1.087804197 | AH66: 1.093202895 | AI66: 1.098628386 | AJ66: 1.104080803 | AK66: 1.109560281 | AL66: 1.115066952 | AM66: 1.120600953 | AN66: 1.126162419 | AO66: 1.131751486 | AP66: 1.137368291 | AQ66: 1.143012972 | AR66: 1.148685668 | AS66: 1.154386516 | AT66: 1.160115657 | AU66: 1.165873232 | AV66: 1.171659381 | AW66: 1.177474246 | AX66: 1.18331797 | AY66: 1.189190697 | AZ66: 1.195092569 | BA66: 1.201023731 | BB66: 1.20698433 | BC66: 1.21297451 | BD66: 1.21899442 | BE66: 1.225044206 | BF66: 1.231124016 | BG66: 1.237234001 | BH66: 1.243374308 | BI66: 1.24954509 | BJ66: 1.255746497 | BK66: 1.261978681 | BL66: 1.268241795 | BM66: 1.274535992 | BN66: 1.280861427 | BO66: 1.287218254 | BP66: 1.29360663 | BQ66: 1.300026712 | BR66: 1.306478655 | BS66: 1.312962619 | BT66: 1.319478763 | BU66: 1.326027246 | BV66: =BU66*(1+BV63*BV$6) -> 1.332608228 | BW66: 1.339221872 | BX66: 1.345868338 | BY66: 1.352547791 | BZ66: 1.359260393 | CA66: 1.366006309 | CB66: 1.372785705 | CC66: 1.379598747 | CD66: 1.386445601 | CE66: 1.393326435 | CF66: 1.400241419 | CG66: 1.407190722 | CH66: 1.414174513 | CI66: 1.421192964 | CJ66: 1.428246248 | CK66: 1.435334536 | CL66: 1.442458003 | CM66: 1.449616823 | CN66: 1.456811173 | CO66: 1.464041227 | CP66: 1.471307163 | CQ66: 1.47860916 | CR66: 1.485947396 | CS66: 1.493322051 | CT66: 1.500733306 | CU66: 1.508181343 | CV66: 1.515666344 | CW66: 1.523188492 | CX66: 1.530747973 | CY66: 1.53834497 | CZ66: 1.545979671 | DA66: 1.553652262 | DB66: 1.561362932 | DC66: 1.569111869 | DD66: 1.576899264 | DE66: 1.584725307 | DF66: 1.592590191 | DG66: 1.600494107 | DH66: 1.608437249 | DI66: 1.616419813 | DJ66: 1.624441994 | DK66: 1.632503989 | DL66: 1.640605994 | DM66: 1.64874821 | DN66: 1.656930834 | DO66: 1.665154069 | DP66: 1.673418114 | DQ66: 1.681723174 | DR66: 1.690069451 | DS66: 1.69845715 | DT66: 1.706886477 | DU66: 1.715357637 | DV66: 1.72387084 | DW66: 1.732426293 | DX66: 1.741024206 | DY66: 1.74966479 | DZ66: 1.758348257 | EA66: 1.767074819 | EB66: 1.77584469 | EC66: 1.784658086 | ED66: 1.793515222 | EE66: 1.802416315 | EF66: 1.811361584 | EG66: 1.820351248 | EH66: =EG66*(1+EH63*EH$6) -> 1.829385526 | EI66: 1.838464642 | EJ66: 1.847588816 | EK66: 1.856758273 | EL66: 1.865973237 | EM66: 1.875233934 | EN66: 1.884540592 | EO66: 1.893893438 | EP66: 1.903292702 | EQ66: 1.912738613 | ER66: 1.922231404 | ES66: 1.931771307 | ET66: 1.941358556 | EU66: 1.950993385 | EV66: 1.960676032 | EW66: 1.970406733 | EX66: 1.980185727 | EY66: 1.990013253 | EZ66: 1.999889553 | FA66: 1.999889553 | FB66: 1.999889553 | FC66: 1.999889553 | FD66: 1.999889553 | FE66: 1.999889553 | FF66: 1.999889553 | FG66: 1.999889553 | FH66: 1.999889553 | FI66: 1.999889553 | FJ66: 1.999889553 | FK66: 1.999889553 | FL66: 1.999889553 | FM66: 1.999889553 | FN66: 1.999889553 | FO66: 1.999889553 | FP66: 1.999889553 | FQ66: 1.999889553 | FR66: 1.999889553 | FS66: 1.999889553
E69: $ p.a. | F69: Escalation
C70: Panel O&M | D70: USD '000 | E70: ='Inputs - Partnership'!E67 -> 40 | F70: ='Inputs - Partnership'!$G$67 -> 0.025 | H70: =SUM(I70:FS70) -> -2231.352466 | I70: =-$E$70/4*I65*I6 -> 0 | J70: =-$E$70/4*J65*J6 -> 0 | K70: 0 | L70: 0 | M70: 0 | N70: 0 | O70: 0 | P70: 0 | Q70: -10.06192246 | R70: -10.12422837 | S70: -10.18692008 | T70: -10.25 | U70: -10.31347052 | V70: -10.37733407 | W70: -10.44159308 | X70: -10.50625 | Y70: -10.57130729 | Z70: -10.63676743 | AA70: -10.70263291 | AB70: -10.76890625 | AC70: -10.83558997 | AD70: -10.90268661 | AE70: -10.97019873 | AF70: -11.03812891 | AG70: -11.10647972 | AH70: -11.17525378 | AI70: -11.2444537 | AJ70: -11.31408213 | AK70: -11.38414171 | AL70: -11.45463512 | AM70: -11.52556504 | AN70: -11.59693418 | AO70: -11.66874526 | AP70: -11.741001 | AQ70: -11.81370417 | AR70: -11.88685754 | AS70: -11.96046389 | AT70: -12.03452603 | AU70: -12.10904677 | AV70: -12.18402898 | AW70: -12.25947548 | AX70: -12.33538918 | AY70: -12.41177294 | AZ70: -12.4886297 | BA70: -12.56596237 | BB70: -12.64377391 | BC70: -12.72206727 | BD70: -12.80084544 | BE70: -12.88011143 | BF70: -12.95986825 | BG70: -13.04011895 | BH70: -13.12086658 | BI70: -13.20211422 | BJ70: -13.28386496 | BK70: -13.36612192 | BL70: -13.44888824 | BM70: -13.53216707 | BN70: -13.61596158 | BO70: -13.70027497 | BP70: -13.78511045 | BQ70: -13.87047125 | BR70: -13.95636062 | BS70: -14.04278185 | BT70: -14.12973821 | BU70: -14.21723303 | BV70: =-$E$70/4*BV65*BV6 -> -14.30526964 | BW70: -14.39385139 | BX70: -14.48298166 | BY70: -14.57266385 | BZ70: -14.66290138 | CA70: -14.75369768 | CB70: -14.84505621 | CC70: -14.93698045 | CD70: -15.02947391 | CE70: -15.12254012 | CF70: -15.21618261 | CG70: -15.31040496 | CH70: -15.40521076 | CI70: -15.50060362 | CJ70: -15.59658718 | CK70: -15.69316509 | CL70: -15.79034103 | CM70: -15.88811871 | CN70: -15.98650186 | CO70: -16.08549421 | CP70: -16.18509956 | CQ70: -16.28532168 | CR70: -16.3861644 | CS70: -16.48763157 | CT70: -16.58972705 | CU70: -16.69245472 | CV70: -16.79581851 | CW70: -16.89982236 | CX70: -17.00447022 | CY70: -17.10976609 | CZ70: -17.21571398 | DA70: -17.32231792 | DB70: -17.42958198 | DC70: -17.53751024 | DD70: -17.64610683 | DE70: -17.75537587 | DF70: -17.86532153 | DG70: -17.975948 | DH70: -18.0872595 | DI70: -18.19926026 | DJ70: -18.31195456 | DK70: -18.4253467 | DL70: -18.53944098 | DM70: -18.65424177 | DN70: -18.76975343 | DO70: -18.88598037 | DP70: -19.00292701 | DQ70: -19.12059781 | DR70: -19.23899726 | DS70: -19.35812987 | DT70: -19.47800018 | DU70: -19.59861276 | DV70: -19.7199722 | DW70: -19.84208312 | DX70: -19.96495019 | DY70: -20.08857808 | DZ70: -20.2129715 | EA70: -20.3381352 | EB70: -20.46407394 | EC70: -20.59079253 | ED70: -20.71829579 | EE70: -20.84658858 | EF70: -20.97567579 | EG70: -21.10556234 | EH70: =-$E$70/4*EH65*EH6 -> -21.23625318 | EI70: -21.36775329 | EJ70: -21.50006769 | EK70: -21.6332014 | EL70: -21.76715951 | EM70: -21.90194713 | EN70: -22.03756938 | EO70: -22.17403144 | EP70: -22.3113385 | EQ70: -22.4494958 | ER70: -22.58850861 | ES70: -22.72838222 | ET70: -22.86912196 | EU70: -23.0107332 | EV70: -23.15322133 | EW70: -23.29659178 | EX70: -23.44085001 | EY70: -23.58600153 | EZ70: -23.73205186 | FA70: 0 | FB70: 0 | FC70: 0 | FD70: 0 | FE70: 0 | FF70: 0 | FG70: 0 | FH70: 0 | FI70: 0 | FJ70: 0 | FK70: 0 | FL70: 0 | FM70: 0 | FN70: 0 | FO70: 0 | FP70: 0 | FQ70: 0 | FR70: 0 | FS70: 0
C71: BoP O&M and site labor | D71: USD '000 | E71: ='Inputs - Partnership'!E68 -> 125 | F71: ='Inputs - Partnership'!$G$68 -> 0.02 | H71: -6327.232713 | I71: =-$E71/4*I$66*I$6 -> 0 | J71: =-$E71/4*J$66*J$6 -> 0 | K71: 0 | L71: 0 | M71: 0 | N71: 0 | O71: 0 | P71: 0 | Q71: -31.40509161 | R71: -31.56095293 | S71: -31.71758778 | T71: -31.875 | U71: -32.03319344 | V71: -32.19217199 | W71: -32.35193954 | X71: -32.5125 | Y71: -32.67385731 | Z71: -32.83601543 | AA71: -32.99897833 | AB71: -33.16275 | AC71: -33.32733446 | AD71: -33.49273574 | AE71: -33.6589579 | AF71: -33.826005 | AG71: -33.99388115 | AH71: -34.16259045 | AI71: -34.33213705 | AJ71: -34.5025251 | AK71: -34.67375877 | AL71: -34.84584226 | AM71: -35.01877979 | AN71: -35.1925756 | AO71: -35.36723395 | AP71: -35.54275911 | AQ71: -35.71915539 | AR71: -35.89642711 | AS71: -36.07457863 | AT71: -36.25361429 | AU71: -36.4335385 | AV71: -36.61435566 | AW71: -36.7960702 | AX71: -36.97868658 | AY71: -37.16220927 | AZ71: -37.34664277 | BA71: -37.5319916 | BB71: -37.71826031 | BC71: -37.90545345 | BD71: -38.09357562 | BE71: -38.28263143 | BF71: -38.47262551 | BG71: -38.66356252 | BH71: -38.85544714 | BI71: -39.04828406 | BJ71: -39.24207802 | BK71: -39.43683377 | BL71: -39.63255608 | BM71: -39.82924974 | BN71: -40.02691959 | BO71: -40.22557045 | BP71: -40.4252072 | BQ71: -40.62583474 | BR71: -40.82745798 | BS71: -41.03008186 | BT71: -41.23371135 | BU71: -41.43835143 | BV71: =-$E71/4*BV$66*BV$6 -> -41.64400714 | BW71: -41.85068349 | BX71: -42.05838557 | BY71: -42.26711846 | BZ71: -42.47688728 | CA71: -42.68769716 | CB71: -42.89955328 | CC71: -43.11246083 | CD71: -43.32642502 | CE71: -43.54145111 | CF71: -43.75754435 | CG71: -43.97471005 | CH71: -44.19295353 | CI71: -44.41228013 | CJ71: -44.63269524 | CK71: -44.85420425 | CL71: -45.0768126 | CM71: -45.30052573 | CN71: -45.52534914 | CO71: -45.75128833 | CP71: -45.97834885 | CQ71: -46.20653625 | CR71: -46.43585612 | CS71: -46.6663141 | CT71: -46.89791582 | CU71: -47.13066697 | CV71: -47.36457325 | CW71: -47.59964038 | CX71: -47.83587414 | CY71: -48.07328031 | CZ71: -48.31186471 | DA71: -48.55163319 | DB71: -48.79259162 | DC71: -49.03474592 | DD71: -49.27810201 | DE71: -49.52266585 | DF71: -49.76844346 | DG71: -50.01544084 | DH71: -50.26366405 | DI71: -50.51311917 | DJ71: -50.76381233 | DK71: -51.01574965 | DL71: -51.26893733 | DM71: -51.52338155 | DN71: -51.77908857 | DO71: -52.03606465 | DP71: -52.29431607 | DQ71: -52.55384919 | DR71: -52.81467034 | DS71: -53.07678594 | DT71: -53.3402024 | DU71: -53.60492617 | DV71: -53.87096375 | DW71: -54.13832166 | DX71: -54.40700644 | DY71: -54.67702469 | DZ71: -54.94838303 | EA71: -55.22108809 | EB71: -55.49514657 | EC71: -55.77056519 | ED71: -56.04735069 | EE71: -56.32550985 | EF71: -56.6050495 | EG71: -56.88597649 | EH71: =-$E71/4*EH$66*EH$6 -> -57.1682977 | EI71: -57.45202005 | EJ71: -57.73715049 | EK71: -58.02369602 | EL71: -58.31166365 | EM71: -58.60106045 | EN71: -58.8918935 | EO71: -59.18416994 | EP71: -59.47789693 | EQ71: -59.77308166 | ER71: -60.06973137 | ES71: -60.36785334 | ET71: -60.66745486 | EU71: -60.96854329 | EV71: -61.271126 | EW71: -61.57521041 | EX71: -61.88080396 | EY71: -62.18791416 | EZ71: -62.49654852 | FA71: 0 | FB71: 0 | FC71: 0 | FD71: 0 | FE71: 0 | FF71: 0 | FG71: 0 | FH71: 0 | FI71: 0 | FJ71: 0 | FK71: 0 | FL71: 0 | FM71: 0 | FN71: 0 | FO71: 0 | FP71: 0 | FQ71: 0 | FR71: 0 | FS71: 0
C72: Operating expense | D72: USD '000 | E72: ='Inputs - Partnership'!E69 -> 71 | F72: ='Inputs - Partnership'!G69 -> 0.02 | H72: -3593.868181 | I72: =-$E72/4*I$66*I$6 -> 0 | J72: 0 | K72: 0 | L72: 0 | M72: 0 | N72: 0 | O72: 0 | P72: 0 | Q72: -17.83809204 | R72: -17.92662127 | S72: -18.01558986 | T72: -18.105 | U72: -18.19485388 | V72: -18.28515369 | W72: -18.37590166 | X72: -18.4671 | Y72: -18.55875095 | Z72: -18.65085676 | AA72: -18.74341969 | AB72: -18.836442 | AC72: -18.92992597 | AD72: -19.0238739 | AE72: -19.11828808 | AF72: -19.21317084 | AG72: -19.30852449 | AH72: -19.40435138 | AI72: -19.50065385 | AJ72: -19.59743426 | AK72: -19.69469498 | AL72: -19.79243841 | AM72: -19.89066692 | AN72: -19.98938294 | AO72: -20.08858888 | AP72: -20.18828717 | AQ72: -20.28848026 | AR72: -20.3891706 | AS72: -20.49036066 | AT72: -20.59205292 | AU72: -20.69424987 | AV72: -20.79695401 | AW72: -20.90016787 | AX72: -21.00389398 | AY72: -21.10813486 | AZ72: -21.21289309 | BA72: -21.31817123 | BB72: -21.42397186 | BC72: -21.53029756 | BD72: -21.63715095 | BE72: -21.74453465 | BF72: -21.85245129 | BG72: -21.96090351 | BH72: -22.06989397 | BI72: -22.17942535 | BJ72: -22.28950032 | BK72: -22.40012158 | BL72: -22.51129185 | BM72: -22.62301385 | BN72: -22.73529032 | BO72: -22.84812401 | BP72: -22.96151769 | BQ72: -23.07547413 | BR72: -23.18999613 | BS72: -23.30508649 | BT72: -23.42074804 | BU72: -23.53698361 | BV72: -23.65379605 | BW72: -23.77118822 | BX72: -23.88916301 | BY72: -24.00772329 | BZ72: -24.12687197 | CA72: -24.24661199 | CB72: -24.36694627 | CC72: -24.48787775 | CD72: -24.60940941 | CE72: -24.73154423 | CF72: -24.85428519 | CG72: -24.97763531 | CH72: -25.1015976 | CI72: -25.22617511 | CJ72: -25.35137089 | CK72: -25.47718801 | CL72: -25.60362955 | CM72: -25.73069862 | CN72: -25.85839831 | CO72: -25.98673177 | CP72: -26.11570215 | CQ72: -26.24531259 | CR72: -26.37556628 | CS72: -26.50646641 | CT72: -26.63801619 | CU72: -26.77021884 | CV72: -26.9030776 | CW72: -27.03659574 | CX72: -27.17077651 | CY72: -27.30562322 | CZ72: -27.44113916 | DA72: -27.57732765 | DB72: -27.71419204 | DC72: -27.85173568 | DD72: -27.98996194 | DE72: -28.12887421 | DF72: -28.26847588 | DG72: -28.40877039 | DH72: -28.54976118 | DI72: -28.69145169 | DJ72: -28.8338454 | DK72: -28.9769458 | DL72: -29.1207564 | DM72: -29.26528072 | DN72: -29.41052231 | DO72: -29.55648472 | DP72: -29.70317153 | DQ72: -29.85058634 | DR72: -29.99873276 | DS72: -30.14761441 | DT72: -30.29723496 | DU72: -30.44759806 | DV72: -30.59870741 | DW72: -30.7505667 | DX72: -30.90317966 | DY72: -31.05655003 | DZ72: -31.21068156 | EA72: -31.36557804 | EB72: -31.52124325 | EC72: -31.67768103 | ED72: -31.83489519 | EE72: -31.9928896 | EF72: -32.15166812 | EG72: -32.31123465 | EH72: -32.47159309 | EI72: -32.63274739 | EJ72: -32.79470148 | EK72: -32.95745934 | EL72: -33.12102496 | EM72: -33.28540234 | EN72: -33.45059551 | EO72: -33.61660853 | EP72: -33.78344545 | EQ72: -33.95111038 | ER72: -34.11960742 | ES72: -34.2889407 | ET72: -34.45911436 | EU72: -34.63013259 | EV72: -34.80199957 | EW72: -34.97471951 | EX72: -35.14829665 | EY72: -35.32273524 | EZ72: -35.49803956 | FA72: 0 | FB72: 0 | FC72: 0 | FD72: 0 | FE72: 0 | FF72: 0 | FG72: 0 | FH72: 0 | FI72: 0 | FJ72: 0 | FK72: 0 | FL72: 0 | FM72: 0 | FN72: 0 | FO72: 0 | FP72: 0 | FQ72: 0 | FR72: 0 | FS72: 0
C73: Asset management | D73: USD '000 | E73: ='Inputs - Partnership'!E71 -> 250 | F73: ='Inputs - Partnership'!G71 -> 0.02 | H73: -12654.46543 | I73: 0 | J73: 0 | K73: 0 | L73: 0 | M73: 0 | N73: 0 | O73: 0 | P73: 0 | Q73: -62.81018322 | R73: -63.12190586 | S73: -63.43517556 | T73: -63.75 | U73: -64.06638689 | V73: -64.38434398 | W73: -64.70387908 | X73: -65.025 | Y73: -65.34771463 | Z73: -65.67203086 | AA73: -65.99795666 | AB73: -66.3255 | AC73: -66.65466892 | AD73: -66.98547148 | AE73: -67.31791579 | AF73: -67.65201 | AG73: -67.9877623 | AH73: -68.32518091 | AI73: -68.66427411 | AJ73: -69.0050502 | AK73: -69.34751754 | AL73: -69.69168453 | AM73: -70.03755959 | AN73: -70.3851512 | AO73: -70.73446789 | AP73: -71.08551822 | AQ73: -71.43831078 | AR73: -71.79285423 | AS73: -72.14915725 | AT73: -72.50722858 | AU73: -72.867077 | AV73: -73.22871131 | AW73: -73.5921404 | AX73: -73.95737315 | AY73: -74.32441854 | AZ73: -74.69328554 | BA73: -75.0639832 | BB73: -75.43652062 | BC73: -75.81090691 | BD73: -76.18715125 | BE73: -76.56526287 | BF73: -76.94525103 | BG73: -77.32712504 | BH73: -77.71089427 | BI73: -78.09656813 | BJ73: -78.48415605 | BK73: -78.87366755 | BL73: -79.26511216 | BM73: -79.65849949 | BN73: -80.05383917 | BO73: -80.4511409 | BP73: -80.8504144 | BQ73: -81.25166948 | BR73: -81.65491595 | BS73: -82.06016371 | BT73: -82.46742269 | BU73: -82.87670287 | BV73: -83.28801427 | BW73: -83.70136699 | BX73: -84.11677115 | BY73: -84.53423692 | BZ73: -84.95377456 | CA73: -85.37539433 | CB73: -85.79910657 | CC73: -86.22492166 | CD73: -86.65285005 | CE73: -87.08290221 | CF73: -87.5150887 | CG73: -87.9494201 | CH73: -88.38590705 | CI73: -88.82456026 | CJ73: -89.26539047 | CK73: -89.7084085 | CL73: -90.15362519 | CM73: -90.60105146 | CN73: -91.05069828 | CO73: -91.50257667 | CP73: -91.9566977 | CQ73: -92.41307249 | CR73: -92.87171225 | CS73: -93.3326282 | CT73: -93.79583165 | CU73: -94.26133394 | CV73: -94.72914649 | CW73: -95.19928077 | CX73: -95.67174828 | CY73: -96.14656062 | CZ73: -96.62372942 | DA73: -97.10326638 | DB73: -97.58518325 | DC73: -98.06949183 | DD73: -98.55620401 | DE73: -99.04533171 | DF73: -99.53688691 | DG73: -100.0308817 | DH73: -100.5273281 | DI73: -101.0262383 | DJ73: -101.5276247 | DK73: -102.0314993 | DL73: -102.5378747 | DM73: -103.0467631 | DN73: -103.5581771 | DO73: -104.0721293 | DP73: -104.5886321 | DQ73: -105.1076984 | DR73: -105.6293407 | DS73: -106.1535719 | DT73: -106.6804048 | DU73: -107.2098523 | DV73: -107.7419275 | DW73: -108.2766433 | DX73: -108.8140129 | DY73: -109.3540494 | DZ73: -109.8967661 | EA73: -110.4421762 | EB73: -110.9902931 | EC73: -111.5411304 | ED73: -112.0947014 | EE73: -112.6510197 | EF73: -113.210099 | EG73: -113.771953 | EH73: -114.3365954 | EI73: -114.9040401 | EJ73: -115.474301 | EK73: -116.047392 | EL73: -116.6233273 | EM73: -117.2021209 | EN73: -117.783787 | EO73: -118.3683399 | EP73: -118.9557939 | EQ73: -119.5461633 | ER73: -120.1394627 | ES73: -120.7357067 | ET73: -121.3349097 | EU73: -121.9370866 | EV73: -122.542252 | EW73: -123.1504208 | EX73: -123.7616079 | EY73: -124.3758283 | EZ73: -124.993097 | FA73: 0 | FB73: 0 | FC73: 0 | FD73: 0 | FE73: 0 | FF73: 0 | FG73: 0 | FH73: 0 | FI73: 0 | FJ73: 0 | FK73: 0 | FL73: 0 | FM73: 0 | FN73: 0 | FO73: 0 | FP73: 0 | FQ73: 0 | FR73: 0 | FS73: 0
C74: Community support | D74: USD '000 | E74: ='Inputs - Partnership'!E72 -> 10 | F74: ='Inputs - Partnership'!G72 -> 0.02 | H74: -506.178617 | I74: 0 | J74: 0 | K74: 0 | L74: 0 | M74: 0 | N74: 0 | O74: 0 | P74: 0 | Q74: -2.512407329 | R74: -2.524876235 | S74: -2.537407023 | T74: -2.55 | U74: -2.562655476 | V74: -2.575373759 | W74: -2.588155163 | X74: -2.601 | Y74: -2.613908585 | Z74: -2.626881234 | AA74: -2.639918266 | AB74: -2.65302 | AC74: -2.666186757 | AD74: -2.679418859 | AE74: -2.692716632 | AF74: -2.7060804 | AG74: -2.719510492 | AH74: -2.733007236 | AI74: -2.746570964 | AJ74: -2.760202008 | AK74: -2.773900702 | AL74: -2.787667381 | AM74: -2.801502384 | AN74: -2.815406048 | AO74: -2.829378716 | AP74: -2.843420729 | AQ74: -2.857532431 | AR74: -2.871714169 | AS74: -2.88596629 | AT74: -2.900289143 | AU74: -2.91468308 | AV74: -2.929148453 | AW74: -2.943685616 | AX74: -2.958294926 | AY74: -2.972976741 | AZ74: -2.987731422 | BA74: -3.002559328 | BB74: -3.017460825 | BC74: -3.032436276 | BD74: -3.04748605 | BE74: -3.062610515 | BF74: -3.077810041 | BG74: -3.093085002 | BH74: -3.108435771 | BI74: -3.123862725 | BJ74: -3.139366242 | BK74: -3.154946702 | BL74: -3.170604486 | BM74: -3.18633998 | BN74: -3.202153567 | BO74: -3.218045636 | BP74: -3.234016576 | BQ74: -3.250066779 | BR74: -3.266196638 | BS74: -3.282406549 | BT74: -3.298696908 | BU74: -3.315068115 | BV74: -3.331520571 | BW74: -3.34805468 | BX74: -3.364670846 | BY74: -3.381369477 | BZ74: -3.398150982 | CA74: -3.415015773 | CB74: -3.431964263 | CC74: -3.448996867 | CD74: -3.466114002 | CE74: -3.483316089 | CF74: -3.500603548 | CG74: -3.517976804 | CH74: -3.535436282 | CI74: -3.55298241 | CJ74: -3.570615619 | CK74: -3.58833634 | CL74: -3.606145008 | CM74: -3.624042059 | CN74: -3.642027931 | CO74: -3.660103067 | CP74: -3.678267908 | CQ74: -3.6965229 | CR74: -3.71486849 | CS74: -3.733305128 | CT74: -3.751833266 | CU74: -3.770453358 | CV74: -3.78916586 | CW74: -3.807971231 | CX74: -3.826869931 | CY74: -3.845862425 | CZ74: -3.864949177 | DA74: -3.884130655 | DB74: -3.90340733 | DC74: -3.922779673 | DD74: -3.94224816 | DE74: -3.961813268 | DF74: -3.981475477 | DG74: -4.001235267 | DH74: -4.021093124 | DI74: -4.041049534 | DJ74: -4.061104986 | DK74: -4.081259972 | DL74: -4.101514986 | DM74: -4.121870524 | DN74: -4.142327086 | DO74: -4.162885172 | DP74: -4.183545286 | DQ74: -4.204307935 | DR74: -4.225173627 | DS74: -4.246142875 | DT74: -4.267216192 | DU74: -4.288394094 | DV74: -4.3096771 | DW74: -4.331065733 | DX74: -4.352560515 | DY74: -4.374161975 | DZ74: -4.395870642 | EA74: -4.417687047 | EB74: -4.439611726 | EC74: -4.461645215 | ED74: -4.483788055 | EE74: -4.506040788 | EF74: -4.52840396 | EG74: =-$E74/4*EG$66*EG$6 -> -4.550878119 | EH74: -4.573463816 | EI74: -4.596161604 | EJ74: -4.618972039 | EK74: -4.641895682 | EL74: -4.664933092 | EM74: -4.688084836 | EN74: -4.71135148 | EO74: -4.734733595 | EP74: -4.758231754 | EQ74: -4.781846533 | ER74: -4.80557851 | ES74: -4.829428267 | ET74: -4.853396389 | EU74: -4.877483463 | EV74: -4.90169008 | EW74: -4.926016833 | EX74: -4.950464317 | EY74: -4.975033133 | EZ74: -4.999723882 | FA74: 0 | FB74: 0 | FC74: 0 | FD74: 0 | FE74: 0 | FF74: 0 | FG74: 0 | FH74: 0 | FI74: 0 | FJ74: 0 | FK74: 0 | FL74: 0 | FM74: 0 | FN74: 0 | FO74: 0 | FP74: 0 | FQ74: 0 | FR74: 0 | FS74: 0
C75: 3rd party services | D75: USD '000 | E75: ='Inputs - Partnership'!E73 -> 200 | F75: ='Inputs - Partnership'!G73 -> 0.02 | H75: -10123.57234 | I75: 0 | J75: 0 | K75: 0 | L75: 0 | M75: 0 | N75: 0 | O75: 0 | P75: 0 | Q75: -50.24814658 | R75: -50.49752469 | S75: -50.74814045 | T75: -51 | U75: -51.25310951 | V75: -51.50747519 | W75: -51.76310326 | X75: -52.02 | Y75: -52.2781717 | Z75: -52.53762469 | AA75: -52.79836533 | AB75: -53.0604 | AC75: -53.32373513 | AD75: -53.58837718 | AE75: -53.85433263 | AF75: -54.121608 | AG75: -54.39020984 | AH75: -54.66014473 | AI75: -54.93141928 | AJ75: -55.20404016 | AK75: -55.47801403 | AL75: -55.75334762 | AM75: -56.03004767 | AN75: -56.30812096 | AO75: -56.58757431 | AP75: -56.86841457 | AQ75: -57.15064862 | AR75: -57.43428338 | AS75: -57.7193258 | AT75: -58.00578287 | AU75: -58.2936616 | AV75: -58.58296905 | AW75: -58.87371232 | AX75: -59.16589852 | AY75: -59.45953483 | AZ75: -59.75462843 | BA75: -60.05118656 | BB75: -60.34921649 | BC75: -60.64872552 | BD75: -60.949721 | BE75: -61.25221029 | BF75: -61.55620082 | BG75: -61.86170004 | BH75: -62.16871542 | BI75: -62.4772545 | BJ75: -62.78732484 | BK75: -63.09893404 | BL75: -63.41208973 | BM75: -63.72679959 | BN75: -64.04307134 | BO75: -64.36091272 | BP75: -64.68033152 | BQ75: =-$E75/4*BQ$66*BQ$6 -> -65.00133558 | BR75: -65.32393276 | BS75: -65.64813097 | BT75: -65.97393815 | BU75: -66.30136229 | BV75: -66.63041142 | BW75: -66.96109359 | BX75: -67.29341692 | BY75: -67.62738954 | BZ75: -67.96301965 | CA75: -68.30031546 | CB75: -68.63928525 | CC75: -68.97993733 | CD75: -69.32228004 | CE75: -69.66632177 | CF75: -70.01207096 | CG75: -70.35953608 | CH75: -70.70872564 | CI75: -71.05964821 | CJ75: -71.41231238 | CK75: -71.7667268 | CL75: -72.12290015 | CM75: -72.48084117 | CN75: -72.84055863 | CO75: -73.20206133 | CP75: -73.56535816 | CQ75: -73.93045799 | CR75: -74.2973698 | CS75: -74.66610256 | CT75: -75.03666532 | CU75: -75.40906715 | CV75: -75.78331719 | CW75: -76.15942461 | CX75: -76.53739863 | CY75: -76.9172485 | CZ75: -77.29898354 | DA75: -77.6826131 | DB75: -78.0681466 | DC75: -78.45559347 | DD75: -78.84496321 | DE75: -79.23626537 | DF75: -79.62950953 | DG75: -80.02470534 | DH75: -80.42186247 | DI75: -80.82099067 | DJ75: -81.22209972 | DK75: -81.62519944 | DL75: -82.03029972 | DM75: -82.43741049 | DN75: -82.84654172 | DO75: -83.25770343 | DP75: -83.67090572 | DQ75: -84.0861587 | DR75: -84.50347255 | DS75: -84.9228575 | DT75: -85.34432383 | DU75: -85.76788187 | DV75: -86.193542 | DW75: -86.62131465 | DX75: -87.05121031 | DY75: -87.48323951 | DZ75: -87.91741284 | EA75: -88.35374094 | EB75: -88.79223451 | EC75: =-$E75/4*EC$66*EC$6 -> -89.2329043 | ED75: -89.6757611 | EE75: -90.12081576 | EF75: -90.56807921 | EG75: -91.01756238 | EH75: -91.46927632 | EI75: -91.92323208 | EJ75: -92.37944079 | EK75: -92.83791363 | EL75: -93.29866185 | EM75: -93.76169672 | EN75: -94.22702961 | EO75: -94.69467191 | EP75: -95.16463508 | EQ75: -95.63693065 | ER75: -96.1115702 | ES75: -96.58856534 | ET75: -97.06792778 | EU75: -97.54966927 | EV75: -98.0338016 | EW75: -98.52033665 | EX75: -99.00928634 | EY75: -99.50066265 | EZ75: -99.99447763 | FA75: 0 | FB75: 0 | FC75: 0 | FD75: 0 | FE75: 0 | FF75: 0 | FG75: 0 | FH75: 0 | FI75: 0 | FJ75: 0 | FK75: 0 | FL75: 0 | FM75: 0 | FN75: 0 | FO75: 0 | FP75: 0 | FQ75: 0 | FR75: 0 | FS75: 0
C76: Insurance | D76: USD '000 | E76: ='Inputs - Partnership'!E82 -> 1464.75 | F76: ='Inputs - Partnership'!G80 -> 0 | H76: -51266.25 | I76: =-$E76/4*I$6 -> 0 | J76: =-$E76/4*J$6 -> 0 | K76: 0 | L76: 0 | M76: 0 | N76: 0 | O76: 0 | P76: 0 | Q76: -366.1875 | R76: -366.1875 | S76: -366.1875 | T76: -366.1875 | U76: -366.1875 | V76: -366.1875 | W76: -366.1875 | X76: -366.1875 | Y76: -366.1875 | Z76: -366.1875 | AA76: -366.1875 | AB76: -366.1875 | AC76: -366.1875 | AD76: -366.1875 | AE76: -366.1875 | AF76: -366.1875 | AG76: -366.1875 | AH76: -366.1875 | AI76: -366.1875 | AJ76: -366.1875 | AK76: -366.1875 | AL76: -366.1875 | AM76: -366.1875 | AN76: -366.1875 | AO76: -366.1875 | AP76: -366.1875 | AQ76: -366.1875 | AR76: -366.1875 | AS76: -366.1875 | AT76: -366.1875 | AU76: -366.1875 | AV76: -366.1875 | AW76: -366.1875 | AX76: -366.1875 | AY76: -366.1875 | AZ76: -366.1875 | BA76: -366.1875 | BB76: -366.1875 | BC76: -366.1875 | BD76: -366.1875 | BE76: -366.1875 | BF76: -366.1875 | BG76: -366.1875 | BH76: -366.1875 | BI76: -366.1875 | BJ76: -366.1875 | BK76: -366.1875 | BL76: -366.1875 | BM76: -366.1875 | BN76: -366.1875 | BO76: -366.1875 | BP76: -366.1875 | BQ76: -366.1875 | BR76: -366.1875 | BS76: -366.1875 | BT76: -366.1875 | BU76: -366.1875 | BV76: =-$E76/4*BV$6 -> -366.1875 | BW76: -366.1875 | BX76: -366.1875 | BY76: -366.1875 | BZ76: -366.1875 | CA76: -366.1875 | CB76: -366.1875 | CC76: -366.1875 | CD76: -366.1875 | CE76: -366.1875 | CF76: -366.1875 | CG76: -366.1875 | CH76: -366.1875 | CI76: -366.1875 | CJ76: -366.1875 | CK76: -366.1875 | CL76: -366.1875 | CM76: -366.1875 | CN76: -366.1875 | CO76: -366.1875 | CP76: -366.1875 | CQ76: -366.1875 | CR76: -366.1875 | CS76: -366.1875 | CT76: -366.1875 | CU76: -366.1875 | CV76: -366.1875 | CW76: -366.1875 | CX76: -366.1875 | CY76: -366.1875 | CZ76: -366.1875 | DA76: -366.1875 | DB76: -366.1875 | DC76: -366.1875 | DD76: -366.1875 | DE76: -366.1875 | DF76: -366.1875 | DG76: -366.1875 | DH76: -366.1875 | DI76: -366.1875 | DJ76: -366.1875 | DK76: -366.1875 | DL76: -366.1875 | DM76: -366.1875 | DN76: -366.1875 | DO76: -366.1875 | DP76: -366.1875 | DQ76: -366.1875 | DR76: -366.1875 | DS76: -366.1875 | DT76: -366.1875 | DU76: -366.1875 | DV76: -366.1875 | DW76: -366.1875 | DX76: -366.1875 | DY76: -366.1875 | DZ76: -366.1875 | EA76: -366.1875 | EB76: -366.1875 | EC76: -366.1875 | ED76: -366.1875 | EE76: -366.1875 | EF76: -366.1875 | EG76: -366.1875 | EH76: =-$E76/4*EH$6 -> -366.1875 | EI76: -366.1875 | EJ76: -366.1875 | EK76: -366.1875 | EL76: -366.1875 | EM76: -366.1875 | EN76: -366.1875 | EO76: -366.1875 | EP76: -366.1875 | EQ76: -366.1875 | ER76: -366.1875 | ES76: -366.1875 | ET76: -366.1875 | EU76: -366.1875 | EV76: -366.1875 | EW76: -366.1875 | EX76: -366.1875 | EY76: -366.1875 | EZ76: -366.1875 | FA76: 0 | FB76: 0 | FC76: 0 | FD76: 0 | FE76: 0 | FF76: 0 | FG76: 0 | FH76: 0 | FI76: 0 | FJ76: 0 | FK76: 0 | FL76: 0 | FM76: 0 | FN76: 0 | FO76: 0 | FP76: 0 | FQ76: 0 | FR76: 0 | FS76: 0
C77: Property tax | D77: USD '000 | E77: ='Inputs - Partnership'!E77 -> 500 | F77: ='Inputs - Partnership'!G77 -> 0 | H77: -17500 | I77: =-$E77/4*I$6 -> 0 | J77: 0 | K77: 0 | L77: 0 | M77: 0 | N77: 0 | O77: 0 | P77: 0 | Q77: -125 | R77: -125 | S77: -125 | T77: -125 | U77: -125 | V77: -125 | W77: -125 | X77: -125 | Y77: -125 | Z77: -125 | AA77: -125 | AB77: -125 | AC77: -125 | AD77: -125 | AE77: -125 | AF77: -125 | AG77: -125 | AH77: -125 | AI77: -125 | AJ77: -125 | AK77: -125 | AL77: -125 | AM77: -125 | AN77: -125 | AO77: -125 | AP77: -125 | AQ77: -125 | AR77: -125 | AS77: -125 | AT77: -125 | AU77: -125 | AV77: -125 | AW77: -125 | AX77: -125 | AY77: -125 | AZ77: -125 | BA77: -125 | BB77: -125 | BC77: -125 | BD77: -125 | BE77: -125 | BF77: -125 | BG77: -125 | BH77: -125 | BI77: -125 | BJ77: -125 | BK77: -125 | BL77: -125 | BM77: -125 | BN77: -125 | BO77: -125 | BP77: -125 | BQ77: -125 | BR77: -125 | BS77: -125 | BT77: -125 | BU77: -125 | BV77: -125 | BW77: -125 | BX77: -125 | BY77: -125 | BZ77: -125 | CA77: -125 | CB77: -125 | CC77: -125 | CD77: -125 | CE77: -125 | CF77: -125 | CG77: -125 | CH77: -125 | CI77: -125 | CJ77: -125 | CK77: -125 | CL77: -125 | CM77: -125 | CN77: -125 | CO77: -125 | CP77: -125 | CQ77: -125 | CR77: -125 | CS77: -125 | CT77: -125 | CU77: -125 | CV77: -125 | CW77: -125 | CX77: -125 | CY77: -125 | CZ77: -125 | DA77: -125 | DB77: -125 | DC77: -125 | DD77: -125 | DE77: -125 | DF77: -125 | DG77: -125 | DH77: -125 | DI77: -125 | DJ77: -125 | DK77: -125 | DL77: -125 | DM77: -125 | DN77: -125 | DO77: -125 | DP77: -125 | DQ77: -125 | DR77: -125 | DS77: -125 | DT77: -125 | DU77: -125 | DV77: -125 | DW77: -125 | DX77: -125 | DY77: -125 | DZ77: -125 | EA77: -125 | EB77: -125 | EC77: -125 | ED77: -125 | EE77: -125 | EF77: -125 | EG77: -125 | EH77: -125 | EI77: -125 | EJ77: -125 | EK77: -125 | EL77: -125 | EM77: -125 | EN77: -125 | EO77: -125 | EP77: -125 | EQ77: -125 | ER77: -125 | ES77: -125 | ET77: -125 | EU77: -125 | EV77: -125 | EW77: -125 | EX77: -125 | EY77: -125 | EZ77: -125 | FA77: 0 | FB77: 0 | FC77: 0 | FD77: 0 | FE77: 0 | FF77: 0 | FG77: 0 | FH77: 0 | FI77: 0 | FJ77: 0 | FK77: 0 | FL77: 0 | FM77: 0 | FN77: 0 | FO77: 0 | FP77: 0 | FQ77: 0 | FR77: 0 | FS77: 0
C78: Land | D78: USD '000 | E78: ='Inputs - Partnership'!E78 -> 500 | F78: ='Inputs - Partnership'!G78 -> 0 | H78: -17500 | I78: 0 | J78: 0 | K78: 0 | L78: 0 | M78: 0 | N78: 0 | O78: 0 | P78: 0 | Q78: -125 | R78: -125 | S78: -125 | T78: -125 | U78: -125 | V78: -125 | W78: -125 | X78: -125 | Y78: -125 | Z78: -125 | AA78: -125 | AB78: -125 | AC78: -125 | AD78: -125 | AE78: -125 | AF78: -125 | AG78: -125 | AH78: -125 | AI78: -125 | AJ78: -125 | AK78: -125 | AL78: -125 | AM78: -125 | AN78: -125 | AO78: -125 | AP78: -125 | AQ78: -125 | AR78: -125 | AS78: -125 | AT78: -125 | AU78: -125 | AV78: -125 | AW78: -125 | AX78: -125 | AY78: -125 | AZ78: -125 | BA78: -125 | BB78: -125 | BC78: -125 | BD78: -125 | BE78: -125 | BF78: -125 | BG78: -125 | BH78: -125 | BI78: -125 | BJ78: -125 | BK78: -125 | BL78: -125 | BM78: -125 | BN78: -125 | BO78: -125 | BP78: -125 | BQ78: -125 | BR78: -125 | BS78: -125 | BT78: -125 | BU78: -125 | BV78: -125 | BW78: -125 | BX78: -125 | BY78: -125 | BZ78: -125 | CA78: -125 | CB78: -125 | CC78: -125 | CD78: -125 | CE78: -125 | CF78: -125 | CG78: -125 | CH78: -125 | CI78: -125 | CJ78: -125 | CK78: -125 | CL78: -125 | CM78: -125 | CN78: -125 | CO78: -125 | CP78: -125 | CQ78: -125 | CR78: -125 | CS78: -125 | CT78: -125 | CU78: -125 | CV78: -125 | CW78: -125 | CX78: -125 | CY78: -125 | CZ78: -125 | DA78: -125 | DB78: -125 | DC78: -125 | DD78: -125 | DE78: -125 | DF78: -125 | DG78: -125 | DH78: -125 | DI78: -125 | DJ78: -125 | DK78: -125 | DL78: -125 | DM78: -125 | DN78: -125 | DO78: -125 | DP78: -125 | DQ78: -125 | DR78: -125 | DS78: -125 | DT78: -125 | DU78: -125 | DV78: -125 | DW78: -125 | DX78: -125 | DY78: -125 | DZ78: -125 | EA78: -125 | EB78: -125 | EC78: -125 | ED78: -125 | EE78: -125 | EF78: -125 | EG78: -125 | EH78: -125 | EI78: -125 | EJ78: -125 | EK78: -125 | EL78: -125 | EM78: -125 | EN78: -125 | EO78: -125 | EP78: -125 | EQ78: -125 | ER78: -125 | ES78: -125 | ET78: -125 | EU78: -125 | EV78: -125 | EW78: -125 | EX78: -125 | EY78: -125 | EZ78: -125 | FA78: 0 | FB78: 0 | FC78: 0 | FD78: 0 | FE78: 0 | FF78: 0 | FG78: 0 | FH78: 0 | FI78: 0 | FJ78: 0 | FK78: 0 | FL78: 0 | FM78: 0 | FN78: 0 | FO78: 0 | FP78: 0 | FQ78: 0 | FR78: 0 | FS78: 0
E79: Start | F79: End
E80: ='Inputs - Partnership'!I70 -> 5 | F80: ='Inputs - Partnership'!J70 -> 20
C81: Maintenance - Inverter replacement | D81: USD '000 | E81: ='Inputs - Partnership'!E70 -> 83 | F81: ='Inputs - Partnership'!G70 -> 0.02 | H81: =SUM(I81:FS81) -> -1677.536266 | I81: =IF(AND(I$14>=$E80,I$14<=$F80),((($E81*I$6)*(1+($F81/4))^(I$15*4))/4)*-1,0) -> 0 | J81: 0 | K81: 0 | L81: 0 | M81: 0 | N81: 0 | O81: 0 | P81: 0 | Q81: 0 | R81: 0 | S81: 0 | T81: 0 | U81: 0 | V81: 0 | W81: 0 | X81: 0 | Y81: 0 | Z81: 0 | AA81: 0 | AB81: 0 | AC81: 0 | AD81: 0 | AE81: 0 | AF81: 0 | AG81: -22.47372639 | AH81: -22.47372639 | AI81: -22.47372639 | AJ81: -22.47372639 | AK81: -22.92658323 | AL81: -22.92658323 | AM81: -22.92658323 | AN81: -22.92658323 | AO81: =IF(AND(AO$14>=$E80,AO$14<=$F80),((($E81*AO$6)*(1+($F81/4))^(AO$15*4))/4)*-1,0) -> -23.38856536 | AP81: -23.38856536 | AQ81: -23.38856536 | AR81: -23.38856536 | AS81: -23.85985666 | AT81: -23.85985666 | AU81: -23.85985666 | AV81: -23.85985666 | AW81: -24.34064471 | AX81: -24.34064471 | AY81: -24.34064471 | AZ81: -24.34064471 | BA81: -24.83112089 | BB81: -24.83112089 | BC81: -24.83112089 | BD81: -24.83112089 | BE81: -25.33148041 | BF81: -25.33148041 | BG81: -25.33148041 | BH81: -25.33148041 | BI81: -25.84192242 | BJ81: -25.84192242 | BK81: -25.84192242 | BL81: -25.84192242 | BM81: -26.36265009 | BN81: -26.36265009 | BO81: -26.36265009 | BP81: -26.36265009 | BQ81: -26.89387069 | BR81: -26.89387069 | BS81: -26.89387069 | BT81: -26.89387069 | BU81: =IF(AND(BU$14>=$E80,BU$14<=$F80),((($E81*BU$6)*(1+($F81/4))^(BU$15*4))/4)*-1,0) -> -27.43579565 | BV81: -27.43579565 | BW81: -27.43579565 | BX81: -27.43579565 | BY81: -27.98864067 | BZ81: -27.98864067 | CA81: -27.98864067 | CB81: -27.98864067 | CC81: -28.55262579 | CD81: -28.55262579 | CE81: -28.55262579 | CF81: -28.55262579 | CG81: -29.12797549 | CH81: -29.12797549 | CI81: -29.12797549 | CJ81: -29.12797549 | CK81: -29.71491878 | CL81: -29.71491878 | CM81: -29.71491878 | CN81: -29.71491878 | CO81: -30.31368927 | CP81: -30.31368927 | CQ81: -30.31368927 | CR81: -30.31368927 | CS81: 0 | CT81: 0 | CU81: 0 | CV81: 0 | CW81: 0 | CX81: 0 | CY81: 0 | CZ81: 0 | DA81: =IF(AND(DA$14>=$E80,DA$14<=$F80),((($E81*DA$6)*(1+($F81/4))^(DA$15*4))/4)*-1,0) -> 0 | DB81: 0 | DC81: 0 | DD81: 0 | DE81: 0 | DF81: 0 | DG81: 0 | DH81: 0 | DI81: 0 | DJ81: 0 | DK81: 0 | DL81: 0 | DM81: 0 | DN81: 0 | DO81: 0 | DP81: 0 | DQ81: 0 | DR81: 0 | DS81: 0 | DT81: 0 | DU81: 0 | DV81: 0 | DW81: 0 | DX81: 0 | DY81: 0 | DZ81: 0 | EA81: 0 | EB81: 0 | EC81: 0 | ED81: 0 | EE81: 0 | EF81: 0 | EG81: =IF(AND(EG$14>=$E80,EG$14<=$F80),((($E81*EG$6)*(1+($F81/4))^(EG$15*4))/4)*-1,0) -> 0 | EH81: 0 | EI81: 0 | EJ81: 0 | EK81: 0 | EL81: 0 | EM81: 0 | EN81: 0 | EO81: 0 | EP81: 0 | EQ81: 0 | ER81: 0 | ES81: 0 | ET81: 0 | EU81: 0 | EV81: 0 | EW81: 0 | EX81: 0 | EY81: 0 | EZ81: 0 | FA81: 0 | FB81: 0 | FC81: 0 | FD81: 0 | FE81: 0 | FF81: 0 | FG81: 0 | FH81: 0 | FI81: 0 | FJ81: 0 | FK81: 0 | FL81: 0 | FM81: =IF(AND(FM$14>=$E80,FM$14<=$F80),((($E81*FM$6)*(1+($F81/4))^(FM$15*4))/4)*-1,0) -> 0 | FN81: 0 | FO81: 0 | FP81: 0 | FQ81: 0 | FR81: 0 | FS81: 0
C83: Total operating costs | D83: USD '000 | H83: =SUM(I83:FS83) -> -123380.456 | I83: =SUM(I81,I70:I78) -> 0 | J83: 0 | K83: 0 | L83: 0 | M83: 0 | N83: 0 | O83: 0 | P83: 0 | Q83: -791.0633432 | R83: -791.9436094 | S83: -792.8283208 | T83: -793.7175 | U83: -794.6111697 | V83: -795.5093527 | W83: -796.4120718 | X83: -797.31935 | Y83: -798.2312105 | Z83: -799.1476764 | AA83: -800.0687712 | AB83: -800.9945183 | AC83: -801.9249412 | AD83: -802.8600638 | AE83: -803.7999098 | AF83: -804.7445031 | AG83: -828.1675944 | AH83: -829.1217549 | AI83: -830.0807353 | AJ83: -831.0445602 | AK83: -832.466111 | AL83: -833.4396985 | AM83: -834.4182046 | AN83: -835.4016542 | AO83: =SUM(AO81,AO70:AO78) -> -836.8520544 | AP83: -837.8454662 | AQ83: -838.843897 | AR83: -839.8473724 | AS83: -841.3272092 | AT83: -842.3408505 | AU83: -843.3596135 | AV83: -844.3835241 | AW83: -845.8933966 | AX83: -846.927681 | AY83: -847.9671919 | AZ83: -849.0119557 | BA83: -850.5524752 | BB83: -851.6078249 | BC83: -852.6685079 | BD83: -853.7345512 | BE83: -855.3063416 | BF83: -856.3831874 | BG83: -857.4654755 | BH83: -858.5532336 | BI83: -860.1569314 | BJ83: -861.2557129 | BK83: -862.360048 | BL83: -863.469965 | BM83: -865.1062198 | BN83: -866.2273857 | BO83: -867.3542188 | BP83: -868.4867479 | BQ83: -870.1562226 | BR83: -871.3002308 | BS83: -872.4500221 | BT83: -873.605626 | BU83: =SUM(BU81,BU70:BU78) -> -875.308997 | BV83: -876.4763147 | BW83: -877.649534 | BX83: -878.8286848 | BY83: -880.5666422 | BZ83: -881.7577465 | CA83: -882.9548731 | CB83: -884.1580525 | CC83: -885.9313007 | CD83: -887.1466782 | CE83: -888.3682013 | CF83: -889.5959011 | CG83: -891.4051588 | CH83: -892.6453064 | CI83: -893.8917252 | CJ83: -895.1444473 | CK83: -896.9904478 | CL83: -898.2558723 | CM83: -899.5276965 | CN83: -900.8059529 | CO83: -902.6894447 | CP83: -903.9806636 | CQ83: -905.2784132 | CR83: -906.5827266 | CS83: -877.579948 | CT83: -878.8974893 | CU83: -880.221695 | CV83: -881.5525989 | CW83: -882.8902351 | CX83: -884.2346377 | CY83: -885.5858412 | CZ83: -886.94388 | DA83: =SUM(DA81,DA70:DA78) -> -888.3087889 | DB83: -889.6806028 | DC83: -891.0593568 | DD83: -892.4450862 | DE83: -893.8378263 | DF83: -895.2376128 | DG83: -896.6444815 | DH83: -898.0584684 | DI83: -899.4796097 | DJ83: -900.9079416 | DK83: -902.3435009 | DL83: -903.7863241 | DM83: -905.2364482 | DN83: -906.6939103 | DO83: -908.1587476 | DP83: -909.6309978 | DQ83: -911.1106983 | DR83: -912.5978872 | DS83: -914.0926025 | DT83: -915.5948824 | DU83: -917.1047653 | DV83: -918.62229 | DW83: -920.1474952 | DX83: -921.68042 | DY83: -923.2211037 | DZ83: -924.7695856 | EA83: -926.3259055 | EB83: -927.8901032 | EC83: -929.4622186 | ED83: -931.0422922 | EE83: -932.6303643 | EF83: -934.2264756 | EG83: =SUM(EG81,EG70:EG78) -> -935.830667 | EH83: -937.4429795 | EI83: -939.0634545 | EJ83: -940.6921335 | EK83: -942.3290581 | EL83: -943.9742704 | EM83: -945.6278124 | EN83: -947.2897265 | EO83: -948.9600553 | EP83: -950.6388416 | EQ83: -952.3261284 | ER83: -954.0219589 | ES83: -955.7263765 | ET83: -957.4394251 | EU83: -959.1611484 | EV83: -960.8915906 | EW83: -962.630796 | EX83: -964.3788092 | EY83: -966.135675 | EZ83: -967.9014385 | FA83: 0 | FB83: 0 | FC83: 0 | FD83: 0 | FE83: 0 | FF83: 0 | FG83: 0 | FH83: 0 | FI83: 0 | FJ83: 0 | FK83: 0 | FL83: 0 | FM83: =SUM(FM81,FM70:FM78) -> 0 | FN83: 0 | FO83: 0 | FP83: 0 | FQ83: 0 | FR83: 0 | FS83: 0
C85: EBITDA at P50 | D85: USD '000 | H85: =SUM(I85:FS85) -> 322021.9439 | I85: =I57+I83 -> 0 | J85: =J57+J83 -> 0 | K85: =K57+K83 -> 0 | L85: =L57+L83 -> 0 | M85: =M57+M83 -> 0 | N85: =N57+N83 -> 0 | O85: =O57+O83 -> 0 | P85: =P57+P83 -> 0 | Q85: =Q57+Q83 -> 4088.403387 | R85: =R57+R83 -> 7137.189827 | S85: =S57+S83 -> 6379.987772 | T85: =T57+T83 -> 3622.199891 | U85: =U57+U83 -> 3611.038495 | V85: =V57+V83 -> 3610.140312 | W85: =W57+W83 -> 3609.237592 | X85: =X57+X83 -> 3608.330314 | Y85: =Y57+Y83 -> 3597.21596 | Z85: =Z57+Z83 -> 3596.299494 | AA85: =AA57+AA83 -> 3595.378399 | AB85: =AB57+AB83 -> 3594.452652 | AC85: =AC57+AC83 -> 3583.384579 | AD85: =AD57+AD83 -> 3582.449457 | AE85: =AE57+AE83 -> 3581.509611 | AF85: =AF57+AF83 -> 3580.565017 | AG85: =AG57+AG83 -> 3547.068735 | AH85: =AH57+AH83 -> 3546.114575 | AI85: =AI57+AI83 -> 3545.155594 | AJ85: =AJ57+AJ83 -> 3544.191769 | AK85: =AK57+AK83 -> 3532.761102 | AL85: =AL57+AL83 -> 3531.787515 | AM85: =AM57+AM83 -> 3530.809009 | AN85: =AN57+AN83 -> 3529.825559 | AO85: =AO57+AO83 -> 3518.429737 | AP85: =AP57+AP83 -> 3517.436325 | AQ85: =AQ57+AQ83 -> 3516.437894 | AR85: =AR57+AR83 -> 3515.434419 | AS85: =AS57+AS83 -> 3504.072475 | AT85: =AT57+AT83 -> 3503.058834 | AU85: =AU57+AU83 -> 3502.040071 | AV85: =AV57+AV83 -> 3501.01616 | AW85: =AW57+AW83 -> 3489.687119 | AX85: =AX57+AX83 -> 3488.652835 | AY85: =AY57+AY83 -> 3487.613324 | AZ85: =AZ57+AZ83 -> 3486.56856 | BA85: =BA57+BA83 -> 3475.271436 | BB85: =BB57+BB83 -> 3474.216087 | BC85: =BC57+BC83 -> 3473.155404 | BD85: =BD57+BD83 -> 3472.08936 | BE85: =BE57+BE83 -> 3327.248975 | BF85: =BF57+BF83 -> 3326.172129 | BG85: =BG57+BG83 -> 3325.089841 | BH85: =BH57+BH83 -> 3324.002083 | BI85: =BI57+BI83 -> 3313.56246 | BJ85: =BJ57+BJ83 -> 3312.463678 | BK85: =BK57+BK83 -> 3311.359343 | BL85: =BL57+BL83 -> 3310.249426 | BM85: =BM57+BM83 -> 3299.833949 | BN85: =BN57+BN83 -> 3298.712783 | BO85: =BO57+BO83 -> 3297.58595 | BP85: =BP57+BP83 -> 3296.453421 | BQ85: =BQ57+BQ83 -> 3286.061089 | BR85: =BR57+BR83 -> 3284.917081 | BS85: =BS57+BS83 -> 3283.767289 | BT85: =BT57+BT83 -> 3282.611685 | BU85: =BU57+BU83 -> 3272.241488 | BV85: =BV57+BV83 -> 3271.07417 | BW85: =BW57+BW83 -> 3269.900951 | BX85: =BX57+BX83 -> 3268.7218 | BY85: =BY57+BY83 -> 662.12662 | BZ85: =BZ57+BZ83 -> 660.9355158 | CA85: =CA57+CA83 -> 659.7383892 | CB85: =CB57+CB83 -> 658.5352097 | CC85: =CC57+CC83 -> 647.5610077 | CD85: =CD57+CD83 -> 646.3456302 | CE85: =CE57+CE83 -> 645.1241071 | CF85: =CF57+CF83 -> 643.8964073 | CG85: =CG57+CG83 -> 632.9410722 | CH85: =CH57+CH83 -> 631.7009247 | CI85: =CI57+CI83 -> 630.4545058 | CJ85: =CJ57+CJ83 -> 629.2017837 | CK85: =CK57+CK83 -> 618.264255 | CL85: =CL57+CL83 -> 616.9988305 | CM85: =CM57+CM83 -> 615.7270063 | CN85: =CN57+CN83 -> 614.4487499 | CO85: =CO57+CO83 -> 603.5279537 | CP85: =CP57+CP83 -> 602.2367348 | CQ85: =CQ57+CQ83 -> 600.9389852 | CR85: =CR57+CR83 -> 599.6346718 | CS85: =CS57+CS83 -> -877.579948 | CT85: =CT57+CT83 -> 1906.734929 | CU85: =CU57+CU83 -> 1905.410724 | CV85: =CV57+CV83 -> 1904.07982 | CW85: =CW57+CW83 -> 1851.03913 | CX85: =CX57+CX83 -> 1849.694727 | CY85: =CY57+CY83 -> 1848.343524 | CZ85: =CZ57+CZ83 -> 1846.985485 | DA85: =DA57+DA83 -> 1695.214615 | DB85: =DB57+DB83 -> 1693.842801 | DC85: =DC57+DC83 -> 1692.464047 | DD85: =DD57+DD83 -> 1691.078318 | DE85: =DE57+DE83 -> 1679.267588 | DF85: =DF57+DF83 -> 1677.867802 | DG85: =DG57+DG83 -> 1676.460933 | DH85: =DH57+DH83 -> 1675.046946 | DI85: =DI57+DI83 -> 1775.816154 | DJ85: =DJ57+DJ83 -> 1774.387822 | DK85: =DK57+DK83 -> 1772.952263 | DL85: =DL57+DL83 -> 1771.50944 | DM85: =DM57+DM83 -> 1697.894624 | DN85: =DN57+DN83 -> 1696.437162 | DO85: =DO57+DO83 -> 1694.972324 | DP85: =DP57+DP83 -> 1693.500074 | DQ85: =DQ57+DQ83 -> 1554.140468 | DR85: =DR57+DR83 -> 1552.65328 | DS85: =DS57+DS83 -> 1551.158564 | DT85: =DT57+DT83 -> 1549.656284 | DU85: =DU57+DU83 -> 1579.147031 | DV85: =DV57+DV83 -> 1577.629506 | DW85: =DW57+DW83 -> 1576.104301 | DX85: =DX57+DX83 -> 1574.571376 | DY85: =DY57+DY83 -> 1592.142377 | DZ85: =DZ57+DZ83 -> 1590.593895 | EA85: =EA57+EA83 -> 1589.037575 | EB85: =EB57+EB83 -> 1587.473377 | EC85: =EC57+EC83 -> 1570.899094 | ED85: =ED57+ED83 -> 1569.31902 | EE85: =EE57+EE83 -> 1567.730948 | EF85: =EF57+EF83 -> 1566.134837 | EG85: =EG57+EG83 -> 1549.617954 | EH85: =EH57+EH83 -> 1548.005641 | EI85: =EI57+EI83 -> 1546.385166 | EJ85: =EJ57+EJ83 -> 1544.756487 | EK85: =EK57+EK83 -> 1528.295813 | EL85: =EL57+EL83 -> 1526.650601 | EM85: =EM57+EM83 -> 1524.997059 | EN85: =EN57+EN83 -> 1523.335145 | EO85: =EO57+EO83 -> 1506.929479 | EP85: =EP57+EP83 -> 1505.250693 | EQ85: =EQ57+EQ83 -> 1503.563406 | ER85: =ER57+ER83 -> 1501.867575 | ES85: =ES57+ES83 -> 1485.515705 | ET85: =ET57+ET83 -> 1483.802657 | EU85: =EU57+EU83 -> 1482.080933 | EV85: =EV57+EV83 -> 1480.350491 | EW85: =EW57+EW83 -> 1464.051194 | EX85: =EX57+EX83 -> 1462.303181 | EY85: =EY57+EY83 -> 1460.546315 | EZ85: =EZ57+EZ83 -> 1458.780551 | FA85: =FA57+FA83 -> 0 | FB85: =FB57+FB83 -> 0 | FC85: =FC57+FC83 -> 0 | FD85: =FD57+FD83 -> 0 | FE85: =FE57+FE83 -> 0 | FF85: =FF57+FF83 -> 0 | FG85: =FG57+FG83 -> 0 | FH85: =FH57+FH83 -> 0 | FI85: =FI57+FI83 -> 0 | FJ85: =FJ57+FJ83 -> 0 | FK85: =FK57+FK83 -> 0 | FL85: =FL57+FL83 -> 0 | FM85: =FM57+FM83 -> 0 | FN85: =FN57+FN83 -> 0 | FO85: =FO57+FO83 -> 0 | FP85: =FP57+FP83 -> 0 | FQ85: =FQ57+FQ83 -> 0 | FR85: =FR57+FR83 -> 0 | FS85: =FS57+FS83 -> 0
